{"text_format":"3","workbook":"xlsx","n_sheets":7,"sheets":["Ficha","MIR GENERL DEL PMDyG","Pp2 MIR DS","Listas","Base","SUSTENTO INDICADOR","Hoja5"],"not_rendered":{"charts":1,"images":12,"macros":1,"external_links":2,"defined_names":76,"comments":1},"read":"whole","date_system":"1900"}

{"sheet":"Ficha","index":0,"n_rows":20,"n_cols":8,"rows_kept":20}
[]
[]
[]
[]
[{"$nulls":3},"Información para la evaluación del desempeño"]
[]
[{"$nulls":3},"Municipio:"]
[{"$nulls":3},"Ixtlahuacán de los Membrillos"]
[]
[{"$nulls":3},"Registre por favor los programas que fueron capturados en la pestaña MIR",{"$nulls":3},"Registre por favor los programas que fueron capturados en la pestaña SinMatriz"]
[null,null,1,"Estado de Derecho y Seguridad",null,null,1]
[null,null,2,"Desarrollo Social",null,null,2]
[null,null,3,"Desarrollo Económico",null,null,3]
[null,null,4,"Gestión del Territorio",null,null,4]
[null,null,5,{"$nulls":3},5]
[null,null,6,{"$nulls":3},6]
[]
[{"$nulls":3},"Número de programas con MIR (programas que fueron capturados en la pestaña MIR)",null,4,null,"Número de programas sin matriz (programas que fueron capturados en la pestaña SinMatriz)"]
[]
[{"$nulls":3},"TOTAL",null,{"$f":"F18+J18","v":4}]

{"sheet":"MIR GENERL DEL PMDyG","index":1,"n_rows":213,"n_cols":27,"rows_kept":213,"merged":[[1,1,1,26],[3,1,3,26],[5,1,5,26],[8,1,9,1],[8,3,8,15],[8,16,8,24],[8,25,9,25],[8,26,9,26],[15,1,21,1],[22,1,23,1],[24,1,26,1],[27,1,32,1],[33,1,37,1],[38,1,42,1],[43,1,49,1],[50,1,51,1],[52,1,54,1],[55,1,58,1],[59,1,62,1],[63,1,66,1],[67,1,70,1],[71,1,73,1],[74,1,77,1],[78,1,80,1],[81,1,84,1],[86,1,94,1],[95,1,98,1],[99,1,100,1],[101,1,104,1],[105,1,108,1],[109,1,112,1],[113,1,117,1],[118,1,120,1],[121,1,124,1],[125,1,127,1],[128,1,131,1],[132,1,136,1],[137,1,138,1],[139,1,141,1],[142,1,146,1],[147,1,148,1],[149,1,150,1],[151,1,153,1],[155,1,160,1],[161,1,165,1],[166,1,172,1],[173,1,175,1],[176,1,179,1],[180,1,183,1],[184,1,187,1],[189,1,196,1],[197,1,204,1],[205,1,208,1],[209,1,212,1]]}
[]
[null,"Municipio de Ixtlahuacán de los Membrillos, Jal."]
[]
[null,"Presupuesto base para Resultados (PbR) / Sistema de Evaluación del Desempeño (SED)"]
[]
[null,"MIR - Matriz de Indicadores para Resultados Municipal 2020"]
[]
[]
[null,"Unidad Administrativa Municipal",null,"I N D I C A D O R E S",{"$nulls":12},"P R E S U P U E S T O",{"$nulls":8},"Presupuesto","Porcentaje y Ponderación"]
[{"$nulls":3},"Resumen Narrativo","Nombre del indicador","Definición","Dimensión","Tipo","Método de cálculo","Valor programado 1 (Numerador)","Valor programado 2 (Denominador)","Frecuencia de medición","Unidad de medida","Metas","Medios de verificación","Supuestos","Capítulo 1000","Capítulo 2000","Capítulo 3000","Capítulo 4000","Capítulo 5000","Capítulo 6000","Capítulo 7000","Capítulo 8000","Capítulo 9000"]
[null,{"v":1,"d":"100%"},"Fin","La población que reside en Ixtlhuacán de los Membreillos disponen de un estado de bienestar en cuatro dimensiónes; Estado de Derecho, Desarrollo Social, Desarrollo Económico y Gestión del Territorio.","INDICE Integral de Cumplimiento del Plan Municipal de Desarrollo y Gobernanza 2018-2021 (IICPMDG 1821)","Mide en el cumplimiento en cada uno de los programas presupuestarios establecidos en cada eje del PMDyG para su segumiento al cumplimiento de las metas definidas para cada unidad administrativa municipal","Eficiencia","Estratégico","(IICPMDG 1821) = [(IIEDSmt + IIDSmt + IIDEmt + IAGTmt) /4]",2.21,4,"Anual","Índice",0.55," Portal Web del Municipio página de transparencia","Se dispone de personal y recursos",{"v":21838923,"d":"21,838,923.0"},{"v":7417188,"d":"7,417,188.0"},{"v":21957996,"d":"21,957,996.0"},{"v":100000,"d":"100,000.0"},{"v":1515000,"d":"1,515,000.0"},{"v":0,"d":"0.0"},{"v":0,"d":"0.0"},{"v":0,"d":"0.0"},{"v":6593052,"d":"6,593,052.0"},{"v":145101531,"d":"145,101,531.0"},{"v":1,"d":"100%"}]
[null,{"v":0.4095,"d":"40.95%"},"1    Propósito","Fortalecer el estado de derecho, la seguridad pública y la proteccion civil mediante la modernizacion y eficacia de la administracion pública.","INDICE de Desarrollo Municipal (IDM)","Mide el progreso de un municipio en cuatro dimensiones del desarrollo: social, económica, ambiental e institucional","Eficiencia","Estratégico","(valor resultante de sumar los valores individuales  de  los cosientes entre sus denominadores por su ponderacion asignada, que miden las  variables de:  percepción  inseguridad, ampliación señaletica,  confianza Juzgado Municipal, riesgos desastres, administración municipal,  eficiencia municipal, eficiencia gasto público, contribuyetes incumplidos, cumplimiento servidores públicos, confianza cuerpo seguridad pública, ordenamientos actualizados,  cumplimiento normatividad, eficiencia Registro Civil, eficiencia Catastro,mantenimiento parque vehicular, satisfacción Gubernamental,  transparencia con su correspondientes ponderaciones de .1, .05, .05, .05, .1, .05, .1, .05, .05, .05, .05, .05, .05, .05, .05, .05 y .05)",1415.5900000000001,2133.9,"Semestral","Índice",0.66," Portal Web del Municipio página de transparencia","Se dispone de personal y recursos ",{"v":21838923,"d":"21,838,923.0"},{"v":7417188,"d":"7,417,188.0"},{"v":21957996,"d":"21,957,996.0"},{"v":100000,"d":"100,000.0"},{"v":1515000,"d":"1,515,000.0"},{"v":0,"d":"0.0"},{"v":0,"d":"0.0"},{"v":0,"d":"0.0"},{"v":6593052,"d":"6,593,052.0"},{"v":59422159,"d":"59,422,159.0"},{"v":0.4095,"d":"40.95%"}]
[null,"37.7%","2    Propósito","Continuar mejorando las condiciones y la calidad de vida de los habitantes de Ixtlahuacán de los Membrillos","Índice de avance en el combate a la marginación municipal (IMNM)","Mide el progreso del municipio en la dimensiones del desarrollo: social","Eficiencia","Estratégico","(valor resultante de sumar los valores individuales  de  los cosientes entre sus denominadores por su ponderacion asignada, que miden las  variables de:  cobertura agua potable, eficiencia alumbrado público, cobertura áreas verdes, cobertura servicio limpia,  reducción situación de pobreza, maltrato desigualdad de género, actividad física deportiva, Cobertura Educativa, participación actividades culturales, urbanización, servicios de cementerios, atención DIF, atención ciudadana, participación ciudadana, calidad servicios de salud,  atención Agencias, atención Delegaciones, cobertura comunicación social, con su correspondientes ponderaciones de .1, .06, .04, .07, .08, .05, .05, .06, .05, .06, .04, .06, .04, .05, .07, .04, .04 y .04)",{"v":1442.9850000000004,"d":"1442.99"},{"v":6400.682999999999,"d":"6400.68"},"Semestral","Índice",0.23," Portal Web del Municipio página de transparencia","Se dispone de personal y recursos",{"v":17052117,"d":"$17,052,117.0"},{"v":6679493,"d":"$6,679,493.0"},{"v":15959645,"d":"$15,959,645.0"},{"v":9000000,"d":"$9,000,000.0"},{"v":0,"d":"$0.0"},{"v":0,"d":"$0.0"},{"v":0,"d":"$0.0"},{"v":0,"d":"$0.0"},{"v":6000000,"d":"$6,000,000.0"},{"v":54691255,"d":"$54,691,255.0"},"37.7%"]
[null,"1.21%","3   Propósito","Impulsar la producción, producción agropecuaria, trabajadores asegurados, y población ocupada, ","índice de desarrollo municipal del aspecto económico (IDM-E)","Mide el progreso del municipio en la dimension del desarrollo económico ","Eficiencia","Estratégico","(valor resultante de sumar los valores individuales  de  los cosientes entre sus denominadores por su ponderacion asignada, que miden las  variables de: recaudación por licencias, incremento de turistas, productividad agropecuaria, sacrificio e inspeccion de ganado, proveduria de carne, incremento en promocion economica  con su correspondientes ponderaciones de .2, .2, .2, .1, 0.15, .1  y .05)",387.43999999999994,480.87,"Semestral","Índice",0.8," Portal Web del Municipio página de transparencia","Se dispone de personal y recursos",{"v":1528229,"d":"$1,528,229.0"},{"v":169000,"d":"$169,000.0"},{"v":62000,"d":"$62,000.0"},{"v":0,"d":"$0.0"},{"v":0,"d":"$0.0"},{"v":0,"d":"$0.0"},{"v":0,"d":"$0.0"},{"v":0,"d":"$0.0"},{"v":0,"d":"$0.0"},{"v":1759229,"d":"$1,759,229.0"},"1.21%"]
[null,{"v":0.2014,"d":"20.14%"},"4   Propósito","Valorar y cuidar la generación de residuos sólidos, la deforestación, la explotación de acuíferos, la cobertura forestal, las áreas naturales protegidas.","Índice Municipal de Medio Ambiente","Mide el progreso del municipio en tener un indice de desarrollo medioambiental alto en comparación con los municipios de Jalisco","Eficiencia","Estratégico","(valor resultante de sumar los valores individuales  de  los cosientes entre sus denominadores por su ponderacion asignada, que miden las  variables de: ordenamiento, instrumentos, obra pública y condiciones  con su correspondientes ponderaciones de .3 .2, .2, y .3)",401.28,766.66,"Semestral","Índice",0.52," Portal Web del Municipio página de transparencia","Se dispone de personal y recursos ",{"v":4017143,"d":"$4,017,143.00"},{"v":4016000,"d":"$4,016,000.00"},{"v":2041000,"d":"$2,041,000.00"},{"v":0,"d":"$0.00"},{"v":0,"d":"$0.00"},{"v":0,"d":"$0.00"},{"v":0,"d":"$0.00"},{"v":0,"d":"$0.00"},{"v":0,"d":"$0.00"},{"v":29228888,"d":"$29,228,888.00"},{"v":0.2014,"d":"20.14%"}]
[null,"Seguridad pública","Componente 1","Percepción de Seguridad Pública Incrementada","INDICE de percepción de inseguridad por parte de la población (IPS)","Mide el cambio de percepción por la ciudadania en la seguridad personal y de sus cosas ","Eficacia","Gestión","(valor resultante de sumar los valores individuales  de  los cosientes entre sus denominadores por su ponderacion asignada, que miden las  variables de: prevalencia delictiva, elementos integrados, evaluados,  capacitados, vinculacion de delitos, derechos humanos,  con sus correspondientes ponderaciones de .2, .1, .2, .2, .2 y .1 / la suma de los valores del denominador de las mismas variables)",57,106.6,"Bimestral","Índice",0.53," Portal Web del Municipio página de transparencia","Se dispone de personal y recursos ",{"v":9569478,"d":"9,569,478.0"},{"v":5973004,"d":"5,973,004.0"},{"v":15992996,"d":"15,992,996.0"},{"v":0,"d":"0.0"},{"v":1500000,"d":"1,500,000.0"},{"v":0,"d":"0.0"},{"v":0,"d":"0.0"},{"v":0,"d":"0.0"},{"v":3216300,"d":"3,216,300.0"},{"v":36251778,"d":"36,251,778.0"}]
[null,null,"Actividad 1.1","Trabajar con la ciudadanía en la prevención social","Tasa de prevalencia delictiva por cada diez habitantes denunciados por la ciudadania y resueltos. (P1-DDCR)","Mide la tasa de delitos que fueron denunciados por la ciudadania y resueltos como producto de trabajar conjuntamente","Eficacia","Gestión","(Tasa de delitos denunciados por la ciudadania y resueltos como resultado del trabajo conjunto entre el cuerpo de seguridad pública y la ciudadania  por cada 10 habitantes    ",2,10,"Mensual","Tasa",{"v":0.2,"d":"0.20"}," Portal Web del Municipio página de transparencia","Se dispone de personal y recursos ",{"v":1913895.6,"d":"1,913,895.6"},{"v":1194600.8,"d":"1,194,600.8"},{"v":3198599.2,"d":"3,198,599.2"},{"v":0,"d":"0.0"},{"v":300000,"d":"300,000.0"},{"v":0,"d":"0.0"},{"v":0,"d":"0.0"},{"v":0,"d":"0.0"},{"v":643260,"d":"643,260.0"},{"v":7250355.6,"d":"$7,250,355.60"},20]
[null,null,"Actividad 1.2","Integrar, orientar y capacitar a los actuales y nuevos elementos de seguridad pública.","PORCENTAJE de elementos integrados y capacitados a Cuerpo de Seguridad Pública. (P2-EICCSP)","Mide el porcentaje de elementos del cuerpo de seguridad pública que transitaron por un proceso de integración, orientación y capacitacion y entonces salieron a atender a la ciudadania","Eficacia","Gestión","(Cantidad de ciudadanos (8) que se incorporan al cuerpo de seguridad pública y transitan por un proceso de integración, orientación y capacitacion antes de salir  a dar atención a la ciudadania al año / Total de  ciudadanos que se incorporan al cuerpo de seguridad pública y transitan por un proceso de integración al año (10))*100",8,10,"Mensual","Porcentaje",{"v":0.8,"d":"80%"}," Portal Web del Municipio página de transparencia","Se dispone de personal y recursos ",{"v":1913895.6,"d":"1,913,895.6"},{"v":1194600.8,"d":"1,194,600.8"},{"v":3198599.2,"d":"3,198,599.2"},{"v":0,"d":"0.0"},{"v":300000,"d":"300,000.0"},{"v":0,"d":"0.0"},{"v":0,"d":"0.0"},{"v":0,"d":"0.0"},{"v":643260,"d":"643,260.0"},{"v":7250355.6,"d":"$7,250,355.60"},20]
[null,null,"Actividad 1.3","Definir en el corto plazo y capacitar a los integrantes del grupo especializado en reacción para atender las localidades más vulnerables del municipio.","PORCENTAJE de elementos evaluados y capacitados en cuerpo de reacción. (P3-EECCR)","Mide el tiempo transcurrido para que los elementos de seguridad se encuentren capacitados para participar en el grupo especializado","Eficacia","Gestión","(Cantidad de tiempo (6 meses) necesario para que los elementos de seguridad pública se encuentren capacitados para integrarse a cuerpos epecializados / Total de tiempo disponible en el año para que los elementos de seguridad pública se encuentren capacitados para integrarse a cuerpos epecializados)*100",6,12,"Mensual","Porcentaje",{"v":0.5,"d":"0.50"}," Portal Web del Municipio página de transparencia","Se dispone de personal y recursos ",{"v":1435421.7,"d":"1,435,421.7"},{"v":895950.6,"d":"895,950.6"},{"v":2398949.4,"d":"2,398,949.4"},{"v":0,"d":"0.0"},{"v":225000,"d":"225,000.0"},{"v":0,"d":"0.0"},{"v":0,"d":"0.0"},{"v":0,"d":"0.0"},{"v":482445,"d":"482,445.0"},{"v":5437766.7,"d":"$5,437,766.70"},15]
[null,null,"Actividad 1.4","Concientizar y capacitar a los choferes de las patrullas de seguridad publica en un mejor manejo del parque vehicular.","PORCENTAJE de elementos capacitados como choferes de patrulla y manejo de equipo. (P4-ECCPME)","Mide los beneficios de capacitar en el manejo de patrullas a los choferes en meyor tiempo en funcionamiento cada unidad","Eficacia","Gestión","(Cantidad de elementos de seguridad pública (25) capacitados como choferes de patrulla  y manejo de radio y videocamara / Total de elementos de seguridad pública (50) )*100",10,50,"Mensual","Porcentaje",{"v":0.5,"d":"50%"}," Portal Web del Municipio página de transparencia","Se dispone de personal y recursos ",{"v":478473.9,"d":"478,473.9"},{"v":298650.2,"d":"298,650.2"},{"v":799649.8,"d":"799,649.8"},{"v":0,"d":"0.0"},{"v":75000,"d":"75,000.0"},{"v":0,"d":"0.0"},{"v":0,"d":"0.0"},{"v":0,"d":"0.0"},{"v":160815,"d":"160,815.0"},{"v":1812588.9,"d":"$1,812,588.90"},5]
[null,null,"Actividad 1.5","Instalación de cámaras de video vigilancia así como una base de datos sobre los registros de denuncias.  Establecer una instancia en el municipio que dé seguimiento a los asuntos ante la fiscalía","PORCENTAJE de vinculación de delitos entre denuncias, fiscalia y videocamaras. (T1-VDDFV)","Mide la vinculación de delitos denucnciados y registrados en medios electronicos y el tiempo de solucion por la fiscalia","Eficacia","Gestión","(Cantidad de delitos denunciados y registrados en videocamaras (26) durante el año  / Total de  delitos denunciados (156) durante el año)*100",109,156,"Mensual","Porcentaje",{"v":0.7,"d":"0.70"}," Portal Web del Municipio página de transparencia","Se dispone de personal y recursos ",{"v":2870843.4,"d":"2,870,843.4"},{"v":1791901.2,"d":"1,791,901.2"},{"v":4797898.8,"d":"4,797,898.8"},{"v":0,"d":"0.0"},{"v":450000,"d":"450,000.0"},{"v":0,"d":"0.0"},{"v":0,"d":"0.0"},{"v":0,"d":"0.0"},{"v":964890,"d":"964,890.0"},{"v":10875533.4,"d":"$10,875,533.40"},30]
[null,null,"Actividad 1.6","Conjuntamente con asuntos internos y oficialía mayor administrativa gestionar capacitaciones constantes y diversas sobre los derechos humanos.","PORCENTAJE de empledos municipales que se capacitan en derechos humanos. (P5-EMCDH)","Mide la participación y sencibilización de los empleados municipales al cuidado y respeto de los derechos humanos","Eficacia","Gestión","(Cantidad de emplados municipales (300) que reciben capacitacion sobre derechos humanos  / Total de emplados municipales (600) )*100",300,600,"Mensual","Porcentaje",{"v":0.5,"d":"50%"}," Portal Web del Municipio página de transparencia","Se dispone de personal y recursos ",{"v":956947.8,"d":"956,947.8"},{"v":597300.4,"d":"597,300.4"},{"v":1599299.6,"d":"1,599,299.6"},{"v":0,"d":"0.0"},{"v":150000,"d":"150,000.0"},{"v":0,"d":"0.0"},{"v":0,"d":"0.0"},{"v":0,"d":"0.0"},{"v":321630,"d":"321,630.0"},{"v":3625177.8,"d":"$3,625,177.80"},10]
[null,"Vialidad","Componente 2","Señalética vial ampliada ","TASA de ampliación de la señaletica vial (TAS)","Mide la relación de señalamiento vial en buen estado","Eficacia","Gestión","Relacion de señaletica y vialidades con necesidad de mantenimiento o rehabilitacion por cada 24 vialidades con señaletica en buen estado",5,24,"Bimestral","Tasa",0.2," Portal Web del Municipio página de transparencia","Se dispone de personal y recursos ",{"v":116245,"d":"116,245.0"},{"v":10000,"d":"10,000.0"},{"v":8000,"d":"8,000.0"},{"v":0,"d":"0.0"},{"v":0,"d":"0.0"},{"v":0,"d":"0.0"},{"v":0,"d":"0.0"},{"v":0,"d":"0.0"},{"v":0,"d":"0.0"},{"v":134245,"d":"134,245.0"}]
[null,null,"Actividad 2.1","Evaluación y reporte mensual sobre el deterioro vial y señalética, así como de la aplicación del reglamento","PORCENTAJE de vialidades y señaletica con deterioro. (P6-VSD)","Mide el porcentaje de vialidades con señaletica de apoyo al ciudadano y su nivel de deterioro","Eficacia","Gestión","(Cantidad de vialidades (6) municipales con señaletica de apoyo para el ciudadano que presentan algun tipo de deterioro de acuerdo al reglamento  / Total (24) de  vialidades municipales con señaletica de apoyo para el ciudadano de acuerdo al reglamento)*100",6,24,"Mensual","Porcentaje",0.25," Portal Web del Municipio página de transparencia","Se dispone de personal y recursos ",{"v":116245,"d":"116,245.0"},{"v":10000,"d":"10,000.0"},{"v":8000,"d":"8,000.0"},{"v":0,"d":"0.0"},{"v":0,"d":"0.0"},{"v":0,"d":"0.0"},{"v":0,"d":"0.0"},{"v":0,"d":"0.0"},{"v":0,"d":"0.0"},{"v":134245,"d":"134,245.0"},{"v":100,"d":"100.0"}]
[null,"Juzgado Municipal","Componente 3","Confianza en el juzgado municipal incrementada","INDICE de confianza en el Juzgado Municipal (V1-CJM)","Mide el nivel de confianza de la ciudadania en el trabajo de la Oficina del Juez Municipal","Eficacia","Gestión","(valor resultante de sumar los valores individuales  de  los cosientes entre sus denominadores por su ponderacion asignada, que miden las  variables de: mediación y reinsidencia,  con sus correspondientes ponderaciones de .4 y .6 / la suma de los valores del denominador de las mismas variables)",72.4,156,"Bimestral","Índice",0.46," Portal Web del Municipio página de transparencia","Se dispone de personal y recursos ",{"v":244593,"d":"244,593.0"},{"v":16000,"d":"16,000.0"},{"v":46000,"d":"46,000.0"},{"v":0,"d":"0.0"},{"v":0,"d":"0.0"},{"v":0,"d":"0.0"},{"v":0,"d":"0.0"},{"v":0,"d":"0.0"},{"v":0,"d":"0.0"},{"v":306593,"d":"306,593.0"}]
[null,null,"Actividad 3.1","Certificación del personal en mediación y conciliaciones a través del juzgado municipal.","PORCENTAJE de conflictos resueltos en Juzgado Municipal por justicia alternativa. (P7-CRJMJA)","Mide el buen desempeño del personal especializado en mediacion y conciliación","Eficacia","Gestión","(Cantidad de delitos (106) resueltos aplicando la justicia alternativa por los Jueces Municipales durante el año  / Total de  delitos  (156) resuletos por los Jueces Municipales durante el año)*100",106,156,"Mensual","Porcentaje",{"v":0.6794,"d":"0.68"}," Portal Web del Municipio página de transparencia","Se dispone de personal y recursos ",{"v":48918.6,"d":"48,918.6"},{"v":3200,"d":"3,200.0"},{"v":9200,"d":"9,200.0"},{"v":0,"d":"0.0"},{"v":0,"d":"0.0"},{"v":0,"d":"0.0"},{"v":0,"d":"0.0"},{"v":0,"d":"0.0"},{"v":0,"d":"0.0"},{"v":61318.6,"d":"61,318.6"},{"v":20,"d":"20.0"}]
[null,null,"Actividad 3.2","Equipo interdisciplinario para mejorar el acercamiento a la población y reducir problemas sociales.","TASA de delitos calificados como administrativas y del fuero común. (T2-DCAFC)","Mide el desempeño de los inegrantes del equipo calificador para resolver problemas sociales reduciendo la reinsidencia","Eficacia","Gestión","(Cantidad de ciudadanos (50) infractores reinsidentes al cometer delitos administrativos o del fuero común durante el año  / Total de  ciudadanos (156) infractores al cometer delitos administrativos o del fuero común durante el año)*100",50,156,"Mensual","Tasa",{"v":0.3205,"d":"32%"}," Portal Web del Municipio página de transparencia","Se dispone de personal y recursos ",{"v":195674.4,"d":"195,674.4"},{"v":12800,"d":"12,800.0"},{"v":36800,"d":"36,800.0"},{"v":0,"d":"0.0"},{"v":0,"d":"0.0"},{"v":0,"d":"0.0"},{"v":0,"d":"0.0"},{"v":0,"d":"0.0"},{"v":0,"d":"0.0"},{"v":245274.4,"d":"245,274.4"},{"v":80,"d":"80.0"}]
[null,"Protección Civil","Componente 4","Riesgos geológicos, hidrológicos, químicos, sanitarios, organizativos, astrológicos, por incendios y antropogénicos reducidos","Índice de reducción de riesgos por desastres geológicos, hirdrológicos, químicos, sanitario, organizativos, astro lógicos, por incendios y antropogénicos. (TRR)","Mide la reduccion en la relación de siniestros materiales y personales en eventos geologicos-administrativos-hidrológicos-sanitarios-quimicos-organizativos","Eficacia","Gestión","(valor resultante de sumar los valores individuales  de  los cosientes entre sus denominadores por su ponderacion asignada, que miden las  variables de:  ciudadanos capacitados, riezgos evitados, ejidatarios capacitados, denuncia de riezgos y actualizacion del atlas,  con sus correspondientes ponderaciones de .1, .2 .1, .2, y .3 / la suma de los valores del denominador de las mismas variables)",306.8,307.4,"Bimestral","Índice",0.99," Portal Web del Municipio página de transparencia","Se dispone de personal y recursos ",{"v":1131439,"d":"1,131,439.0"},{"v":163000,"d":"163,000.0"},{"v":48000,"d":"48,000.0"},{"v":0,"d":"0.0"},{"v":15000,"d":"15,000.0"},{"v":0,"d":"0.0"},{"v":0,"d":"0.0"},{"v":0,"d":"0.0"},{"v":0,"d":"0.0"},{"v":1357439,"d":"1,357,439.0"}]
[null,null,"Actividad 4.1","Programa de capacitación ciudadana sobre Protección Civil y mejorar la prevención.","PORCENTAJE de ciudadanos capacitados en Proteccion Civil. (P8-CCPC)","Mide la participación de la ciudadania en temas de protección civil respecto a la poblacion total del municipio","Eficacia","Gestión","(Cantidad de ciudadanos (1200) que participan en el programa de capacitacion bimestrales sobre los diferentes riezgos y mecanismos de prevencion que se ofrece durante el año  / Total de ciudadanos en el municipio)*100",1200,59435,"Mensual","Porcentaje",{"v":0.0201,"d":"0.02"}," Portal Web del Municipio página de transparencia","Se dispone de personal y recursos ",{"v":113143.9,"d":"113,143.9"},{"v":16300,"d":"16,300.0"},{"v":4800,"d":"4,800.0"},{"v":0,"d":"0.0"},{"v":1500,"d":"1,500.0"},{"v":0,"d":"0.0"},{"v":0,"d":"0.0"},{"v":0,"d":"0.0"},{"v":0,"d":"0.0"},{"v":135743.9,"d":"135,743.9"},10]
[null,null,"Actividad 4.2","Instalación de dos unidades fijas de seguridad pública y protección civil que realicen evaluaciones trimestrales a los entes establecidos","PORCENTAJE de riesgos evitados por inspeccion preventiva. (T3-REIP)","Mide la reducción de riesgos en entes establecidos, moviles y transeuntes por inspeccion preventiva","Eficacia","Gestión","(Cantidad de eventos de emergencia y riezgo reducidos  o evitados  (25%) en entes establecidos, moviles y transeuntes por inspeccion preventiva / Total  de inspecciónes realizadas en los diferentes espacios de actividad social registradas en el atlas de riezgo municipal  (100))",25,100,"Mensual","Porcentaje",{"v":0.25,"d":"25%"}," Portal Web del Municipio página de transparencia","Se dispone de personal y recursos ",{"v":226287.8,"d":"226,287.8"},{"v":32600,"d":"32,600.0"},{"v":9600,"d":"9,600.0"},{"v":0,"d":"0.0"},{"v":3000,"d":"3,000.0"},{"v":0,"d":"0.0"},{"v":0,"d":"0.0"},{"v":0,"d":"0.0"},{"v":0,"d":"0.0"},{"v":271487.8,"d":"271,487.8"},20]
[null,null,"Actividad 4.3","Revisar el reglamentos que incorpore la capacitación por parte de los cuerpos de seguridad pública y protección civil a los integrantes de los ejidos municipales y pequeña propiedad","PORCENTAJE de ejidatarios capacitados sobre reglamento municipal de proteccion civil. (P9-ECRM)","Mide la participación de los integrantes de los ejidos municipales y pequeños propietarios en temas de protección civil en consecuencia reduccion de fenomenos antropogénicos.","Eficacia","Gestión","(Cantidad de ejidatarios y pequeños propiestarios (600) que participan en las capacitaciones bimestrales sobre los diferentes riezgos y mecanismos de prevencion que se ofrezcan durante el año  / Total capacitaciones (6) sobre riezgos y mecanismos de prevencion)*100",600,6,"Mensual","Porcentaje",{"v":1,"d":"1.00"}," Portal Web del Municipio página de transparencia","Se dispone de personal y recursos ",{"v":169715.85,"d":"169,715.9"},{"v":24450,"d":"24,450.0"},{"v":7200,"d":"7,200.0"},{"v":0,"d":"0.0"},{"v":2250,"d":"2,250.0"},{"v":0,"d":"0.0"},{"v":0,"d":"0.0"},{"v":0,"d":"0.0"},{"v":0,"d":"0.0"},{"v":203615.85,"d":"203,615.9"},15]
[null,null,"Actividad 4.4","Establecer capacitación para protección civil y población en general sobre mecanismos de prevención y control de emergencias por fenomenos antropogénicos en el reglamentos.","PORCENTAJE de ciudadanos capacitados en emergencias causadas  por fenomenos antropogénicos. (P10-CCIF)","Mide la particpacion de la ciudadania en la reducción y denuncia de riezgos  antropogénicos  y sus causas","Eficacia","Gestión","(Cantidad de ciudadanos (600) que participan en las capacitaciones bimestrales sobre los diferentes riezgos y mecanismos de prevencion que se ofrezcan durante el año  / Total capacitaciones (6) sobre riezgos y mecanismos de prevencion)*100",600,6,"Mensual","Porcentaje",{"v":1,"d":"1.00"}," Portal Web del Municipio página de transparencia","Se dispone de personal y recursos ",{"v":226287.8,"d":"226,287.8"},{"v":32600,"d":"32,600.0"},{"v":9600,"d":"9,600.0"},{"v":0,"d":"0.0"},{"v":3000,"d":"3,000.0"},{"v":0,"d":"0.0"},{"v":0,"d":"0.0"},{"v":0,"d":"0.0"},{"v":0,"d":"0.0"},{"v":271487.8,"d":"271,487.8"},20]
[null,null,"Actividad 4.5","Actualizar el atlas de riesgo municipal y los mecanismos de vigilancia y prevención ","PORCENTAJE la cantidad de riezgos incluidos en los programas de prevencion y mecanismos de vigilancia en el atlas de riesgos actualizado. (P11-RIPAR)","Mide la cantidad de riezgos y mecanismos de emergencias actualizados en el atlas de riesgos municipal y difundidos a la ciudadania","Eficacia","Gestión","(Cantidad de riezgos y mecanismos de prevencion (6) actualizados  / Total de riezgos y mecanismos de prevencion (8))*100",6,8,"Mensual","Porcentaje",0.75," Portal Web del Municipio página de transparencia","Se dispone de personal y recursos ",{"v":396003.65,"d":"396,003.7"},{"v":57050,"d":"57,050.0"},{"v":16800,"d":"16,800.0"},{"v":0,"d":"0.0"},{"v":5250,"d":"5,250.0"},{"v":0,"d":"0.0"},{"v":0,"d":"0.0"},{"v":0,"d":"0.0"},{"v":0,"d":"0.0"},{"v":475103.65,"d":"475,103.7"},35]
[null,"H Ayuntamiento (Regidores)","Componente 5","Confianza en la administración municipal incrementada","ÍNDICE de confianza en la administración municipal. (V2-CAM )","Mide el nivel de confianza de la ciudadania en el trabajo de las diferentes comisiónes del ayuntamiento municipal","Eficacia","Gestión","(valor resultante de sumar los valores individuales  de  los cosientes entre sus denominadores por su ponderacion asignada, que miden las  variables de:  aplicacion de normatividad, contar con normatividad, comisiónes instaladas y asuntos dictaminados,  con sus correspondientes ponderaciones de .2, .4, .1, y .3 / la suma de los valores del denominador de las mismas variables)",297.9,260.7,"Bimestral","Índice",1.14," Portal Web del Municipio página de transparencia","Se dispone de personal y recursos ",{"v":3231045,"d":"3,231,045.0"},{"v":39000,"d":"39,000.0"},{"v":3000,"d":"3,000.0"},{"v":0,"d":"0.0"},{"v":0,"d":"0.0"},{"v":0,"d":"0.0"},{"v":0,"d":"0.0"},{"v":0,"d":"0.0"},{"v":0,"d":"0.0"},{"v":3273045,"d":"3,273,045.0"}]
[null,null,"Actividad 5.1","Seguimiento a la aplicación y funcionamiento de la legislación local por comisiones, así como el desahogo de los asuntos propios del Ayuntamiento.","PORCENTAJE de actividades de las direcciones de la administracion municipal en seguimiento por comisiones para verificar su apego a la normatividad local. (P12-ADAMSCVA)","Mide el porcentaje de la aplicación de la normatividad local por las direcciones de la administracion municipal por las comisiones del ayuntamiento  ","Eficacia","Gestión","(Cantidad de actividades 25 realizadas durante el año en las 46  direcciónes apegadas a su reglamento municipal / Total de artciulos 1150 que integran las atribuciones y responsabilidades de las dirección de la administracion municipal en sus reglamentos locales)*100",1150,1150,"Mensual","Porcentaje",{"v":1,"d":"1.00"}," Portal Web del Municipio página de transparencia","Se dispone de personal y recursos ",{"v":807761.25,"d":"807,761.3"},{"v":9750,"d":"9,750.0"},{"v":750,"d":"750.0"},{"v":0,"d":"0.0"},{"v":0,"d":"0.0"},{"v":0,"d":"0.0"},{"v":0,"d":"0.0"},{"v":0,"d":"0.0"},{"v":0,"d":"0.0"},{"v":818261.25,"d":"818,261.3"},{"v":25,"d":"25.0"}]
[null,null,"Actividad 5.2","Actualizar y proponer los ordenamientos necesarios para las dependencias del Ayuntamiento que brindan servicios públicos.","PORCENTAJE de dependencias municipales con ordenamiento. (P13-DMO)","Mide el porcentaje de direcciones de la administración municipal que cuentan con una normatividad local","Eficacia","Gestión","(Cantidad de direcciones 46 que cuentan con su reglamento municipal / Total de direcciones 46 que tienen normada  en su reglamento sus atribuciones y responsabilidades)*100",46,46,"Mensual","Porcentaje",{"v":1,"d":"100%"}," Portal Web del Municipio página de transparencia","Se dispone de personal y recursos ",{"v":807761.25,"d":"807,761.3"},{"v":9750,"d":"9,750.0"},{"v":750,"d":"750.0"},{"v":0,"d":"0.0"},{"v":0,"d":"0.0"},{"v":0,"d":"0.0"},{"v":0,"d":"0.0"},{"v":0,"d":"0.0"},{"v":0,"d":"0.0"},{"v":818261.25,"d":"818,261.3"},{"v":25,"d":"25.0"}]
[null,null,"Actividad 5.3","Presentar los dictámenes correspondientes para su análisis y en su caso solicitar su aprobación, y aplicación en el municipio.","PORCENTAJE de instalacion y operación de comisiones. (P14-IOC)","Mide el porcentaje de comisiones instaladas y en fucnionamiento para revisar los temas desahogados en Ayuntamiento","Eficacia","Gestión","(Cantidad de 30 comisiones que deberan ser instaladas para la dicatminación de los asuntos del ayuntamiento y  publicados en transparencia / Total  de 30 comisiones instaladas y en funcionamiento)*100",30,30,"Mensual","Porcentaje",{"v":1,"d":"1.00"}," Portal Web del Municipio página de transparencia","Se dispone de personal y recursos ",{"v":807761.25,"d":"807,761.3"},{"v":9750,"d":"9,750.0"},{"v":750,"d":"750.0"},{"v":0,"d":"0.0"},{"v":0,"d":"0.0"},{"v":0,"d":"0.0"},{"v":0,"d":"0.0"},{"v":0,"d":"0.0"},{"v":0,"d":"0.0"},{"v":818261.25,"d":"818,261.3"},{"v":25,"d":"25.0"}]
[null,null,"Actividad 5.4","Seguimiento y resguardo de expedientes de asuntos encomendados y propios de las comisiones y su incorporación en las páginas de transparencia del municipio.","TASA de dictaminación por cada 5 asuntos asignados a comisiones su seguimiento y resguardo. (P15-EDSR)","Mide la Tasa de asuntos dictaminados por comisiones y posteriormente en ayuntamiento y publicados en transparencia","Eficacia","Gestión","(Cantidad de asuntos dictaminados de los 155 asuntos asignados por cada una de las 31 comisiones mismos que deberan ser posteriormente dicatminados en reunion de ayuntamiento y publicados en transparencia / Total  de comisiones instaladas y en funcionamiento (31))",155,31,"Mensual","Tasa ","5:31"," Portal Web del Municipio página de transparencia","Se dispone de personal y recursos ",{"v":807761.25,"d":"807,761.3"},{"v":9750,"d":"9,750.0"},{"v":750,"d":"750.0"},{"v":0,"d":"0.0"},{"v":0,"d":"0.0"},{"v":0,"d":"0.0"},{"v":0,"d":"0.0"},{"v":0,"d":"0.0"},{"v":0,"d":"0.0"},{"v":818261.25,"d":"818,261.3"},{"v":25,"d":"25.0"}]
[null,"Presidencia Municipal","Componente 6","Eficiencia municipal incrementada","INDICE de eficiencia municipal. (V3-EM )","Mide los niveles de eficacia del titular de la administracion para desahogar los temas municipales y ciudadanos","Eficacia","Gestión","(valor resultante de sumar los valores individuales  de  los cosientes entre sus denominadores por su ponderacion asignada, que miden las  variables de sesiones de cabildo, eventos civicos, Ley de ingresos y gestion de recursos con las correspondientes ponderaciones de .3, .2, .2, y .3 / la suma de los valores del denominador de las mismas variables)",19.8,40.5,"Bimestral","Índice",0.48," Portal Web del Municipio página de transparencia","Se dispone de personal y recursos ",{"v":996009,"d":"996,009.0"},{"v":138000,"d":"138,000.0"},{"v":202000,"d":"202,000.0"},{"v":0,"d":"0.0"},{"v":0,"d":"0.0"},{"v":0,"d":"0.0"},{"v":0,"d":"0.0"},{"v":0,"d":"0.0"},{"v":0,"d":"0.0"},{"v":1336009,"d":"1,336,009.0"}]
[null,null,"Actividad 6.1","Revisar y actualizar el reglamentos de sesiones en el que se incorpore la clasificación de los puntos de acuerdo así como el formato para su desahogo y publicación.","PORCENTAJE  desarrollo y aplicación del reglamento de sesiones de cabildo. (P16-DARSC)","Mide el porcentaje de sesiones realizadas con apego al reglamento municipal de sesiones","Eficacia","Gestión","(Cantidad de 15 sesiones de cabildo llevadas a cabo con apego al reglamento municipal aplicado con eficiencia dentro del programa 2020 de sesiones de cabildo ordinarias, especiales y plenarias/ Total  15 sesiones de cabildo llevadas a cabo con apego al reglamento municipal aplicado con eficiencia dentro del programa 2020 de sesiones de cabildo ordinarias, especiales y plenarias)*100",15,15,"Mensual","Porcentaje",{"v":1,"d":"1.00"}," Portal Web del Municipio página de transparencia","Se dispone de personal y recursos ",{"v":249002.25,"d":"249,002.3"},{"v":34500,"d":"34,500.0"},{"v":50500,"d":"50,500.0"},{"v":0,"d":"0.0"},{"v":0,"d":"0.0"},{"v":0,"d":"0.0"},{"v":0,"d":"0.0"},{"v":0,"d":"0.0"},{"v":0,"d":"0.0"},{"v":334002.25,"d":"334,002.3"},{"v":25,"d":"25.0"}]
[null,null,"Actividad 6.2","Programa de actividades Cívicas obligatorias en el año, día de la bandera, 5 de mayo batalla de puebla, grito de independencia y desfile del 16 de septiembre","PORCENTAJE  de reglamentacion y participación en eventos civicos y especiales. (P17-RPECE)","Mide el porcentaje de eficacia para desarrollar y aplicar el reglamento y programa de actividades civicas","Eficacia","Gestión","(Cantidad de 20 artículos del reglamento aplicados con eficiencia al organizar el programa 2020 de eventos civicos y especiales / Total  de 20 artículos del reglamento necesarios de revisar para organizar con eficiencia al organizar el programa 2020 de eventos civicos y especiales)*100",20,20,"Mensual","Porcentaje",{"v":1,"d":"100%"}," Portal Web del Municipio página de transparencia","Se dispone de personal y recursos ",{"v":149401.35,"d":"149,401.4"},{"v":20700,"d":"20,700.0"},{"v":30300,"d":"30,300.0"},{"v":0,"d":"0.0"},{"v":0,"d":"0.0"},{"v":0,"d":"0.0"},{"v":0,"d":"0.0"},{"v":0,"d":"0.0"},{"v":0,"d":"0.0"},{"v":200401.35,"d":"200,401.4"},{"v":15,"d":"15.0"}]
[null,null,"Actividad 6.3","Programa de revisión, actualización y propuesta para su aprobación de ley de ingresos y egresos antes del 15 de diciembre ante cabildo","PORCENTAJE de aplicación de normatividad para elaborar Ley de ingresos y egresos. (P18-ANELIE)","Mide el porcentaje de aplicación de la normatividad estatal y federal para elaborar la ley de ingresos y egresos","Eficacia","Gestión","(Cantidad de leyes federales (1), estatales (1) y municipales (2) que se aplican en la elaboracion de la Ley de Ingresos Municipal 2020  / Total de (10)  leyes federales (5), estatales (3) y municipales (2) que se aplican en la elaboracion de la Ley de Ingresos Municipal 2020)*100",4,10,"Mensual","Porcentaje",{"v":0.4,"d":"0.40"}," Portal Web del Municipio página de transparencia","Se dispone de personal y recursos ",{"v":298802.7,"d":"298,802.7"},{"v":41400,"d":"41,400.0"},{"v":60600,"d":"60,600.0"},{"v":0,"d":"0.0"},{"v":0,"d":"0.0"},{"v":0,"d":"0.0"},{"v":0,"d":"0.0"},{"v":0,"d":"0.0"},{"v":0,"d":"0.0"},{"v":400802.7,"d":"400,802.7"},{"v":30,"d":"30.0"}]
[null,null,"Actividad 6.4","Programa de gestión de recursos ante el Estado como la Federación para el logro del programa de obra municipal.","PORCENTAJE de aplicación de proceso de gestion de recursos federales y estatales. (P19-APGRFE)","Mide el porcentaje de incremento de recursos gestionados ante el estado y la federación","Eficacia","Gestión","(Cantidad de recursos economicos gestionados 35% adicionalmente a lo programado en el presupuesto de egresos municipal 2020  / Total de recursos economicos programados en el presupuesto de egresos municipal 2020 (100%))*100",35,100,"Mensual","Porcentaje",{"v":0.35,"d":"35%"}," Portal Web del Municipio página de transparencia","Se dispone de personal y recursos ",{"v":298802.7,"d":"298,802.7"},{"v":41400,"d":"41,400.0"},{"v":60600,"d":"60,600.0"},{"v":0,"d":"0.0"},{"v":0,"d":"0.0"},{"v":0,"d":"0.0"},{"v":0,"d":"0.0"},{"v":0,"d":"0.0"},{"v":0,"d":"0.0"},{"v":400802.7,"d":"400,802.7"},{"v":30,"d":"30.0"}]
[null,"Hacienda Municipal (Tesorería)","Componente 7","Gasto público eficientado","ÍNDICE de eficiencia del gasto público. (V4-EGM)","Mide el nivel de gasto programado en el municipio de acuerdo al ciclo presupuestrio para la implementacion del PbR/SED desde su asignacion por capitulo respecto a los años anteriores","Eficacia","Gestión","(valor resultante de sumar los valores individuales  de  los cosientes entre sus denominadores por su ponderacion asignada, que miden las  variables de sistemas de cobro, ampliacion de horario, morosidad en pagos, reduccion del gasto, modernizacion de equipos y cumplimiento de atribuciones con las correspondientes ponderaciones de .2, .2, .2, .2, .1 y .1 / la suma de los valores del denominador de las mismas variables)",155.9,151,"Bimestral","Índice",1.03," Portal Web del Municipio página de transparencia","Se dispone de personal y recursos ",{"v":1238434,"d":"1,238,434.0"},{"v":221000,"d":"221,000.0"},{"v":400000,"d":"400,000.0"},{"v":0,"d":"0.0"},{"v":0,"d":"0.0"},{"v":0,"d":"0.0"},{"v":0,"d":"0.0"},{"v":0,"d":"0.0"},{"v":3376752,"d":"3,376,752.0"},{"v":5236186,"d":"5,236,186.0"}]
[null,null,"Actividad 7.1","Modernizar y actualizar los sistemas de cobro, asi como de capacitación constante del personal de caja","PORCENTAJE de sistemas de cobro actualizado y personal capacitado. (P20-SCAPC)","Mide el porcentaje de modernizacion de las computadoras, sistemas operativos y paqueteria especializada","Eficacia","Gestión","(Cantidad de equipos de computo 15 (50%) del total de las diferentes direcciones que son modernizados en sistemas operativos y paqueteria especializada / Total de 30 (100%) equipos de computo en las diferentes direcciones municipales)*100",15,30,"Mensual","Porcentaje",{"v":0.5,"d":"0.50"}," Portal Web del Municipio página de transparencia","Se dispone de personal y recursos ",{"v":371530.2,"d":"371,530.2"},{"v":66300,"d":"66,300.0"},{"v":120000,"d":"120,000.0"},{"v":0,"d":"0.0"},{"v":0,"d":"0.0"},{"v":0,"d":"0.0"},{"v":0,"d":"0.0"},{"v":0,"d":"0.0"},{"v":1013025.6,"d":"1,013,025.6"},{"v":1570855.8,"d":"1,570,855.8"},30]
[null,null,"Actividad 7.2","Programa de ampliación de horario de Servicio en los tres primeros meses del Ejercicio fiscal y tener red común con los demás departamentos.","PORCENTAJE de ampliación de horario de servicio en el año y de departamentos en red. (P21-AHSADR)","Mide el porcentaje de horas adicionales que se ofrecio el servicio y se mantuvo en red","Eficacia","Gestión","(Cantidad de horas adicionales (152 hrs mensuales) de servicio a las 160 normales para la atencion ciudadana para reducir en 50% el tiempo en realizar sus trámites en las oficinas del ayuntamiento / Total historico de horas disponibles para la atencion de la ciudadania por mes (160))*100",312,160,"Mensual","Porcentaje",{"v":1.95,"d":"195%"}," Portal Web del Municipio página de transparencia","Se dispone de personal y recursos ",{"v":61921.7,"d":"61,921.7"},{"v":11050,"d":"11,050.0"},{"v":20000,"d":"20,000.0"},{"v":0,"d":"0.0"},{"v":0,"d":"0.0"},{"v":0,"d":"0.0"},{"v":0,"d":"0.0"},{"v":0,"d":"0.0"},{"v":168837.6,"d":"168,837.6"},{"v":261809.3,"d":"261,809.3"},{"v":5,"d":"5.0"}]
[null,null,"Actividad 7.3","Aprovechar las herramientas del Catastro Municipal y los padrones actualizados por dirección para elaborar el programa de apremios por vertiente ","PORCENTAJE de morosidad de contribuyentes en programa de apremios con las herramientas de catastro y padrones. (P22-MCPACP)","Mide el porcentaje de reduccion de contibuyentes morosos incluidos en los programas de apremio","Eficacia","Gestión","(Cantidad de aumento (20%) en los ingresos municipales que provienen de captacion directa al reducir en (20%) el porcentaje de contribuyentes en morosidad del 2019 / Total historico 2019 (100%) de ingresos municipales que provienen de captacion directa ))*100",120,100,"Mensual","Porcentaje",{"v":1.2,"d":"1.20"}," Portal Web del Municipio página de transparencia","Se dispone de personal y recursos ",{"v":185765.1,"d":"185,765.1"},{"v":33150,"d":"33,150.0"},{"v":60000,"d":"60,000.0"},{"v":0,"d":"0.0"},{"v":0,"d":"0.0"},{"v":0,"d":"0.0"},{"v":0,"d":"0.0"},{"v":0,"d":"0.0"},{"v":506512.8,"d":"506,512.8"},{"v":785427.9,"d":"785,427.9"},15]
[null,null,"Actividad 7.4","Establecer control individualizado por cada unidad de transporte para la gasolina, Cancelar todas la líneas telefónicas para funcionarios públicos, Se otorgaran los gastos para viáticos organizados y planeados bajo reglas estrictas con eventualidad solamente en caso necesario.","PORCENTAJE de reducción del gasto en gasolina, telefonía y viáticos. (P23-RGGTV)","Mide el porcentaje de reduccion de gasto por los conceptos señalados","Eficacia","Gestión","(Cantidad de gasto reducido en gasolina (20%), gasto reducido en telefonía (90%) y gasto reducido en víaticos (95%) / Total historico de gasto mensual en gasolina (100%), gasto mensual en telefonía (100%) y gasto mensual en víaticos (100%))*100",205,300,"Mensual","Porcentaje",{"v":0.6833,"d":"68.33%"}," Portal Web del Municipio página de transparencia","Se dispone de personal y recursos ",{"v":185765.1,"d":"185,765.1"},{"v":33150,"d":"33,150.0"},{"v":60000,"d":"60,000.0"},{"v":0,"d":"0.0"},{"v":0,"d":"0.0"},{"v":0,"d":"0.0"},{"v":0,"d":"0.0"},{"v":0,"d":"0.0"},{"v":506512.8,"d":"506,512.8"},{"v":785427.9,"d":"785,427.9"},{"v":15,"d":"15.0"}]
[null,null,"Actividad 7.5","Adquisición de equipos de cómputos modernos y adecuados a las necesidades de las direcciones y departamentos.","PORCENTAJE de modernización del equipamiento de computo. (P24-MEC)","Mide el porcentaje de direcciones de la administracion municipal que fueron sujetas de renovacion de sus equipos de computo","Eficacia","Gestión","(Cantidad de equipos de computo (5) de las diferentes direcciones que son modernizados / Total de 30 equipos de computo en las diferentes direcciones municipales)*100",5,30,"Mensual","Porcentaje",{"v":0.166,"d":"0.17"}," Portal Web del Municipio página de transparencia","Se dispone de personal y recursos ",{"v":247686.8,"d":"247,686.8"},{"v":44200,"d":"44,200.0"},{"v":80000,"d":"80,000.0"},{"v":0,"d":"0.0"},{"v":0,"d":"0.0"},{"v":0,"d":"0.0"},{"v":0,"d":"0.0"},{"v":0,"d":"0.0"},{"v":675350.4,"d":"675,350.4"},{"v":1047237.2,"d":"1,047,237.2"},20]
[null,null,"Actividad 7.6","Programa de revisión y cumplimiento de las atribuciones y obligaciones del personal de cada dirección,  conjuntamente con la dirección de Oficialía Mayor Administrativa.","PORCENTAJE de cumplimiento de atribuciones y obligaciones en normatividad aplicable. (P25-CAONA)","Mide el porcentaje de actividades individuales de cada direccion apegadas al manual de organización","Eficacia","Gestión","(Cantidad de actividades 250 individuales ejecutadas como suma de las 46 direcciones de la administracion municipal / Total de actividades realizadas y evaluadas por las 46 direcciones municipales )*100",250,300,"Mensual","Porcentaje",{"v":0.8333,"d":"83.33%"}," Portal Web del Municipio página de transparencia","Se dispone de personal y recursos ",{"v":185765.1,"d":"185,765.1"},{"v":33150,"d":"33,150.0"},{"v":60000,"d":"60,000.0"},{"v":0,"d":"0.0"},{"v":0,"d":"0.0"},{"v":0,"d":"0.0"},{"v":0,"d":"0.0"},{"v":0,"d":"0.0"},{"v":506512.8,"d":"506,512.8"},{"v":785427.9,"d":"785,427.9"},15]
[null,"Apremios","Componente 8","Tasa de contribuyentes incumplidos disminuida","TASA de contribuyetes incumplidos. (T1-CI )","Mide la reduccion de la relacion de contribuyentes incumplidos","Eficacia","Gestión","Tasa de contribuyentes  cumplidos por cada 990 licencias, permisos, concesiones o dictamenes municipales otorgados",750,990,"Bimestral","Tasa",{"v":75.75,"d":"76"}," Portal Web del Municipio página de transparencia","Se dispone de personal y recursos ",{"v":310712,"d":"310,712.0"},{"v":48000,"d":"48,000.0"},{"v":6000,"d":"6,000.0"},{"v":0,"d":"0.0"},{"v":0,"d":"0.0"},{"v":0,"d":"0.0"},{"v":0,"d":"0.0"},{"v":0,"d":"0.0"},{"v":0,"d":"0.0"},{"v":364712,"d":"364,712.0"}]
[null,null,"Actividad 8.1","Programa de visitas y cumplimiento de las obligaciones ciudadanas con la hacienda municipal por tipo de permiso, licencia, concesión o servicios del ayuntamiento por padrón  y dirección.","PORCENTAJE de cumplimiento de obligaciones hacendarias por la ciudadania. (P26-COHC)","Mide el porcentaje de licencias vigentes y al corriente en su contribución","Eficacia","Gestión","(Cantidad de licencias 800, permisos 50, concesiones 40, y dictamenes 100 municipales renovados (990) / Total de  licencias 800, permisos 50, concesiones 40, y dictamenes 100 municipales renovados (990))*100",990,990,"Mensual","Porcentaje",{"v":1,"d":"1.00"}," Portal Web del Municipio página de transparencia","Se dispone de personal y recursos ",{"v":310712,"d":"310,712.0"},{"v":48000,"d":"48,000.0"},{"v":6000,"d":"6,000.0"},{"v":0,"d":"0.0"},{"v":0,"d":"0.0"},{"v":0,"d":"0.0"},{"v":0,"d":"0.0"},{"v":0,"d":"0.0"},{"v":0,"d":"0.0"},{"v":364712,"d":"364,712.0"},{"v":100,"d":"100.0"}]
[null,"Oficial Mayor","Componente 9","Cumplimiento de servidores públicos incrementado","RAZÓN de cumplimiento de servidores públicos. (T2-CSP)","Mide la relacion de cumplimiento de las obligaciones y atribuciones de cada direccion de acuerdo al manual de organización y su reglamento","Eficacia","Gestión","(Razón de 450 de los 600 empleados en las 46 direcciones municipales agrupadas en 4 programas presupuestarios para dar cumplimiento al Plan Municipal de Desarrollo y Gobernanza que han actualizado su reglamento y cumplen con sus obligaciones y atribuciones de acuerdo al manual de organización y reglamento)",450,600,"Bimestral","Razón",75," Portal Web del Municipio página de transparencia","Se dispone de personal y recursos ",{"v":1118484,"d":"1,118,484.0"},{"v":216334,"d":"216,334.0"},{"v":5095000,"d":"5,095,000.0"},{"v":100000,"d":"100,000.0"},{"v":0,"d":"0.0"},{"v":0,"d":"0.0"},{"v":0,"d":"0.0"},{"v":0,"d":"0.0"},{"v":0,"d":"0.0"},{"v":6529818,"d":"6,529,818.0"}]
[null,null,"Actividad 9.1","Diagnóstico de necesidades y programa anual de capacitación por dirección.","PORCENTAJE de cumplimiento del programa municipal de capacitacion. (P27-CPMC)","Mide el porcentaje de servidores públicos que participan en el programa anual de capacitacion apegado al diagnostico de necesidades de las 46 direcciones de la administracion municipal","Eficacia","Gestión","(Cantidad de servidores públicos 300 que participan en el programa anual de capacitacion apegado al diagnostico de necesidades de las 46 direcciones de la administracion municipal / Total de servidores públicos 600 que integran las 46 direcciones de la administracion pública municipal)*100",300,600,"Mensual","Porcentaje",{"v":0.5,"d":"0.50"}," Portal Web del Municipio página de transparencia","Se dispone de personal y recursos ",{"v":447393.6000000001,"d":"447,393.6"},{"v":86533.60000000002,"d":"86,533.6"},{"v":2038000.0000000002,"d":"2,038,000.0"},{"v":40000.00000000001,"d":"40,000.0"},{"v":0,"d":"0.0"},{"v":0,"d":"0.0"},{"v":0,"d":"0.0"},{"v":0,"d":"0.0"},{"v":0,"d":"0.0"},{"v":2611927.2000000007,"d":"2,611,927.2"},{"v":40.00000000000001,"d":"40.0"}]
[null,null,"Actividad 9.2","Actualización del reglamento interno de trabajo para los empleados del ayuntamiento incorporando las adecuaciones a los reglamentos individuales de los servicios municipales","PORCENTAJE de actualización del reglamento interno por dirección. (P28-ARID)","Mide el porcentaje de actualizacion del reglamento interno cruzado con los reglamentos por direccion y vinculados al manual de organización","Eficacia","Gestión","(Cantidad de articulos del reglamento interior de trabajo de la administracion municipal actualizados 46 vinculados a las diferentes direcciones / Total de direcciones 46 con reglamento actualizado para vincular al reglamento interior de trabajo de la administracion pública municipal)*100",46,46,"Mensual","Porcentaje",{"v":1,"d":"100%"}," Portal Web del Municipio página de transparencia","Se dispone de personal y recursos ",{"v":671090.4,"d":"671,090.4"},{"v":129800.4,"d":"129,800.4"},{"v":3057000,"d":"3,057,000.0"},{"v":60000,"d":"60,000.0"},{"v":0,"d":"0.0"},{"v":0,"d":"0.0"},{"v":0,"d":"0.0"},{"v":0,"d":"0.0"},{"v":0,"d":"0.0"},{"v":3917890.8,"d":"3,917,890.8"},{"v":60,"d":"60.0"}]
[null,"Asuntos Internos","Componente 10","Confianza en el cuerpo de seguridad pública incrementada","INDICE de confianza en el cuerpo de seguridad pública. (ICCSP)","Mide el nivel de confianza de la ciudadania en el actuar de los cuerpos de seguridad y sus integrantes","Eficacia","Gestión","(valor resultante de sumar los valores individuales  de  los cosientes entre sus denominadores por su ponderacion asignada, que miden las  variables de corrupción, practicas y capacitación con las correspondientes ponderaciones de .5, .2 y .3 / la suma de los valores del denominador de las mismas variables)",20.4,22.4,"Bimestral","Índice",0.91," Portal Web del Municipio página de transparencia","Se dispone de personal y recursos ",{"v":138877,"d":"138,877.0"},{"v":23000,"d":"23,000.0"},{"v":4000,"d":"4,000.0"},{"v":0,"d":"0.0"},{"v":0,"d":"0.0"},{"v":0,"d":"0.0"},{"v":0,"d":"0.0"},{"v":0,"d":"0.0"},{"v":0,"d":"0.0"},{"v":165877,"d":"165,877.0"}]
[null,null,"Actividad 10.1","Exámenes de detección de actos de Corrupción.            ","PORCENTAJE de examenes y encuestas aplicados para prevenir actos y la percepción de corrupción. (P29-EAPAC)","Mide el porcentaje de examenes a que son sometidos los inetgrantes del cuerpo de seguridad pública municipal y encuestas que se aplican a la ciudadania sobre la percepción de ministerios públicos y procuradurias como corruptas.","Eficacia","Gestión","(Cantidad de 10 examenes de integridad para detectar actos de corrupción y 4 encuestas de percepción de corrupción de ministerios públicos y procuraduria, aplicados a la ciudadania / Total de examenes y encuestas aplicados)*100",14,14,"Mensual","Porcentaje",{"v":1,"d":"1.00"}," Portal Web del Municipio página de transparencia","Se dispone de personal y recursos ",{"v":48606.95,"d":"48,607.0"},{"v":8050,"d":"8,050.0"},{"v":1400,"d":"1,400.0"},{"v":0,"d":"0.0"},{"v":0,"d":"0.0"},{"v":0,"d":"0.0"},{"v":0,"d":"0.0"},{"v":0,"d":"0.0"},{"v":0,"d":"0.0"},{"v":58056.95,"d":"58,057.0"},{"v":35,"d":"35.0"}]
[null,null,"Actividad 10.2","Exámenes de detección de Malas Prácticas.","PORCENTAJE de examenes para prevenir malas prácticas. (P30-EPMP)","Mide el porcentaje de examenes realizados para detectar malas prácticas por los integrantes del cuerpo de seguridad","Eficacia","Gestión","(Cantidad de 10 examenes para detectar malas prácticas aplicados a los integrantes del cuerpo de seguridad / Total de integrantes 20 del cuerpo de seguridad)*100",10,20,"Mensual","Porcentaje",{"v":1,"d":"1.00"}," Portal Web del Municipio página de transparencia","Se dispone de personal y recursos ",{"v":34719.25,"d":"34,719.3"},{"v":5750,"d":"5,750.0"},{"v":1000,"d":"1,000.0"},{"v":0,"d":"0.0"},{"v":0,"d":"0.0"},{"v":0,"d":"0.0"},{"v":0,"d":"0.0"},{"v":0,"d":"0.0"},{"v":0,"d":"0.0"},{"v":41469.25,"d":"41,469.3"},{"v":25,"d":"25.0"}]
[null,null,"Actividad 10.3","Programa anual de capacitación en temas relacionados a la función como derechos humanos, llenado de IPH. faltas administrativas y delitos cometidos por policías municipales.","PORCENTAJE de cumplimieto del programa de capacitacion sobre derechos humanos. (P31-CPCDH)","Mide el porcentaje de participacion y cumplimiento del programa anual de capacitacion en respeto a derechos humanos por los integrantes de seguridad pública","Eficacia","Gestión","(Cantidad de criterios 4 (derechos humanos, llenado de IPH. faltas administrativas y delitos cometidos por  20 policías municipales) a verificar y capacitar en su aplicacion correcta / Total de criterios verificados con correcta aplicación)*100",38,38,"Mensual","Porcentaje",{"v":1,"d":"1.00"}," Portal Web del Municipio página de transparencia","Se dispone de personal y recursos ",{"v":55550.8,"d":"55,550.8"},{"v":9200,"d":"9,200.0"},{"v":1600,"d":"1,600.0"},{"v":0,"d":"0.0"},{"v":0,"d":"0.0"},{"v":0,"d":"0.0"},{"v":0,"d":"0.0"},{"v":0,"d":"0.0"},{"v":0,"d":"0.0"},{"v":66350.8,"d":"66,350.8"},{"v":40,"d":"40.0"}]
[null,"Sindicatura","Componente 11","Ordenamientos y lineamientos actualizados","RAZÓN de ordenamientos y lineamientos actualizados. (T3-OLA)","Mide la relacion de actualizacion de la normatividad local respecto a la estatal y federal incluyendo la imcorporación del PbR/SED","Eficacia","Gestión","(Razón de las 16 de 46 direcciones municipales agrupadas en 4 programas presupuestarios para dar cumplimiento al Plan Municipal de Desarrollo y Gobernanza que cuentan con su  reglamento actualizado incorporando el PbR/SED )",16,46,"Bimestral","Razón",0.34," Portal Web del Municipio página de transparencia","Se dispone de personal y recursos ",{"v":946129,"d":"946,129.0"},{"v":38000,"d":"38,000.0"},{"v":8000,"d":"8,000.0"},{"v":0,"d":"0.0"},{"v":0,"d":"0.0"},{"v":0,"d":"0.0"},{"v":0,"d":"0.0"},{"v":0,"d":"0.0"},{"v":0,"d":"0.0"},{"v":992129,"d":"992,129.0"}]
[null,null,"Actividad 11.1","Programa de actualización de la normatividad local, encaminado a mejorar y regular la función administrativa; dando cumplimiento a las leyes estatales y federales","PORCENTAJE de actualización de la normatividad local a la federal y estatal. (P32-PANLFE)","Mide el porcentaje de apego de las actualizaciones de la normatividad local a las disposiciones federales y estatales","Eficacia","Gestión","(Cantidad de reglamentos por actualizar 46 el correspondiente a cada dirección / Total de direcciones 46)*100",30,46,"Mensual","Porcentaje",{"v":1,"d":"1.00"}," Portal Web del Municipio página de transparencia","Se dispone de personal y recursos ",{"v":283838.7,"d":"283,838.7"},{"v":11400,"d":"11,400.0"},{"v":2400,"d":"2,400.0"},{"v":0,"d":"0.0"},{"v":0,"d":"0.0"},{"v":0,"d":"0.0"},{"v":0,"d":"0.0"},{"v":0,"d":"0.0"},{"v":0,"d":"0.0"},{"v":297638.7,"d":"297,638.7"},{"v":30,"d":"30.0"}]
[null,null,"Actividad 11.2","Programa de revisión,  aplicación y capacitación sobre la reglamentación municipal que le aplica en la responsabilidad de cada dirección.","PORCENTAJE de revision y capacitacion sobre aplicación de reglamentos municipales. (P33-RCARM)","Mide el porcentaje de entendimiento y aplicación correcta de la normatividad local en cada direccion municipal","Eficacia","Gestión","(Cantidad de criterios 4 (conocimiento del reglamento, correcta aplicación, actualizacion y resultados en la dirección e incorporacion del PbR/SED en su reglamento de la dirección) a verificar y capacitar en su aplicacion correcta / Total de criterios verificados con correcta aplicación)*100",4,4,"Mensual","Porcentaje",{"v":1,"d":"100%"}," Portal Web del Municipio página de transparencia","Se dispone de personal y recursos ",{"v":236532.25,"d":"236,532.3"},{"v":9500,"d":"9,500.0"},{"v":2000,"d":"2,000.0"},{"v":0,"d":"0.0"},{"v":0,"d":"0.0"},{"v":0,"d":"0.0"},{"v":0,"d":"0.0"},{"v":0,"d":"0.0"},{"v":0,"d":"0.0"},{"v":248032.25,"d":"248,032.3"},{"v":25,"d":"25.0"}]
[null,null,"Actividad 11.3","Programa de evaluación y seguimiento al desempeño de las direcciones para el cumplimiento del presupuesto base resultados, asi como de la hacienda municipal. ","PORCENTAJE de cumplimiento de actividades para la incorporacion del PbR/SED a las actividades de cada dirección municipal. (P34-CAPbR)","Mide el porcentaje de cumplimiento de actualizacion de datos, indicadores y metas para cumplir con el PbR/SED","Eficacia","Gestión","(Cantidad de actividades  desarrolladas (4 POA, PAC, Indicadores y Actualizar reglamento) para incorporar el PbR/SED a la evaluación y seguimiento de resultados de la dirección / total de  actividades  desarrolladas (4 POA, PAC, Indicadores y Actualizar reglamento) para incorporar el PbR/SED a la evaluación y seguimiento de resultados de la dirección)*100",4,4,"Mensual","Porcentaje",{"v":1,"d":"1.00"}," Portal Web del Municipio página de transparencia","Se dispone de personal y recursos ",{"v":425758.05,"d":"425,758.1"},{"v":17100,"d":"17,100.0"},{"v":3600,"d":"3,600.0"},{"v":0,"d":"0.0"},{"v":0,"d":"0.0"},{"v":0,"d":"0.0"},{"v":0,"d":"0.0"},{"v":0,"d":"0.0"},{"v":0,"d":"0.0"},{"v":446458.05,"d":"446,458.1"},{"v":45,"d":"45.0"}]
[null,"Contraloria","Componente 12","Apego a la normatividad para el ejercicio de recursos públicos","ÍNDICE de cumplimiento a la normatividad para el ejercicio de recursos públicos municipales. (T4-ANERP)","Mide la relación de recursos programados y ejercidos evitando la reasignación de recursos de una actividad a otra","Eficacia","Gestión","(valor resultante de sumar los valores individuales  de  los cosientes entre sus denominadores por su ponderacion asignada, que miden las  variables de auditorias, inspecciones y seguimiento con su respectivas ponderaciones de .6, .3 y .1 / la suma de los valores del denominador de las mismas variables)",12.7,23.5,"Bimestral","Índice",0.54," Portal Web del Municipio página de transparencia","Se dispone de personal y recursos ",{"v":446303,"d":"446,303.0"},{"v":16000,"d":"16,000.0"},{"v":4000,"d":"4,000.0"},{"v":0,"d":"0.0"},{"v":0,"d":"0.0"},{"v":0,"d":"0.0"},{"v":0,"d":"0.0"},{"v":0,"d":"0.0"},{"v":0,"d":"0.0"},{"v":466303,"d":"466,303.0"}]
[null,null,"Actividad 12.1","Programa para auditar la cuenta pública de hacienda municipal en tiempo y forma","PORCENTAJE de cumplimiento del programa de auditoria a cuenta pública municipal. (P35-CPACP)","Mide el porcentaje de cumplimiento del programa de auditorias internas a cuenta publica municipal","Eficacia","Gestión","(Cantidad de revisiones a cuenta publica ejecutadas de las 12 programadas dentro del Programa de auditoria interna a la cuenta pública municipal / total de auditorias 12 ejecutadas y programadas dentro de auditoria interna municipal)*100",12,12,"Mensual","Porcentaje",{"v":1,"d":"1.00"}," Portal Web del Municipio página de transparencia","Se dispone de personal y recursos ",{"v":133890.9,"d":"133,890.9"},{"v":4800,"d":"4,800.0"},{"v":1200,"d":"1,200.0"},{"v":0,"d":"0.0"},{"v":0,"d":"0.0"},{"v":0,"d":"0.0"},{"v":0,"d":"0.0"},{"v":0,"d":"0.0"},{"v":0,"d":"0.0"},{"v":139890.9,"d":"139,890.9"},{"v":30,"d":"30.0"}]
[null,null,"Actividad 12.2","Programa de visitas de inspección a las diferentes dependencias del ayuntamiento","PORCENTAJE de cumplimiento del programa de visitas e inspección. (P36-CPVI)","Mide el porcentaje de cumplimiento del programa de visitas para verificar el cumplimiento de sus actividades","Eficacia","Gestión","(Cantidad de visitas 10 programadas dentro del Programa de inspección a las diferentes dependencias del ayuntamiento / total de visitas 10 programadas dentro del Programa de inspección a las 46 diferentes dependencias del ayuntamiento)*100",10,46,"Mensual","Porcentaje",{"v":0.2173,"d":"21.73%"}," Portal Web del Municipio página de transparencia","Se dispone de personal y recursos ",{"v":200836.35,"d":"200,836.4"},{"v":7200,"d":"7,200.0"},{"v":1800,"d":"1,800.0"},{"v":0,"d":"0.0"},{"v":0,"d":"0.0"},{"v":0,"d":"0.0"},{"v":0,"d":"0.0"},{"v":0,"d":"0.0"},{"v":0,"d":"0.0"},{"v":209836.35,"d":"209,836.4"},{"v":45,"d":"45.0"}]
[null,null,"Actividad 12.3","Programa de seguimiento al manual de organización y obligaciones con el Estado.","PORCENTAJE de cumplimiento al manual de organización y obligaciones con el estado. (P37-CMOOE)","Mide el porcentaje de cumplimiento del manual de organización y que este apegado a la normatividad estatal","Eficacia","Gestión","(Cantidad de 25 articulos del manual de organización y obligaciones con el estado  a los que es obligatorio dar seguimiento  y cumplimiento por parte de la direccion municipal de contraloria/ total de 25 articulos del manual de organización y obligaciones con el estado  a los que es obligatorio dar seguimiento  y cumplimiento por parte de la direccion municipal de contraloria)*100",25,25,"Mensual","Porcentaje",{"v":1,"d":"1.00"}," Portal Web del Municipio página de transparencia","Se dispone de personal y recursos ",{"v":111575.75,"d":"111,575.8"},{"v":4000,"d":"4,000.0"},{"v":1000,"d":"1,000.0"},{"v":0,"d":"0.0"},{"v":0,"d":"0.0"},{"v":0,"d":"0.0"},{"v":0,"d":"0.0"},{"v":0,"d":"0.0"},{"v":0,"d":"0.0"},{"v":116575.75,"d":"116,575.8"},{"v":25,"d":"25.0"}]
[null,"Registro Civil","Componente 13","Registro civil eficientado","ÍNDICE de eficiencia en Registro Civil. (V5-ERC)","Mide el nivel de cumplimiento y satisfacción de la ciudadania","Eficacia","Gestión","(valor resultante de sumar los valores individuales  de  los cosientes entre sus denominadores por su ponderacion asignada, que miden las  variables de informes, apoyos y capacitación con sus respectivas ponderaciones de .4, .4 y .2 / la suma de los valores del denominador de las mismas variables)",17.2,17.6,"Bimestral","Índice",0.97," Portal Web del Municipio página de transparencia","Se dispone de personal y recursos ",{"v":318146,"d":"318,146.0"},{"v":93000,"d":"93,000.0"},{"v":5000,"d":"5,000.0"},{"v":0,"d":"0.0"},{"v":0,"d":"0.0"},{"v":0,"d":"0.0"},{"v":0,"d":"0.0"},{"v":0,"d":"0.0"},{"v":0,"d":"0.0"},{"v":416146,"d":"416,146.0"}]
[null,null,"Actividad 13.1","Informe digital mensual  a la Dirección General del Registro Civil del Estado y al Sistema Nacional de Registro.","PORCENTAJE de cumplimiento de informes a DGRCE. (P38-CIRCE)","Mide el porcentaje de cumplimiento de los informes mensuales ","Eficacia","Gestión","(Cantidad de informes acumulados enviados a la direccion general del registro civil del estado 12 y al sistema nacional de registros  12 responsabilidad delRegistro Civil/total acumulado mensual de informes enviados a la DGRCE  12 y al SNR 12 responsabilidad del registro Civil)*100",24,24,"Mensual","Porcentaje",{"v":1,"d":"1.00"}," Portal Web del Municipio página de transparencia","Se dispone de personal y recursos ",{"v":111351.1,"d":"111,351.1"},{"v":32550,"d":"32,550.0"},{"v":1750,"d":"1,750.0"},{"v":0,"d":"0.0"},{"v":0,"d":"0.0"},{"v":0,"d":"0.0"},{"v":0,"d":"0.0"},{"v":0,"d":"0.0"},{"v":0,"d":"0.0"},{"v":145651.1,"d":"145,651.1"},{"v":35,"d":"35.0"}]
[null,null,"Actividad 13.2","Programa de registro y seguimiento de solicitudes de actos para el apoyo de la población de inicio a la culminación del caso.","PORCENTAJE de conclusion de solicitudes de apoyo. (P39-CSA)","Mide el porcentaje de conclusion de las solicitudes de apoyo de la ciudadania ","Eficacia","Gestión","(Cantidad de solicitudes de apoyo 15 para resolver actos relativos al Registro Civil/total de solicitudes recibidas 15 registradas y dado seguimiento hasta su solucion en registro Civil)*100",15,15,"Mensual","Porcentaje",{"v":1,"d":"100%"}," Portal Web del Municipio página de transparencia","Se dispone de personal y recursos ",{"v":127258.4,"d":"127,258.4"},{"v":37200,"d":"37,200.0"},{"v":2000,"d":"2,000.0"},{"v":0,"d":"0.0"},{"v":0,"d":"0.0"},{"v":0,"d":"0.0"},{"v":0,"d":"0.0"},{"v":0,"d":"0.0"},{"v":0,"d":"0.0"},{"v":166458.4,"d":"166,458.4"},{"v":40,"d":"40.0"}]
[null,null,"Actividad 13.3","Programa cuatrimestral de capacitación o actualización al personal","PORCENTAJE de cumplimiento del programa de capacitación y actualización. (P40-CPCA)","Mide el porcentaje de cumplimiento y registro de asistentes al programa de capacitación","Eficacia","Gestión","(Cantidad de personal inscrito 8 para participar en el programa de capacitacion sobre Registro Civil/total de personal 10 de registro Civil)*100",8,10,"Mensual","Porcentaje",{"v":0.8,"d":"0.80"}," Portal Web del Municipio página de transparencia","Se dispone de personal y recursos ",{"v":79536.5,"d":"79,536.5"},{"v":23250,"d":"23,250.0"},{"v":1250,"d":"1,250.0"},{"v":0,"d":"0.0"},{"v":0,"d":"0.0"},{"v":0,"d":"0.0"},{"v":0,"d":"0.0"},{"v":0,"d":"0.0"},{"v":0,"d":"0.0"},{"v":104036.5,"d":"104,036.5"},{"v":25,"d":"25.0"}]
[null,"Catastro","Componente 14","Catastro eficientado","ÍNDICE de eficiencia en Catastro. (V6-EC)","Mide el nivel de eficiencia del personal del catastro en el cobro del impuesto predial apoyados en todas sus actividades buscando su incremento sostenido anual","Eficacia","Gestión","(valor resultante de sumar los valores individuales  de  los cosientes entre sus denominadores por su ponderacion asignada, que miden las  variables dedigitalización y emplados capacitados  con la correspondiente ponderacion de .4 y .6)",12004.2,36004.2,"Bimestral","Índice",0.33," Portal Web del Municipio página de transparencia","Se dispone de personal y recursos ",{"v":672388,"d":"672,388.0"},{"v":138000,"d":"138,000.0"},{"v":88000,"d":"88,000.0"},{"v":0,"d":"0.0"},{"v":0,"d":"0.0"},{"v":0,"d":"0.0"},{"v":0,"d":"0.0"},{"v":0,"d":"0.0"},{"v":0,"d":"0.0"},{"v":898388,"d":"898,388.0"}]
[null,null,"Actividad 14.1","Programa de digitalización de actas y capacitación del personal 4 empleados.","PORCENTAJE de digitalización y programa de capacitación. (P41-DPC)","Mide el porcentaje de digitalización de actas apartir del programa de capacitación","Eficacia","Gestión","(Cantidad de actas de catastro digitalizadas (30000) / total de actas por digitalizar en direccion de Catastro (90000) )*100",30000,90000,"Mensual","Porcentaje",33.33," Portal Web del Municipio página de transparencia","Se dispone de personal y recursos ",{"v":437052.19999999995,"d":"437,052.2"},{"v":89699.99999999999,"d":"89,700.0"},{"v":57199.99999999999,"d":"57,200.0"},{"v":0,"d":"0.0"},{"v":0,"d":"0.0"},{"v":0,"d":"0.0"},{"v":0,"d":"0.0"},{"v":0,"d":"0.0"},{"v":0,"d":"0.0"},{"v":583952.1999999998,"d":"583,952.2"},{"v":64.99999999999999,"d":"65.0"}]
[null,null,"Actividad 14.2","Atención y mejora continua en los servicios al ciudadano, manteniendo la capacitación a 7 empleados del catastro.","PORCENTAJE de servicios mejorados en atención y capacitación. (P42-SMAC)","Mide el porcentaje de emplados capacitados de los diferentes servicios de catastro","Eficacia","Gestión","(Cantidad de personal inscrito para participar en el programa de capacitacion sobre servicios en catastro 7 / total de personal en direccion de Catastro 7 )*100",7,7,"Mensual","Porcentaje",100," Portal Web del Municipio página de transparencia","Se dispone de personal y recursos ",{"v":111351.1,"d":"111,351.1"},{"v":32550,"d":"32,550.0"},{"v":1750,"d":"1,750.0"},{"v":0,"d":"0.0"},{"v":0,"d":"0.0"},{"v":0,"d":"0.0"},{"v":0,"d":"0.0"},{"v":0,"d":"0.0"},{"v":0,"d":"0.0"},{"v":145651.1,"d":"145,651.1"},{"v":35,"d":"35.0"}]
[null,"Parque Vehícular","Componente 15","Vehículos en operación incrementados","ÍNDICE de eficiencia del mantenimiento preventivo al parque vehicular. (T5-IEMPV)","Mide la reduccion del monto de inverion en mantenimiento preventivo por vehiculo que se mantiene en operación","Eficacia","Gestión","(valor resultante de sumar los valores individuales  de  los cosientes entre sus denominadores por su ponderacion asignada, que miden las  variables de kilometros por litro, inversion por vehiculo con mantenimiento y vehiculos con mantenimiento preventivo en operación  con la correspondiente ponderacion de .2, .5 y .3)",13324,2961.4,"Bimestral","Índice",4.49," Portal Web del Municipio página de transparencia","Se dispone de personal y recursos ",{"v":222359,"d":"222,359.0"},{"v":163850,"d":"163,850.0"},{"v":33000,"d":"33,000.0"},{"v":0,"d":"0.0"},{"v":0,"d":"0.0"},{"v":0,"d":"0.0"},{"v":0,"d":"0.0"},{"v":0,"d":"0.0"},{"v":0,"d":"0.0"},{"v":419209,"d":"419,209.0"}]
[null,null,"Actividad 15.1","Programa de revisión diaria a los vehículos en operación asignados a diferentes direcciones del ayuntamiento.","PORCENTAJE de vehiculos en operación revisados. (P43-VOR)","Mide el porcentaje de vehiculos revisados y en operación por semana","Eficacia","Gestión","(Cantidad de vehiculos con mantenimiento preventivo por semana y en operación (10)) / Total de vehiculos con mantenimiento preventivo por semana (12))*100",10,12,"Mensual","Porcentaje",0.83," Portal Web del Municipio página de transparencia","Se dispone de personal y recursos ",{"v":133415.4,"d":"133,415.4"},{"v":98310,"d":"98,310.0"},{"v":19800,"d":"19,800.0"},{"v":0,"d":"0.0"},{"v":0,"d":"0.0"},{"v":0,"d":"0.0"},{"v":0,"d":"0.0"},{"v":0,"d":"0.0"},{"v":0,"d":"0.0"},{"v":251525.4,"d":"251,525.4"},{"v":60,"d":"60.0"}]
[null,null,"Actividad 15.2","Generar programa de mantenimiento preventivo con bitácora  de gastos por vehículo","TASA de inversión al programa de mantenimiento. (P44-TIPM)","Mide la Tasa de inversion mensual por vehiculo incorporado al programa de mantenimiento preventivo orientado a reducir el monto mensual","Eficacia","Gestión","(Monto de recursos economicos en pesos  invertido mensualmente en el programa de mantenimiento preventivo al parque vehicular municipal (10000 pesos) por el total de vehiculos del servicio municipal incorporados al programa de mantenimiento preventivo (14) )",10000,14,"Mensual","Tasa",714," Portal Web del Municipio página de transparencia","Se dispone de personal y recursos ",{"v":33353.85,"d":"33,353.9"},{"v":24577.5,"d":"24,577.5"},{"v":4950,"d":"4,950.0"},{"v":0,"d":"0.0"},{"v":0,"d":"0.0"},{"v":0,"d":"0.0"},{"v":0,"d":"0.0"},{"v":0,"d":"0.0"},{"v":0,"d":"0.0"},{"v":62881.35,"d":"62,881.4"},{"v":25,"d":"25.0"}]
[null,null,"Actividad 15.3","Elaborar una bitácora de seguimiento paralelo al consumo de gasolina y kilometraje por vehículo","TASA de registro en bitacoras por vehiculo, de kilometros recorrdios por litro de Gasolina y/o diesel cargado (P45-RBV)","Mide la tasa de kilometros recorridos por litro de gasolina o diesel consumido ","Eficacia","Gestión","( Total de kilometros recorridos por los vehiculos oficiales (2800), camiones de basura (2240) y patrullas ( 22400) a las que se les cargo gasolina y diesel)) por  la (Cantidad de litros de gasolina y disel cargados  a los vehiculos (4 camiones de basura  2240 litros disesel por mes) y patrullas municipales (5 patrullas 5600 litros de gasolina por mes) (5 vehiculos oficiales  2000 litros gasolina al mes)",27740,9840,"Mensual","Tasa",2.81," Portal Web del Municipio página de transparencia","Se dispone de personal y recursos ",{"v":20012.31,"d":"20,012.3"},{"v":14746.5,"d":"14,746.5"},{"v":2970,"d":"2,970.0"},{"v":0,"d":"0.0"},{"v":0,"d":"0.0"},{"v":0,"d":"0.0"},{"v":0,"d":"0.0"},{"v":0,"d":"0.0"},{"v":0,"d":"0.0"},{"v":37728.81,"d":"37,728.8"},{"v":15,"d":"15.0"}]
[null,"Secretaría General","Componente 16","Satisfacción gubernamental incrementada","INDICE de satisfacción Gubernamental. (V7-SG)","Mide el nivel de satisfaccion de la ciudadania por la atencion recibida","Eficacia","Gestión","(valor resultante de sumar los valores individuales  de  los cosientes entre sus denominadores por su ponderacion asignada, que miden las  variables de instrucciones cumplidas y colaboraciones legales  correspondientes ponderaciones de .7  y .3)",65.1,95.4,"Bimestral","Índice",0.68," Portal Web del Municipio página de transparencia","Se dispone de personal y recursos ",{"v":724675,"d":"724,675.0"},{"v":80000,"d":"80,000.0"},{"v":8000,"d":"8,000.0"},{"v":0,"d":"0.0"},{"v":0,"d":"0.0"},{"v":0,"d":"0.0"},{"v":0,"d":"0.0"},{"v":0,"d":"0.0"},{"v":0,"d":"0.0"},{"v":812675,"d":"812,675.0"}]
[null,null,"Actividad 16.1","Coordinar, supervisar y evaluar a las direcciones y dependencias del Ayuntamiento, para garantizar el adecuado servicio a la ciudadanía","PORCENTAJE de instrucciones cumplidas para mejorar  el servicio a la ciudadania. (P46-ICMSC)","Mide el porcentaje de cumplimiento de las instrucciones de coordinación,  supervision y evaluación","Eficacia","Gestión","(Cantidad de instrucciones dadas a las diferentes direcciones municipales 48 / Total de quejas, solicitudes recibidas en atencion ciudadana y participacion social y seguimiento a actividades propias de las direcciones 72 ) * 100",48,72,"Mensual","Porcentaje",0.67," Portal Web del Municipio página de transparencia","Se dispone de personal y recursos ",{"v":507272.5,"d":"507,272.5"},{"v":56000,"d":"56,000.0"},{"v":5600,"d":"5,600.0"},{"v":0,"d":"0.0"},{"v":0,"d":"0.0"},{"v":0,"d":"0.0"},{"v":0,"d":"0.0"},{"v":0,"d":"0.0"},{"v":0,"d":"0.0"},{"v":568872.5,"d":"568,872.5"},{"v":70,"d":"70.0"}]
[null,null,"Actividad 16.2","Colaborar en las acciones y funciones relativas al aspecto legal y jurídico del municipio.","PORCENTAJE de colaboraciones legales y juridicas. (P47-CLJ)","Mide el porcentaje de colaboraciones para resolver temas legales y juridicos","Eficacia","Gestión","(Cantidad de convenios 15, obras 40 y solicitudes 50 necesarias de respaldar con el aspecto legal y juridico / total de documentos firmados con la fe publica del secretario general ) * 100",105,150,"Mensual","Porcentaje",{"v":0.7,"d":"70%"}," Portal Web del Municipio página de transparencia","Se dispone de personal y recursos ",{"v":217402.5,"d":"217,402.5"},{"v":24000,"d":"24,000.0"},{"v":2400,"d":"2,400.0"},{"v":0,"d":"0.0"},{"v":0,"d":"0.0"},{"v":0,"d":"0.0"},{"v":0,"d":"0.0"},{"v":0,"d":"0.0"},{"v":0,"d":"0.0"},{"v":243802.5,"d":"243,802.5"},{"v":30,"d":"30.0"}]
[null,"Transparencia ","Componente 17","Transparencia municipal incrementada","ÍNDICE de transparencia. (T6-TT)","Mide la relación de participacion, atencion y cumplimiento de los involucrados en atender las obligaciones de transparencia ","Eficacia","Gestión","(valor resultante de sumar los valores individuales  de  los cosientes entre sus denominadores por su ponderacion asignada, que miden las  variables de servidores públicos, recurrencia y participacion con las correspondientes ponderaciones de .5, .3 y .2)",226.6,353,"Bimestral","Índice",0.65," Portal Web del Municipio página de transparencia","Se dispone de personal y recursos ",{"v":413607,"d":"413,607.0"},{"v":41000,"d":"41,000.0"},{"v":7000,"d":"7,000.0"},{"v":0,"d":"0.0"},{"v":0,"d":"0.0"},{"v":0,"d":"0.0"},{"v":0,"d":"0.0"},{"v":0,"d":"0.0"},{"v":0,"d":"0.0"},{"v":461607,"d":"461,607.0"}]
[null,null,"Actividad 17.1","Programa de actualización, seguimiento y verificación de información pública disponible en los formatos de PNT. Y en la LTAIPJ en los art. 8 y 15","PORCENTAJE de servidores públicos que cumplen con sus obligaciones de rendición de cuentas en tiempo y forma, cumplimiento a la PNT y LTAIPEJ. (P48-CTNE)","Mide el porcentaje de cumplimiento de las obligaciones de publicar información en la PNT y LTAIPEJM","Eficacia","Gestión","(Cantidad de incisos con informacion actualizada en los articulos 8 y 15 de la LTAIPEJ mas los formatos de la PNT asignados y actualizados subidos a las plataformas/Total de insicios que solicitan informacion en los articulos 8 y 15 de la LTAIPJ mas el total de formatos de la PNT asignados)*100        (98 de LTAIPEJ + 270 Fts de la PNT = 368)  (102 de LTAIPEJ + 319 Fts de la PNT = 421)",368,421,"Mensual","Porcentaje",0.87," Portal Web del Municipio página de transparencia","Se dispone de personal y recursos ",{"v":206803.5,"d":"206,803.5"},{"v":20500,"d":"20,500.0"},{"v":3500,"d":"3,500.0"},{"v":0,"d":"0.0"},{"v":0,"d":"0.0"},{"v":0,"d":"0.0"},{"v":0,"d":"0.0"},{"v":0,"d":"0.0"},{"v":0,"d":"0.0"},{"v":230803.5,"d":"230,803.5"},{"v":50,"d":"50.0"}]
[null,null,"Actividad 17.2","Revisar la plataforma INFOMEX y el correo municipal de transparencia para atender solicitudes que recibe el ayuntamiento, darles respuesta y con ello mantener actualizado el portal del SIRES.","PORCENTAJE de recurrencia  en materia de acceso a la información del poder Ejecutivo Municipal. (P49-RMAIEM)","Mide el porcentaje de atención y respuesta positiva a las solicitudes de información recibidas por los diferentes medios de solicitud","Eficacia","Gestión","(Cantidad de solicitudes de informacion recibidas y atendidas positivamente/ Total de solicitudes recibidas)*100",50,75,"Mensual","Porcentaje",{"v":0.8,"d":"80%"}," Portal Web del Municipio página de transparencia","Se dispone de personal y recursos ",{"v":82721.4,"d":"82,721.4"},{"v":8200,"d":"8,200.0"},{"v":1400,"d":"1,400.0"},{"v":0,"d":"0.0"},{"v":0,"d":"0.0"},{"v":0,"d":"0.0"},{"v":0,"d":"0.0"},{"v":0,"d":"0.0"},{"v":0,"d":"0.0"},{"v":92321.4,"d":"92,321.4"},{"v":20,"d":"20.0"}]
[null,null,"Actividad 17.3","Programa de capacitación en materia de transparencia, formatos y reportes de actividades.","PORCENTAJE de participación en el cumplimiento del programa de capacitacion en transparencia. (P50-CPCT)","Mide el porcentaje de participación en el cumplimiento del programa de capacitacion en transparencia","Eficacia","Gestión","(Cantidad de personal inscrito para participar en el programa de capacitacion sobre transparencia/total de personal en el ayutamiento)*100",138,600,"Mensual","Porcentaje",0.25," Portal Web del Municipio página de transparencia","Se dispone de personal y recursos ",{"v":124082.1,"d":"124,082.1"},{"v":12300,"d":"12,300.0"},{"v":2100,"d":"2,100.0"},{"v":0,"d":"0.0"},{"v":0,"d":"0.0"},{"v":0,"d":"0.0"},{"v":0,"d":"0.0"},{"v":0,"d":"0.0"},{"v":0,"d":"0.0"},{"v":138482.1,"d":"138,482.1"},{"v":30,"d":"30.0"}]
[]
[null,"Sistema de Agua Potable y Alcantarillado (SAMAPA)","Componente 1","Cobertura de Agua Potable y Alcantarillado Ampliada","ÍNDICE de cobertura agua potable y alcantarillado (T1-CAPyA)","Mide la ampliacion en la cobertura de suministro de agua potable y alcantarillado ","Eficacia","Gestión","(valor resultante de sumar los valores individuales  de  los cosientes entre sus denominadores por su ponderacion asignada, que miden las  variables de: aguas subterraneas, macromedidores, cultura agua, colector principal, construccion pozos, desazolve carcamos, construccion humedal y rahabilitacion plantas con su correspondientes ponderaciones de .1, .2, .1, .1, .2, .1, .1, y .1)",12.7,15.9,"Bimestral","Índice","0.798"," Portal Web del Municipio página de transparencia","Se dispone de personal y recursos",{"v":0,"d":"$0.0"},{"v":0,"d":"$0.0"},{"v":0,"d":"$0.0"},{"v":2000000,"d":"$2,000,000.0"},{"v":0,"d":"$0.0"},{"v":0,"d":"$0.0"},{"v":0,"d":"$0.0"},{"v":0,"d":"$0.0"},{"v":0,"d":"$0.0"},{"v":2000000,"d":"$2,000,000.0"}]
[null,null,"Actividad 1.1","Gestionar un estudio de aguas subterráneas","PORCENTAJE de avance del estudio de aguas subterráneas (P51-AEAS)","Mide los avances en tener un estudio ","Eficacia","Gestión","(Cantidad de  actividades (10) desarrolladas para la gestion de un estudio de aguas subterráneas / Total de  actividades (15) a desarrollar para la gestion de un estudio de aguas subterráneas)*100",10,15,"Mensual","Porcentaje",{"v":0.66,"d":"66%"}," Portal Web del Municipio página de transparencia","Se dispone de personal y recursos",{"v":0,"d":"0.0"},{"v":0,"d":"0.0"},{"v":0,"d":"0.0"},{"v":100000,"d":"100,000.0"},{"v":0,"d":"0.0"},{"v":0,"d":"0.0"},{"v":0,"d":"0.0"},{"v":0,"d":"0.0"},{"v":0,"d":"0.0"},{"v":100000,"d":"$100,000.0"},{"v":5,"d":"$5.0"}]
[null,null,"Actividad 1.2","Instalación de macro medidores en pozos municipales","PORCENTAJE de pozos municipales con macro medidores (P52-PMMM)","Mide los avances en poner macromedidores en los pozos municipales","Eficacia","Gestión","(Cantidad de  actividades (20) desarrolladas para  colocar 5 macro medidores en las lineas de conducción del agua / Total de actividades (25) desarrolladas para  colocar 5 macro medidores en las lineas de conducción del agua de los pozos municipales a la red de agua potable )*100",20,25,"Mensual","Porcentaje",{"v":0.8,"d":"80%"}," Portal Web del Municipio página de transparencia","Se dispone de personal y recursos",{"v":0,"d":"0.0"},{"v":0,"d":"0.0"},{"v":0,"d":"0.0"},{"v":400000,"d":"400,000.0"},{"v":0,"d":"0.0"},{"v":0,"d":"0.0"},{"v":0,"d":"0.0"},{"v":0,"d":"0.0"},{"v":0,"d":"0.0"},{"v":400000,"d":"$400,000.0"},{"v":20,"d":"$20.0"}]
[null,null,"Actividad 1.3","Programa de cultura del agua","PORCENTAJE de cumplimiento del programa de cultura del agua (P53-CPCA)","Mide el avance en el cumplimiento del programa ","Eficacia","Gestión","(Cantidad de  actividades (20) desarrolladas dentro del programa de cultura del agua / Total de  actividades (20) a desarrollar dentro del programa de cultura del agua)*100",20,20,"Mensual","Porcentaje",{"v":1,"d":"100%"}," Portal Web del Municipio página de transparencia","Se dispone de personal y recursos",{"v":0,"d":"0.0"},{"v":0,"d":"0.0"},{"v":0,"d":"0.0"},{"v":300000,"d":"300,000.0"},{"v":0,"d":"0.0"},{"v":0,"d":"0.0"},{"v":0,"d":"0.0"},{"v":0,"d":"0.0"},{"v":0,"d":"0.0"},{"v":300000,"d":"$300,000.0"},{"v":15,"d":"$15.0"}]
[null,null,"Actividad 1.4","Reemplazar el colector principal de la línea de drenaje ","PORCENTAJE colector principal remplazado (P54-CPR)","Mide los avances en el reemplazo del colector principal","Eficacia","Gestión","(Cantidad de  actividades (10) desarrolladas para  reemplazar 100 ml del colector principal de la línea de drenaje  en cabecera municipal / Total de actividades (10) programadas para  reemplazar 100 ml del colector principal de la línea de drenaje de la cabecera municipal )*100",10,10,"Mensual","Porcentaje",{"v":1,"d":"100%"}," Portal Web del Municipio página de transparencia","Se dispone de personal y recursos",{"v":0,"d":"0.0"},{"v":0,"d":"0.0"},{"v":0,"d":"0.0"},{"v":400000,"d":"400,000.0"},{"v":0,"d":"0.0"},{"v":0,"d":"0.0"},{"v":0,"d":"0.0"},{"v":0,"d":"0.0"},{"v":0,"d":"0.0"},{"v":400000,"d":"$400,000.0"},{"v":20,"d":"$20.0"}]
[null,null,"Actividad 1.5","Construcción de 2 pozos profundos","PORCENTAJE de avance en perforación de pozos (P55-AP2P)","Mide los avances en la perforación de dos nuevos pozos profundos","Eficacia","Gestión","(Cantidad de  actividades (10) desarrolladas para la construcción de 2 nuevos pozos profundos / Total de  actividades (15) a desarrollar para la construcción de 2 nuevos pozos profundos en el territorio municipal)*100",10,15,"Mensual","Porcentaje",{"v":0.66,"d":"66%"}," Portal Web del Municipio página de transparencia","Se dispone de personal y recursos",{"v":0,"d":"0.0"},{"v":0,"d":"0.0"},{"v":0,"d":"0.0"},{"v":500000,"d":"500,000.0"},{"v":0,"d":"0.0"},{"v":0,"d":"0.0"},{"v":0,"d":"0.0"},{"v":0,"d":"0.0"},{"v":0,"d":"0.0"},{"v":500000,"d":"$500,000.0"},{"v":25,"d":"$25.0"}]
[null,null,"Actividad 1.6","Desazolve de cárcamos","PORCENTAJE de cárcamos con desazolve (P56-CCD)","Mide el avance en el desasolve de carcamos","Eficacia","Gestión","(Cantidad de  actividades (8) desarrolladas para  el desazolve  de 100 cárcamos construidos en el territorio municipal / Total de actividades (8) programas a desarrollar para  el desazolve  de 100 cárcamos construidos en el territorio municipal )*100",8,8,"Mensual","Porcentaje",{"v":1,"d":"100%"}," Portal Web del Municipio página de transparencia","Se dispone de personal y recursos",{"v":0,"d":"0.0"},{"v":0,"d":"0.0"},{"v":0,"d":"0.0"},{"v":300000,"d":"300,000.0"},{"v":0,"d":"0.0"},{"v":0,"d":"0.0"},{"v":0,"d":"0.0"},{"v":0,"d":"0.0"},{"v":0,"d":"0.0"},{"v":300000,"d":"$300,000.0"},{"v":15,"d":"$15.0"}]
[null,null,"Actividad 1.7","Construcción del humedal arroyo de los sabinos","PORCENTAJE de avance en la construcción del humedal (P57-ACH)","Mide el avance en la costrucción del humedal","Eficacia","Gestión","(Cantidad de  actividades (15) desarrolladas para la Construcción del humedal arroyo de los sabinos / Total de  actividades (20) a desarrollar para la Construcción del humedal arroyo de los sabinos)*100",15,20,"Mensual","Porcentaje",{"v":0.75,"d":"75%"}," Portal Web del Municipio página de transparencia","Se dispone de personal y recursos",{"v":0,"d":"0.0"},{"v":0,"d":"0.0"},{"v":0,"d":"0.0"},{"v":200000,"d":"200,000.0"},{"v":0,"d":"0.0"},{"v":0,"d":"0.0"},{"v":0,"d":"0.0"},{"v":0,"d":"0.0"},{"v":0,"d":"0.0"},{"v":200000,"d":"$200,000.0"},{"v":10,"d":"$10.0"}]
[null,null,"Actividad 1.8","Rehabilitación de 4 plantas de tratamiento","PORCENTAJE de Plantas de tratamiento de aguas residuales en operación dentro de norma (P58-PPTARDN)","Mide el avance en la rehabilitación de plantas de tratamiento de aguas residuales y puestas en operación dentro de norma","Eficacia","Gestión","(Cantidad de plantas de tratamiento de aguas residuales (4) a las que se les dio mantenimiento y rehabilitación  / Total plantas de tratamiento de aguas residuales (6) existentes en el municipio)*100",4,6,"Mensual","Porcentaje",{"v":0.66,"d":"66%"},"10:10",null,{"v":0,"d":"0.0"},{"v":0,"d":"0.0"},{"v":0,"d":"0.0"},{"v":400000,"d":"400,000.0"},{"v":0,"d":"0.0"},{"v":0,"d":"0.0"},{"v":0,"d":"0.0"},{"v":0,"d":"0.0"},{"v":0,"d":"0.0"},{"v":400000,"d":"$400,000.0"},{"v":20,"d":"$20.0"}]
[null,"Alumbrado público","Componente 2","Cobertura de Alumbrado Público Ampliada","TASA de modernizacion y eficiencia en alumbrado público municipal (T2-CAP)","Mide la modernizacion y la eficiencia del alumbrado público municipal con el cambio de luminarias existentes a luminarias de LEDs","Eficacia","Gestión","(Tasa de modernizacion de luminarias a LEDs por cada 1000 de las existentes ",100,4513,"Bimestral","Tasa","22 . 1000"," Portal Web del Municipio página de transparencia","Se dispone de personal y recursos",{"v":722682,"d":"$722,682.0"},{"v":338000,"d":"$338,000.0"},{"v":18000,"d":"$18,000.0"},{"v":0,"d":"$0.0"},{"v":0,"d":"$0.0"},{"v":0,"d":"$0.0"},{"v":0,"d":"$0.0"},{"v":0,"d":"$0.0"},{"v":0,"d":"$0.0"},{"v":1078682,"d":"$1,078,682.0"}]
[null,null,"Actividad 2.1","Instalación de luminarias led","PORCENTAJE de luminarias led instaladas (P59-LLI)","Mide el avance en la instalacion de luminarias","Eficacia","Gestión","(Cantidad de luminarias de los circuitos de alumbrado publico municipales que se han sustituido (100) por luminarias de LEDs / Total de  luminarias de los circuitos de alumbrado publico municipales que se han programado (100) para ser sustituidas por luminarias de LEDs)*100",100,100,"Mensual","Porcentaje",{"v":1,"d":"100%"}," Portal Web del Municipio página de transparencia","Se dispone de personal y recursos",{"v":289072.8,"d":"289,072.8"},{"v":135200,"d":"135,200.0"},{"v":7200,"d":"7,200.0"},{"v":0,"d":"0.0"},{"v":0,"d":"0.0"},{"v":0,"d":"0.0"},{"v":0,"d":"0.0"},{"v":0,"d":"0.0"},{"v":0,"d":"0.0"},{"v":431472.8,"d":"$431,472.8"},{"v":40,"d":"$40.0"}]
[null,null,"Actividad 2.2","Instalación de equipos de medición en igual número de circuitos municipales","PORCENTAJE de instalación de equipos de medición por circuito (P60-IEMC)","Mide el avance en la instalacion de euipos de medicion","Eficacia","Gestión","(Cantidad de circuitos (54) de alumbrado público municipal a los que se instalo equipo de medicion / Total decircuitos (54) de alumbrado público municipal a los que se instalara equipo de medicion)*100",54,54,"Mensual","Porcentaje",{"v":1,"d":"100%"}," Portal Web del Municipio página de transparencia","Se dispone de personal y recursos",{"v":180670.5,"d":"180,670.5"},{"v":84500,"d":"84,500.0"},{"v":4500,"d":"4,500.0"},{"v":0,"d":"0.0"},{"v":0,"d":"0.0"},{"v":0,"d":"0.0"},{"v":0,"d":"0.0"},{"v":0,"d":"0.0"},{"v":0,"d":"0.0"},{"v":269670.5,"d":"$269,670.5"},{"v":25,"d":"$25.0"}]
[null,null,"Actividad 2.3","Mantenimiento y preservación de luminarias","PORCENTAJE de luminarias incluidas en el programa de mantenimiento y preservación (P61-LIPMP)","Mide el avance en el mantenimiento de luminarias","Eficacia","Gestión","(Cantidad de luminarias instaladas (4513)  con mantenimiento trimestral incluidas en el programa de mantenimiento municipal / Total de luminarias proyectadas al cierre de año (4600) para completar el programa de mantenimiento municipal)*100",4513,4600,"Mensual","Porcentaje",{"v":0.98,"d":"98%"}," Portal Web del Municipio página de transparencia","Se dispone de personal y recursos",{"v":252938.7,"d":"252,938.7"},{"v":118300,"d":"118,300.0"},{"v":6300,"d":"6,300.0"},{"v":0,"d":"0.0"},{"v":0,"d":"0.0"},{"v":0,"d":"0.0"},{"v":0,"d":"0.0"},{"v":0,"d":"0.0"},{"v":0,"d":"0.0"},{"v":377538.7,"d":"$377,538.7"},{"v":35,"d":"$35.0"}]
[null,"Parques y jardines","Componente 3","Cobertura de Áreas Verdes y Espacios Públicos Ampliada","TASA de cobertura de áreas verdes y espacios públicos (T3-CAVyEP)","Mide la ampliacion de la cobertura en atención a areas verdes y espcios públicos en 10 de cada diez","Eficacia","Gestión","(Tasa de metros cuadrados de área verde y plazas públicas por cada 1000 habitantes    ",20600,11,"Bimestral","Tasa","21 : 0.011"," Portal Web del Municipio página de transparencia","Se dispone de personal y recursos",{"v":1420995,"d":"$1,420,995.0"},{"v":448000,"d":"$448,000.0"},{"v":18000,"d":"$18,000.0"},{"v":0,"d":"$0.0"},{"v":0,"d":"$0.0"},{"v":0,"d":"$0.0"},{"v":0,"d":"$0.0"},{"v":0,"d":"$0.0"},{"v":0,"d":"$0.0"},{"v":1886995,"d":"$1,886,995.0"}]
[null,null,"Actividad 3.1","Programa de Arreglo, mantenimiento y preservación  de plazas publicas, Av. Principal de Cabecera municipal y de camellones.","PORCENTAJE cumplimiento del programa de arreglo, mantenimiento y preservación (P62-CPAMP)","Mide el cumplimiento del programa","Eficacia","Gestión","(Cantidad de  actividades (22) realizadas para ejecutar el  Programa de Arreglo, a 11 plazas públicas, mantenimiento a 20,600 m2 de camellon como área verde y plantación de 5000 arboles / Total de actividades (25) programadas para ejecutar el  Programa de Arreglo, a 11 plazas públicas, mantenimiento a 20,600 m2 de camellon y plantación de 5000 arboles)*100",22,25,"Mensual","Porcentaje",{"v":0.88,"d":"88%"}," Portal Web del Municipio página de transparencia","Se dispone de personal y recursos",{"v":1420995,"d":"1,420,995.0"},{"v":448000,"d":"448,000.0"},{"v":18000,"d":"18,000.0"},{"v":0,"d":"0.0"},{"v":0,"d":"0.0"},{"v":0,"d":"0.0"},{"v":0,"d":"0.0"},{"v":0,"d":"0.0"},{"v":0,"d":"0.0"},{"v":1886995,"d":"$1,886,995.0"},{"v":100,"d":"$100.0"}]
[null,"Aseo público","Componente 4","Cobertura de Servicio de Limpia y Aseo Público Ampliada","ÍNDICE de cobertura de servicio  de limpia y aseo público (T4-SLyAP)","Mide el mantenimiento y la  ampliacion en la cobertura de limpia y aseo público ","Eficacia","Gestión","(valor resultante de sumar los valores individuales  de  los cosientes entre sus denominadores por su ponderacion asignada, que miden las  variables de: gestion camión, mantenimiento a camiones y recolección basura con su correspondientes ponderaciones de .2, .4  y .4)",198,167.6,"Bimestral","Índice","1.18"," Portal Web del Municipio página de transparencia","Se dispone de personal y recursos",{"v":2648481,"d":"$2,648,481.0"},{"v":2365000,"d":"$2,365,000.0"},{"v":227000,"d":"$227,000.0"},{"v":0,"d":"$0.0"},{"v":0,"d":"$0.0"},{"v":0,"d":"$0.0"},{"v":0,"d":"$0.0"},{"v":0,"d":"$0.0"},{"v":0,"d":"$0.0"},{"v":5240481,"d":"$5,240,481.0"}]
[null,null,"Actividad 4.1","Gestión de la adquisición de equipo y vehículos de recolección","PORCENTAJE avance en la gestión de equipo para la recolección (P63-AGER)","Mide los avances en la gestion para adquirir equipo de recolección","Eficacia","Gestión","(Cantidad de  gestiones y actividades a realizar (10) para la gestión de un camion compactador para la recoleccion de basúra / Total de gestiones y actividades a realizar (10) para la gestión de un camion compactador para la recoleccion de basúra )*100",10,10,"Mensual","Porcentaje",{"v":1,"d":"100%"}," Portal Web del Municipio página de transparencia","Se dispone de personal y recursos",{"v":1456664.55,"d":"1,456,664.6"},{"v":1300750,"d":"1,300,750.0"},{"v":124850,"d":"124,850.0"},{"v":0,"d":"0.0"},{"v":0,"d":"0.0"},{"v":0,"d":"0.0"},{"v":0,"d":"0.0"},{"v":0,"d":"0.0"},{"v":0,"d":"0.0"},{"v":2882264.55,"d":"$2,882,264.6"},{"v":55,"d":"$55.0"}]
[null,null,"Actividad 4.2","Instalación de contenedores de basura en colonias, fraccionamientos y comunidades rurales y mantenimiento preventivo a camiones recolectores de basura","PORCENTAJE de avance en la instalación de contenedores para recolección de basura (P64-AICRB)","Mide el avance en la instalacion de contenedores y las toneladas recolectadas","Eficacia","Gestión","(Cantidad de contenedores instalados en el mes (0) y camiones con mantenimiento preventivo en el mes (12) / Total de contenedores instalados en colonias y fraccionamientos en el mes (0) y camiones recolectores con mantenimiento preventivo durante el mes (12)  como actividades del programa de limpia y recolección de basura )*100",144,144,"Mensual","Porcentaje",{"v":1,"d":"100%"}," Portal Web del Municipio página de transparencia","Se dispone de personal y recursos",{"v":926968.35,"d":"926,968.4"},{"v":827750,"d":"827,750.0"},{"v":79450,"d":"79,450.0"},{"v":0,"d":"0.0"},{"v":0,"d":"0.0"},{"v":0,"d":"0.0"},{"v":0,"d":"0.0"},{"v":0,"d":"0.0"},{"v":0,"d":"0.0"},{"v":1834168.35,"d":"$1,834,168.4"},{"v":35,"d":"$35.0"}]
[null,null,"Actividad 4.3","Creación de nuevas rutas de recolección de basura, impulsando la separación de basura ","PORCENTAJE de incremento en la recoleccion de basura (P65-ACNRRB)","Mide el incremento en la recolección de basura como consecuencia del crecimiento poblacional y la precaria cultura del reciclaje de desechos solidos ","Eficacia","Gestión","((Cantidad de  toneladas de basura proyectada a recolectar por crecimiento urbano  por mes (346) en las rutas municipales existentes / Total de toneladas de basura recolectada actualmente por mes (270) en las rutas municipales existentes)*100)-100",346,270,"Mensual","Porcentaje",{"v":0.28,"d":"28%"}," Portal Web del Municipio página de transparencia","Se dispone de personal y recursos",{"v":264848.1,"d":"264,848.1"},{"v":236500,"d":"236,500.0"},{"v":22700,"d":"22,700.0"},{"v":0,"d":"0.0"},{"v":0,"d":"0.0"},{"v":0,"d":"0.0"},{"v":0,"d":"0.0"},{"v":0,"d":"0.0"},{"v":0,"d":"0.0"},{"v":524048.1,"d":"$524,048.1"},{"v":10,"d":"$10.0"}]
[null,"Desarrollo social","Componente 5","Familias en Pobreza Disminuidas","PORCENTAJE de reducción de familias en situación de pobreza multidimensional extrema(T5-TSP)","Mide la reducción de familias en situación de pobreza multidimensional extrema","Eficacia","Gestión","(Cantidad de población (911)  que se mantiene en situación de pobreza multidimensional extrema en el municipio de acuerdo a INEGI, Censo de Población y Vivienda, 2010/ Total de Población en situación de pobreza multidimensional (15,133) INEGI, Censo de Población y Vivienda, 2010  que necesitanser incorporados a programas de apoyo que ayuden a superar esta condicion en el municipio )*100",911,15133,"Bimestral","Porcentaje","6% "," Portal Web del Municipio página de transparencia","Se dispone de personal y recursos",{"v":863363,"d":"$863,363.0"},{"v":41000,"d":"$41,000.0"},{"v":9000,"d":"$9,000.0"},{"v":1500000,"d":"$1,500,000.0"},{"v":0,"d":"$0.0"},{"v":0,"d":"$0.0"},{"v":0,"d":"$0.0"},{"v":0,"d":"$0.0"},{"v":0,"d":"$0.0"},{"v":2413363,"d":"$2,413,363.0"}]
[null,null,"Actividad 5.1","Desarrollar un plan estratégico de colaboración entre  Gobierno Federal, Estatal y Municipal, orientado  al empleo, capacitación, y desarrollo económico de la sociedad, familiar e individual.","PORCENTAJE de avance en el desarrollo del Plan económico estratégico (P66-ADPE)","Mide los avances en el cumplimiento del plan económico estratégico a traves de beneficiar a los adultos mayores","Eficacia","Gestión","(Cantidad de población (4,256)  que se mantiene como vulnerable por ingresos en el municipio de acuerdo a INEGI, Censo de Población y Vivienda, 2010/ Total de Población vulnerable por carencias sociales  (16,399) INEGI, Censo de Población y Vivienda, 2010  que necesitanser incorporados a programas de apoyo economico en el municipio )*100",4256,16399,"Mensual","Porcentaje",{"v":0.26,"d":"26%"}," Portal Web del Municipio página de transparencia","Se dispone de personal y recursos",{"v":129504.45,"d":"129,504.5"},{"v":6150,"d":"6,150.0"},{"v":1350,"d":"1,350.0"},{"v":225000,"d":"225,000.0"},{"v":0,"d":"0.0"},{"v":0,"d":"0.0"},{"v":0,"d":"0.0"},{"v":0,"d":"0.0"},{"v":0,"d":"0.0"},{"v":362004.45,"d":"$362,004.5"},{"v":15,"d":"$15.0"}]
[null,null,"Actividad 5.2","Promover  y difundir  la incorporación  de todos los beneficiarios de los diferentes Programas Federales, Estatales y Municipales al Seguro Popular, manteniendo activas sus pólizas de coberturas.","PORCENTAJE de ciudadanos apoyados en mantener activas sus pólizas de cobertura (P67-CAMAPC)","Mide el numero de ciudadanos que se mantienen como beneficiarios con cobertura de servicios de salud","Eficacia","Gestión","(Cantidad de población (2278) atendida que se mantiene con cobertura y poliza activa de  seguridad pública de salud en el municipio de acuerdo a INEGI, Censo de Población y Vivienda, 2010/ Total de población (9,847) INEGI, Censo de Población y Vivienda, 2010  que necesita incorporar a cobertura y poliza activa de  seguridad pública de salud en el municipio )*100",4500,12125,"Mensual","Porcentaje",{"v":0.3711,"d":"37.11%"}," Portal Web del Municipio página de transparencia","Se dispone de personal y recursos",{"v":215840.75,"d":"215,840.8"},{"v":10250,"d":"10,250.0"},{"v":2250,"d":"2,250.0"},{"v":375000,"d":"375,000.0"},{"v":0,"d":"0.0"},{"v":0,"d":"0.0"},{"v":0,"d":"0.0"},{"v":0,"d":"0.0"},{"v":0,"d":"0.0"},{"v":603340.75,"d":"$603,340.8"},{"v":25,"d":"$25.0"}]
[null,null,"Actividad 5.3","Atender las zonas de atención prioritaria, para que accedan a los servicios básicos","PORCENTAJE de cobertura en servicios básicos a Zonas Prioritarias con carencias sociales (P68-CSBZP)","Mide los habitante con carencias sociales que cuentan con servcios básicos dentro de los poligonos de zonas prioritarias","Eficacia","Gestión","(Cantidad de población (11,480) atendida que vive en las zonas de atencion prioritaria con carencias sociales en el municipio de acuerdo a CONAPOJ 2015/ Total de población (16,399) que vive en las zonas de atencion prioritaria con carencias sociales (Rezago educativo 8,669, Acceso a los servicios de salud 9,847, Acceso a la seguridad social 22,255, Calidad y espacios de la vivienda 5,400, Acceso a los servicios básicos en la vivienda 1,700  y Acceso a la alimentación 7,194) en el municipio)*100",11480,16399,"Mensual","Porcentaje",{"v":0.7,"d":"70%"}," Portal Web del Municipio página de transparencia","Se dispone de personal y recursos",{"v":518017.8,"d":"518,017.8"},{"v":24600,"d":"24,600.0"},{"v":5400,"d":"5,400.0"},{"v":900000,"d":"900,000.0"},{"v":0,"d":"0.0"},{"v":0,"d":"0.0"},{"v":0,"d":"0.0"},{"v":0,"d":"0.0"},{"v":0,"d":"0.0"},{"v":1448017.8,"d":"$1,448,017.8"},{"v":60,"d":"$60.0"}]
[null,"Instituto de la mujer","Componente 6","Maltrato y Desigualdad de Género Disminuidos","ÍNDICE de maltrato y desigualdad de género (T6-MyDG)","Mide la reducción del maltrato mediante la prevencion, ocupación y su reglamento","Eficacia","Gestión","(valor resultante de sumar los valores individuales  de  los cosientes entre sus denominadores por su ponderacion asignada, que miden las  variables de: prevención de violencia, femeninas ocupadas y actualizacion reglamento  con su correspondientes ponderaciones de .3, .3,  y .4)",20.1,21.9,"Bimestral","Índice","0.92"," Portal Web del Municipio página de transparencia","Se dispone de personal y recursos",{"v":0,"d":"$0.0"},{"v":0,"d":"$0.0"},{"v":0,"d":"$0.0"},{"v":480000,"d":"$480,000.0"},{"v":0,"d":"$0.0"},{"v":0,"d":"$0.0"},{"v":0,"d":"$0.0"},{"v":0,"d":"$0.0"},{"v":0,"d":"$0.0"},{"v":480000,"d":"$480,000.0"}]
[null,null,"Actividad 6.1","Desarrollar dos programas para prevenir y erradicar la violencia de genero.  1 .- Proyecto quiérete Mujer   2.-Proyecto Junto a ti","PORCENTAJE de avance del programa de prevención de la violencia de genero que disminuya la presencia de feminicidios (P69-APPVG)","Mide le disminución y denuncia del abuso de mujeres violentadas que pueden terminar en feminicidios","Eficacia","Gestión","(Cantidad de actividades  (27) concluidas para la implementación de los programas para prevenir y erradicar la violencia de genero.  1 .- Proyecto quiérete Mujer (12) y  2.-Proyecto Junto a ti (15)\".  / Total de actividades  (31) para la implementación de los programas para prevenir y erradicar la violencia de genero.  1 .- Proyecto quiérete Mujer (14) y  2.-Proyecto Junto a ti (17)\". )*100",27,31,"Mensual","Porcentaje",{"v":0.87,"d":"87%"}," Portal Web del Municipio página de transparencia","Se dispone de personal y recursos",{"v":0,"d":"0.0"},{"v":0,"d":"0.0"},{"v":0,"d":"0.0"},{"v":96000,"d":"96,000.0"},{"v":0,"d":"0.0"},{"v":0,"d":"0.0"},{"v":0,"d":"0.0"},{"v":0,"d":"0.0"},{"v":0,"d":"0.0"},{"v":96000,"d":"$96,000.0"},{"v":20,"d":"$20.0"}]
[null,null,"Actividad 6.2","Implementar dos programas  \"Mujer es poder\"  y \"Mujeres en acción\"  ","PORCENTAJE de implementación de los dos programas con población femenina ocupada (P70-IDP)","Mide el numero de población femenina ocupada y activas en el empoderamiento y activación de la mujer","Eficacia","Gestión","(Cantidad de actividades  (24) concluidas para la implementación de los programas  \"Mujer es poder (11)\"  y \"Mujeres en acción (13)\" manteniendo a poblacion femenina ocupada en ellos / Total de de actividades  (26) para la implementación de los programas  \"Mujer es poder (12)\"  y \"Mujeres en acción (14)\" manteniendo a poblacion femenina ocupada en ellos )*100",24,26,"Mensual","Porcentaje",{"v":0.923,"d":"92.30%"}," Portal Web del Municipio página de transparencia","Se dispone de personal y recursos",{"v":0,"d":"0.0"},{"v":0,"d":"0.0"},{"v":0,"d":"0.0"},{"v":312000,"d":"312,000.0"},{"v":0,"d":"0.0"},{"v":0,"d":"0.0"},{"v":0,"d":"0.0"},{"v":0,"d":"0.0"},{"v":0,"d":"0.0"},{"v":312000,"d":"$312,000.0"},{"v":65,"d":"$65.0"}]
[null,null,"Actividad 6.3","Actualizar Reglamento a Ley de Acceso a una Vida Libre de Violencia. Elaboración del Reglamento a la Ley de Igualdad  para Mujeres y Hombres. Ambos reglamentos adaptados  de  acuerdo a lo observado por la secretaria de igualdad sustantiva.","PORCENTAJE de actualización del reglamento (P71-ARLA)","Mide los avances en la elaboracion del reglamento ","Eficacia","Gestión","(Cantidad de actividades  (12) concluidas para la elaboración del reglamento  homologado a la  Ley de Acceso a una Vida Libre de Violencia y a la Ley de Igualdad  para Mujeres y Hombres / Total de  actividades  (12) para la elaboración del reglamento  homologado a la  Ley de Acceso a una Vida Libre de Violencia y a la Ley de Igualdad  para Mujeres y Hombres )*100",12,12,"Mensual","Porcentaje",{"v":1,"d":"100%"}," Portal Web del Municipio página de transparencia","Se dispone de personal y recursos",{"v":0,"d":"0.0"},{"v":0,"d":"0.0"},{"v":0,"d":"0.0"},{"v":72000,"d":"72,000.0"},{"v":0,"d":"0.0"},{"v":0,"d":"0.0"},{"v":0,"d":"0.0"},{"v":0,"d":"0.0"},{"v":0,"d":"0.0"},{"v":72000,"d":"$72,000.0"},{"v":15,"d":"$15.0"}]
[null,"Deportes","Componente 7","Actividad Física y Deportiva Incrementada","ÍNDICE de actividad física y deportiva  (T7-AFyD)","Mide la relación de ciudadanos que hacen ejercicio o actividad fisica respecto a los que no lo hacen","Eficacia","Gestión","(valor resultante de sumar los valores individuales  de  los cosientes entre sus denominadores por su ponderacion asignada, que miden las  variables de: mantenimiento áreas, torneos relampagos, ligas deportivas y talleres deportivos  con su correspondientes ponderaciones de .3, .2, .2 y .3)",1325.7,1472,"Bimestral","Índice","0.22"," Portal Web del Municipio página de transparencia","Se dispone de personal y recursos",{"v":671689,"d":"$671,689.0"},{"v":191000,"d":"$191,000.0"},{"v":15000,"d":"$15,000.0"},{"v":0,"d":"$0.0"},{"v":0,"d":"$0.0"},{"v":0,"d":"$0.0"},{"v":0,"d":"$0.0"},{"v":0,"d":"$0.0"},{"v":0,"d":"$0.0"},{"v":877689,"d":"$877,689.0"}]
[null,null,"Actividad 7.1","Programa de mantenimiento  preventivo de unidades y áreas deportivas","PORCENTAJE de cumplimiento al programa de mantenimiento de áreas deportivas (P72-CPMAD)","Mide los avances en la ejecución del programa de mantenimiento","Eficacia","Gestión","(Cantidad de áreas y espacios establecidos para la practica del deporte y la cultura física (15) con actividades y trabajos incluidos en el programa de mantenimiento / Total de áreas y espacios establecidos para la practica del deporte y la cultura física (20) con las actividades y trabajos establecidos en el programa de mantenimiento)*100",15,20,"Mensual","Porcentaje",{"v":0.75,"d":"75%"}," Portal Web del Municipio página de transparencia","Se dispone de personal y recursos",{"v":134337.8,"d":"134,337.8"},{"v":38200,"d":"38,200.0"},{"v":3000,"d":"3,000.0"},{"v":0,"d":"0.0"},{"v":0,"d":"0.0"},{"v":0,"d":"0.0"},{"v":0,"d":"0.0"},{"v":0,"d":"0.0"},{"v":0,"d":"0.0"},{"v":175537.8,"d":"$175,537.8"},{"v":20,"d":"$20.0"}]
[null,null,"Actividad 7.2","Realizar torneos relámpago en cada comité vecinal deportivo","PORCENTAJE de cumplimiento del programa de torneos relámpago (P73-CPTR)","Mide los avances en la ejecución del programa de torneos","Eficacia","Gestión","(Cantidad de población (3000) que participa en torneos relampago -10 equipos en 15 ligas deportivas- en el municipio / Total de población (3600) que participa en torneos relampago -10 equipos en 15 ligas deportivas- en el municipio)*100",3000,3600,"Mensual","Porcentaje",{"v":0.8333,"d":"83.33%"}," Portal Web del Municipio página de transparencia","Se dispone de personal y recursos",{"v":100753.35,"d":"100,753.4"},{"v":28650,"d":"28,650.0"},{"v":2250,"d":"2,250.0"},{"v":0,"d":"0.0"},{"v":0,"d":"0.0"},{"v":0,"d":"0.0"},{"v":0,"d":"0.0"},{"v":0,"d":"0.0"},{"v":0,"d":"0.0"},{"v":131653.35,"d":"$131,653.4"},{"v":15,"d":"$15.0"}]
[null,null,"Actividad 7.3","Organizar una liga deportiva en cada comité vecinal","PORCENTAJE de avance en la organización de  ligas deportivas (P74-AOLD)","Mide el avance en la organización y funcionamiento de las ligas deportivas que incorporan población que participa en los proyectos de cultura física en el  municipio (estado).","Eficacia","Gestión","(Cantidad de población (3600) que participa en proyectos de cultura fisica -100 jovenes- y deporte -15 ligas deportivas- en el municipio / Total de población (3700) que participa en proyectos de cultura fisica y deporte en el municipio)*100",3600,3700,"Mensual","Porcentaje",{"v":0.9727,"d":"97.27%"}," Portal Web del Municipio página de transparencia","Se dispone de personal y recursos",{"v":235091.15000000002,"d":"235,091.2"},{"v":66850.00000000001,"d":"66,850.0"},{"v":5250.000000000001,"d":"5,250.0"},{"v":0,"d":"0.0"},{"v":0,"d":"0.0"},{"v":0,"d":"0.0"},{"v":0,"d":"0.0"},{"v":0,"d":"0.0"},{"v":0,"d":"0.0"},{"v":307191.1500000001,"d":"$307,191.2"},{"v":35.00000000000001,"d":"$35.0"}]
[null,null,"Actividad 7.4","Desarrollar talleres de capacitación y entrenamiento para atletas a la olimpiada nacional","PORCENTAJE de cumplimiento de talleres deportivos a atletas (P75-ATDA)","Mide los avances de ejecución de los talleres deportivos con el número de atletas jaliscienses que se integran a la selección nacional.","Eficacia","Gestión","(Cantidad de atletas y deportistas (4) que calificaron en los talleres de capacitación y entrenamiento para competir en la olimpiada nacional / Total de atletas y deportistas (20) que participan en los talleres de capacitación y entrenamiento para competir en la olimpiada nacional)*100",4,20,"Mensual","Porcentaje",{"v":0.2,"d":"20%"}," Portal Web del Municipio página de transparencia","Se dispone de personal y recursos",{"v":201506.7,"d":"201,506.7"},{"v":57300,"d":"57,300.0"},{"v":4500,"d":"4,500.0"},{"v":0,"d":"0.0"},{"v":0,"d":"0.0"},{"v":0,"d":"0.0"},{"v":0,"d":"0.0"},{"v":0,"d":"0.0"},{"v":0,"d":"0.0"},{"v":263306.7,"d":"$263,306.7"},{"v":30,"d":"$30.0"}]
[null,"Educación","Componente 8","Cobertura Educativa Ampliada","TASA de Cobertura Educativa (T8-CE)","Mide la relación de coberura educativa reflejado en el grado municipal promedio de escolaridad","Eficacia","Gestión","(Tasa de cobertura educativa básica, media y superior municipal por cada uno de los 452 alumnos que se inscriben en educacion superior en los planteles educativos en el municipio   ",452,15262,"Bimestral","Tasa","30 : 1000"," Portal Web del Municipio página de transparencia","Se dispone de personal y recursos",{"v":503225,"d":"$503,225.0"},{"v":19000,"d":"$19,000.0"},{"v":4000,"d":"$4,000.0"},{"v":0,"d":"$0.0"},{"v":0,"d":"$0.0"},{"v":0,"d":"$0.0"},{"v":0,"d":"$0.0"},{"v":0,"d":"$0.0"},{"v":0,"d":"$0.0"},{"v":526225,"d":"$526,225.0"}]
[null,null,"Actividad 8.1","Tramitar a través de la Dirección de Atención a la Infraestructura Escolar, equipamiento de escuelas.","PORCENTAJE de planteles de educación básica que participaron en el programa de infraestructura escolar (P76-CTIE)","Mide el avance en los tramites para que los planteles de educación básica sean beneficiados  en el programa de infraestructura escolar","Eficacia","Gestión","(Cantidad de planteles de educación básica  (32) -Preescolar 15, escuelas primarias 17, escuela secundaria 0- beneficiadas  con el programa de infraestructura escolar / Total planteles de educación básica (68) -Preescolar 29, escuelas primarias 31, escuelas secundaria 8- que necesitan ser beneficiadas  con el programa de infraestructura escolar)*100",32,68,"Mensual","Porcentaje",{"v":0.4705,"d":"47.05%"}," Portal Web del Municipio página de transparencia","Se dispone de personal y recursos",{"v":125806.25,"d":"125,806.3"},{"v":4750,"d":"4,750.0"},{"v":1000,"d":"1,000.0"},{"v":0,"d":"0.0"},{"v":0,"d":"0.0"},{"v":0,"d":"0.0"},{"v":0,"d":"0.0"},{"v":0,"d":"0.0"},{"v":0,"d":"0.0"},{"v":131556.25,"d":"$131,556.3"},{"v":25,"d":"$25.0"}]
[null,null,"Actividad 8.2","Llevar a todas las escuelas de nivel Superior y medio superior, programas de valores y autoestima. SEP y ORG. Part. Programa de becas.  Llevar a cabo conferencias motivacionales. Caja de herramientas contra la deserción escolar, SEMS","PORCENTAJE de cumplimiento del programa de valores, becas y disminución de la deserción escolar (P77-CPVBDDE)","Mide el cumplimiento del programa y planteles participando","Eficacia","Gestión","(Cantidad de estudiantes (1200) que participaron en los 5 programas de capacitacion y seguimiento de las escuelas de nivel Superior (1) y medio superior (6), de afiliacion federal, estatal o particular.  / Total de estudiantes (1800) que participaron en los 5 programas de capacitacion y seguimiento de las escuelas de nivel Superior (3) y medio superior (3), 1-programas de valores y autoestima. 2-Programa de becas.  3-Llevar a cabo conferencias motivacionales. 4-Caja de herramientas contra la deserción escolar. 5- SEMS. de afiliacion federal, estatal o particular)*100",1000,1400,"Mensual","Porcentaje",{"v":0.7142,"d":"71.42%"}," Portal Web del Municipio página de transparencia","Se dispone de personal y recursos",{"v":377418.75,"d":"377,418.8"},{"v":14250,"d":"14,250.0"},{"v":3000,"d":"3,000.0"},{"v":0,"d":"0.0"},{"v":0,"d":"0.0"},{"v":0,"d":"0.0"},{"v":0,"d":"0.0"},{"v":0,"d":"0.0"},{"v":0,"d":"0.0"},{"v":394668.75,"d":"$394,668.8"},{"v":75,"d":"$75.0"}]
[null,"Cultura y recreación","Componente 9","Participación en Actividades Culturales y Recreativas Incrementada","TASA de participación ciudadana en actividades culturales, recreativas y festivales  (T9-PACyD)","Mide el aumento en la participación de la ciudadania en las actividades culturales y recreativas","Eficacia","Gestión","(Tasa de participación ciudadana en actividades culturales, recreativas y festivales  por cada 1000 habitantes    ",6800,75000,"Bimestral","Tasa","90 : 1000"," Portal Web del Municipio página de transparencia","Se dispone de personal y recursos",{"v":543539,"d":"$543,539.0"},{"v":45000,"d":"$45,000.0"},{"v":4000,"d":"$4,000.0"},{"v":0,"d":"$0.0"},{"v":0,"d":"$0.0"},{"v":0,"d":"$0.0"},{"v":0,"d":"$0.0"},{"v":0,"d":"$0.0"},{"v":0,"d":"$0.0"},{"v":592539,"d":"$592,539.0"}]
[null,null,"Actividad 9.1","Desarrollar talleres de arte y danza en plazas y espacios públicos","PORCENTAJE de cumplimiento de talleres culturales (P78-CTC)","Mide los avances en la ejecución de los talleres en plazas y espacios públicos","Eficacia","Gestión","(Cantidad de talleres (6) realizados dentro del programa de arte y danza en las diferentes plazas y espacios destinados para ello en el municipio con 25 participantes en cada uno / Total  talleres (6) realizados dentro del programa de arte y danza en las diferentes plazas y espacios destinados para ello en el municipio)*100",6,6,"Mensual","Porcentaje",{"v":1,"d":"100.00%"}," Portal Web del Municipio página de transparencia","Se dispone de personal y recursos",{"v":135884.75,"d":"135,884.8"},{"v":11250,"d":"11,250.0"},{"v":1000,"d":"1,000.0"},{"v":0,"d":"0.0"},{"v":0,"d":"0.0"},{"v":0,"d":"0.0"},{"v":0,"d":"0.0"},{"v":0,"d":"0.0"},{"v":0,"d":"0.0"},{"v":148134.75,"d":"$148,134.8"},{"v":25,"d":"$25.0"}]
[null,null,"Actividad 9.2","Impartir cursos en materia de canto, música, pintura, danza etc..","PORCENTAJE de cumplimiento de cursos culturales (P79-CCC)","Mide el cumplimiento de los cursos artisticos y el capital humano artístico ocupado y empleado","Eficacia","Gestión","(Cantidad de cursos  (6) realizados dentro del programa de canto, musica, pintura y danza  en las diferentes plazas y espacios destinados para ello en el municipio con 25 participantes en cada uno  / Total cursos  (6) programados dentro del programa de canto, musica, pintura y danza  en las diferentes plazas y espacios destinados para ello en el municipio)*100",6,6,"Mensual","Porcentaje",{"v":1,"d":"100%"}," Portal Web del Municipio página de transparencia","Se dispone de personal y recursos",{"v":163061.7,"d":"163,061.7"},{"v":13500,"d":"13,500.0"},{"v":1200,"d":"1,200.0"},{"v":0,"d":"0.0"},{"v":0,"d":"0.0"},{"v":0,"d":"0.0"},{"v":0,"d":"0.0"},{"v":0,"d":"0.0"},{"v":0,"d":"0.0"},{"v":177761.7,"d":"$177,761.7"},{"v":30,"d":"$30.0"}]
[null,null,"Actividad 9.3","Realizar festivales, eventos culturales y tradiciones","PORCENTAJE de cumplimiento del programa de festivales, eventos y tradiciones (P80-CPFET)","Mide la proporción de eventos y adiestramientos culturales dirigidos a grupos prioritarios","Eficacia","Gestión","(Cantidad de eventos (13) realizados dentro del programa de festivales, culturales y tradicionales en las diferentes plazas y espacios destinados para ello en el municipio con 500 participantes en cada uno  / Total de eventos (13) realizados dentro del programa de festivales, culturales y tradicionales en las diferentes plazas y espacios destinados para ello en el municipio)*100",13,13,"Mensual","Porcentaje",{"v":1,"d":"100.00%"}," Portal Web del Municipio página de transparencia","Se dispone de personal y recursos",{"v":244592.55,"d":"244,592.6"},{"v":20250,"d":"20,250.0"},{"v":1800,"d":"1,800.0"},{"v":0,"d":"0.0"},{"v":0,"d":"0.0"},{"v":0,"d":"0.0"},{"v":0,"d":"0.0"},{"v":0,"d":"0.0"},{"v":0,"d":"0.0"},{"v":266642.55,"d":"$266,642.6"},{"v":45,"d":"$45.0"}]
[null,"Servicios públicos","Componente 10","Tasa de Urbanización Incrementada","TASA de urbanización (T10-U)","Mide la relación de ideal minima de equipamiento en centros de población","Eficacia","Gestión","(Tasa de servicios e infraestructura atendidos en los fracionamientos por cada 10 esteblecidos en los respectivos programas   ",13,18,"Bimestral","Tasa","7 : 10"," Portal Web del Municipio página de transparencia","Se dispone de personal y recursos",{"v":1691200,"d":"$1,691,200.0"},{"v":1345993,"d":"$1,345,993.0"},{"v":173000,"d":"$173,000.0"},{"v":0,"d":"$0.0"},{"v":0,"d":"$0.0"},{"v":0,"d":"$0.0"},{"v":0,"d":"$0.0"},{"v":0,"d":"$0.0"},{"v":6000000,"d":"$6,000,000.0"},{"v":9210193,"d":"$9,210,193.0"}]
[null,null,"Actividad 10.1","Elaborar el programa de servicios básicos necesarios por fraccionamiento","PORCENTAJE de avance del programa de servicios básicos por fraccionamiento (P81-APSBF)","Mide el avance en el programa de servicios básicos necesarios en fraccionamientos","Eficacia","Gestión","(Cantidad de variables (5) a atendidas dentro del programa de servicios básicos necesarios en fraccionamientos / Total de variables (8) a considerar dentro del programa de servicios básicos necesarios en fraccionamientos)*100",5,8,"Mensual","Porcentaje",{"v":0.625,"d":"62.50%"}," Portal Web del Municipio página de transparencia","Se dispone de personal y recursos",{"v":1014720,"d":"1,014,720.0"},{"v":807595.8,"d":"807,595.8"},{"v":103800,"d":"103,800.0"},{"v":0,"d":"0.0"},{"v":0,"d":"0.0"},{"v":0,"d":"0.0"},{"v":0,"d":"0.0"},{"v":0,"d":"0.0"},{"v":3600000,"d":"3,600,000.0"},{"v":5526115.8,"d":"$5,526,115.8"},{"v":60,"d":"$60.0"}]
[null,null,"Actividad 10.2","Elaborar el programa de infraestructura necesaria por fraccionamiento","PORCENTAJE de avance del programa de infraestructura por fraccionamiento (P82-APIF)","Mide el avance en el programa de infraestructura básica necesaria en fraccionamientos","Eficacia","Gestión","(Cantidad de variables (8) a atendidas dentro del programa de infraestructura en fraccionamientos / Total de variables (10) a considerar dentro del programa de infraestructura en fraccionamientos)*100",8,10,"Mensual","Porcentaje",{"v":0.8,"d":"80%"}," Portal Web del Municipio página de transparencia","Se dispone de personal y recursos",{"v":676480,"d":"676,480.0"},{"v":538397.2,"d":"538,397.2"},{"v":69200,"d":"69,200.0"},{"v":0,"d":"0.0"},{"v":0,"d":"0.0"},{"v":0,"d":"0.0"},{"v":0,"d":"0.0"},{"v":0,"d":"0.0"},{"v":2400000,"d":"2,400,000.0"},{"v":3684077.2,"d":"$3,684,077.2"},{"v":40,"d":"$40.0"}]
[null,"Cementerios","Componente 11","Satisfacción en Servicios de Cementerios Incrementada","INDICE de satisfacción en el servicios de cementerios (V1-SSC)","Mide el nivel de satisfaccion de la ciudadania que acude a los cementerios ","Eficacia","Gestión","(valor resultante de sumar los valores individuales  de  los cosientes entre sus denominadores por su ponderacion asignada, que miden las  variables de: actividades y reorganización, ampliacion servicios y difusión reglamento con su correspondientes ponderaciones de .3, .4, y .3)",883,2813.6,"Bimestral","Índice",0.31," Portal Web del Municipio página de transparencia","Se dispone de personal y recursos",{"v":189494,"d":"$189,494.0"},{"v":32000,"d":"$32,000.0"},{"v":6000,"d":"$6,000.0"},{"v":0,"d":"$0.0"},{"v":0,"d":"$0.0"},{"v":0,"d":"$0.0"},{"v":0,"d":"$0.0"},{"v":0,"d":"$0.0"},{"v":0,"d":"$0.0"},{"v":227494,"d":"$227,494.0"}]
[null,null,"Actividad 11.1","Programa de actividades y reorganización administrativa de los cementerios","PORCENTAJE de avance del programa administrativo de cementerios (P83-APAC)","Mide el avance en el programa de actividades para el cementerio","Eficacia","Gestión","(Cantidad de actividades administrativas y organizacionales a desarrolladas dentro del programa anual de trabajo (8) / Total de actividades administrativas y organizacionales a desarrollar dentro del programa anual de trabajo (12) )*100",10,12,"Mensual","Porcentaje",{"v":0.8333,"d":"83.33%"}," Portal Web del Municipio página de transparencia","Se dispone de personal y recursos",{"v":37898.8,"d":"37,898.8"},{"v":6400.000000000001,"d":"6,400.0"},{"v":1200.0000000000002,"d":"1,200.0"},{"v":0,"d":"0.0"},{"v":0,"d":"0.0"},{"v":0,"d":"0.0"},{"v":0,"d":"0.0"},{"v":0,"d":"0.0"},{"v":0,"d":"0.0"},{"v":45498.80000000001,"d":"$45,498.8"},{"v":20.000000000000004,"d":"$20.0"}]
[null,null,"Actividad 11.2","Programa de ampliación de red de alumbrado y agua potable en los panteones municipales","PORCENTAJE de implementación del programa de alumbrado y agua potable en cementerios (P84-IPAAPC)","Mide el cumplimiento del programa de servicios en los cementerios","Eficacia","Gestión","(Cantidad de metros lineales ampliados en la red de alumbrado publico (300) y agua potable (400) dentro del programa de ampliación de las instalaciones de los panteones municipales  / Total de metros lineales necesarios de ampliar en la red de alumbrado publico (600) y agua potable (800) dentro de las instalaciones de los panteones municipales)*100",700,1400,"Mensual","Porcentaje",{"v":0.5,"d":"50%"}," Portal Web del Municipio página de transparencia","Se dispone de personal y recursos",{"v":132645.8,"d":"132,645.8"},{"v":22400,"d":"22,400.0"},{"v":4200,"d":"4,200.0"},{"v":0,"d":"0.0"},{"v":0,"d":"0.0"},{"v":0,"d":"0.0"},{"v":0,"d":"0.0"},{"v":0,"d":"0.0"},{"v":0,"d":"0.0"},{"v":159245.8,"d":"$159,245.8"},{"v":70,"d":"$70.0"}]
[null,null,"Actividad 11.3","Programa de difusión del reglamento municipal a los propietarios y ciudadanía en general.","PORCENTAJE de cumplimiento del programa de difusión del reglamento de cementerios (P85-CPDRC)","Mide el nivel de conocimiento por la ciudadania del reglamento de cementerios","Eficacia","Gestión","(Cantidad de familias (2000) que cuentan con espacios ocupados en los cementerios municipales y familias de la pobalcion municipal que pueden participar en el programa de difusion del reglamento de cementerios y que les  puede interesar conocer  el uso y aplicación / Total de familias (7500) que radican en el territorio municipal que pueden ocupar espcios en los cementerios municipales  que les puede interesar conocer el reglamento de cementerios municipal  sobre el uso y aplicación )*100",2000,7500,"Mensual","Porcentaje",{"v":0.2666,"d":"26.66%"}," Portal Web del Municipio página de transparencia","Se dispone de personal y recursos",{"v":18949.4,"d":"18,949.4"},{"v":3200.0000000000005,"d":"3,200.0"},{"v":600.0000000000001,"d":"600.0"},{"v":0,"d":"0.0"},{"v":0,"d":"0.0"},{"v":0,"d":"0.0"},{"v":0,"d":"0.0"},{"v":0,"d":"0.0"},{"v":0,"d":"0.0"},{"v":22749.400000000005,"d":"$22,749.4"},{"v":10.000000000000002,"d":"$10.0"}]
[null,"DIF","Componente 12","Atención en el Dif Incrementada","ÍNDICE de atención en el DIF municipal (T11-ADIFM)","Mide la relación en la atención a la ciudadania que solicita apoyo","Eficacia","Gestión","(valor resultante de sumar los valores individuales  de  los cosientes entre sus denominadores por su ponderacion asignada, que miden las  variables de: transparencia de información, ampliacion horario, atencion familiar y capacitación laboral con su correspondientes ponderaciones de .2, .2, .3,  y .3)",216.6,241,"Bimestral","Índice","0.898"," Portal Web del Municipio página de transparencia","Se dispone de personal y recursos",{"v":0,"d":"$0.0"},{"v":0,"d":"$0.0"},{"v":0,"d":"$0.0"},{"v":4520000,"d":"$4,520,000.0"},{"v":0,"d":"$0.0"},{"v":0,"d":"$0.0"},{"v":0,"d":"$0.0"},{"v":0,"d":"$0.0"},{"v":0,"d":"$0.0"},{"v":4520000,"d":"$4,520,000.0"}]
[null,null,"Actividad 12.1","Mantener y actualizado el portal web de transparencia con la información pública fundamental, Atender las solicitudes de información solicitadas por transparencia ","PORCENTAJE de actualización del portal Web de transparencia DIF (P86-APWTD)","Mide el cumplimiento en la actualizacion de la información en las plataformas de transparencia","Eficacia","Gestión","(Cantidad de solicitudes de informacion (432) que se reciben en la direccion municipal de transparencia a traves de los diferentes mecanismos para atender a la ciudadania y que se dictaminen positivamente/ Total de solicitudes de informacion (450) que se reciben en la direccion municipal de transparencia a traves de los diferentes mecanismos para atender a la ciudadania)*100",432,450,"Mensual","Porcentaje",{"v":0.96,"d":"96.00%"}," Portal Web del Municipio página de transparencia","Se dispone de personal y recursos",{"v":0,"d":"0.0"},{"v":0,"d":"0.0"},{"v":0,"d":"0.0"},{"v":452000,"d":"452,000.0"},{"v":0,"d":"0.0"},{"v":0,"d":"0.0"},{"v":0,"d":"0.0"},{"v":0,"d":"0.0"},{"v":0,"d":"0.0"},{"v":452000,"d":"$452,000.0"},{"v":10,"d":"$10.0"}]
[null,null,"Actividad 12.2","Mejorar la atención a las familias mediante la ampliación de horario de atención y talleres de prevención ","PORCENTAJE de ampliación de horario y talleres realizados (P87-AHTR)","Mide el incremento en la atención a las familias con el incremento de horario y talleres de capacitación","Eficacia","Gestión","(Cantidad de familias (444) que se han podido atender con las (56) horas adicionales mensuales para mejorar la atencion mediante la ampliación de horario de atención y capacitación / Total de  familias (500) que se espera atender con la ampliación de horario de atención y capacitación)*100",444,500,"Mensual","Porcentaje",{"v":0.888,"d":"88.80%"}," Portal Web del Municipio página de transparencia","Se dispone de personal y recursos",{"v":0,"d":"0.0"},{"v":0,"d":"0.0"},{"v":0,"d":"0.0"},{"v":678000,"d":"678,000.0"},{"v":0,"d":"0.0"},{"v":0,"d":"0.0"},{"v":0,"d":"0.0"},{"v":0,"d":"0.0"},{"v":0,"d":"0.0"},{"v":678000,"d":"$678,000.0"},{"v":15,"d":"$15.0"}]
[null,null,"Actividad 12.3","Programa de atención de solicitudes de apoyo a familias y personas con algún tipo de vulnerabilidad  relacionadas a la salud, discapacidad, medidas de protección, atención jurídica y/o psicológica, etc.","PORCENTAJE de atención a solicitudes recibidas (P88-ASR)","Mide el incremento en la atención a la ciudadania y familias en situacion  vulnerable","Eficacia","Gestión","(Cantidad de ciudadanos, familias y personas con algún tipo de vulnerabilidad  relacionadas a la salud, discapacidad, medidas de protección, atención jurídica y/o psicológica (130) que solicitan apoyo mensualmente y se les puede otorgar / Total de de ciudadanos, familias y personas con algún tipo de vulnerabilidad  relacionadas a la salud, discapacidad, medidas de protección, atención jurídica y/o psicológica (160) que solicitan apoyo mensualmente)*100",130,160,"Mensual","Porcentaje",{"v":0.8125,"d":"81.25%"}," Portal Web del Municipio página de transparencia","Se dispone de personal y recursos",{"v":0,"d":"0.0"},{"v":0,"d":"0.0"},{"v":0,"d":"0.0"},{"v":2486000,"d":"2,486,000.0"},{"v":0,"d":"0.0"},{"v":0,"d":"0.0"},{"v":0,"d":"0.0"},{"v":0,"d":"0.0"},{"v":0,"d":"0.0"},{"v":2486000,"d":"$2,486,000.0"},{"v":55,"d":"$55.0"}]
[null,null,"Actividad 12.4","Apoyo en la gestión de ofertas laborales, capacitación laboral, fomentar cultura de emprendimiento y procesos que les ayuden a mejorar su condición.","PORCENTAJE de gestiones exitosas (P89-GE)","Mide el incremento en la solicitud de apoyo para encontrar una actividad laboral","Eficacia","Gestión","(Cantidad de ciudadanos (8) que logra colocar el DIF mensualmente en un empleo despues de recibir una capacitacion para encontrar un empleo personal / Total de ciudadanos (10) que acuden mensualmente al DIF a solicitar apoyo para conseguir una capacitacion para encontrar un empleo personal)*100",8,10,"Mensual","Porcentaje",{"v":0.8,"d":"80%"}," Portal Web del Municipio página de transparencia","Se dispone de personal y recursos",{"v":0,"d":"0.0"},{"v":0,"d":"0.0"},{"v":0,"d":"0.0"},{"v":904000,"d":"904,000.0"},{"v":0,"d":"0.0"},{"v":0,"d":"0.0"},{"v":0,"d":"0.0"},{"v":0,"d":"0.0"},{"v":0,"d":"0.0"},{"v":904000,"d":"$904,000.0"},{"v":20,"d":"$20.0"}]
[null,"Atención ciudadana","Componente 13","Atención Ciudadana Incrementada","TASA de atención ciudadana (T12-AC)","Mide el aumento en la relación de solicitudes de atencion a la ciudadania","Eficacia","Gestión","(Tasa de solicitudes recibidas y dirigidas a la direccion que atienede el tema relacionado y resueltas satisfactoriamente por cada 100 solicitudes     ",144,180,"Bimestral","Tasa","80 : 100"," Portal Web del Municipio página de transparencia","Se dispone de personal y recursos",{"v":188295,"d":"$188,295.0"},{"v":26000,"d":"$26,000.0"},{"v":4000,"d":"$4,000.0"},{"v":0,"d":"$0.0"},{"v":0,"d":"$0.0"},{"v":0,"d":"$0.0"},{"v":0,"d":"$0.0"},{"v":0,"d":"$0.0"},{"v":0,"d":"$0.0"},{"v":218295,"d":"$218,295.0"}]
[null,null,"Actividad 13.1","Eficientizar el programa adaptado en la nube para la pronta atención de los reportes recibidos.","PORCENTAJE de atención concluida a reportes recibidos (P90-ACRR)","Mide el incremento en la conclusion exitosa de solicitudes de apoyo ","Eficacia","Gestión","(Cantidad de solicitudes y reportes de apoyo  (15) recibidas en la direccion de atencion a la ciudadania por mes y colocadas en el programa adaptado en la nube para su seguimiento y resolución por la direccion directamente involucrada en el transcurso de dicho mes / Total de solicitudes y reportes de apoyo  (15) recibidas en la direccion de atencion a la ciudadania por mes y que se a dado puntual seguimiento a su solución por la direccion directamente involucrada)*100",15,15,"Mensual","Porcentaje",{"v":1,"d":"100.00%"}," Portal Web del Municipio página de transparencia","Se dispone de personal y recursos",{"v":188295,"d":"188,295.0"},{"v":26000,"d":"26,000.0"},{"v":4000,"d":"4,000.0"},{"v":0,"d":"0.0"},{"v":0,"d":"0.0"},{"v":0,"d":"0.0"},{"v":0,"d":"0.0"},{"v":0,"d":"0.0"},{"v":0,"d":"0.0"},{"v":218295,"d":"$218,295.0"},{"v":100,"d":"$100.0"}]
[null,"Participación ciudadana","Componente 14","Participación Ciudadana Incrementada","TASA de participación ciudadana (T13-PC)","Mide la relacion de participación de la ciudadania en lo que se quiere comunicar","Eficacia","Gestión","(Tasa de ciudadanos que participan en las sesiones de los comites vecinales para atender el plan anual de sesiones  por cada consejero    ",300,35,"Bimestral","Tasa","8.5 : 1"," Portal Web del Municipio página de transparencia","Se dispone de personal y recursos",{"v":223412,"d":"$223,412.0"},{"v":14000,"d":"$14,000.0"},{"v":4000,"d":"$4,000.0"},{"v":0,"d":"$0.0"},{"v":0,"d":"$0.0"},{"v":0,"d":"$0.0"},{"v":0,"d":"$0.0"},{"v":0,"d":"$0.0"},{"v":0,"d":"$0.0"},{"v":241412,"d":"$241,412.0"}]
[null,null,"Actividad 14.1","Coordinar el programa anual de sesiones del Consejo de Participación Ciudadana.","PORCENTAJE de cumplimiento del programa anual de sesiones del CPC (P91-CPASC)","Mide la participación de los integrantes de los consejo de participación ciudadana en el programa anual de sesiones","Eficacia","Gestión","(Cantidad de sesiones (20) entre los (5) consejos vecinales ciudadanos en los que se aborda plan  anual de visitas trimestrales respecto a temas de importancia  y capacitación sobre los beneficios de la participación ciudadana / Total de sesiones (20) entre los (5) consejos vecinales ciudadanos en los que se aborda plan  anual de visitas bimestral respecto a temas de importancia  y capacitación sobre los beneficios de la participación ciudadana)*100",20,20,"Mensual","Porcentaje",{"v":1,"d":"100.00%"}," Portal Web del Municipio página de transparencia","Se dispone de personal y recursos",{"v":89364.8,"d":"89,364.8"},{"v":5600,"d":"5,600.0"},{"v":1600,"d":"1,600.0"},{"v":0,"d":"0.0"},{"v":0,"d":"0.0"},{"v":0,"d":"0.0"},{"v":0,"d":"0.0"},{"v":0,"d":"0.0"},{"v":0,"d":"0.0"},{"v":96564.8,"d":"$96,564.8"},{"v":40,"d":"$40.0"}]
[null,null,"Actividad 14.2","Plan de visitas a las localidades para impartir cursos de orientación y los beneficios de la participación ciudadana.","PORCENTAJE de cumplimiento del plan de visitas (P92-CPV)","Mide el nivel de participación en el plan de visitas","Eficacia","Gestión","(Cantidad de ciudadanos (270) del municipio que atienden el plan  anual de visitas trimestral en los 5  comites vecinales para capacitación sobre los beneficios de la participación ciudadana / Total de ciudadanos (300) del municipio que atienden el plan  anual de visitas bimestral para capacitación sobre los beneficios de la participación ciudadana)*100",270,300,"Mensual","Porcentaje",{"v":0.9,"d":"90%"}," Portal Web del Municipio página de transparencia","Se dispone de personal y recursos",{"v":134047.2,"d":"134,047.2"},{"v":8400.000000000002,"d":"8,400.0"},{"v":2400.0000000000005,"d":"2,400.0"},{"v":0,"d":"0.0"},{"v":0,"d":"0.0"},{"v":0,"d":"0.0"},{"v":0,"d":"0.0"},{"v":0,"d":"0.0"},{"v":0,"d":"0.0"},{"v":144847.2,"d":"$144,847.2"},{"v":60.00000000000001,"d":"$60.0"}]
[null,"Servicios médicos","Componente 15","Calidad en Servicios de Salud Incrementada","INDICE de atención y calidad en los servicios de salud (T14-ASS) (T14-ASS)","Mide el nivel de satisfacción en los servicios de salud ofrecidos en el municipio por los SS","Eficacia","Gestión","(valor resultante de sumar los valores individuales  de  los cosientes entre sus denominadores por su ponderacion asignada, que miden las  variables de: participacion trabajadores, gestiones médicas, satisfaccion beneficiarios, personal y paramédicos con su correspondientes ponderaciones de .2, .3, .2,  y .3)",98.7,143.6,"Bimestral","Índice",0.68," Portal Web del Municipio página de transparencia","Se dispone de personal y recursos",{"v":1909015,"d":"$1,909,015.0"},{"v":1488500,"d":"$1,488,500.0"},{"v":63000,"d":"$63,000.0"},{"v":0,"d":"$0.0"},{"v":0,"d":"$0.0"},{"v":0,"d":"$0.0"},{"v":0,"d":"$0.0"},{"v":0,"d":"$0.0"},{"v":0,"d":"$0.0"},{"v":3460515,"d":"$3,460,515.0"}]
[null,null,"Actividad 15.1","Coordinar la participación de los  trabajadores del Ayuntamiento en la seguridad social.","PORCENTAJE de participación de trabajadores en SS (P93-PTSS)","Mide la participación de los empleados de la administración municipal en los servicios de SS","Eficacia","Gestión","(Cantidad de emplados del ayuntamiento municipal (400) que hacen uso y participan de los servicios de seguridad social / Total de  emplados  (600) del ayuntamiento municipal que hacen uso y participan de los servicios de seguridad social)*100",400,600,"Mensual","Porcentaje",{"v":0.75,"d":"75.00%"}," Portal Web del Municipio página de transparencia","Se dispone de personal y recursos",{"v":763606,"d":"763,606.0"},{"v":595400,"d":"595,400.0"},{"v":25200,"d":"25,200.0"},{"v":0,"d":"0.0"},{"v":0,"d":"0.0"},{"v":0,"d":"0.0"},{"v":0,"d":"0.0"},{"v":0,"d":"0.0"},{"v":0,"d":"0.0"},{"v":1384206,"d":"$1,384,206.0"},{"v":40,"d":"$40.0"}]
[null,null,"Actividad 15.2","Gestionar la creación de área de hemodiálisis,  cubículo de choque y programa de capacitación  a 5 médicos y 5 enfermeras ","PORCENTAJE de cumplimiento de las gestiones médicas (P94-CGM)","Mide los avances en las gestiones para mejorar la atención médica municipal","Eficacia","Gestión","(Cantidad de gestiones (3) necesarias para mejorar la infraestructura de atención y capacidades del personal que labora en ellos / Total de proyectos (3) que nececitan gestiones y financiamiento para mejorar los servicios de salud )*100",3,3,"Mensual","Porcentaje",{"v":1,"d":"100%"}," Portal Web del Municipio página de transparencia","Se dispone de personal y recursos",{"v":477253.75,"d":"477,253.8"},{"v":372125,"d":"372,125.0"},{"v":15750,"d":"15,750.0"},{"v":0,"d":"0.0"},{"v":0,"d":"0.0"},{"v":0,"d":"0.0"},{"v":0,"d":"0.0"},{"v":0,"d":"0.0"},{"v":0,"d":"0.0"},{"v":865128.75,"d":"$865,128.8"},{"v":25,"d":"$25.0"}]
[null,null,"Actividad 15.3","Elaborar mecanismos que permitan medir la satisfacción de los beneficiarios y la proporción de la reducción de costos por el servicio","PORCENTAJE de desarrollo y medición de satisfacción de beneficiarios (P95-DMSB)","Mide la satisfaccion de los beneficiarios en los servicios de SS","Eficacia","Gestión","(Cantidad de ciudadanos encuestados (80) durante el mes y resueltos como satisfechos del servicio recibido / Total de  ciudadanos (100) que solicitaron los servicios de salud por mes )*100",80,100,"Mensual","Porcentaje",{"v":0.8,"d":"80.00%"}," Portal Web del Municipio página de transparencia","Se dispone de personal y recursos",{"v":286352.25,"d":"286,352.3"},{"v":223275,"d":"223,275.0"},{"v":9450,"d":"9,450.0"},{"v":0,"d":"0.0"},{"v":0,"d":"0.0"},{"v":0,"d":"0.0"},{"v":0,"d":"0.0"},{"v":0,"d":"0.0"},{"v":0,"d":"0.0"},{"v":519077.25,"d":"$519,077.3"},{"v":15,"d":"$15.0"}]
[null,null,"Actividad 15.4","Ampliar el personal y la atención de paramédicos en los centros de salud","PORCENTAJE de ampliación de personal en centros de salud (P96-APCS)","Mide el incremento de personal para la atencion a la ciudadania en los Centros de Salud","Eficacia","Gestión","(Cantidad de personal (6) nuevo que se integra para fortalecer los servicios municipales de salud  / Total de  personal (9) que ya labora en los  servicios municipales de salud)*100",6,9,"Mensual","Porcentaje",{"v":0.6666,"d":"66.66%"}," Portal Web del Municipio página de transparencia","Se dispone de personal y recursos",{"v":381803,"d":"381,803.0"},{"v":297700,"d":"297,700.0"},{"v":12600,"d":"12,600.0"},{"v":0,"d":"0.0"},{"v":0,"d":"0.0"},{"v":0,"d":"0.0"},{"v":0,"d":"0.0"},{"v":0,"d":"0.0"},{"v":0,"d":"0.0"},{"v":692103,"d":"$692,103.0"},{"v":20,"d":"$20.0"}]
[null,"Agencias municipales","Componente 16","Atención en Agencias Incrementada","TASA de atención en Agencias (T15-AA)","Mide el incremento en la atencion a la ciudadania en las agencias municipales","Eficacia","Gestión","(Tasa de ciudadanos atendidos y/o consultados respecto a los servicios en supervicion de los delegados municipales por  cada 100 habitantes    ",60,100,"Bimestral","Tasa","60:100"," Portal Web del Municipio página de transparencia","Se dispone de personal y recursos",{"v":2917484,"d":"$2,917,484.0"},{"v":43000,"d":"$43,000.0"},{"v":7702818,"d":"$7,702,818.0"},{"v":300000,"d":"$300,000.0"},{"v":0,"d":"$0.0"},{"v":0,"d":"$0.0"},{"v":0,"d":"$0.0"},{"v":0,"d":"$0.0"},{"v":0,"d":"$0.0"},{"v":10963302,"d":"$10,963,302.0"}]
[null,null,"Actividad 16.1","Programa de atención a la normatividad local y actividades asignadas en agencias.","PORCENTAJE de cumplimiento del programa de agencias (P97-CPA)","Mide el cumplimiento de las atribuciones de los agentes para atender a la ciudadania","Eficacia","Gestión","(Cantidad de articulos (6) del reglamento de gobierno y la administracion pública municipal que deberan atender los delegados municipales  / Total de  articulos (14) que deberan atender en el capitulo VII del raglamento de gobierno y la administración pública municipal)*100",6,14,"Mensual","Porcentaje",{"v":0.43,"d":"43.00%"}," Portal Web del Municipio página de transparencia","Se dispone de personal y recursos",{"v":2917484,"d":"2,917,484.0"},{"v":43000,"d":"43,000.0"},{"v":7702818,"d":"7,702,818.0"},{"v":300000,"d":"300,000.0"},{"v":0,"d":"0.0"},{"v":0,"d":"0.0"},{"v":0,"d":"0.0"},{"v":0,"d":"0.0"},{"v":0,"d":"0.0"},{"v":10963302,"d":"$10,963,302.0"},{"v":100,"d":"$100.0"}]
[null,"Delegaciones municipales","Componente 17","Atención en Delegaciones Incrementada","TASA de atención en Delegaciones (T16-AD)","Mide el incremento en la atencion a la ciudadania en las delegaciones municipales","Eficacia","Gestión","(Tasa de ciudadanos atendidos y/o consultados respecto a los servicios en supervicion de los delegados municipales por  cada 100 habitantes    ",60,100,"Bimestral","Tasa","60:100"," Portal Web del Municipio página de transparencia","Se dispone de personal y recursos",{"v":2023784,"d":"$2,023,784.0"},{"v":73000,"d":"$73,000.0"},{"v":7702827,"d":"$7,702,827.0"},{"v":200000,"d":"$200,000.0"},{"v":0,"d":"$0.0"},{"v":0,"d":"$0.0"},{"v":0,"d":"$0.0"},{"v":0,"d":"$0.0"},{"v":0,"d":"$0.0"},{"v":9999611,"d":"$9,999,611.0"}]
[null,null,"Actividad 17.1","Programa de atención a la normatividad local y actividades asignadas en delegaciones.","PORCENTAJE de cumplimiento del programa de delegaciones (P98-CPD)","Mide el cumplimiento de las atribuciones de los delegados para atender a la ciudadania","Eficacia","Gestión","(Cantidad de articulos (8) del reglamento de gobierno y la administracion pública municipal que deberan atender los delegados municipales  / Total de  articulos (14) que deberan atender en el capitulo VII del raglamento de gobierno y la administración pública municipal)*100",8,14,"Mensual","Porcentaje",{"v":0.57,"d":"57.00%"}," Portal Web del Municipio página de transparencia","Se dispone de personal y recursos",{"v":2023784,"d":"2,023,784.0"},{"v":73000,"d":"73,000.0"},{"v":7702827,"d":"7,702,827.0"},{"v":200000,"d":"200,000.0"},{"v":0,"d":"0.0"},{"v":0,"d":"0.0"},{"v":0,"d":"0.0"},{"v":0,"d":"0.0"},{"v":0,"d":"0.0"},{"v":9999611,"d":"$9,999,611.0"},{"v":100,"d":"$100.0"}]
[null,"Comunicación social","Componente 18","Cobertura en Comunicación Social Incrementada","TASA de cobertura en materia de comunicación social (T17-CMCS)","Mide la relacion de ciudadanos informados de los temas que el ayuntamiento quiere comunicar ","Eficacia","Gestión","(Tasa de ciudadanos informados de los diferentes eventos y acciones del gobierno municipal  como resultado del programa de estrategias de comunicación esteblecido por  cada 100 habitantes    ",225,250,"Bimestral","Tasa","90:100"," Portal Web del Municipio página de transparencia","Se dispone de personal y recursos",{"v":535459,"d":"$535,459.0"},{"v":210000,"d":"$210,000.0"},{"v":9000,"d":"$9,000.0"},{"v":0,"d":"$0.0"},{"v":0,"d":"$0.0"},{"v":0,"d":"$0.0"},{"v":0,"d":"$0.0"},{"v":0,"d":"$0.0"},{"v":0,"d":"$0.0"},{"v":754459,"d":"$754,459.0"}]
[null,null,"Actividad 17.1","Generar un programa de estrategias de comunicación masiva en diferentes canales informativos.","PORCENTAJE de cumplimiento del programa de comunicación social (P99-CPCS)","Mide los avances en la implementacion del programa de estrategias de comunicación masiva a la ciudadania","Eficacia","Gestión","(Cantidad de eventos (200) publicitados en las 5 estrategias (5, Periodico (25), periodico mural(50), Sítio Web del Municipio(25), Facebook(50), páguina de transparencia (50)) establecidas en el programa de comunicacion social / Total de  eventos (200) publicitados a traves de los diferentes espacios y estratgias de comunicación social)*100",200,200,"Mensual","Porcentaje",{"v":1,"d":"100.00%"}," Portal Web del Municipio página de transparencia","Se dispone de personal y recursos",{"v":321275.4,"d":"321,275.4"},{"v":126000,"d":"126,000.0"},{"v":5400,"d":"5,400.0"},{"v":0,"d":"0.0"},{"v":0,"d":"0.0"},{"v":0,"d":"0.0"},{"v":0,"d":"0.0"},{"v":0,"d":"0.0"},{"v":0,"d":"0.0"},{"v":452675.4,"d":"$452,675.4"},{"v":60,"d":"$60.0"}]
[null,null,"Actividad 17.2","Asistir y apoyar en cada uno de los eventos a realizar.","PORCENTAJE de cumplimiento del programa de eventos (P100-CPE)","Mide el nivel de participación de la direccion en los eventos realizados ","Eficacia","Gestión","(Cantidad de eventos (25) organizados con la participación de comunicacion social  / Total de  eventos (50) organizados por las diferentes direcciones de la administración municipal)*100",25,50,"Mensual","Porcentaje",{"v":0.5,"d":"50%"}," Portal Web del Municipio página de transparencia","Se dispone de personal y recursos",{"v":214183.59999999998,"d":"214,183.6"},{"v":83999.99999999999,"d":"84,000.0"},{"v":3599.9999999999995,"d":"3,600.0"},{"v":0,"d":"0.0"},{"v":0,"d":"0.0"},{"v":0,"d":"0.0"},{"v":0,"d":"0.0"},{"v":0,"d":"0.0"},{"v":0,"d":"0.0"},{"v":301783.6,"d":"$301,783.6"},{"v":39.99999999999999,"d":"$40.0"}]
[]
[null,"Economía (padrón y licencias)","Componente 1","Recaudación Municipal Incrementada","ÍNDICE de ingresos por licencias municipales (I1-IILM)","Mide el incremento en la recaudación municipal por contribuciones cumplidos por la expedixion de licencias ","Eficacia","Gestión","(valor resultante de sumar los valores individuales  de  los cosientes entre sus denominadores por su ponderacion asignada, que miden las  variables de: dictamen ejecutivo, deteccion de capacidades, organizacion de padron, plan de empadronamiento e impulso la economia  con su correspondientes ponderaciones de .2, .1, .2, .2,  y .3)",54.1,142.6,"Bimestral","Índice","0.38"," Portal Web del Municipio página de transparencia","Se dispone de personal y recursos",{"v":326061,"d":"$326,061.0"},{"v":36000,"d":"$36,000.0"},{"v":6000,"d":"$6,000.0"},{"v":0,"d":"$0.0"},{"v":0,"d":"$0.0"},{"v":0,"d":"$0.0"},{"v":0,"d":"$0.0"},{"v":0,"d":"$0.0"},{"v":0,"d":"$0.0"},{"v":368061,"d":"$368,061.0"}]
[null,null,"Actividad 1.1","Acelerar el análisis y dictamen para la expedición de licencias municipales que impulsen el empleo","PORCENTAJE de licencias municipales que impulsan el empleo (P101-LMIE)","Mide la cantidad de licencias municipales que fomentan el empleo permamente","Eficacia","Gestión","(Cantidad de actividades a desarrollar para establecer el procedimiento ejecutivo de revision, autorizacion o renovación de licencias municipales que fomentan el empleo formal  (10) y las que se encuentran en el empleo informal  (8) / Total de  actividades a desarrollar para establecer el procedimiento ejecutivo de revision, autorizacion o renovación de licencias municipales que fomentan el empleo formal  (10) y las que se encuentran en el empleo informal  (8) )*100",18,18,"Mensual","Porcentaje",1," Portal Web del Municipio página de transparencia","Se dispone de personal y recursos",{"v":65212.2,"d":"65,212.2"},{"v":7200,"d":"7,200.0"},{"v":1200,"d":"1,200.0"},{"v":0,"d":"0.0"},{"v":0,"d":"0.0"},{"v":0,"d":"0.0"},{"v":0,"d":"0.0"},{"v":0,"d":"0.0"},{"v":0,"d":"0.0"},{"v":73612.2,"d":"$73,612.2"},{"v":20,"d":"$20.0"}]
[null,null,"Actividad 1.2","Apoyar la detección de necesidades de capacidades desde la solicitud de licencias para enriquecer la gestión financiera del centro economico","PORCENTAJE de cumplimiento del programa de detección de necesidades (P102-CPDN)","Mide el avance en el diagnostico para detectar necesidades de capacitación","Eficacia","Gestión","(Cantidad de actividades (15) a desarrollar para detectar necesidades y elaborar  un programa de capacitacion desde la solicitud de licencia municipal por giro y de esta manera enriquecer la gestión financiera del centro economico/ Total de    actividades (15) a desarrollar para detectar necesidades de capacitacion desde la solicitud de licencia municipal por giro y de esta manera enriquecer la gestión financiera del centro economico )*100",15,15,"Mensual","Porcentaje",{"v":1,"d":"100%"}," Portal Web del Municipio página de transparencia","Se dispone de personal y recursos",{"v":48909.15,"d":"48,909.2"},{"v":5400,"d":"5,400.0"},{"v":900,"d":"900.0"},{"v":0,"d":"0.0"},{"v":0,"d":"0.0"},{"v":0,"d":"0.0"},{"v":0,"d":"0.0"},{"v":0,"d":"0.0"},{"v":0,"d":"0.0"},{"v":55209.15,"d":"$55,209.2"},{"v":15,"d":"$15.0"}]
[null,null,"Actividad 1.3","Organizar el padrón de licencias municipales otorgados por giro, calles y tipo de establecimiento ","PORCENTAJE de avance en el padrón de licencias (P103-APL)","Mide el avance en organizar el padron","Eficacia","Gestión","(Cantidad de actividades (10) a desarrollar para organizar el padrón de licencias municipales otorgados por giro, calles y tipo de establecimiento  / Total de   actividades (10) a desarrollar para organizar el padrón de licencias municipales otorgados por giro, calles y tipo de establecimiento )*100",10,10,"Mensual","Porcentaje",1," Portal Web del Municipio página de transparencia","Se dispone de personal y recursos",{"v":48909.15,"d":"48,909.2"},{"v":5400,"d":"5,400.0"},{"v":900,"d":"900.0"},{"v":0,"d":"0.0"},{"v":0,"d":"0.0"},{"v":0,"d":"0.0"},{"v":0,"d":"0.0"},{"v":0,"d":"0.0"},{"v":0,"d":"0.0"},{"v":55209.15,"d":"$55,209.2"},{"v":15,"d":"$15.0"}]
[null,null,"Actividad 1.4","Plan de empadronamiento, atención, seguimiento e impulso al comercio ambulante y locatario en mercados.","PORCENTAJE de avance en el plan de empadronamiento (104-APE)","Mide el avance en el empadronamiento ordenado y diferenciado","Eficacia","Gestión","(Cantidad de actividades (10) a desarrollar para elaborar plan de empadronamiento, atención, seguimiento e impulso al comercio ambulante y locatario en mercados / Total de   actividades (10) a desarrollar para elaborar plan de empadronamiento, atención, seguimiento e impulso al comercio ambulante y locatario en mercados )*100",10,10,"Mensual","Porcentaje",{"v":1,"d":"100%"}," Portal Web del Municipio página de transparencia","Se dispone de personal y recursos",{"v":65212.2,"d":"65,212.2"},{"v":7200,"d":"7,200.0"},{"v":1200,"d":"1,200.0"},{"v":0,"d":"0.0"},{"v":0,"d":"0.0"},{"v":0,"d":"0.0"},{"v":0,"d":"0.0"},{"v":0,"d":"0.0"},{"v":0,"d":"0.0"},{"v":73612.2,"d":"$73,612.2"},{"v":20,"d":"$20.0"}]
[null,null,"Actividad 1.5","Programa de actividades municipales que impulsen el comercio y la actividad económica en el municipio","PORCENTAJE de cumplimiento del programa para impulsar el comercio (P105-CPIC)","Mide el cumplimiento de actividades del programa que fomenten el comercio y la economía","Eficacia","Gestión","(Cantidad de centros económicos (150) que impulsan el comercio y la economia familiar en el municipio que pueden ser incorporados al programa de fortalecimiento economico / Total de  centros económicos (400) que impulsan el comercio y la economia familiar en el municipio )*100",150,400,"Mensual","Porcentaje",1," Portal Web del Municipio página de transparencia","Se dispone de personal y recursos",{"v":97818.3,"d":"97,818.3"},{"v":10800,"d":"10,800.0"},{"v":1800,"d":"1,800.0"},{"v":0,"d":"0.0"},{"v":0,"d":"0.0"},{"v":0,"d":"0.0"},{"v":0,"d":"0.0"},{"v":0,"d":"0.0"},{"v":0,"d":"0.0"},{"v":110418.3,"d":"$110,418.3"},{"v":30,"d":"$30.0"}]
[null,"Turismo","Componente 2","Turistas y Visitantes Incrementados","ÍNDICE de afluencia e incremento de turistas y visitantes al municipio (T2-ITyVM)","Mide la afluencia y el incremento de turistas y visitantes al municipio ","Eficacia","Gestión","(valor resultante de sumar los valores individuales  de  los cosientes entre sus denominadores por su ponderacion asignada, que miden las  variables de: Servicios, Convenio, Padron y Comité, con su correspondientes ponderaciones de .2, .2, .3,  y .3)",39,39,"Bimestral","Índice","1"," Portal Web del Municipio página de transparencia","Se dispone de personal y recursos",{"v":85327,"d":"$85,327.0"},{"v":11000,"d":"$11,000.0"},{"v":4000,"d":"$4,000.0"},{"v":0,"d":"$0.0"},{"v":0,"d":"$0.0"},{"v":0,"d":"$0.0"},{"v":0,"d":"$0.0"},{"v":0,"d":"$0.0"},{"v":0,"d":"$0.0"},{"v":100327,"d":"$100,327.0"}]
[null,null,"Actividad 2.1","Impulsar programas de apoyo a establecimientos y giros gastronómico, ecológico y culturales.","PORCENTAJE de elaboracion y gestión del programa de apoyo a giros económicos (P106-PAGE)","Mide la cantidad de establecimientos que son beneficiados con el programa","Eficacia","Gestión","(Cantidad de centros económicos con giro de atención y servicio al turismo (50) que pueden ser susceptibles de participar en el finaciamiento para mejorar y fortalecer los servicios que ofrecen al turismo / Total de centros económicos con giro de atención y servicio al turismo (50) que pueden ser susceptibles de participar en el finaciamiento para mejorar y fortalecer los servicios que ofrecen al turismo)*100",50,50,"Mensual","Porcentaje",1," Portal Web del Municipio página de transparencia","Se dispone de personal y recursos",{"v":25598.1,"d":"25,598.1"},{"v":3300,"d":"3,300.0"},{"v":1200,"d":"1,200.0"},{"v":0,"d":"0.0"},{"v":0,"d":"0.0"},{"v":0,"d":"0.0"},{"v":0,"d":"0.0"},{"v":0,"d":"0.0"},{"v":0,"d":"0.0"},{"v":30098.1,"d":"$30,098.1"},{"v":30,"d":"$30.0"}]
[null,null,"Actividad 2.2","Gestionar convenios y esquemas de servicios turísticos y de hospedaje en casas particulares","PORCENTAJE de cumplimiento del programa de servicios turísticos (P107-CPST)","Mide la cantidad de convenios de servicios turisticos ofertados por los habitantes del municipio ","Eficacia","Gestión","(Cantidad de ciudadanos (100) a los que se les ha ofertado la participación en servicios al turismo bajo un esquema de convenio y servicio de hospedaje, alimentación y trayectos turisticos  / Total de ciudadanos (100) a los que se les ha ofertado la participación en servicios al turismo bajo un esquema de convenio y servicio de hospedaje, alimentación y trayectos turisticos)*100",100,100,"Mensual","Porcentaje",{"v":1,"d":"100%"}," Portal Web del Municipio página de transparencia","Se dispone de personal y recursos",{"v":17065.4,"d":"17,065.4"},{"v":2200.0000000000005,"d":"2,200.0"},{"v":800.0000000000001,"d":"800.0"},{"v":0,"d":"0.0"},{"v":0,"d":"0.0"},{"v":0,"d":"0.0"},{"v":0,"d":"0.0"},{"v":0,"d":"0.0"},{"v":0,"d":"0.0"},{"v":20065.400000000005,"d":"$20,065.4"},{"v":20.000000000000004,"d":"$20.0"}]
[null,null,"Actividad 2.3","Elaborar el padrón de prestadores de servicios turísticos y gestionar la declaración de zonas de desarrollo turístico vinculadas a un programa de actividades","PORCENTAJE de avance en el padrón y declaratoria (P108-APD)","Mide el avance en la gestión de las etapas para integrar un padrón de prestadores de servicios turísticos y la gestion de la declaración de zonas de desarrollo turístico vinculadas a un programa de actividades","Eficacia","Gestión","(Cantidad de etapas (20) de trabajo para integrar un padrón de prestadores de servicios turísticos y la gestion de la declaración de zonas de desarrollo turístico vinculadas a un programa de actividades / Total de etapas (20) de trabajo para integrar un padrón de prestadores de servicios turísticos y la gestion de la declaración de zonas de desarrollo turístico vinculadas a un programa de actividades )*100",20,20,"Mensual","Porcentaje",1," Portal Web del Municipio página de transparencia","Se dispone de personal y recursos",{"v":21331.75,"d":"21,331.8"},{"v":2750,"d":"2,750.0"},{"v":1000,"d":"1,000.0"},{"v":0,"d":"0.0"},{"v":0,"d":"0.0"},{"v":0,"d":"0.0"},{"v":0,"d":"0.0"},{"v":0,"d":"0.0"},{"v":0,"d":"0.0"},{"v":25081.75,"d":"$25,081.8"},{"v":25,"d":"$25.0"}]
[null,null,"Actividad 2.4","Creación del comité de turismo y su programa de actividades para la promoción turística","PORCENTAJE de avance en la creación del comité de turismo y su programa (P109-ACCTP)","Mide los avances en las etapas para conformar el comité municipal y las actividades del programa de promocion turistica municipal","Eficacia","Gestión","(Cantidad de etapas (10) de trabajo para conformar el comité municipal y las actividades del programa de promocion turistica municipal  / Total de etapas (10) de trabajo para conformar el comité municipal y las actividades del programa de promocion turistica municipal )*100",10,10,"Mensual","Porcentaje",{"v":1,"d":"100%"}," Portal Web del Municipio página de transparencia","Se dispone de personal y recursos",{"v":21331.75,"d":"21,331.8"},{"v":2750,"d":"2,750.0"},{"v":1000,"d":"1,000.0"},{"v":0,"d":"0.0"},{"v":0,"d":"0.0"},{"v":0,"d":"0.0"},{"v":0,"d":"0.0"},{"v":0,"d":"0.0"},{"v":0,"d":"0.0"},{"v":25081.75,"d":"$25,081.8"},{"v":25,"d":"$25.0"}]
[null,"Desarrollo agropecuario","Componente 3","Productividad Agropecuaria Incrementada","ÍNDICE de incremento productividad agropecuaria (T3-IPA)","Mide la relación de ejidatarios que participan en los programas de fortalecimiento agropecuario","Eficacia","Gestión","(valor resultante de sumar los valores individuales  de  los cosientes entre sus denominadores por su ponderacion asignada, que miden las  variables de: paquetes económicos, paquetes tecnológicos, transferencia tecnología, área produccion organica, consumo abono, buenas prácticas  con su correspondientes ponderaciones de .1, .1, .2, .2, .2,  y .2)",130,130,"Bimestral","Índice","1"," Portal Web del Municipio página de transparencia","Se dispone de personal y recursos",{"v":260210,"d":"$260,210.0"},{"v":21000,"d":"$21,000.0"},{"v":4000,"d":"$4,000.0"},{"v":0,"d":"$0.0"},{"v":0,"d":"$0.0"},{"v":0,"d":"$0.0"},{"v":0,"d":"$0.0"},{"v":0,"d":"$0.0"},{"v":0,"d":"$0.0"},{"v":285210,"d":"$285,210.0"}]
[null,null,"Actividad 3.1","Gestionar 100 paquetes económicos a productos agrícolas","PORCENTAJE de avance en la gestión de paquetes económicos agrícolas (P110-AGPEA)","Mide los avances en la gestión de paquetes económicos que mejoren la productividad con su aplicación ","Eficacia","Gestión","(Cantidad de paquetes económicos agricolas (300) gestionados para mejorar la productividad  / Total de paquetes económicos agricolas (300) gestionados para mejorar la productividad  )*100",100,100,"Mensual","Porcentaje",1," Portal Web del Municipio página de transparencia","Se dispone de personal y recursos",{"v":39031.5,"d":"39,031.5"},{"v":3150,"d":"3,150.0"},{"v":600,"d":"600.0"},{"v":0,"d":"0.0"},{"v":0,"d":"0.0"},{"v":0,"d":"0.0"},{"v":0,"d":"0.0"},{"v":0,"d":"0.0"},{"v":0,"d":"0.0"},{"v":42781.5,"d":"$42,781.5"},{"v":15,"d":"$15.0"}]
[null,null,"Actividad 3.2","Gestionar 100 paquetes tecnológicos a productores agrícolas","PORCENTAJE de avance en la gestión de paquetes tecnológicos agrícolas (P111-AGPTA)","Mide los avances en la gestión, asignación y la aplicación de los paquetes tecnológicos","Eficacia","Gestión","(Cantidad de paquetes tecnólogicos (100) asignados a productores agricolas  / Total de  paquetes tecnólogicos (100) asignados a productores agricolas)*100",100,100,"Mensual","Porcentaje",{"v":1,"d":"100%"}," Portal Web del Municipio página de transparencia","Se dispone de personal y recursos",{"v":39031.5,"d":"39,031.5"},{"v":3150,"d":"3,150.0"},{"v":600,"d":"600.0"},{"v":0,"d":"0.0"},{"v":0,"d":"0.0"},{"v":0,"d":"0.0"},{"v":0,"d":"0.0"},{"v":0,"d":"0.0"},{"v":0,"d":"0.0"},{"v":42781.5,"d":"$42,781.5"},{"v":15,"d":"$15.0"}]
[null,null,"Actividad 3.3","Desarrollar 9 talleres de transferencia de tecnología, capacitación y extensión, de acuerdo a los diferentes modelos de producción, que permitan una mayor competitividad","PORCENTAJE de desarrollo de talleres de transferencia de tecnología y capacitación (P112-DTTTC)","Mide la participación de los ciudadanos en los talleres","Eficacia","Gestión","(Cantidad de productores (300) que participan en los 9 talleres de transferencia de tecnología / Total de productores (300) que participan en los 9 talleres de transferencia de tecnología )*100",300,300,"Mensual","Porcentaje",1," Portal Web del Municipio página de transparencia","Se dispone de personal y recursos",{"v":65052.5,"d":"65,052.5"},{"v":5250,"d":"5,250.0"},{"v":1000,"d":"1,000.0"},{"v":0,"d":"0.0"},{"v":0,"d":"0.0"},{"v":0,"d":"0.0"},{"v":0,"d":"0.0"},{"v":0,"d":"0.0"},{"v":0,"d":"0.0"},{"v":71302.5,"d":"$71,302.5"},{"v":25,"d":"$25.0"}]
[null,null,"Actividad 3.4","Incremento de áreas de producción orgánica.","PORCENTAJE de incremento de áreas de producción orgánica (P113-IAPO)","Mide el incremento de área destinada a producción orgánica","Eficacia","Gestión","(Cantidad de héctareas (50) incrementadas para la producción orgánica / Total de  héctareas (50) incrementadas para la producción orgánica)*100",50,50,"Mensual","Porcentaje",{"v":1,"d":"100%"}," Portal Web del Municipio página de transparencia","Se dispone de personal y recursos",{"v":52042,"d":"52,042.0"},{"v":4200,"d":"4,200.0"},{"v":800,"d":"800.0"},{"v":0,"d":"0.0"},{"v":0,"d":"0.0"},{"v":0,"d":"0.0"},{"v":0,"d":"0.0"},{"v":0,"d":"0.0"},{"v":0,"d":"0.0"},{"v":57042,"d":"$57,042.0"},{"v":20,"d":"$20.0"}]
[null,null,"Actividad 3.5","Promover uso de abonos orgánicos","PORCENTAJE de aumento del consumo de abonos orgánicos (P114-ACAO)","Mide el incremento del uso de abonos orgánicos","Eficacia","Gestión","(Cantidad de héctareas (100) que usan abono organico para enriquecer sus cultivos / Total de héctareas (100) que usan abono organico para enriquecer sus cultivos)*100",100,100,"Mensual","Porcentaje",1," Portal Web del Municipio página de transparencia","Se dispone de personal y recursos",{"v":39031.5,"d":"39,031.5"},{"v":3150,"d":"3,150.0"},{"v":600,"d":"600.0"},{"v":0,"d":"0.0"},{"v":0,"d":"0.0"},{"v":0,"d":"0.0"},{"v":0,"d":"0.0"},{"v":0,"d":"0.0"},{"v":0,"d":"0.0"},{"v":42781.5,"d":"$42,781.5"},{"v":15,"d":"$15.0"}]
[null,null,"Actividad 3.6","Productores (as) y jóvenes rurales desarrollando buenas prácticas productivas en sus sistemas productivos, que posicionen su inserción en los mercados.   ","PORCENTAJE de aumento de productores aplicando buenas prácticas productivas (P115-APABPP)","Mide el incremento de familias productoras rurales que tienen buenas prácticas productivas","Eficacia","Gestión","(Cantidad de familias de productores y jovenes (100) que desarrollan buenas prácticas productivas en sus sistemas de producción  / Total de familias de productores y jovenes (100) que desarrollan buenas prácticas productivas en sus sistemas de producción)*100",100,100,"Mensual","Porcentaje",{"v":1,"d":"100%"}," Portal Web del Municipio página de transparencia","Se dispone de personal y recursos",{"v":26021,"d":"26,021.0"},{"v":2100,"d":"2,100.0"},{"v":400,"d":"400.0"},{"v":0,"d":"0.0"},{"v":0,"d":"0.0"},{"v":0,"d":"0.0"},{"v":0,"d":"0.0"},{"v":0,"d":"0.0"},{"v":0,"d":"0.0"},{"v":28521,"d":"$28,521.0"},{"v":10,"d":"$10.0"}]
[null,"Inspección ganadera","Componente 4","Sacrificios Inspeccionados Incrementados","ÍNDICE de sacrificios inspeccionados (T4-SI)","Mide la relación de animales para sacrifico que son inspeccionados contra los que no lo son","Eficacia","Gestión","(valor resultante de sumar los valores individuales  de  los cosientes entre sus denominadores por su ponderacion asignada, que miden las  variables de: personal de inspección, inspecciónes con su correspondientes ponderaciones de .4,  y .6)",1042.4,1563.6,"Bimestral","Índice","0.66"," Portal Web del Municipio página de transparencia","Se dispone de personal y recursos",{"v":108029,"d":"$108,029.0"},{"v":30000,"d":"$30,000.0"},{"v":6000,"d":"$6,000.0"},{"v":0,"d":"$0.0"},{"v":0,"d":"$0.0"},{"v":0,"d":"$0.0"},{"v":0,"d":"$0.0"},{"v":0,"d":"$0.0"},{"v":0,"d":"$0.0"},{"v":144029,"d":"$144,029.0"}]
[null,null,"Actividad 4.1","Contar con un  MVZ capacitado para diagnosticar el estado físico y organoléptico de los productos cárnicos ","PORCENTAJE de avance en el programa de capacitación para dictamen organoléptico (P116-APCDO)","Mide el cumplimiento del programa de capacitación","Eficacia","Gestión","(Cantidad de gestiones realizadas (5) por la direccion de Rastro Municipal ante las instancias correspondientes para contar con un MVZ con la experiencia y capacidad de desempeñar las actividades  establecidas en el reglamento municipal de inpector de diagnostico para la autorizacion del sacrificio de ganado y (1) programa de capacitacion del MVZ / Total de gestiones y programa de capacitacion del MVZ (6) realizadas por la direccion de  Rastro Municipal)*100",6,6,"Mensual","Porcentaje",1," Portal Web del Municipio página de transparencia","Se dispone de personal y recursos",{"v":70218.85,"d":"70,218.9"},{"v":19500,"d":"19,500.0"},{"v":3900,"d":"3,900.0"},{"v":0,"d":"0.0"},{"v":0,"d":"0.0"},{"v":0,"d":"0.0"},{"v":0,"d":"0.0"},{"v":0,"d":"0.0"},{"v":0,"d":"0.0"},{"v":93618.85,"d":"$93,618.9"},{"v":65,"d":"$65.0"}]
[null,null,"Actividad 4.2","Inspectores con la capacidad de diagnosticar la carne que no es apta para el consumo Humano, y en su caso el decomiso ","PORCENTAJE diagnósticos positivos para consumo y MVZ capacitados (P117-DPCMC)","Mide la cantidad de diagnosticos documentados de carne para venta en el municipio","Eficacia","Gestión","(Cantidad de cabezas de ganado inspeccionadas en píe y en sacrificio mediante diagnostico (2600) por año en el rastro municipal / Total de cabezas de ganado registrado en el rastro municipal (2600) inspeccionado y sacrificado con diagnostico de visto bueno para venta al menudeo como carne en los establecimientos comerciales en territorio municipal)*100",2600,2600,"Mensual","Porcentaje",{"v":1,"d":"100%"}," Portal Web del Municipio página de transparencia","Se dispone de personal y recursos",{"v":37810.15,"d":"37,810.2"},{"v":10500,"d":"10,500.0"},{"v":2100,"d":"2,100.0"},{"v":0,"d":"0.0"},{"v":0,"d":"0.0"},{"v":0,"d":"0.0"},{"v":0,"d":"0.0"},{"v":0,"d":"0.0"},{"v":0,"d":"0.0"},{"v":50410.15,"d":"$50,410.2"},{"v":35,"d":"$35.0"}]
[null,"Rastro municipal","Componente 5","Proveeduría de Carnes Incrementada","ÍNDICE de mejora del servicio del rastro municipal para el aprovicionamiento de carne a la población de Ixtlahuacán de los Membrillos a traves de los tablajeros del municipio (T5-PRM)","Mide la relación de kilos de carne que se consumen en el municipio  de ixtlaHucán de procedencia de productores locales","Eficacia","Gestión","(valor resultante de sumar los valores individuales  de  los cosientes entre sus denominadores por su ponderacion asignada, que miden las  variables de: inspección, sacrificio  e instalaciones con su correspondientes ponderaciones de .3, .3,  y .4)",1567,1723,"Bimestral","Índice","0.90"," Portal Web del Municipio página de transparencia","Se dispone de personal y recursos",{"v":305058,"d":"$305,058.0"},{"v":44000,"d":"$44,000.0"},{"v":4000,"d":"$4,000.0"},{"v":0,"d":"$0.0"},{"v":0,"d":"$0.0"},{"v":0,"d":"$0.0"},{"v":0,"d":"$0.0"},{"v":0,"d":"$0.0"},{"v":0,"d":"$0.0"},{"v":353058,"d":"$353,058.0"}]
[null,null,"Actividad 5.1","Plan de inspección a los tablajeros la documentación de la legitima propiedad de los animales sacrificados y Contar con personal capacitado para la inspección en carnicerías  ","PORCENTAJE de cumplimiento del plan de inspección de propiedad y en carnicería (P118-CPIPC)","Mide el cumplimiento del plan de inspección en rastro y carnicerias","Eficacia","Gestión","(Cantidad de actividades contenidas en el plan de supervición (5) a realizar para inspeccionar a los tablajeros respecto a la propiedad de las cebazas de ganado a sacrificar y del cumplimiento de los requisitos (5) para tener canales de carne expuestas a la venta en los locales comerciales de atencion a la ciudadania / Total de actividades (10) de inspección y verificación contenidas en el reglamento de sacrificio y venta de ganado en espacios comerciales particulares dentro del territorio municipal)*100",10,10,"Mensual","Porcentaje",1," Portal Web del Municipio página de transparencia","Se dispone de personal y recursos",{"v":76264.5,"d":"76,264.5"},{"v":11000,"d":"11,000.0"},{"v":1000,"d":"1,000.0"},{"v":0,"d":"0.0"},{"v":0,"d":"0.0"},{"v":0,"d":"0.0"},{"v":0,"d":"0.0"},{"v":0,"d":"0.0"},{"v":0,"d":"0.0"},{"v":88264.5,"d":"$88,264.5"},{"v":25,"d":"$25.0"}]
[null,null,"Actividad 5.2","Fortalecer el sacrificio, producción y venta de ganado local","PORCENTAJE de sacrificio, producción y venta de ganado local (P119-VSGL)","Mide el incremento de consumo de ganado local","Eficacia","Gestión","(Cantidad de sacrificios (2600), producción de canal por trabajador (520) y venta de ganado de productores locales (2080) por año en el rastro municipal / Total de cabezas de ganado registrado en el rastro municipal (2600), producción de canal por trabajador (520) y venta de ganado de productores locales (2600) por año en el rastro municipal para venta al menudeo como carne en los establecimientos comerciales en territorio municipal)*100",5200,5720,"Mensual","Porcentaje",{"v":0.909,"d":"90.90%"}," Portal Web del Municipio página de transparencia","Se dispone de personal y recursos",{"v":106770.3,"d":"106,770.3"},{"v":15400,"d":"15,400.0"},{"v":1400,"d":"1,400.0"},{"v":0,"d":"0.0"},{"v":0,"d":"0.0"},{"v":0,"d":"0.0"},{"v":0,"d":"0.0"},{"v":0,"d":"0.0"},{"v":0,"d":"0.0"},{"v":123570.3,"d":"$123,570.3"},{"v":35,"d":"$35.0"}]
[null,null,"Actividad 5.3","Mejorar las instalaciones con equipamiento ","PORCENTAJE de avance en el diagnostico (P120-AD)","Mide el avance en el diagnóstico y su aplicación en mejorar las instalaciónes del rastro municipal","Eficacia","Gestión","(Cantidad de actividades (10) a realizar para mejorar las instalaciones y servicio con equipamiento del rastro municipal  / Total de actividades (10) concluidas para mejorar las instalaciones y servicio con equipamiento del rastro municipal )*100",10,10,"Mensual","Porcentaje",1," Portal Web del Municipio página de transparencia","Se dispone de personal y recursos",{"v":122023.20000000001,"d":"122,023.2"},{"v":17600.000000000004,"d":"17,600.0"},{"v":1600.0000000000002,"d":"1,600.0"},{"v":0,"d":"0.0"},{"v":0,"d":"0.0"},{"v":0,"d":"0.0"},{"v":0,"d":"0.0"},{"v":0,"d":"0.0"},{"v":0,"d":"0.0"},{"v":141223.2,"d":"$141,223.2"},{"v":40.00000000000001,"d":"$40.0"}]
[null,"Promoción económica","Componente 6","Promoción Económica Incrementada","ÍNDICE de atención a la promociona de la economía (T6-APE)","Mide la relación de centros económicos municipales que reciben orientacion o apoyo economico para su fortalecimiento","Eficacia","Gestión","(valor resultante de sumar los valores individuales  de  los cosientes entre sus denominadores por su ponderacion asignada, que miden las  variables de: espacio de atención, adecuacion de modulo y plan de vinculación con su correspondientes ponderaciones de .3, .4,  y .3)",15.9,17.7,"Bimestral","Índice","0.898"," Portal Web del Municipio página de transparencia","Se dispone de personal y recursos",{"v":328764,"d":"$328,764.0"},{"v":10000,"d":"$10,000.0"},{"v":4000,"d":"$4,000.0"},{"v":0,"d":"$0.0"},{"v":0,"d":"$0.0"},{"v":0,"d":"$0.0"},{"v":0,"d":"$0.0"},{"v":0,"d":"$0.0"},{"v":0,"d":"$0.0"},{"v":342764,"d":"$342,764.0"}]
[null,null,"Actividad 6.1","Establecer un espacio para la atención de los comerciantes y/o empresarios.","PORCENTAJE de avance en las gestiones para la atención de comerciantes y empresarios (P121-AGACE)","Mide el avance en las gestiones para tener instalaciones para la atencion de los comerciantes y empresarios","Eficacia","Gestión","(Cantidad de actividades (15) a realizar para gestionar un espacio para la atención de comerciantes y empresarios por parte de la Dirección de promoción Económica  / Total de actividades (15) concluidas para la para gestionar un espacio para la atención de comerciantes y empresarios por parte de la Dirección de promoción Económica)*100",15,15,"Mensual","Porcentaje",1," Portal Web del Municipio página de transparencia","Se dispone de personal y recursos",{"v":65752.8,"d":"65,752.8"},{"v":2000,"d":"2,000.0"},{"v":800,"d":"800.0"},{"v":0,"d":"0.0"},{"v":0,"d":"0.0"},{"v":0,"d":"0.0"},{"v":0,"d":"0.0"},{"v":0,"d":"0.0"},{"v":0,"d":"0.0"},{"v":68552.8,"d":"$68,552.8"},{"v":20,"d":"$20.0"}]
[null,null,"Actividad 6.2","Adecuación del módulo (SARE) sistema de apertura rápida de empresas, ante la Dirección de Mejora Regulatoria y ante la COFEMER Consejo Federal de Mejora Regulatoria.","PORCENTAJE de adecuación del módulo SARE ante la Dirección de Mejora Regulatoria y su inclusion en el índice de facilidad para abrir una empresa (P122-AMSDMR)","Mide los avances en la adecuación del SARE ante la dirección de mejora regulatoria y su inclusion en el índice de facilidad para abrir una empresa ","Eficacia","Gestión","(Cantidad de actividades (15) a realizar para adecuar el módulo SARE municipal ante la Dirección de Mejora Regulatoria y su inclusion en el índice de facilidad para abrir una empresa  / Total de actividades (15) concluidas para la adecuación del módulo SARE municipal ante la Dirección de Mejora Regulatoria y su inclusion en el índice de facilidad para abrir una empresa)*100",15,15,"Mensual","Porcentaje",{"v":1,"d":"100%"}," Portal Web del Municipio página de transparencia","Se dispone de personal y recursos",{"v":147943.8,"d":"147,943.8"},{"v":4499.999999999999,"d":"4,500.0"},{"v":1799.9999999999998,"d":"1,800.0"},{"v":0,"d":"0.0"},{"v":0,"d":"0.0"},{"v":0,"d":"0.0"},{"v":0,"d":"0.0"},{"v":0,"d":"0.0"},{"v":0,"d":"0.0"},{"v":154243.8,"d":"$154,243.8"},{"v":44.99999999999999,"d":"$45.0"}]
[null,null,"Actividad 6.3","Plan de vinculación ante  las cámaras industriales, sector empresarial de Jalisco y organismos empresariales para promover al Municipio en proyectos estratégicos.","PORCENTAJE de avance del plan de vinculación (P123-APV)","Mide los resultados del plan de vinculación del municipio y sus comerciantes y empresarios con las camaras de comercio y organismos empresariales","Eficacia","Gestión","(Cantidad de gestiones exitosas (18) realizadas por la direccion de promocion economica  establecidas en el Plan de vinculación ante  las cámaras industriales, sector empresarial de Jalisco y organismos empresariales  / Total de gestiones (24) realizadas por la direccion de promocion economica  dentro del Plan de vinculación ante  las cámaras industriales, sector empresarial de Jalisco y organismos empresariales  )*100",18,24,"Mensual","Porcentaje",0.75," Portal Web del Municipio página de transparencia","Se dispone de personal y recursos",{"v":115067.4,"d":"115,067.4"},{"v":3500,"d":"3,500.0"},{"v":1400,"d":"1,400.0"},{"v":0,"d":"0.0"},{"v":0,"d":"0.0"},{"v":0,"d":"0.0"},{"v":0,"d":"0.0"},{"v":0,"d":"0.0"},{"v":0,"d":"0.0"},{"v":119967.4,"d":"$119,967.4"},{"v":35,"d":"$35.0"}]
[null,"Informática","Componente 7","Calidad Informática Mejorada","INDICE de calidad informática (V1-CI)","Mide el nivel de atencion y solucion de los problemas a los usuarios de los equipos informaticos de la administración municipal","Eficacia","Gestión","(valor resultante de sumar los valores individuales  de  los cosientes entre sus denominadores por su ponderacion asignada, que miden las  variables de: acttualizacion de red, reglamento y mantenimiento con su correspondientes ponderaciones de .4, .2,  y .4)",38.8,39.4,"Bimestral","Índice",0.98," Portal Web del Municipio página de transparencia","Se dispone de personal y recursos",{"v":114780,"d":"$114,780.0"},{"v":17000,"d":"$17,000.0"},{"v":34000,"d":"$34,000.0"},{"v":0,"d":"$0.0"},{"v":0,"d":"$0.0"},{"v":0,"d":"$0.0"},{"v":0,"d":"$0.0"},{"v":0,"d":"$0.0"},{"v":0,"d":"$0.0"},{"v":165780,"d":"$165,780.0"}]
[null,null,"Actividad 7.1","Levantamiento del estado actual de la red y dados los resultados adquirir nuevo equipo que atienda las necesidades.","PORCENTAJE de actualización de la red, adquisición de nuevos equipos y colocacion de puntos de acceso a internet (P124-ARANE)","Mide el avance en la actualización de los equipos, licencias y redes, que permitan la instalacion de sitios de gobierno con servicio de acceso a internet","Eficacia","Gestión","(Cantidad de redes de  computacion actualizadas (3), de computadoras adquiridas nuevas (8) y mantenimiento o colocacion de puntos nuevos de acceso a internet  (33) /total de redes, computadoras y puntos de acceso a internet (44))*100",44,44,"Mensual","Porcentaje",1," Portal Web del Municipio página de transparencia","Se dispone de personal y recursos",{"v":17217,"d":"17,217.0"},{"v":2550,"d":"2,550.0"},{"v":5100,"d":"5,100.0"},{"v":0,"d":"0.0"},{"v":0,"d":"0.0"},{"v":0,"d":"0.0"},{"v":0,"d":"0.0"},{"v":0,"d":"0.0"},{"v":0,"d":"0.0"},{"v":24867,"d":"$24,867.0"},{"v":15,"d":"$15.0"}]
[null,null,"Actividad 7.2","Elaboración de un reglamento que se adecue a las nuevas necesidades de este ayuntamiento.","PORCENTAJE de elaboración del reglamento de informática (P125-ERI)","Mide el avance en la elaboración el reglamento de informatica y sistemas","Eficacia","Gestión","(Cantidad de articulos (20) desarrollados para el reglamento de resguardo, uso y manipulacion de equipos de computacion de la administracion municipal asignadas a las direcciones establecidas / Total de direcciones 23 con equipos de computacion de la administracion municipal asignadas y con aportaciones y conocimiento)*100",20,23,"Mensual","Porcentaje",{"v":0.8695,"d":"86.95%"}," Portal Web del Municipio página de transparencia","Se dispone de personal y recursos",{"v":22956,"d":"22,956.0"},{"v":3400,"d":"3,400.0"},{"v":6800,"d":"6,800.0"},{"v":0,"d":"0.0"},{"v":0,"d":"0.0"},{"v":0,"d":"0.0"},{"v":0,"d":"0.0"},{"v":0,"d":"0.0"},{"v":0,"d":"0.0"},{"v":33156,"d":"$33,156.0"},{"v":20,"d":"$20.0"}]
[null,null,"Actividad 7.3","Programa de mantenimiento, atención y solución de problemas que se presentes en las áreas de este ayuntamiento.","PORCENTAJE de avance del programa de mantenimiento y atención a sistemas computacionales (P126-APMASC)","Mide los avances en el cumplimiento del programa de mantenimiento y atención","Eficacia","Gestión","(Cantidad de computadoras (23) incluidas en el programa de mantenimiento y actividades relacionadas a las tecnologías de la informacion (20) que atiende el personal asignado a esta dirección administrativa del ayuntamiento  /total de computadoras y actividades por atender  en la dirección de Informática (43))*100",43,43,"Mensual","Porcentaje",1," Portal Web del Municipio página de transparencia","Se dispone de personal y recursos",{"v":74607,"d":"74,607.0"},{"v":11050,"d":"11,050.0"},{"v":22100,"d":"22,100.0"},{"v":0,"d":"0.0"},{"v":0,"d":"0.0"},{"v":0,"d":"0.0"},{"v":0,"d":"0.0"},{"v":0,"d":"0.0"},{"v":0,"d":"0.0"},{"v":107757,"d":"$107,757.0"},{"v":65,"d":"$65.0"}]
[]
[null,"Ordenamiento Territorial (sustentabilidad)","Componente 1","Instrumentos de Planeación y Ordenamiento Territorial Actualizados","ÍNDICE de actualización de instrumentos de planeación y ordenamiento territorial (T1-IPyOTa)","Mide el índice de actualización de los Instrumentos de Planeación y Ordenamiento Territorial","Eficacia","Gestión","(valor resultante de sumar los valores individuales  de  los cosientes entre sus denominadores por su ponderacion asignada, que miden las  variables de: diagnostico saneamiento rios, saneamiento presas, reforestación,  regularización, explotación, crecimiento y turismo con su correspondientes ponderaciones de .1, .1, .2, .1, .1, .2, y .2)",676.6,1726.6,"Bimestral","Índice",0.39," Portal Web del Municipio página de transparencia","Se dispone de personal y recursos ",{"v":333342,"d":"$333,342.00"},{"v":9000,"d":"$9,000.00"},{"v":4000,"d":"$4,000.00"},{"v":0,"d":"$0.00"},{"v":0,"d":"$0.00"},{"v":0,"d":"$0.00"},{"v":0,"d":"$0.00"},{"v":0,"d":"$0.00"},{"v":0,"d":"$0.00"},{"v":346342,"d":"$346,342.00"}]
[null,null,"Actividad 1.1","Diagnostico y Programa de Saneamiento Rio Los Sabinos, arroyos y riachuelos","PORCENTAJE de avance en el diagnóstico de saneamiento (P127-ADS)","Mide los avances en la elaboración del diagnostico y su programa de saneamiento","Eficacia","Gestión","(Cantidad de temas a desarrollar (10) dentro del Diagnostico y Programa de Saneamiento Rio Los Sabinos, arroyos y riachuelos / Total de temas (10) desarrollados dentro del  Diagnostico y Programa de Saneamiento Rio Los Sabinos, arroyos y riachuelos )*100",10,10,"Mensual","Porcentaje",{"v":1,"d":"1.00"}," Portal Web del Municipio página de transparencia","Se dispone de personal y recursos ",{"v":33334.2,"d":"33,334.2"},{"v":899.9999999999999,"d":"900.0"},{"v":399.99999999999994,"d":"400.0"},{"v":0,"d":"0.0"},{"v":0,"d":"0.0"},{"v":0,"d":"0.0"},{"v":0,"d":"0.0"},{"v":0,"d":"0.0"},{"v":0,"d":"0.0"},{"v":34634.2,"d":"$34,634.20"},{"v":9.999999999999998,"d":"$10.00"}]
[null,null,"Actividad 1.2","Diagnostico y Programa de Saneamiento de la Presa El Llano","PORCENTAJE de avance en el diagnóstico de saneamiento Presa el Llano (P128-ADSPL)","Mide los avances en la elaboración del diagnostico y su programa de saneamiento de la Presa","Eficacia","Gestión","(Cantidad de temas a desarrollar (10) dentro del Diagnostico y Programa de Saneamiento de la Presa El Llano / Total de temas (10) desarrollados dentro del  Diagnostico y Programa de Saneamiento de la Presa El Llano )*100",10,10,"Mensual","Porcentaje",{"v":1,"d":"100%"}," Portal Web del Municipio página de transparencia","Se dispone de personal y recursos ",{"v":33334.2,"d":"33,334.2"},{"v":899.9999999999999,"d":"900.0"},{"v":399.99999999999994,"d":"400.0"},{"v":0,"d":"0.0"},{"v":0,"d":"0.0"},{"v":0,"d":"0.0"},{"v":0,"d":"0.0"},{"v":0,"d":"0.0"},{"v":0,"d":"0.0"},{"v":34634.2,"d":"$34,634.20"},{"v":9.999999999999998,"d":"$10.00"}]
[null,null,"Actividad 1.3","Impartición de 12 talleres de promoción y fomento de reforestación y conservación del medio ambiente","PORCENTAJE de avance en programa de campañas de reforestación  (P129-APCR)","Mide los avances en la imparticion de los talleres  que integran las campañas","Eficacia","Gestión","(Cantidad de ciudadanos inscritos (350) para participar en el programa de 12 talleres de capacitacion sobre promoción, fomento y participación en 12 campañas de reforestación y conservación del medio ambiente/total de ciudadanos ejidatarios (5000) o pequeña propiedad (600) que participan en el programa)*100",350,5600,"Mensual","Porcentaje",{"v":1,"d":"1.00"}," Portal Web del Municipio página de transparencia","Se dispone de personal y recursos ",{"v":50001.3,"d":"50,001.3"},{"v":1350,"d":"1,350.0"},{"v":600,"d":"600.0"},{"v":0,"d":"0.0"},{"v":0,"d":"0.0"},{"v":0,"d":"0.0"},{"v":0,"d":"0.0"},{"v":0,"d":"0.0"},{"v":0,"d":"0.0"},{"v":51951.3,"d":"$51,951.30"},{"v":15,"d":"$15.00"}]
[null,null,"Actividad 1.4","Programa de regularización de predios en las localidades de Santa Rosa y Los Cedros","PORCENTAJE de avance en el programa de regularización de predios (P130-APRP)","Mide los avances en la implementación del programa de regularización","Eficacia","Gestión","(Cantidad de etapas (10) completas en la elaboracion de cada uno de los expedientes del programa de regularizacion de predios en Santa Rosa y Cedros  / total de etapas (6000) completadas en cada uno de los 600 predios por regularizar en  el programa de regularizacion de predios en Santa Rosa y Cedros)*100",6000,6000,"Mensual","Porcentaje",{"v":1,"d":"100%"}," Portal Web del Municipio página de transparencia","Se dispone de personal y recursos ",{"v":50001.3,"d":"50,001.3"},{"v":1350,"d":"1,350.0"},{"v":600,"d":"600.0"},{"v":0,"d":"0.0"},{"v":0,"d":"0.0"},{"v":0,"d":"0.0"},{"v":0,"d":"0.0"},{"v":0,"d":"0.0"},{"v":0,"d":"0.0"},{"v":51951.3,"d":"$51,951.30"},{"v":15,"d":"$15.00"}]
[null,null,"Actividad 1.5","Elaborar un diagnostico de los niveles de sobre explotación del territorio","PORCENTAJE de avance en el diagnóstico de explotación territorial (P131-ADET )l","Mide los avances en la elaboración del diagnostico sobre la explotación del territorio","Eficacia","Gestión","(Cantidad de temas a desarrollar (10) dentro del diagnóstico de explotación territorial / Total de temas (10) desarrollados dentro del  diagnóstico de explotación territorial )*100",10,10,"Mensual","Porcentaje",{"v":1,"d":"1.00"}," Portal Web del Municipio página de transparencia","Se dispone de personal y recursos ",{"v":66668.4,"d":"66,668.4"},{"v":1799.9999999999998,"d":"1,800.0"},{"v":799.9999999999999,"d":"800.0"},{"v":0,"d":"0.0"},{"v":0,"d":"0.0"},{"v":0,"d":"0.0"},{"v":0,"d":"0.0"},{"v":0,"d":"0.0"},{"v":0,"d":"0.0"},{"v":69268.4,"d":"$69,268.40"},{"v":19.999999999999996,"d":"$20.00"}]
[null,null,"Actividad 1.6","Alternativas de crecimiento urbano sin el cambio de uso de suelo agrícola a urbano","PORCENTAJE  de avance en el programa de alternativas de crecimiento urbano (P132-APACU)","Mide los avances en el programa de crecimiento urbano sin el cambio de uso de suelos","Eficacia","Gestión","(Cantidad de temas a desarrollar (9) dentro del Programa Municipal de alternativas de crecimiento urbano  sin el cambio de uso de suelos / Total de temas desarrollados dentro del  Programa Municipal de alternativas de crecimiento urbano  sin el cambio de uso de suelos (9) )*100",9,9,"Mensual","Porcentaje",{"v":1,"d":"100%"}," Portal Web del Municipio página de transparencia","Se dispone de personal y recursos ",{"v":50001.3,"d":"50,001.3"},{"v":1350,"d":"1,350.0"},{"v":600,"d":"600.0"},{"v":0,"d":"0.0"},{"v":0,"d":"0.0"},{"v":0,"d":"0.0"},{"v":0,"d":"0.0"},{"v":0,"d":"0.0"},{"v":0,"d":"0.0"},{"v":51951.3,"d":"$51,951.30"},{"v":15,"d":"$15.00"}]
[null,null,"Actividad 1.7","Desarrollar un programa de impulso al turismo ecológico y su ordenamiento","PORCENTAJE de avance del programa de impulso turístico ecológico (P133-APITE)","Mide el avance en la elaboración de programa de impulso al turismo ecológico","Eficacia","Gestión","(Cantidad de temas a desarrollar (9) dentro del programa de impulso al turismo ecológico a nivel municipal / Total de temas desarrollados dentro del  programa de impulso al turismo ecológico a nivel municipal (9) )*100",9,9,"Mensual","Porcentaje",{"v":1,"d":"1.00"}," Portal Web del Municipio página de transparencia","Se dispone de personal y recursos ",{"v":50001.3,"d":"50,001.3"},{"v":1350,"d":"1,350.0"},{"v":600,"d":"600.0"},{"v":0,"d":"0.0"},{"v":0,"d":"0.0"},{"v":0,"d":"0.0"},{"v":0,"d":"0.0"},{"v":0,"d":"0.0"},{"v":0,"d":"0.0"},{"v":51951.3,"d":"$51,951.30"},{"v":15,"d":"$15.00"}]
[null,"Desarrollo Urbano","Componente 2","Instrumentos de Planeación Urbana Actualizados","ÍNDICE de actualizacion de los instrumentos de planeación urbana. (Í2-IAIPU)","Mide el índice de adtualización de los Instrumentos de planeación urbana ","Eficacia","Gestión","(valor resultante de sumar los valores individuales  de  los cosientes entre sus denominadores por su ponderacion asignada, que miden las  variables de: consolidación habitacional en fraccionamientos, consolidacion urbana en localidades, planes de centros, desarrollo urbano, imagen urbana, equipamiento y regularización con su correspondientes ponderaciones de .1, .1, .1, .2, .2, .2, y .1)",655.5,671.5,"Bimestral","Índice",0.97," Portal Web del Municipio página de transparencia","Se dispone de personal y recursos ",{"v":282066,"d":"$282,066.00"},{"v":30000,"d":"$30,000.00"},{"v":88000,"d":"$88,000.00"},{"v":0,"d":"$0.00"},{"v":0,"d":"$0.00"},{"v":0,"d":"$0.00"},{"v":0,"d":"$0.00"},{"v":0,"d":"$0.00"},{"v":0,"d":"$0.00"},{"v":400066,"d":"$400,066.00"}]
[null,null,"Actividad 2.1","Consolidar los fraccionamientos existentes antes de abrir nuevas áreas de uso habitacional.","PORCENTAJE de consolidación urbana de fraccionamiento existentes (P134-CUFE)","Mide el porcentaje de consolidación habitacional de cada fraccionamiento","Eficacia","Gestión","(Cantidad de temas (5) que determinan la consolidación habitacional de los 10 fraccionamiento urbanos existentes  dentro del Programa Municipal de consolidación habitacional de fraccionamientos urbanos  / Total de temas 50 necesarios de cubrir para considararlos como consolidados dentro del Programa Municipal de consolidación habitacional )*100",50,50,"Mensual","Porcentaje",{"v":1,"d":"1.00"}," Portal Web del Municipio página de transparencia","Se dispone de personal y recursos ",{"v":28206.6,"d":"28,206.6"},{"v":3000,"d":"3,000.0"},{"v":8800,"d":"8,800.0"},{"v":0,"d":"0.0"},{"v":0,"d":"0.0"},{"v":0,"d":"0.0"},{"v":0,"d":"0.0"},{"v":0,"d":"0.0"},{"v":0,"d":"0.0"},{"v":40006.6,"d":"$40,006.60"},{"v":10,"d":"$10.00"}]
[null,null,"Actividad 2.2","Consolidar las localidades tradicionales que cuentan con suelo disponible dentro de sus límites","PORCENTAJE de consolidación urbana de localidades tradicionales (P135-CULT)","Mide el porcentaje de consolidación habitacional de las localidades tradicionales","Eficacia","Gestión","(Cantidad de temas que determinan la consolidación de las localidaes tradicionales (5) dentro del Programa Municipal de consolidación de localidades tradicionales (4) que cuentan con suelo disponible dentro de sus límites / Total de temas 20 necesarios de cubrir para considararlos como consolidados dentro del Programa Municipal de consolidación de localidades tradicionales (4) que cuentan con suelo disponible dentro de sus límites )*100",20,20,"Mensual","Porcentaje",{"v":1,"d":"100%"}," Portal Web del Municipio página de transparencia","Se dispone de personal y recursos ",{"v":28206.6,"d":"28,206.6"},{"v":3000,"d":"3,000.0"},{"v":8800,"d":"8,800.0"},{"v":0,"d":"0.0"},{"v":0,"d":"0.0"},{"v":0,"d":"0.0"},{"v":0,"d":"0.0"},{"v":0,"d":"0.0"},{"v":0,"d":"0.0"},{"v":40006.6,"d":"$40,006.60"},{"v":10,"d":"$10.00"}]
[null,null,"Actividad 2.3","Elaboración de Planes de Centro de Población. ","PORCENTAJE de avance de elaboración de planes de centros de población (P136-AEPCP)","Mide los avances en la elaboración de los planes de desarrollo urbano de centros de población municipal","Eficacia","Gestión","(Cantidad de planes (7) a desarrollar dentro del Programa de Planes de Centro de Población en el municipio / Total de planes (7) a desarrollar dentro del  Programa de Planes de Centro de Población en el municipio )*100",7,7,"Mensual","Porcentaje",{"v":1,"d":"1.00"}," Portal Web del Municipio página de transparencia","Se dispone de personal y recursos ",{"v":28206.6,"d":"28,206.6"},{"v":3000,"d":"3,000.0"},{"v":8800,"d":"8,800.0"},{"v":0,"d":"0.0"},{"v":0,"d":"0.0"},{"v":0,"d":"0.0"},{"v":0,"d":"0.0"},{"v":0,"d":"0.0"},{"v":0,"d":"0.0"},{"v":40006.6,"d":"$40,006.60"},{"v":10,"d":"$10.00"}]
[null,null,"Actividad 2.4","Elaboración del Programa Municipal de Desarrollo Urbano","PORCENTAJE de avance del programa de desarrollo urbano para ser considerado en los municipios que cuentan con instrumentos de planeación urbana, y ordenamiento ecológico y territorial congruentes con los instrumentos superiores (P137-APDU)","Mide el avance en la elaboración del programa de desarrollo urbano municipal","Eficacia","Gestión","(Cantidad de temas a desarrollar (9) dentro del Programa Municipal de Desarrollo Urbano a nivel municipal / Total de temas desarrollados dentro del  Programa Municipal de Desarrollo Urbano a nivel municipal (9) )*100",9,9,"Mensual","Porcentaje",{"v":1,"d":"100%"}," Portal Web del Municipio página de transparencia","Se dispone de personal y recursos ",{"v":28206.6,"d":"28,206.6"},{"v":3000,"d":"3,000.0"},{"v":8800,"d":"8,800.0"},{"v":0,"d":"0.0"},{"v":0,"d":"0.0"},{"v":0,"d":"0.0"},{"v":0,"d":"0.0"},{"v":0,"d":"0.0"},{"v":0,"d":"0.0"},{"v":40006.6,"d":"$40,006.60"},{"v":10,"d":"$10.00"}]
[null,null,"Actividad 2.5","Mejorar la imagen urbana en ingresos y primer cuadro de las localidades tradicionales","PORCENTAJE de avance del plan de imagen urbana (P138-APIU)","Mide los avances de los planes de mejora de imagen urbana ","Eficacia","Gestión","(Cantidad de puntos(10) a considerar como ingresos a la ciudad (6) y primer cuadro  en cabecera y localidades tradicionales (4) dentro del programa de imagen urbana considerando las variables (fachadas, estacionamiento en calles, banquetas, puestos ambualentes, letreros, colores, paradas de transporte público, señaletica vial y de calles, contenedores o tiradesros de basura, cableados de luz pública, arbotantes, areas verdes, carcamos y tapas de drenaje (16) / Total de puntos 160 a revisar dentro del programa de imagen urbana con las variable mencionadas)*100",130,160,"Mensual","Porcentaje",{"v":1,"d":"1.00"}," Portal Web del Municipio página de transparencia","Se dispone de personal y recursos ",{"v":70516.5,"d":"70,516.5"},{"v":7500,"d":"7,500.0"},{"v":22000,"d":"22,000.0"},{"v":0,"d":"0.0"},{"v":0,"d":"0.0"},{"v":0,"d":"0.0"},{"v":0,"d":"0.0"},{"v":0,"d":"0.0"},{"v":0,"d":"0.0"},{"v":100016.5,"d":"$100,016.50"},{"v":25,"d":"$25.00"}]
[null,null,"Actividad 2.6","Elaborar estudio de requerimiento en términos de equipamiento en localidades y fraccionamientos","PORCENTAJE de avance en el estudio de equipamiento urbano (P139-AEEU)","Mide los avances en la elaboracion del estudio de equipamiento en localidades y fraccionamientos","Eficacia","Gestión","(Cantidad de localidades  (10) y fraccionamientos (5) que se incluiran en el estudio de necesidades de equipamiento urbano respecto a (10) variables (Agua, luz, drenaje, pavimento, alumbrado público, transporte público, señaletica vial, banquetas, espacios deportivos, espacios culturales)  100 necesidades / Total de necesidades 150 consideradas como variable en el estudio de equipamiento )*100",100,150,"Mensual","Porcentaje",{"v":0.66,"d":"66%"}," Portal Web del Municipio página de transparencia","Se dispone de personal y recursos ",{"v":56413.2,"d":"56,413.2"},{"v":6000,"d":"6,000.0"},{"v":17600,"d":"17,600.0"},{"v":0,"d":"0.0"},{"v":0,"d":"0.0"},{"v":0,"d":"0.0"},{"v":0,"d":"0.0"},{"v":0,"d":"0.0"},{"v":0,"d":"0.0"},{"v":80013.2,"d":"$80,013.20"},{"v":20,"d":"$20.00"}]
[null,null,"Actividad 2.7","Regularizar predios en Santa Rosa y Cedros (expedición de títulos de propiedad)","PORCENTAJE de regularización de predios (P140-RP)","Mide los avances en la elaboración del programa de regularización de predios rusticos","Eficacia","Gestión","(Cantidad de etapas (10) completas en la elaboracion de cada uno de los expedientes del programa de regularizacion de predios en Santa Rosa y Cedros  / total de etapas (6000) completadas en cada uno de los 600 predios por regularizar en  el programa de regularizacion de predios en Santa Rosa y Cedros)*100",6000,6000,"Mensual","Porcentaje",{"v":1,"d":"1.00"}," Portal Web del Municipio página de transparencia","Se dispone de personal y recursos ",{"v":42309.9,"d":"42,309.9"},{"v":4500,"d":"4,500.0"},{"v":13200,"d":"13,200.0"},{"v":0,"d":"0.0"},{"v":0,"d":"0.0"},{"v":0,"d":"0.0"},{"v":0,"d":"0.0"},{"v":0,"d":"0.0"},{"v":0,"d":"0.0"},{"v":60009.9,"d":"$60,009.90"},{"v":15,"d":"$15.00"}]
[null,"Obras públicas","Componente 3","Cumplimiento en Obra Pública Incrementado","ÍNDICE de cumplimiento del Programa de Obra Pública Anual (Í3-CPOPA)","Mide la cantidad de Proyectos de obra concluidos exitosamente de los que integran el programa anual infraestructura municipal","Eficacia","Gestión","(valor resultante de sumar los valores individuales  de  los cosientes entre sus denominadores por su ponderacion asignada, que miden las  variables de: rezago de infraestructura, evaluacion normatividad y cumplimiento PAO con su correspondientes ponderaciones de .4, .4,  y .2)",266.4,294.4,"Bimestral","Índice",{"v":0.9,"d":"0.90"}," Portal Web del Municipio página de transparencia","Se dispone de personal y recursos ",{"v":2244472,"d":"$2,244,472.0"},{"v":3960000,"d":"$3,960,000.0"},{"v":1903000,"d":"$1,903,000.0"},{"v":0,"d":"$0.0"},{"v":550000,"d":"$550,000.0"},{"v":18604745,"d":"$18,604,745.0"},{"v":0,"d":"$0.0"},{"v":0,"d":"$0.0"},{"v":0,"d":"$0.0"},{"v":27262217,"d":"$27,262,217.0"}]
[null,null,"Actividad 3.1","Abatir en un alto porcentaje el rezago de infraestructura que presenta las localidades que conforma el Municipio de Ixtlahuacán de los Membrillos, Jalisco","PORCENTAJE de reduccion del rezago de infraestructura (P145-RRI)","Mide el avance en la disminución del rezago en infraestructura en localidades del municipio","Eficacia","Gestión","(Cantidad de obras concluidas ( 5 nuevas, 10 de manetnimiento y 8 rehabilitadas) como nuevas, de mantenimiento y rehabilitadas para dar cumplimiento al programa anual de obra en educacion, vialidades, agua potable, cultura y deporte/ Total de obras  (23) que integran el programa anual de obra)*100",64,64,"Mensual","Porcentaje",{"v":1,"d":"1.00"}," Portal Web del Municipio página de transparencia","Se dispone de personal y recursos ",{"v":1122236,"d":"1,122,236.0"},{"v":1980000,"d":"1,980,000.0"},{"v":951500,"d":"951,500.0"},{"v":0,"d":"0.0"},{"v":275000,"d":"275,000.0"},{"v":9302372.5,"d":"9,302,372.5"},{"v":0,"d":"0.0"},{"v":0,"d":"0.0"},{"v":0,"d":"0.0"},{"v":13631108.5,"d":"$13,631,108.50"},{"v":50,"d":"$50.0"}]
[null,null,"Actividad 3.2","Ejercer el recurso en tiempo con las modalidades establecidas en la Ley  de Obra Publica, de acuerdo al monto del recurso.","PORCENTAJE de ejercicio de recursos apegados a ley de obra pública y normatividad aplicable que cumpla con la evaluación de la calidad del marco jurídico estatal (P146-ERALOP)","Mide el cumplimiento del programa de obra separado por fuente de financiamiento y normatividad aplicable en cumplimiento de la evaluación de la calidad del marco jurídico estatal","Eficacia","Gestión","(Cantidad de etapas (10) completas en la elaboracion de cada uno de los expedientes del programa anual de obra pública  / total de etapas (640) completadas en cada uno de los 64 expedientes del programa anual de obra pública 2020)*100",570,640,"Mensual","Porcentaje",{"v":1,"d":"100%"}," Portal Web del Municipio página de transparencia","Se dispone de personal y recursos ",{"v":112223.59999999998,"d":"112,223.6"},{"v":197999.99999999997,"d":"198,000.0"},{"v":95149.99999999999,"d":"95,150.0"},{"v":0,"d":"0.0"},{"v":27499.999999999996,"d":"27,500.0"},{"v":930237.2499999999,"d":"930,237.3"},{"v":0,"d":"0.0"},{"v":0,"d":"0.0"},{"v":0,"d":"0.0"},{"v":1363110.8499999996,"d":"$1,363,110.85"},{"v":4.999999999999999,"d":"$5.0"}]
[null,null,"Actividad 3.3","Programas de mantenimiento e instalaciones en planteles de preescolares y primarias, mantenimiento y construcción de casa de la cultura y teatro, rehabilitación de pavimentos en vialidades, sustitución de líneas de agua potable y cajas de valvulas,perforacion de pozos para la extracción de agua potable y sustitución de lineas de drenaje y construcción de pozos de visita.  ","PORCENTAJE de cumplimiento y avance en el programa de obra anual, mantenimiento y rehabilitacion de infraestructura (P147-CAPOAMR)","Mide el cumplimiento y avance en el programa de obra anual, de mantenimiento y rehabilitación a escuelas, instalaciones deportivas, vialidades, instalaciones de agua potable y lineas de drenaje","Eficacia","Gestión","(Cantidad de obras concluidas ( 44 nuevas, 14 de manetnimiento y 10 rehabilitadas) como nuevas, de mantenimiento y rehabilitadas para dar cumplimiento al programa anual de obra en educacion, vialidades, agua potable, cultura y deporte/ Total de obras  (64) que integran el programa anual de obra)*100",64,64,"Mensual","Porcentaje",{"v":1,"d":"1.00"}," Portal Web del Municipio página de transparencia","Se dispone de personal y recursos ",{"v":1010012.4,"d":"1,010,012.4"},{"v":1782000,"d":"1,782,000.0"},{"v":856350,"d":"856,350.0"},{"v":0,"d":"0.0"},{"v":247500,"d":"247,500.0"},{"v":8372135.25,"d":"8,372,135.3"},{"v":0,"d":"0.0"},{"v":0,"d":"0.0"},{"v":0,"d":"0.0"},{"v":12267997.65,"d":"$12,267,997.65"},{"v":45,"d":"$45.0"}]
[null,"Ecología","Componente 4","Condiciones Ecológicas Mejoradas","ÍNDICE de  mejora en las condiciones ecológicas del territorio municipal (T4-MCEtm)","Mide la cantidad de Direcciones municipales que hacen actividades para mejorar las condiciones ecológicas","Eficacia","Gestión","(valor resultante de sumar los valores individuales  de  los cosientes entre sus denominadores por su ponderacion asignada, que miden las  variables de: regularizacion de empresas, diagnostico y programa capacitación con su correspondientes ponderaciones de .5, .2,  y .3)",46.4,185,"Bimestral","Índice","0.25"," Portal Web del Municipio página de transparencia","Se dispone de personal y recursos ",{"v":1157263,"d":"$1,157,263.0"},{"v":17000,"d":"$17,000.0"},{"v":46000,"d":"$46,000.0"},{"v":0,"d":"$0.0"},{"v":0,"d":"$0.0"},{"v":0,"d":"$0.0"},{"v":0,"d":"$0.0"},{"v":0,"d":"$0.0"},{"v":0,"d":"$0.0"},{"v":1220263,"d":"$1,220,263.0"}]
[null,null,"Actividad 4.1","Regular las empresas y establecimientos que operan en el territorio municipal que emiten algún tipo de contaminante que afecte al medio ambiente, así como reforzar en la población civil la concientización del cuidado del medio ambiente a través de talleres","PORCENTAJE de avance en el programas regularización de empresas y establecimientos en el territorio (P148-APREET)","Mide los avance de cumplimiento en los dictamenes y talleres ","Eficacia","Gestión","(Cantidad de actividades 6 (2 dictamines sobre contaminación y 4 talleres sobre medio ambientales) para mejorar la regulación de establecimientos que emiten algun tipo de contaminante al medioambiente / total de actividades (6) para mejorar la regulación de establecimientos que emiten algun tipo de contaminante al medioambiente)*100",6,6,"Mensual","Porcentaje",{"v":1,"d":"1.00"}," Portal Web del Municipio página de transparencia","Se dispone de personal y recursos ",{"v":347178.9,"d":"347,178.9"},{"v":5100,"d":"5,100.0"},{"v":13800,"d":"13,800.0"},{"v":0,"d":"0.0"},{"v":0,"d":"0.0"},{"v":0,"d":"0.0"},{"v":0,"d":"0.0"},{"v":0,"d":"0.0"},{"v":0,"d":"0.0"},{"v":366078.9,"d":"$366,078.90"},{"v":30,"d":"$30.0"}]
[null,null,"Actividad 4.2","Elaboración de Diagnostico para determinar la superficie de la Área Natural Protegida","PORCENTAJE de elaboración de diagnóstico de área natural protegida  municipal para sumar a la superficie estatal bajo esquemas de Área Natural Protegida  (P149-EDANP)","Mide los avances en la propuesta de área natural protegida","Eficacia","Gestión","(Cantidad de etapas (10) necesarias para terminar el diagnostico para determinar el área natural protegida municipal / Total de etapas cubiertas para  terminar el diagnostico para determinar el área natural protegida municipal (10))*100",10,10,"Mensual","Porcentaje",{"v":1,"d":"100%"}," Portal Web del Municipio página de transparencia","Se dispone de personal y recursos ",{"v":520768.35,"d":"520,768.4"},{"v":7650,"d":"7,650.0"},{"v":20700,"d":"20,700.0"},{"v":0,"d":"0.0"},{"v":0,"d":"0.0"},{"v":0,"d":"0.0"},{"v":0,"d":"0.0"},{"v":0,"d":"0.0"},{"v":0,"d":"0.0"},{"v":549118.35,"d":"$549,118.35"},{"v":45,"d":"$45.0"}]
[null,null,"Actividad 4.3","Impartir un taller sobre la Importancia del Medio Ambiente y del Cambio Climático, dirigido al personal del H. Ayuntamiento.","PORCENTAJE de cumplimiento del programa sobre medioambiente y cambio climático (P150-CPSMCC)","Mide el cumplimiento y participación en el programa de capacitacion ambiental","Eficacia","Gestión","(Cantidad de personal inscrito (3) para participar en el programa de capacitacion sobre  la Importancia del Medio Ambiente y del Cambio Climático por cada una de las (46) direcciones del Ayuntamiento/total de personal en el ayutamiento (600))*100",138,600,"Mensual","Porcentaje",0.23," Portal Web del Municipio página de transparencia","Se dispone de personal y recursos ",{"v":289315.75,"d":"289,315.8"},{"v":4250,"d":"4,250.0"},{"v":11500,"d":"11,500.0"},{"v":0,"d":"0.0"},{"v":0,"d":"0.0"},{"v":0,"d":"0.0"},{"v":0,"d":"0.0"},{"v":0,"d":"0.0"},{"v":0,"d":"0.0"},{"v":305065.75,"d":"$305,065.75"},{"v":25,"d":"$25.0"}]

{"sheet":"Pp2 MIR DS","index":2,"n_rows":88,"n_cols":28,"rows_kept":88,"merged":[[2,2,2,3],[3,2,3,3],[4,2,4,3],[5,2,5,3],[6,2,6,3],[7,2,7,3],[8,2,8,3],[9,1,10,1],[9,2,9,3],[10,2,10,3],[11,1,12,1],[11,2,11,3],[12,2,12,3],[13,1,14,1],[13,2,13,3],[14,2,14,3],[16,4,16,16],[16,17,16,25],[20,1,28,1],[29,1,32,1],[33,1,34,1],[35,1,38,1],[39,1,42,1],[43,1,46,1],[47,1,51,1],[52,1,54,1],[55,1,58,1],[59,1,61,1],[62,1,65,1],[66,1,70,1],[71,1,72,1],[73,1,75,1],[76,1,80,1],[81,1,82,1],[83,1,84,1],[85,1,87,1]]}
[]
[{"$nulls":11},"  MATRIZ DE INDICADORES PARA RESULTADOS POR PROGRAMA "]
[null,null,"Municipio",null,"Ixtlahuacán de los Membrillos"]
[null,null,"Denominación del Programa",null,"Desarrollo Social"]
[null,null,"Categoría programática",null,"Prestación de servicios públicos"]
[null,null,"Unidad Responsable/OPD",null,"Dirección de desarrollo social municipal"]
[null,null,"Finalidad",null,"Desarrollo_Social"]
[null,null,"Función",null,"Vivienda_y_Servicios_a_la_Comunidad"]
[null,null,"Sub-función",null,"2.2.2 Desarrollo Comunitario"]
[null,"Plan Nacional de Desarrollo","Alineación con objetivos superiores del PND",null,"IV.II  Bienestar :  Garantizar el ejercicio efectivo de los derechos económicos, sociales, culturales y ambientales, con énfasis en la reducción de brechas de desigualdad y condiciones de vulnerabilidad y discriminación en poblaciones y territorios."]
[null,null,"Alineación con objetivos secundarios del PND",null,"Objetivo 2.1  Brindar atención prioritaria a grupos históricamente discriminados mediante acciones que permitan reducir las brechas de desigualdad sociales y territoriales."]
[null,"Plan Estatal de Desarrollo","Alineación con objetivos superiores del PED",null,"6.4  Desarrollo social"]
[null,null,"Alineación con objetivos secundarios del PED",null,"Pobreza y desigualdad"]
[null,"Plan Municipal de Desarrollo","Alineación con objetivos superiores del PMD",null,"2  Desarrollo social municipal"]
[null,null,"Alineación con objetivos secundarios del PMD",null,"2.1  Incrementar el Índice de Desarrollo Social en el Municipio"]
[]
[{"$nulls":4},"I N D I C A D O R E S",{"$nulls":12},"P R E S U P U E S T O"]
[{"$nulls":4},"Resumen Narrativo","Nombre del indicador","Definición","Dimensión","Tipo","Método de cálculo","Valor programado 1 (Numerador)","Valor programado 2 (Denominador)","Frecuencia de medición","Unidad de medida","Metas","Medios de verificación","Supuestos","Capítulo 1000","Capítulo 2000","Capítulo 3000","Capítulo 4000","Capítulo 5000","Capítulo 6000","Capítulo 7000","Capítulo 8000","Capítulo 9000",null,100]
[null,null,"Fin",null,"La población que reside en Ixtlhuacán de los Membreillos disponen de un estado de bienestar en cuatro dimensiónes; Estado de Derecho, Desarrollo Social, Desarrollo Económico y Gestión del Territorio.","INDICE Integral de Cumplimiento del Plan Municipal de Desarrollo y Gobernanza 2018-2021 (IICPMDG 1821)","Mide en el cumplimiento en cada uno de los programas presupuestarios establecidos en cada eje del PMDyG para su segumiento al cumplimiento de las metas definidas para cada unidad administrativa municipal","Eficiencia","Estratégico","IIDMt = [(IIEDSmt + IIDSmt + IIDEmt + IAGTmt) /4]",2.21,4,"Trimestral","Índice",0.55," Portal Web del Municipio página de transparencia","Se dispone de personal y recursos",{"v":17052117,"d":"$17,052,117.0"},{"v":6679493,"d":"$6,679,493.0"},{"v":15959645,"d":"$15,959,645.0"},{"v":9000000,"d":"$9,000,000.0"},{"v":0,"d":"$0.0"},{"v":0,"d":"$0.0"},{"v":0,"d":"$0.0"},{"v":0,"d":"$0.0"},{"v":6000000,"d":"$6,000,000.0"},{"v":54691255,"d":"$54,691,255.0"},"37.7%"]
[null,null,"Propósito",null,"Continuar mejorando las condiciones y la calidad de vida de los habitantes de Ixtlahuacán de los Membrillos","Índice de avance en el combate a la marginación municipal (IMNM)","Mide el progreso del municipio en la dimensiones del desarrollo: social","Eficiencia","Estratégico","(valor resultante de sumar los valores individuales  de  los cosientes entre sus denominadores por su ponderacion asignada, que miden las  variables de:  cobertura agua potable, eficiencia alumbrado público, cobertura áreas verdes, cobertura servicio limpia,  reducción situación de pobreza, maltrato desigualdad de género, actividad física deportiva, Cobertura Educativa, participación actividades culturales, urbanización, servicios de cementerios, atención DIF, atención ciudadana, participación ciudadana, calidad servicios de salud,  atención Agencias, atención Delegaciones, cobertura comunicación social, con su correspondientes ponderaciones de .1, .06, .04, .07, .08, .05, .05, .06, .05, .06, .04, .06, .04, .05, .07, .04, .04 y .04)",{"v":1442.9850000000004,"d":"1442.99"},{"v":6400.682999999999,"d":"6400.68"},"Trimestral","Índice",0.23," Portal Web del Municipio página de transparencia","Se dispone de personal y recursos",{"v":17052117,"d":"$17,052,117.0"},{"v":6679493,"d":"$6,679,493.0"},{"v":15959645,"d":"$15,959,645.0"},{"v":9000000,"d":"$9,000,000.0"},{"v":0,"d":"$0.0"},{"v":0,"d":"$0.0"},{"v":0,"d":"$0.0"},{"v":0,"d":"$0.0"},{"v":6000000,"d":"$6,000,000.0"},{"v":54691255,"d":"$54,691,255.0"}]
[null,"Sistema de Agua Potable y Alcantarillado (SAMAPA)","Componente 1",null,"Cobertura de Agua Potable y Alcantarillado Ampliada","Índice de cobertura agua potable y alcantarillado (Í1-CAPyA)","Mide la ampliacion en la cobertura de suministro de agua potable y alcantarillado ","Eficacia","Gestión","(valor resultante de sumar los valores individuales  de  los cosientes entre sus denominadores por su ponderacion asignada, que miden las  variables de: aguas subterraneas, macromedidores, cultura agua, colector principal, construccion pozos, desazolve carcamos, construccion humedal y rahabilitacion plantas con su correspondientes ponderaciones de .1, .2, .1, .1, .2, .1, .1, y .1)",12.7,15.9,"Bimestral","Índice","0.798"," Portal Web del Municipio página de transparencia","Se dispone de personal y recursos",{"v":0,"d":"$0.0"},{"v":0,"d":"$0.0"},{"v":0,"d":"$0.0"},{"v":2000000,"d":"$2,000,000.0"},{"v":0,"d":"$0.0"},{"v":0,"d":"$0.0"},{"v":0,"d":"$0.0"},{"v":0,"d":"$0.0"},{"v":0,"d":"$0.0"},{"v":2000000,"d":"$2,000,000.0"}]
[null,null,"Actividad 1.1",null,"Gestionar un estudio de aguas subterráneas","PORCENTAJE de avance del estudio de aguas subterráneas (P51-AEAS)","Mide los avances en tener un estudio ","Eficacia","Gestión","(Cantidad de  actividades (10) desarrolladas para la gestion de un estudio de aguas subterráneas / Total de  actividades (15) a desarrollar para la gestion de un estudio de aguas subterráneas)*100",10,15,"Mensual","Porcentaje",{"v":0.66,"d":"66%"}," Portal Web del Municipio página de transparencia","Se dispone de personal y recursos",{"v":0,"d":"0.0"},{"v":0,"d":"0.0"},{"v":0,"d":"0.0"},{"v":100000,"d":"100,000.0"},{"v":0,"d":"0.0"},{"v":0,"d":"0.0"},{"v":0,"d":"0.0"},{"v":0,"d":"0.0"},{"v":0,"d":"0.0"},{"v":100000,"d":"$100,000.0"},{"v":5,"d":"$5.0"}]
[null,null,"Actividad 1.2",null,"Instalación de macro medidores en pozos municipales","PORCENTAJE de pozos municipales con macro medidores (P52-PMMM)","Mide los avances en poner macromedidores en los pozos municipales","Eficacia","Gestión","(Cantidad de  actividades (80) desarrolladas para  colocar 5 macro medidores en las lineas de conducción del agua / Total de actividades (80) desarrolladas para  colocar 5 macro medidores en las lineas de conducción del agua de los pozos municipales a la red de agua potable )*100",80,80,"Mensual","Porcentaje",{"v":0.8,"d":"80%"}," Portal Web del Municipio página de transparencia","Se dispone de personal y recursos",{"v":0,"d":"0.0"},{"v":0,"d":"0.0"},{"v":0,"d":"0.0"},{"v":400000,"d":"400,000.0"},{"v":0,"d":"0.0"},{"v":0,"d":"0.0"},{"v":0,"d":"0.0"},{"v":0,"d":"0.0"},{"v":0,"d":"0.0"},{"v":400000,"d":"$400,000.0"},{"v":20,"d":"$20.0"}]
[null,null,"Actividad 1.3",null,"Programa de cultura del agua","PORCENTAJE de cumplimiento del programa de cultura del agua (P53-CPCA)","Mide el avance en el cumplimiento del programa ","Eficacia","Gestión","(Cantidad de  actividades (10) desarrolladas dentro del programa de cultura del agua / Total de  actividades (10) a desarrollar dentro del programa de cultura del agua)*100",10,10,"Mensual","Porcentaje",{"v":1,"d":"100%"}," Portal Web del Municipio página de transparencia","Se dispone de personal y recursos",{"v":0,"d":"0.0"},{"v":0,"d":"0.0"},{"v":0,"d":"0.0"},{"v":300000,"d":"300,000.0"},{"v":0,"d":"0.0"},{"v":0,"d":"0.0"},{"v":0,"d":"0.0"},{"v":0,"d":"0.0"},{"v":0,"d":"0.0"},{"v":300000,"d":"$300,000.0"},{"v":15,"d":"$15.0"}]
[null,null,"Actividad 1.4",null,"Reemplazar el colector principal de la línea de drenaje ","PORCENTAJE colector principal remplazado (P54-CPR)","Mide los avances en el reemplazo del colector principal","Eficacia","Gestión","(Cantidad de  actividades (10) desarrolladas para  reemplazar 100 ml del colector principal de la línea de drenaje  en cabecera municipal / Total de actividades (10) programadas para  reemplazar 100 ml del colector principal de la línea de drenaje de la cabecera municipal )*100",10,10,"Mensual","Porcentaje",{"v":1,"d":"100%"}," Portal Web del Municipio página de transparencia","Se dispone de personal y recursos",{"v":0,"d":"0.0"},{"v":0,"d":"0.0"},{"v":0,"d":"0.0"},{"v":400000,"d":"400,000.0"},{"v":0,"d":"0.0"},{"v":0,"d":"0.0"},{"v":0,"d":"0.0"},{"v":0,"d":"0.0"},{"v":0,"d":"0.0"},{"v":400000,"d":"$400,000.0"},{"v":20,"d":"$20.0"}]
[null,null,"Actividad 1.5",null,"Construcción de 2 pozos profundos","PORCENTAJE de avance en perforación de pozos (P55-AP2P)","Mide los avances en la perforación de dos nuevos pozos profundos","Eficacia","Gestión","(Cantidad de  actividades (10) desarrolladas para la construcción de 2 nuevos pozos profundos / Total de  actividades (15) a desarrollar para la construcción de 2 nuevos pozos profundos en el territorio municipal)*100",10,10,"Mensual","Porcentaje",{"v":0.66,"d":"66%"}," Portal Web del Municipio página de transparencia","Se dispone de personal y recursos",{"v":0,"d":"0.0"},{"v":0,"d":"0.0"},{"v":0,"d":"0.0"},{"v":500000,"d":"500,000.0"},{"v":0,"d":"0.0"},{"v":0,"d":"0.0"},{"v":0,"d":"0.0"},{"v":0,"d":"0.0"},{"v":0,"d":"0.0"},{"v":500000,"d":"$500,000.0"},{"v":25,"d":"$25.0"}]
[null,null,"Actividad 1.6",null,"Desazolve de cárcamos","PORCENTAJE de cárcamos con desazolve (P56-CCD)","Mide el avance en el desasolve de carcamos","Eficacia","Gestión","(Cantidad de  actividades (8) desarrolladas para  el desazolve  de 100 cárcamos construidos en el territorio municipal / Total de actividades (8) programas a desarrollar para  el desazolve  de 100 cárcamos construidos en el territorio municipal )*100",8,8,"Mensual","Porcentaje",{"v":1,"d":"100%"}," Portal Web del Municipio página de transparencia","Se dispone de personal y recursos",{"v":0,"d":"0.0"},{"v":0,"d":"0.0"},{"v":0,"d":"0.0"},{"v":300000,"d":"300,000.0"},{"v":0,"d":"0.0"},{"v":0,"d":"0.0"},{"v":0,"d":"0.0"},{"v":0,"d":"0.0"},{"v":0,"d":"0.0"},{"v":300000,"d":"$300,000.0"},{"v":15,"d":"$15.0"}]
[null,null,"Actividad 1.7",null,"Construcción del humedal arroyo de los sabinos","PORCENTAJE de avance en la construcción del humedal (P57-ACH)","Mide el avance en la costrucción del humedal","Eficacia","Gestión","(Cantidad de  actividades (10) desarrolladas para la Construcción del humedal arroyo de los sabinos / Total de  actividades (10) a desarrollar para la Construcción del humedal arroyo de los sabinos)*100",10,10,"Mensual","Porcentaje",{"v":0.75,"d":"75%"}," Portal Web del Municipio página de transparencia","Se dispone de personal y recursos",{"v":0,"d":"0.0"},{"v":0,"d":"0.0"},{"v":0,"d":"0.0"},{"v":200000,"d":"200,000.0"},{"v":0,"d":"0.0"},{"v":0,"d":"0.0"},{"v":0,"d":"0.0"},{"v":0,"d":"0.0"},{"v":0,"d":"0.0"},{"v":200000,"d":"$200,000.0"},{"v":10,"d":"$10.0"}]
[null,null,"Actividad 1.8",null,"Rehabilitación de 4 plantas de tratamiento","PORCENTAJE de Plantas de tratamiento de aguas residuales en operación dentro de norma (P58-PPTARDN)","Mide el avance en la rehabilitación de plantas de tratamiento de aguas residuales y puestas en operación dentro de norma","Eficacia","Gestión","(Cantidad de plantas de tratamiento de aguas residuales (4) a las que se les dio mantenimiento y rehabilitación  / Total plantas de tratamiento de aguas residuales (6) existentes en el municipio)*100",4,6,"Mensual","Porcentaje",{"v":0.66,"d":"66%"},"10:10",null,{"v":0,"d":"0.0"},{"v":0,"d":"0.0"},{"v":0,"d":"0.0"},{"v":400000,"d":"400,000.0"},{"v":0,"d":"0.0"},{"v":0,"d":"0.0"},{"v":0,"d":"0.0"},{"v":0,"d":"0.0"},{"v":0,"d":"0.0"},{"v":400000,"d":"$400,000.0"},{"v":20,"d":"$20.0"}]
[null,"Alumbrado público","Componente 2",null,"Cobertura de Alumbrado Público Ampliada","TASA de modernizacion y eficiencia en alumbrado público municipal (T2-CAP)","Mide la modernizacion y la eficiencia del alumbrado público municipal con el cambio de luminarias existentes a luminarias de LEDs","Eficacia","Gestión","(Tasa de modernizacion de luminarias a LEDs por cada 1000 de las existentes ",100,4513,"Bimestral","Tasa","22 . 1000"," Portal Web del Municipio página de transparencia","Se dispone de personal y recursos",{"v":722682,"d":"$722,682.0"},{"v":338000,"d":"$338,000.0"},{"v":18000,"d":"$18,000.0"},{"v":0,"d":"$0.0"},{"v":0,"d":"$0.0"},{"v":0,"d":"$0.0"},{"v":0,"d":"$0.0"},{"v":0,"d":"$0.0"},{"v":0,"d":"$0.0"},{"v":1078682,"d":"$1,078,682.0"}]
[null,null,"Actividad 2.1",null,"Instalación de luminarias led","PORCENTAJE de luminarias led instaladas (P59-LLI)","Mide el avance en la instalacion de luminarias","Eficacia","Gestión","(Cantidad de luminarias de los circuitos de alumbrado publico municipales que se han sustituido (100) por luminarias de LEDs / Total de  luminarias de los circuitos de alumbrado publico municipales que se han programado (100) para ser sustituidas por luminarias de LEDs)*100",100,100,"Mensual","Porcentaje",{"v":1,"d":"100%"}," Portal Web del Municipio página de transparencia","Se dispone de personal y recursos",{"v":289072.8,"d":"289,072.8"},{"v":135200,"d":"135,200.0"},{"v":7200,"d":"7,200.0"},{"v":0,"d":"0.0"},{"v":0,"d":"0.0"},{"v":0,"d":"0.0"},{"v":0,"d":"0.0"},{"v":0,"d":"0.0"},{"v":0,"d":"0.0"},{"v":431472.8,"d":"$431,472.8"},{"v":40,"d":"$40.0"}]
[null,null,"Actividad 2.2",null,"Instalación de equipos de medición en igual número de circuitos municipales","PORCENTAJE de instalación de equipos de medición por circuito (P60-IEMC)","Mide el avance en la instalacion de euipos de medicion","Eficacia","Gestión","(Cantidad de circuitos (54) de alumbrado público municipal a los que se instalo equipo de medicion / Total decircuitos (54) de alumbrado público municipal a los que se instalara equipo de medicion)*100",54,54,"Mensual","Porcentaje",{"v":1,"d":"100%"}," Portal Web del Municipio página de transparencia","Se dispone de personal y recursos",{"v":180670.5,"d":"180,670.5"},{"v":84500,"d":"84,500.0"},{"v":4500,"d":"4,500.0"},{"v":0,"d":"0.0"},{"v":0,"d":"0.0"},{"v":0,"d":"0.0"},{"v":0,"d":"0.0"},{"v":0,"d":"0.0"},{"v":0,"d":"0.0"},{"v":269670.5,"d":"$269,670.5"},{"v":25,"d":"$25.0"}]
[null,null,"Actividad 2.3",null,"Mantenimiento y preservación de luminarias","PORCENTAJE de luminarias incluidas en el programa de mantenimiento y preservación (P61-LIPMP)","Mide el avance en el mantenimiento de luminarias","Eficacia","Gestión","(Cantidad de luminarias instaladas (4513)  con mantenimiento trimestral incluidas en el programa de mantenimiento municipal / Total de luminarias proyectadas al cierre de año (4600) para completar el programa de mantenimiento municipal)*100",4513,4600,"Mensual","Porcentaje",{"v":0.98,"d":"98%"}," Portal Web del Municipio página de transparencia","Se dispone de personal y recursos",{"v":252938.7,"d":"252,938.7"},{"v":118300,"d":"118,300.0"},{"v":6300,"d":"6,300.0"},{"v":0,"d":"0.0"},{"v":0,"d":"0.0"},{"v":0,"d":"0.0"},{"v":0,"d":"0.0"},{"v":0,"d":"0.0"},{"v":0,"d":"0.0"},{"v":377538.7,"d":"$377,538.7"},{"v":35,"d":"$35.0"}]
[null,"Parques y jardines","Componente 3",null,"Cobertura de Áreas Verdes y Espacios Públicos Ampliada","TASA de cobertura de áreas verdes y espacios públicos (T3-CAVyEP)","Mide la ampliacion de la cobertura en atención a areas verdes y espcios públicos en 10 de cada diez","Eficacia","Gestión","(Tasa de metros cuadrados de área verde y plazas públicas por cada 1000 habitantes    ",20600,11,"Bimestral","Tasa","21 : 0.011"," Portal Web del Municipio página de transparencia","Se dispone de personal y recursos",{"v":1420995,"d":"$1,420,995.0"},{"v":448000,"d":"$448,000.0"},{"v":18000,"d":"$18,000.0"},{"v":0,"d":"$0.0"},{"v":0,"d":"$0.0"},{"v":0,"d":"$0.0"},{"v":0,"d":"$0.0"},{"v":0,"d":"$0.0"},{"v":0,"d":"$0.0"},{"v":1886995,"d":"$1,886,995.0"}]
[null,null,"Actividad 3.1",null,"Programa de Arreglo, mantenimiento y preservación  de plazas publicas, Av. Principal de Cabecera municipal y de camellones.","PORCENTAJE cumplimiento del programa de arreglo, mantenimiento y preservación (P62-CPAMP)","Mide el cumplimiento del programa","Eficacia","Gestión","(Cantidad de  actividades (22) realizadas para ejecutar el  Programa de Arreglo, a 11 plazas públicas, mantenimiento a 20,600 m2 de camellon como área verde y plantación de 5000 arboles / Total de actividades (25) programadas para ejecutar el  Programa de Arreglo, a 11 plazas públicas, mantenimiento a 20,600 m2 de camellon y plantación de 5000 arboles)*100",22,25,"Mensual","Porcentaje",{"v":0.88,"d":"88%"}," Portal Web del Municipio página de transparencia","Se dispone de personal y recursos",{"v":1420995,"d":"1,420,995.0"},{"v":448000,"d":"448,000.0"},{"v":18000,"d":"18,000.0"},{"v":0,"d":"0.0"},{"v":0,"d":"0.0"},{"v":0,"d":"0.0"},{"v":0,"d":"0.0"},{"v":0,"d":"0.0"},{"v":0,"d":"0.0"},{"v":1886995,"d":"$1,886,995.0"},{"v":100,"d":"$100.0"}]
[null,"Aseo público","Componente 4",null,"Cobertura de Servicio de Limpia y Aseo Público Ampliada","Índice de cobertura de servicio  de limpia y aseo público (T4-SLyAP)","Mide el mantenimiento y la  ampliacion en la cobertura de limpia y aseo público ","Eficacia","Gestión","(valor resultante de sumar los valores individuales  de  los cosientes entre sus denominadores por su ponderacion asignada, que miden las  variables de: gestion camión, mantenimiento a camiones y recolección basura con su correspondientes ponderaciones de .2, .4  y .4)",198,167.6,"Bimestral","Índice","1.18"," Portal Web del Municipio página de transparencia","Se dispone de personal y recursos",{"v":2648481,"d":"$2,648,481.0"},{"v":2365000,"d":"$2,365,000.0"},{"v":227000,"d":"$227,000.0"},{"v":0,"d":"$0.0"},{"v":0,"d":"$0.0"},{"v":0,"d":"$0.0"},{"v":0,"d":"$0.0"},{"v":0,"d":"$0.0"},{"v":0,"d":"$0.0"},{"v":5240481,"d":"$5,240,481.0"}]
[null,null,"Actividad 4.1",null,"Gestión de la adquisición de equipo y vehículos de recolección","PORCENTAJE avance en la gestión de equipo para la recolección (P63-AGER)","Mide los avances en la gestion para adquirir equipo de recolección","Eficacia","Gestión","(Cantidad de  gestiones y actividades a realizar (10) para la gestión de un camion compactador para la recoleccion de basúra / Total de gestiones y actividades a realizar (10) para la gestión de un camion compactador para la recoleccion de basúra )*100",10,10,"Mensual","Porcentaje",{"v":1,"d":"100%"}," Portal Web del Municipio página de transparencia","Se dispone de personal y recursos",{"v":1456664.55,"d":"1,456,664.6"},{"v":1300750,"d":"1,300,750.0"},{"v":124850,"d":"124,850.0"},{"v":0,"d":"0.0"},{"v":0,"d":"0.0"},{"v":0,"d":"0.0"},{"v":0,"d":"0.0"},{"v":0,"d":"0.0"},{"v":0,"d":"0.0"},{"v":2882264.55,"d":"$2,882,264.6"},{"v":55,"d":"$55.0"}]
[null,null,"Actividad 4.2",null,"Instalación de contenedores de basura en colonias, fraccionamientos y comunidades rurales y mantenimiento preventivo a camiones recolectores de basura","PORCENTAJE de avance en la instalación de contenedores para recolección de basura (P64-AICRB)","Mide el avance en la instalacion de contenedores y las toneladas recolectadas","Eficacia","Gestión","(Cantidad de contenedores instalados en el mes (0) y camiones con mantenimiento preventivo en el mes (12) / Total de contenedores instalados en colonias y fraccionamientos en el mes (0) y camiones recolectores con mantenimiento preventivo durante el mes (12)  como actividades del programa de limpia y recolección de basura )*100",144,144,"Mensual","Porcentaje",{"v":1,"d":"100%"}," Portal Web del Municipio página de transparencia","Se dispone de personal y recursos",{"v":926968.35,"d":"926,968.4"},{"v":827750,"d":"827,750.0"},{"v":79450,"d":"79,450.0"},{"v":0,"d":"0.0"},{"v":0,"d":"0.0"},{"v":0,"d":"0.0"},{"v":0,"d":"0.0"},{"v":0,"d":"0.0"},{"v":0,"d":"0.0"},{"v":1834168.35,"d":"$1,834,168.4"},{"v":35,"d":"$35.0"}]
[null,null,"Actividad 4.3",null,"Creación de nuevas rutas de recolección de basura, impulsando la separación de basura ","PORCENTAJE de incremento en la recoleccion de basura (P65-ACNRRB)","Mide el incremento en la recolección de basura como consecuencia del crecimiento poblacional y la precaria cultura del reciclaje de desechos solidos ","Eficacia","Gestión","((Cantidad de  toneladas de basura proyectada a recolectar por crecimiento urbano  por mes (346) en las rutas municipales existentes / Total de toneladas de basura recolectada actualmente por mes (270) en las rutas municipales existentes)*100)-100",346,270,"Mensual","Porcentaje",{"v":0.28,"d":"28%"}," Portal Web del Municipio página de transparencia","Se dispone de personal y recursos",{"v":264848.1,"d":"264,848.1"},{"v":236500,"d":"236,500.0"},{"v":22700,"d":"22,700.0"},{"v":0,"d":"0.0"},{"v":0,"d":"0.0"},{"v":0,"d":"0.0"},{"v":0,"d":"0.0"},{"v":0,"d":"0.0"},{"v":0,"d":"0.0"},{"v":524048.1,"d":"$524,048.1"},{"v":10,"d":"$10.0"}]
[null,"Desarrollo social","Componente 5",null,"Familias en Pobreza Disminuidas","Porcentaje de reducción de familias en situación de pobreza multidimensional extrema(T5-TSP)","Mide la reducción de familias en situación de pobreza multidimensional extrema","Eficacia","Gestión","(Cantidad de población (911)  que se mantiene en situación de pobreza multidimensional extrema en el municipio de acuerdo a INEGI, Censo de Población y Vivienda, 2010/ Total de Población en situación de pobreza multidimensional (15,133) INEGI, Censo de Población y Vivienda, 2010  que necesitanser incorporados a programas de apoyo que ayuden a superar esta condicion en el municipio )*100",911,15133,"Bimestral","Porcentaje","6% "," Portal Web del Municipio página de transparencia","Se dispone de personal y recursos",{"v":863363,"d":"$863,363.0"},{"v":41000,"d":"$41,000.0"},{"v":9000,"d":"$9,000.0"},{"v":1500000,"d":"$1,500,000.0"},{"v":0,"d":"$0.0"},{"v":0,"d":"$0.0"},{"v":0,"d":"$0.0"},{"v":0,"d":"$0.0"},{"v":0,"d":"$0.0"},{"v":2413363,"d":"$2,413,363.0"}]
[null,null,"Actividad 5.1",null,"Desarrollar un plan estratégico de colaboración entre  Gobierno Federal, Estatal y Municipal, orientado  al empleo, capacitación, y desarrollo económico de la sociedad, familiar e individual.","PORCENTAJE de avance en el desarrollo del Plan económico estratégico (P66-ADPE)","Mide los avances en el cumplimiento del plan económico estratégico a traves de beneficiar a los adultos mayores","Eficacia","Gestión","(Cantidad de población (4,256)  que se mantiene como vulnerable por ingresos en el municipio de acuerdo a INEGI, Censo de Población y Vivienda, 2010/ Total de Población vulnerable por carencias sociales  (16,399) INEGI, Censo de Población y Vivienda, 2010  que necesitanser incorporados a programas de apoyo economico en el municipio )*100",4256,16399,"Mensual","Porcentaje",{"v":0.26,"d":"26%"}," Portal Web del Municipio página de transparencia","Se dispone de personal y recursos",{"v":129504.45,"d":"129,504.5"},{"v":6150,"d":"6,150.0"},{"v":1350,"d":"1,350.0"},{"v":225000,"d":"225,000.0"},{"v":0,"d":"0.0"},{"v":0,"d":"0.0"},{"v":0,"d":"0.0"},{"v":0,"d":"0.0"},{"v":0,"d":"0.0"},{"v":362004.45,"d":"$362,004.5"},{"v":15,"d":"$15.0"}]
[null,null,"Actividad 5.2",null,"Promover  y difundir  la incorporación  de todos los beneficiarios de los diferentes Programas Federales, Estatales y Municipales al Seguro Popular, manteniendo activas sus pólizas de coberturas.","PORCENTAJE de ciudadanos apoyados en mantener activas sus pólizas de cobertura (P67-CAMAPC)","Mide el numero de ciudadanos que se mantienen como beneficiarios con cobertura de servicios de salud","Eficacia","Gestión","(Cantidad de población (2278) atendida que se mantiene con cobertura y poliza activa de  seguridad pública de salud en el municipio de acuerdo a INEGI, Censo de Población y Vivienda, 2010/ Total de población (9,847) INEGI, Censo de Población y Vivienda, 2010  que necesita incorporar a cobertura y poliza activa de  seguridad pública de salud en el municipio )*100",4500,12125,"Mensual","Porcentaje",{"v":0.3711,"d":"37.11%"}," Portal Web del Municipio página de transparencia","Se dispone de personal y recursos",{"v":215840.75,"d":"215,840.8"},{"v":10250,"d":"10,250.0"},{"v":2250,"d":"2,250.0"},{"v":375000,"d":"375,000.0"},{"v":0,"d":"0.0"},{"v":0,"d":"0.0"},{"v":0,"d":"0.0"},{"v":0,"d":"0.0"},{"v":0,"d":"0.0"},{"v":603340.75,"d":"$603,340.8"},{"v":25,"d":"$25.0"}]
[null,null,"Actividad 5.3",null,"Atender las zonas de atención prioritaria, para que accedan a los servicios básicos","PORCENTAJE de cobertura en servicios básicos a Zonas Prioritarias con carencias sociales (P68-CSBZP)","Mide los habitante con carencias sociales que cuentan con servcios básicos dentro de los poligonos de zonas prioritarias","Eficacia","Gestión","(Cantidad de población (11,480) atendida que vive en las zonas de atencion prioritaria con carencias sociales en el municipio de acuerdo a CONAPOJ 2015/ Total de población (16,399) que vive en las zonas de atencion prioritaria con carencias sociales (Rezago educativo 8,669, Acceso a los servicios de salud 9,847, Acceso a la seguridad social 22,255, Calidad y espacios de la vivienda 5,400, Acceso a los servicios básicos en la vivienda 1,700  y Acceso a la alimentación 7,194) en el municipio)*100",11480,16399,"Mensual","Porcentaje",{"v":0.7,"d":"70%"}," Portal Web del Municipio página de transparencia","Se dispone de personal y recursos",{"v":518017.8,"d":"518,017.8"},{"v":24600,"d":"24,600.0"},{"v":5400,"d":"5,400.0"},{"v":900000,"d":"900,000.0"},{"v":0,"d":"0.0"},{"v":0,"d":"0.0"},{"v":0,"d":"0.0"},{"v":0,"d":"0.0"},{"v":0,"d":"0.0"},{"v":1448017.8,"d":"$1,448,017.8"},{"v":60,"d":"$60.0"}]
[null,"Instituto de la mujer","Componente 6",null,"Maltrato y Desigualdad de Género Disminuidos","Índice de maltrato y desigualdad de género (T6-MyDG)","Mide la reducción del maltrato mediante la prevencion, ocupación y su reglamento","Eficacia","Gestión","(valor resultante de sumar los valores individuales  de  los cosientes entre sus denominadores por su ponderacion asignada, que miden las  variables de: prevención de violencia, femeninas ocupadas y actualizacion reglamento  con su correspondientes ponderaciones de .3, .3,  y .4)",20.1,21.9,"Bimestral","Índice","0.92"," Portal Web del Municipio página de transparencia","Se dispone de personal y recursos",{"v":0,"d":"$0.0"},{"v":0,"d":"$0.0"},{"v":0,"d":"$0.0"},{"v":480000,"d":"$480,000.0"},{"v":0,"d":"$0.0"},{"v":0,"d":"$0.0"},{"v":0,"d":"$0.0"},{"v":0,"d":"$0.0"},{"v":0,"d":"$0.0"},{"v":480000,"d":"$480,000.0"}]
[null,null,"Actividad 6.1",null,"Desarrollar dos programas para prevenir y erradicar la violencia de genero.  1 .- Proyecto quiérete Mujer   2.-Proyecto Junto a ti","PORCENTAJE de avance del programa de prevención de la violencia de genero que disminuya la presencia de feminicidios (P69-APPVG)","Mide le disminución y denuncia del abuso de mujeres violentadas que pueden terminar en feminicidios","Eficacia","Gestión","(Cantidad de actividades  (27) concluidas para la implementación de los programas para prevenir y erradicar la violencia de genero.  1 .- Proyecto quiérete Mujer (12) y  2.-Proyecto Junto a ti (15)\".  / Total de actividades  (31) para la implementación de los programas para prevenir y erradicar la violencia de genero.  1 .- Proyecto quiérete Mujer (14) y  2.-Proyecto Junto a ti (17)\". )*100",27,31,"Mensual","Porcentaje",{"v":0.87,"d":"87%"}," Portal Web del Municipio página de transparencia","Se dispone de personal y recursos",{"v":0,"d":"0.0"},{"v":0,"d":"0.0"},{"v":0,"d":"0.0"},{"v":96000,"d":"96,000.0"},{"v":0,"d":"0.0"},{"v":0,"d":"0.0"},{"v":0,"d":"0.0"},{"v":0,"d":"0.0"},{"v":0,"d":"0.0"},{"v":96000,"d":"$96,000.0"},{"v":20,"d":"$20.0"}]
[null,null,"Actividad 6.2",null,"Implementar dos programas  \"Mujer es poder\"  y \"Mujeres en acción\"  ","PORCENTAJE de implementación de los dos programas con población femenina ocupada (P70-IDP)","Mide el numero de población femenina ocupada y activas en el empoderamiento y activación de la mujer","Eficacia","Gestión","(Cantidad de actividades  (24) concluidas para la implementación de los programas  \"Mujer es poder (11)\"  y \"Mujeres en acción (13)\" manteniendo a poblacion femenina ocupada en ellos / Total de de actividades  (26) para la implementación de los programas  \"Mujer es poder (12)\"  y \"Mujeres en acción (14)\" manteniendo a poblacion femenina ocupada en ellos )*100",24,26,"Mensual","Porcentaje",{"v":0.923,"d":"92.30%"}," Portal Web del Municipio página de transparencia","Se dispone de personal y recursos",{"v":0,"d":"0.0"},{"v":0,"d":"0.0"},{"v":0,"d":"0.0"},{"v":312000,"d":"312,000.0"},{"v":0,"d":"0.0"},{"v":0,"d":"0.0"},{"v":0,"d":"0.0"},{"v":0,"d":"0.0"},{"v":0,"d":"0.0"},{"v":312000,"d":"$312,000.0"},{"v":65,"d":"$65.0"}]
[null,null,"Actividad 6.3",null,"Actualizar Reglamento a Ley de Acceso a una Vida Libre de Violencia. Elaboración del Reglamento a la Ley de Igualdad  para Mujeres y Hombres. Ambos reglamentos adaptados  de  acuerdo a lo observado por la secretaria de igualdad sustantiva.","PORCENTAJE de actualización del reglamento (P71-ARLA)","Mide los avances en la elaboracion del reglamento ","Eficacia","Gestión","(Cantidad de actividades  (12) concluidas para la elaboración del reglamento  homologado a la  Ley de Acceso a una Vida Libre de Violencia y a la Ley de Igualdad  para Mujeres y Hombres / Total de  actividades  (12) para la elaboración del reglamento  homologado a la  Ley de Acceso a una Vida Libre de Violencia y a la Ley de Igualdad  para Mujeres y Hombres )*100",12,12,"Mensual","Porcentaje",{"v":1,"d":"100%"}," Portal Web del Municipio página de transparencia","Se dispone de personal y recursos",{"v":0,"d":"0.0"},{"v":0,"d":"0.0"},{"v":0,"d":"0.0"},{"v":72000,"d":"72,000.0"},{"v":0,"d":"0.0"},{"v":0,"d":"0.0"},{"v":0,"d":"0.0"},{"v":0,"d":"0.0"},{"v":0,"d":"0.0"},{"v":72000,"d":"$72,000.0"},{"v":15,"d":"$15.0"}]
[null,"Deportes","Componente 7",null,"Actividad Física y Deportiva Incrementada","Índice de actividad física y deportiva  (T7-AFyD)","Mide la relación de ciudadanos que hacen ejercicio o actividad fisica respecto a los que no lo hacen","Eficacia","Gestión","(valor resultante de sumar los valores individuales  de  los cosientes entre sus denominadores por su ponderacion asignada, que miden las  variables de: mantenimiento áreas, torneos relampagos, ligas deportivas y talleres deportivos  con su correspondientes ponderaciones de .3, .2, .2 y .3)",1325.7,1472,"Bimestral","Índice","0.22"," Portal Web del Municipio página de transparencia","Se dispone de personal y recursos",{"v":671689,"d":"$671,689.0"},{"v":191000,"d":"$191,000.0"},{"v":15000,"d":"$15,000.0"},{"v":0,"d":"$0.0"},{"v":0,"d":"$0.0"},{"v":0,"d":"$0.0"},{"v":0,"d":"$0.0"},{"v":0,"d":"$0.0"},{"v":0,"d":"$0.0"},{"v":877689,"d":"$877,689.0"}]
[null,null,"Actividad 7.1",null,"Programa de mantenimiento  preventivo de unidades y áreas deportivas","PORCENTAJE de cumplimiento al programa de mantenimiento de áreas deportivas (P72-CPMAD)","Mide los avances en la ejecución del programa de mantenimiento","Eficacia","Gestión","(Cantidad de áreas y espacios establecidos para la practica del deporte y la cultura física (15) con actividades y trabajos incluidos en el programa de mantenimiento / Total de áreas y espacios establecidos para la practica del deporte y la cultura física (20) con las actividades y trabajos establecidos en el programa de mantenimiento)*100",15,20,"Mensual","Porcentaje",{"v":0.75,"d":"75%"}," Portal Web del Municipio página de transparencia","Se dispone de personal y recursos",{"v":134337.8,"d":"134,337.8"},{"v":38200,"d":"38,200.0"},{"v":3000,"d":"3,000.0"},{"v":0,"d":"0.0"},{"v":0,"d":"0.0"},{"v":0,"d":"0.0"},{"v":0,"d":"0.0"},{"v":0,"d":"0.0"},{"v":0,"d":"0.0"},{"v":175537.8,"d":"$175,537.8"},{"v":20,"d":"$20.0"}]
[null,null,"Actividad 7.2",null,"Realizar torneos relámpago en cada comité vecinal deportivo","PORCENTAJE de cumplimiento del programa de torneos relámpago (P73-CPTR)","Mide los avances en la ejecución del programa de torneos","Eficacia","Gestión","(Cantidad de población (3000) que participa en torneos relampago -10 equipos en 15 ligas deportivas- en el municipio / Total de población (3600) que participa en torneos relampago -10 equipos en 15 ligas deportivas- en el municipio)*100",3000,3600,"Mensual","Porcentaje",{"v":0.8333,"d":"83.33%"}," Portal Web del Municipio página de transparencia","Se dispone de personal y recursos",{"v":100753.35,"d":"100,753.4"},{"v":28650,"d":"28,650.0"},{"v":2250,"d":"2,250.0"},{"v":0,"d":"0.0"},{"v":0,"d":"0.0"},{"v":0,"d":"0.0"},{"v":0,"d":"0.0"},{"v":0,"d":"0.0"},{"v":0,"d":"0.0"},{"v":131653.35,"d":"$131,653.4"},{"v":15,"d":"$15.0"}]
[null,null,"Actividad 7.3",null,"Organizar una liga deportiva en cada comité vecinal","PORCENTAJE de avance en la organización de  ligas deportivas (P74-AOLD)","Mide el avance en la organización y funcionamiento de las ligas deportivas que incorporan población que participa en los proyectos de cultura física en el  municipio (estado).","Eficacia","Gestión","(Cantidad de población (3600) que participa en proyectos de cultura fisica -100 jovenes- y deporte -15 ligas deportivas- en el municipio / Total de población (3700) que participa en proyectos de cultura fisica y deporte en el municipio)*100",3600,3700,"Mensual","Porcentaje",{"v":0.9727,"d":"97.27%"}," Portal Web del Municipio página de transparencia","Se dispone de personal y recursos",{"v":235091.15000000002,"d":"235,091.2"},{"v":66850.00000000001,"d":"66,850.0"},{"v":5250.000000000001,"d":"5,250.0"},{"v":0,"d":"0.0"},{"v":0,"d":"0.0"},{"v":0,"d":"0.0"},{"v":0,"d":"0.0"},{"v":0,"d":"0.0"},{"v":0,"d":"0.0"},{"v":307191.1500000001,"d":"$307,191.2"},{"v":35.00000000000001,"d":"$35.0"}]
[null,null,"Actividad 7.4",null,"Desarrollar talleres de capacitación y entrenamiento para atletas a la olimpiada nacional","PORCENTAJE de cumplimiento de talleres deportivos a atletas (P75-ATDA)","Mide los avances de ejecución de los talleres deportivos con el número de atletas jaliscienses que se integran a la selección nacional.","Eficacia","Gestión","(Cantidad de atletas y deportistas (4) que calificaron en los talleres de capacitación y entrenamiento para competir en la olimpiada nacional / Total de atletas y deportistas (20) que participan en los talleres de capacitación y entrenamiento para competir en la olimpiada nacional)*100",4,20,"Mensual","Porcentaje",{"v":0.2,"d":"20%"}," Portal Web del Municipio página de transparencia","Se dispone de personal y recursos",{"v":201506.7,"d":"201,506.7"},{"v":57300,"d":"57,300.0"},{"v":4500,"d":"4,500.0"},{"v":0,"d":"0.0"},{"v":0,"d":"0.0"},{"v":0,"d":"0.0"},{"v":0,"d":"0.0"},{"v":0,"d":"0.0"},{"v":0,"d":"0.0"},{"v":263306.7,"d":"$263,306.7"},{"v":30,"d":"$30.0"}]
[null,"Educación","Componente 8",null,"Cobertura Educativa Ampliada","Tasa de Cobertura Educativa (T8-CE)","Mide la relación de coberura educativa reflejado en el grado municipal promedio de escolaridad","Eficacia","Gestión","(Tasa de cobertura educativa básica, media y superior municipal por cada uno de los 452 alumnos que se inscriben en educacion superior en los planteles educativos en el municipio   ",452,15262,"Bimestral","Tasa","30 : 1000"," Portal Web del Municipio página de transparencia","Se dispone de personal y recursos",{"v":503225,"d":"$503,225.0"},{"v":19000,"d":"$19,000.0"},{"v":4000,"d":"$4,000.0"},{"v":0,"d":"$0.0"},{"v":0,"d":"$0.0"},{"v":0,"d":"$0.0"},{"v":0,"d":"$0.0"},{"v":0,"d":"$0.0"},{"v":0,"d":"$0.0"},{"v":526225,"d":"$526,225.0"}]
[null,null,"Actividad 8.1",null,"Tramitar a través de la Dirección de Atención a la Infraestructura Escolar, equipamiento de escuelas.","PORCENTAJE de planteles de educación básica que participaron en el programa de infraestructura escolar (P76-CTIE)","Mide el avance en los tramites para que los planteles de educación básica sean beneficiados  en el programa de infraestructura escolar","Eficacia","Gestión","(Cantidad de planteles de educación básica  (32) -Preescolar 15, escuelas primarias 17, escuela secundaria 0- beneficiadas  con el programa de infraestructura escolar / Total planteles de educación básica (68) -Preescolar 29, escuelas primarias 31, escuelas secundaria 8- que necesitan ser beneficiadas  con el programa de infraestructura escolar)*100",32,68,"Mensual","Porcentaje",{"v":0.4705,"d":"47.05%"}," Portal Web del Municipio página de transparencia","Se dispone de personal y recursos",{"v":125806.25,"d":"125,806.3"},{"v":4750,"d":"4,750.0"},{"v":1000,"d":"1,000.0"},{"v":0,"d":"0.0"},{"v":0,"d":"0.0"},{"v":0,"d":"0.0"},{"v":0,"d":"0.0"},{"v":0,"d":"0.0"},{"v":0,"d":"0.0"},{"v":131556.25,"d":"$131,556.3"},{"v":25,"d":"$25.0"}]
[null,null,"Actividad 8.2",null,"Llevar a todas las escuelas de nivel Superior y medio superior, programas de valores y autoestima. SEP y ORG. Part. Programa de becas.  Llevar a cabo conferencias motivacionales. Caja de herramientas contra la deserción escolar, SEMS","PORCENTAJE de cumplimiento del programa de valores, becas y disminución de la deserción escolar (P77-CPVBDDE)","Mide el cumplimiento del programa y planteles participando","Eficacia","Gestión","(Cantidad de estudiantes (1200) que participaron en los 5 programas de capacitacion y seguimiento de las escuelas de nivel Superior (1) y medio superior (6), de afiliacion federal, estatal o particular.  / Total de estudiantes (1800) que participaron en los 5 programas de capacitacion y seguimiento de las escuelas de nivel Superior (3) y medio superior (3), 1-programas de valores y autoestima. 2-Programa de becas.  3-Llevar a cabo conferencias motivacionales. 4-Caja de herramientas contra la deserción escolar. 5- SEMS. de afiliacion federal, estatal o particular)*100",1000,1400,"Mensual","Porcentaje",{"v":0.7142,"d":"71.42%"}," Portal Web del Municipio página de transparencia","Se dispone de personal y recursos",{"v":377418.75,"d":"377,418.8"},{"v":14250,"d":"14,250.0"},{"v":3000,"d":"3,000.0"},{"v":0,"d":"0.0"},{"v":0,"d":"0.0"},{"v":0,"d":"0.0"},{"v":0,"d":"0.0"},{"v":0,"d":"0.0"},{"v":0,"d":"0.0"},{"v":394668.75,"d":"$394,668.8"},{"v":75,"d":"$75.0"}]
[null,"Cultura y recreación","Componente 9",null,"Participación en Actividades Culturales y Recreativas Incrementada","TASA de participación ciudadana en actividades culturales, recreativas y festivales  (T9-PACyD)","Mide el aumento en la participación de la ciudadania en las actividades culturales y recreativas","Eficacia","Gestión","(Tasa de participación ciudadana en actividades culturales, recreativas y festivales  por cada 1000 habitantes    ",6800,75000,"Bimestral","Tasa","90 : 1000"," Portal Web del Municipio página de transparencia","Se dispone de personal y recursos",{"v":543539,"d":"$543,539.0"},{"v":45000,"d":"$45,000.0"},{"v":4000,"d":"$4,000.0"},{"v":0,"d":"$0.0"},{"v":0,"d":"$0.0"},{"v":0,"d":"$0.0"},{"v":0,"d":"$0.0"},{"v":0,"d":"$0.0"},{"v":0,"d":"$0.0"},{"v":592539,"d":"$592,539.0"}]
[null,null,"Actividad 9.1",null,"Desarrollar talleres de arte y danza en plazas y espacios públicos","PORCENTAJE de cumplimiento de talleres culturales (P78-CTC)","Mide los avances en la ejecución de los talleres en plazas y espacios públicos","Eficacia","Gestión","(Cantidad de talleres (6) realizados dentro del programa de arte y danza en las diferentes plazas y espacios destinados para ello en el municipio con 25 participantes en cada uno / Total  talleres (6) realizados dentro del programa de arte y danza en las diferentes plazas y espacios destinados para ello en el municipio)*100",6,6,"Mensual","Porcentaje",{"v":1,"d":"100%"}," Portal Web del Municipio página de transparencia","Se dispone de personal y recursos",{"v":135884.75,"d":"135,884.8"},{"v":11250,"d":"11,250.0"},{"v":1000,"d":"1,000.0"},{"v":0,"d":"0.0"},{"v":0,"d":"0.0"},{"v":0,"d":"0.0"},{"v":0,"d":"0.0"},{"v":0,"d":"0.0"},{"v":0,"d":"0.0"},{"v":148134.75,"d":"$148,134.8"},{"v":25,"d":"$25.0"}]
[null,null,"Actividad 9.2",null,"Impartir cursos en materia de canto, música, pintura, danza etc..","PORCENTAJE de cumplimiento de cursos culturales (P79-CCC)","Mide el cumplimiento de los cursos artisticos y el capital humano artístico ocupado y empleado","Eficacia","Gestión","(Cantidad de cursos  (6) realizados dentro del programa de canto, musica, pintura y danza  en las diferentes plazas y espacios destinados para ello en el municipio con 25 participantes en cada uno  / Total cursos  (6) programados dentro del programa de canto, musica, pintura y danza  en las diferentes plazas y espacios destinados para ello en el municipio)*100",6,6,"Mensual","Porcentaje",{"v":1,"d":"100%"}," Portal Web del Municipio página de transparencia","Se dispone de personal y recursos",{"v":163061.7,"d":"163,061.7"},{"v":13500,"d":"13,500.0"},{"v":1200,"d":"1,200.0"},{"v":0,"d":"0.0"},{"v":0,"d":"0.0"},{"v":0,"d":"0.0"},{"v":0,"d":"0.0"},{"v":0,"d":"0.0"},{"v":0,"d":"0.0"},{"v":177761.7,"d":"$177,761.7"},{"v":30,"d":"$30.0"}]
[null,null,"Actividad 9.3",null,"Realizar festivales, eventos culturales y tradiciones","PORCENTAJE de cumplimiento del programa de festivales, eventos y tradiciones (P80-CPFET)","Mide la proporción de eventos y adiestramientos culturales dirigidos a grupos prioritarios","Eficacia","Gestión","(Cantidad de eventos (13) realizados dentro del programa de festivales, culturales y tradicionales en las diferentes plazas y espacios destinados para ello en el municipio con 500 participantes en cada uno  / Total de eventos (13) realizados dentro del programa de festivales, culturales y tradicionales en las diferentes plazas y espacios destinados para ello en el municipio)*100",13,13,"Mensual","Porcentaje",{"v":1,"d":"100%"}," Portal Web del Municipio página de transparencia","Se dispone de personal y recursos",{"v":244592.55,"d":"244,592.6"},{"v":20250,"d":"20,250.0"},{"v":1800,"d":"1,800.0"},{"v":0,"d":"0.0"},{"v":0,"d":"0.0"},{"v":0,"d":"0.0"},{"v":0,"d":"0.0"},{"v":0,"d":"0.0"},{"v":0,"d":"0.0"},{"v":266642.55,"d":"$266,642.6"},{"v":45,"d":"$45.0"}]
[null,"Servicios públicos","Componente 10",null,"Tasa de Urbanización Incrementada","TASA de urbanización (T10-U)","Mide la relación de ideal minima de equipamiento en centros de población","Eficacia","Gestión","(Tasa de servicios e infraestructura atendidos en los fracionamientos por cada 10 esteblecidos en los respectivos programas   ",13,18,"Bimestral","Tasa","7 : 10"," Portal Web del Municipio página de transparencia","Se dispone de personal y recursos",{"v":1691200,"d":"$1,691,200.0"},{"v":1345993,"d":"$1,345,993.0"},{"v":173000,"d":"$173,000.0"},{"v":0,"d":"$0.0"},{"v":0,"d":"$0.0"},{"v":0,"d":"$0.0"},{"v":0,"d":"$0.0"},{"v":0,"d":"$0.0"},{"v":6000000,"d":"$6,000,000.0"},{"v":9210193,"d":"$9,210,193.0"}]
[null,null,"Actividad 10.1",null,"Elaborar el programa de servicios básicos necesarios por fraccionamiento","PORCENTAJE de avance del programa de servicios básicos por fraccionamiento (P81-APSBF)","Mide el avance en el programa de servicios básicos necesarios en fraccionamientos","Eficacia","Gestión","(Cantidad de variables (5) a atendidas dentro del programa de servicios básicos necesarios en fraccionamientos / Total de variables (8) a considerar dentro del programa de servicios básicos necesarios en fraccionamientos)*100",5,8,"Mensual","Porcentaje",{"v":0.625,"d":"62.50%"}," Portal Web del Municipio página de transparencia","Se dispone de personal y recursos",{"v":1014720,"d":"1,014,720.0"},{"v":807595.8,"d":"807,595.8"},{"v":103800,"d":"103,800.0"},{"v":0,"d":"0.0"},{"v":0,"d":"0.0"},{"v":0,"d":"0.0"},{"v":0,"d":"0.0"},{"v":0,"d":"0.0"},{"v":3600000,"d":"3,600,000.0"},{"v":5526115.8,"d":"$5,526,115.8"},{"v":60,"d":"$60.0"}]
[null,null,"Actividad 10.2",null,"Elaborar el programa de infraestructura necesaria por fraccionamiento","PORCENTAJE de avance del programa de infraestructura por fraccionamiento (P82-APIF)","Mide el avance en el programa de infraestructura básica necesaria en fraccionamientos","Eficacia","Gestión","(Cantidad de variables (8) a atendidas dentro del programa de infraestructura en fraccionamientos / Total de variables (10) a considerar dentro del programa de infraestructura en fraccionamientos)*100",8,10,"Mensual","Porcentaje",{"v":0.8,"d":"80%"}," Portal Web del Municipio página de transparencia","Se dispone de personal y recursos",{"v":676480,"d":"676,480.0"},{"v":538397.2,"d":"538,397.2"},{"v":69200,"d":"69,200.0"},{"v":0,"d":"0.0"},{"v":0,"d":"0.0"},{"v":0,"d":"0.0"},{"v":0,"d":"0.0"},{"v":0,"d":"0.0"},{"v":2400000,"d":"2,400,000.0"},{"v":3684077.2,"d":"$3,684,077.2"},{"v":40,"d":"$40.0"}]
[null,"Cementerios","Componente 11",null,"Satisfacción en Servicios de Cementerios Incrementada","INDICE de satisfacción en el servicios de cementerios (V1-SSC)","Mide el nivel de satisfaccion de la ciudadania que acude a los cementerios ","Eficacia","Gestión","(valor resultante de sumar los valores individuales  de  los cosientes entre sus denominadores por su ponderacion asignada, que miden las  variables de: actividades y reorganización, ampliacion servicios y difusión reglamento con su correspondientes ponderaciones de .3, .4, y .3)",883,2813.6,"Bimestral","Índice",0.31," Portal Web del Municipio página de transparencia","Se dispone de personal y recursos",{"v":189494,"d":"$189,494.0"},{"v":32000,"d":"$32,000.0"},{"v":6000,"d":"$6,000.0"},{"v":0,"d":"$0.0"},{"v":0,"d":"$0.0"},{"v":0,"d":"$0.0"},{"v":0,"d":"$0.0"},{"v":0,"d":"$0.0"},{"v":0,"d":"$0.0"},{"v":227494,"d":"$227,494.0"}]
[null,null,"Actividad 11.1",null,"Programa de actividades y reorganización administrativa de los cementerios","PORCENTAJE de avance del programa administrativo de cementerios (P83-APAC)","Mide el avance en el programa de actividades para el cementerio","Eficacia","Gestión","(Cantidad de actividades administrativas y organizacionales a desarrolladas dentro del programa anual de trabajo (8) / Total de actividades administrativas y organizacionales a desarrollar dentro del programa anual de trabajo (12) )*100",10,12,"Mensual","Porcentaje",{"v":0.8333,"d":"83.33%"}," Portal Web del Municipio página de transparencia","Se dispone de personal y recursos",{"v":37898.8,"d":"37,898.8"},{"v":6400.000000000001,"d":"6,400.0"},{"v":1200.0000000000002,"d":"1,200.0"},{"v":0,"d":"0.0"},{"v":0,"d":"0.0"},{"v":0,"d":"0.0"},{"v":0,"d":"0.0"},{"v":0,"d":"0.0"},{"v":0,"d":"0.0"},{"v":45498.80000000001,"d":"$45,498.8"},{"v":20.000000000000004,"d":"$20.0"}]
[null,null,"Actividad 11.2",null,"Programa de ampliación de red de alumbrado y agua potable en los panteones municipales","PORCENTAJE de implementación del programa de alumbrado y agua potable en cementerios (P84-IPAAPC)","Mide el cumplimiento del programa de servicios en los cementerios","Eficacia","Gestión","(Cantidad de metros lineales ampliados en la red de alumbrado publico (300) y agua potable (400) dentro del programa de ampliación de las instalaciones de los panteones municipales  / Total de metros lineales necesarios de ampliar en la red de alumbrado publico (600) y agua potable (800) dentro de las instalaciones de los panteones municipales)*100",700,1400,"Mensual","Porcentaje",{"v":0.5,"d":"50%"}," Portal Web del Municipio página de transparencia","Se dispone de personal y recursos",{"v":132645.8,"d":"132,645.8"},{"v":22400,"d":"22,400.0"},{"v":4200,"d":"4,200.0"},{"v":0,"d":"0.0"},{"v":0,"d":"0.0"},{"v":0,"d":"0.0"},{"v":0,"d":"0.0"},{"v":0,"d":"0.0"},{"v":0,"d":"0.0"},{"v":159245.8,"d":"$159,245.8"},{"v":70,"d":"$70.0"}]
[null,null,"Actividad 11.3",null,"Programa de difusión del reglamento municipal a los propietarios y ciudadanía en general.","PORCENTAJE de cumplimiento del programa de difusión del reglamento de cementerios (P85-CPDRC)","Mide el nivel de conocimiento por la ciudadania del reglamento de cementerios","Eficacia","Gestión","(Cantidad de familias (2000) que cuentan con espacios ocupados en los cementerios municipales y familias de la pobalcion municipal que pueden participar en el programa de difusion del reglamento de cementerios y que les  puede interesar conocer  el uso y aplicación / Total de familias (7500) que radican en el territorio municipal que pueden ocupar espcios en los cementerios municipales  que les puede interesar conocer el reglamento de cementerios municipal  sobre el uso y aplicación )*100",2000,7500,"Mensual","Porcentaje",{"v":0.2666,"d":"26.66%"}," Portal Web del Municipio página de transparencia","Se dispone de personal y recursos",{"v":18949.4,"d":"18,949.4"},{"v":3200.0000000000005,"d":"3,200.0"},{"v":600.0000000000001,"d":"600.0"},{"v":0,"d":"0.0"},{"v":0,"d":"0.0"},{"v":0,"d":"0.0"},{"v":0,"d":"0.0"},{"v":0,"d":"0.0"},{"v":0,"d":"0.0"},{"v":22749.400000000005,"d":"$22,749.4"},{"v":10.000000000000002,"d":"$10.0"}]
[null,"DIF","Componente 12",null,"Atención en el Dif Incrementada","Índice de atención en el DIF municipal (T11-ADIFM)","Mide la relación en la atención a la ciudadania que solicita apoyo","Eficacia","Gestión","(valor resultante de sumar los valores individuales  de  los cosientes entre sus denominadores por su ponderacion asignada, que miden las  variables de: transparencia de información, ampliacion horario, atencion familiar y capacitación laboral con su correspondientes ponderaciones de .2, .2, .3,  y .3)",216.6,241,"Bimestral","Índice","0.898"," Portal Web del Municipio página de transparencia","Se dispone de personal y recursos",{"v":0,"d":"$0.0"},{"v":0,"d":"$0.0"},{"v":0,"d":"$0.0"},{"v":4520000,"d":"$4,520,000.0"},{"v":0,"d":"$0.0"},{"v":0,"d":"$0.0"},{"v":0,"d":"$0.0"},{"v":0,"d":"$0.0"},{"v":0,"d":"$0.0"},{"v":4520000,"d":"$4,520,000.0"}]
[null,null,"Actividad 12.1",null,"Mantener y actualizado el portal web de transparencia con la información pública fundamental, Atender las solicitudes de información solicitadas por transparencia ","PORCENTAJE de actualización del portal Web de transparencia DIF (P86-APWTD)","Mide el cumplimiento en la actualizacion de la información en las plataformas de transparencia","Eficacia","Gestión","(Cantidad de solicitudes de informacion (432) que se reciben en la direccion municipal de transparencia a traves de los diferentes mecanismos para atender a la ciudadania y que se dictaminen positivamente/ Total de solicitudes de informacion (450) que se reciben en la direccion municipal de transparencia a traves de los diferentes mecanismos para atender a la ciudadania)*100",432,450,"Mensual","Porcentaje",{"v":0.96,"d":"96%"}," Portal Web del Municipio página de transparencia","Se dispone de personal y recursos",{"v":0,"d":"0.0"},{"v":0,"d":"0.0"},{"v":0,"d":"0.0"},{"v":452000,"d":"452,000.0"},{"v":0,"d":"0.0"},{"v":0,"d":"0.0"},{"v":0,"d":"0.0"},{"v":0,"d":"0.0"},{"v":0,"d":"0.0"},{"v":452000,"d":"$452,000.0"},{"v":10,"d":"$10.0"}]
[null,null,"Actividad 12.2",null,"Mejorar la atención a las familias mediante la ampliación de horario de atención y talleres de prevención ","PORCENTAJE de ampliación de horario y talleres realizados (P87-AHTR)","Mide el incremento en la atención a las familias con el incremento de horario y talleres de capacitación","Eficacia","Gestión","(Cantidad de familias (444) que se han podido atender con las (56) horas adicionales mensuales para mejorar la atencion mediante la ampliación de horario de atención y capacitación / Total de  familias (500) que se espera atender con la ampliación de horario de atención y capacitación)*100",444,500,"Mensual","Porcentaje",{"v":0.888,"d":"88.80%"}," Portal Web del Municipio página de transparencia","Se dispone de personal y recursos",{"v":0,"d":"0.0"},{"v":0,"d":"0.0"},{"v":0,"d":"0.0"},{"v":678000,"d":"678,000.0"},{"v":0,"d":"0.0"},{"v":0,"d":"0.0"},{"v":0,"d":"0.0"},{"v":0,"d":"0.0"},{"v":0,"d":"0.0"},{"v":678000,"d":"$678,000.0"},{"v":15,"d":"$15.0"}]
[null,null,"Actividad 12.3",null,"Programa de atención de solicitudes de apoyo a familias y personas con algún tipo de vulnerabilidad  relacionadas a la salud, discapacidad, medidas de protección, atención jurídica y/o psicológica, etc.","PORCENTAJE de atención a solicitudes recibidas (P88-ASR)","Mide el incremento en la atención a la ciudadania y familias en situacion  vulnerable","Eficacia","Gestión","(Cantidad de ciudadanos, familias y personas con algún tipo de vulnerabilidad  relacionadas a la salud, discapacidad, medidas de protección, atención jurídica y/o psicológica (130) que solicitan apoyo mensualmente y se les puede otorgar / Total de de ciudadanos, familias y personas con algún tipo de vulnerabilidad  relacionadas a la salud, discapacidad, medidas de protección, atención jurídica y/o psicológica (160) que solicitan apoyo mensualmente)*100",130,160,"Mensual","Porcentaje",{"v":0.8125,"d":"81.25%"}," Portal Web del Municipio página de transparencia","Se dispone de personal y recursos",{"v":0,"d":"0.0"},{"v":0,"d":"0.0"},{"v":0,"d":"0.0"},{"v":2486000,"d":"2,486,000.0"},{"v":0,"d":"0.0"},{"v":0,"d":"0.0"},{"v":0,"d":"0.0"},{"v":0,"d":"0.0"},{"v":0,"d":"0.0"},{"v":2486000,"d":"$2,486,000.0"},{"v":55,"d":"$55.0"}]
[null,null,"Actividad 12.4",null,"Apoyo en la gestión de ofertas laborales, capacitación laboral, fomentar cultura de emprendimiento y procesos que les ayuden a mejorar su condición.","PORCENTAJE de gestiones exitosas (P89-GE)","Mide el incremento en la solicitud de apoyo para encontrar una actividad laboral","Eficacia","Gestión","(Cantidad de ciudadanos (8) que logra colocar el DIF mensualmente en un empleo despues de recibir una capacitacion para encontrar un empleo personal / Total de ciudadanos (10) que acuden mensualmente al DIF a solicitar apoyo para conseguir una capacitacion para encontrar un empleo personal)*100",8,10,"Mensual","Porcentaje",{"v":0.8,"d":"80%"}," Portal Web del Municipio página de transparencia","Se dispone de personal y recursos",{"v":0,"d":"0.0"},{"v":0,"d":"0.0"},{"v":0,"d":"0.0"},{"v":904000,"d":"904,000.0"},{"v":0,"d":"0.0"},{"v":0,"d":"0.0"},{"v":0,"d":"0.0"},{"v":0,"d":"0.0"},{"v":0,"d":"0.0"},{"v":904000,"d":"$904,000.0"},{"v":20,"d":"$20.0"}]
[null,"Atención ciudadana","Componente 13",null,"Atención Ciudadana Incrementada","TASA de atención ciudadana (T12-AC)","Mide el aumento en la relación de solicitudes de atencion a la ciudadania","Eficacia","Gestión","(Tasa de solicitudes recibidas y dirigidas a la direccion que atienede el tema relacionado y resueltas satisfactoriamente por cada 100 solicitudes     ",144,180,"Bimestral","Tasa","80 : 100"," Portal Web del Municipio página de transparencia","Se dispone de personal y recursos",{"v":188295,"d":"$188,295.0"},{"v":26000,"d":"$26,000.0"},{"v":4000,"d":"$4,000.0"},{"v":0,"d":"$0.0"},{"v":0,"d":"$0.0"},{"v":0,"d":"$0.0"},{"v":0,"d":"$0.0"},{"v":0,"d":"$0.0"},{"v":0,"d":"$0.0"},{"v":218295,"d":"$218,295.0"}]
[null,null,"Actividad 13.1",null,"Eficientizar el programa adaptado en la nube para la pronta atención de los reportes recibidos.","PORCENTAJE de atención concluida a reportes recibidos (P90-ACRR)","Mide el incremento en la conclusion exitosa de solicitudes de apoyo ","Eficacia","Gestión","(Cantidad de solicitudes y reportes de apoyo  (15) recibidas en la direccion de atencion a la ciudadania por mes y colocadas en el programa adaptado en la nube para su seguimiento y resolución por la direccion directamente involucrada en el transcurso de dicho mes / Total de solicitudes y reportes de apoyo  (15) recibidas en la direccion de atencion a la ciudadania por mes y que se a dado puntual seguimiento a su solución por la direccion directamente involucrada)*100",15,15,"Mensual","Porcentaje",{"v":1,"d":"100%"}," Portal Web del Municipio página de transparencia","Se dispone de personal y recursos",{"v":188295,"d":"188,295.0"},{"v":26000,"d":"26,000.0"},{"v":4000,"d":"4,000.0"},{"v":0,"d":"0.0"},{"v":0,"d":"0.0"},{"v":0,"d":"0.0"},{"v":0,"d":"0.0"},{"v":0,"d":"0.0"},{"v":0,"d":"0.0"},{"v":218295,"d":"$218,295.0"},{"v":100,"d":"$100.0"}]
[null,"Participación ciudadana","Componente 14",null,"Participación Ciudadana Incrementada","TASA de participación ciudadana (T13-PC)","Mide la relacion de participación de la ciudadania en lo que se quiere comunicar","Eficacia","Gestión","(Tasa de ciudadanos que participan en las sesiones de los comites vecinales para atender el plan anual de sesiones  por cada consejero    ",300,35,"Bimestral","Tasa","8.5 : 1"," Portal Web del Municipio página de transparencia","Se dispone de personal y recursos",{"v":223412,"d":"$223,412.0"},{"v":14000,"d":"$14,000.0"},{"v":4000,"d":"$4,000.0"},{"v":0,"d":"$0.0"},{"v":0,"d":"$0.0"},{"v":0,"d":"$0.0"},{"v":0,"d":"$0.0"},{"v":0,"d":"$0.0"},{"v":0,"d":"$0.0"},{"v":241412,"d":"$241,412.0"}]
[null,null,"Actividad 14.1",null,"Coordinar el programa anual de sesiones del Consejo de Participación Ciudadana.","PORCENTAJE de cumplimiento del programa anual de sesiones del CPC (P91-CPASC)","Mide la participación de los integrantes de los consejo de participación ciudadana en el programa anual de sesiones","Eficacia","Gestión","(Cantidad de sesiones (20) entre los (5) consejos vecinales ciudadanos en los que se aborda plan  anual de visitas trimestrales respecto a temas de importancia  y capacitación sobre los beneficios de la participación ciudadana / Total de sesiones (20) entre los (5) consejos vecinales ciudadanos en los que se aborda plan  anual de visitas bimestral respecto a temas de importancia  y capacitación sobre los beneficios de la participación ciudadana)*100",20,20,"Mensual","Porcentaje",{"v":1,"d":"100%"}," Portal Web del Municipio página de transparencia","Se dispone de personal y recursos",{"v":89364.8,"d":"89,364.8"},{"v":5600,"d":"5,600.0"},{"v":1600,"d":"1,600.0"},{"v":0,"d":"0.0"},{"v":0,"d":"0.0"},{"v":0,"d":"0.0"},{"v":0,"d":"0.0"},{"v":0,"d":"0.0"},{"v":0,"d":"0.0"},{"v":96564.8,"d":"$96,564.8"},{"v":40,"d":"$40.0"}]
[null,null,"Actividad 14.2",null,"Plan de visitas a las localidades para impartir cursos de orientación y los beneficios de la participación ciudadana.","PORCENTAJE de cumplimiento del plan de visitas (P92-CPV)","Mide el nivel de participación en el plan de visitas","Eficacia","Gestión","(Cantidad de ciudadanos (270) del municipio que atienden el plan  anual de visitas trimestral en los 5  comites vecinales para capacitación sobre los beneficios de la participación ciudadana / Total de ciudadanos (300) del municipio que atienden el plan  anual de visitas bimestral para capacitación sobre los beneficios de la participación ciudadana)*100",270,300,"Mensual","Porcentaje",{"v":0.9,"d":"90%"}," Portal Web del Municipio página de transparencia","Se dispone de personal y recursos",{"v":134047.2,"d":"134,047.2"},{"v":8400.000000000002,"d":"8,400.0"},{"v":2400.0000000000005,"d":"2,400.0"},{"v":0,"d":"0.0"},{"v":0,"d":"0.0"},{"v":0,"d":"0.0"},{"v":0,"d":"0.0"},{"v":0,"d":"0.0"},{"v":0,"d":"0.0"},{"v":144847.2,"d":"$144,847.2"},{"v":60.00000000000001,"d":"$60.0"}]
[null,"Servicios médicos","Componente 15",null,"Calidad en Servicios de Salud Incrementada","INDICE de atención y calidad en los servicios de salud (T14-ASS) (T14-ASS)","Mide el nivel de satisfacción en los servicios de salud ofrecidos en el municipio por los SS","Eficacia","Gestión","(valor resultante de sumar los valores individuales  de  los cosientes entre sus denominadores por su ponderacion asignada, que miden las  variables de: participacion trabajadores, gestiones médicas, satisfaccion beneficiarios, personal y paramédicos con su correspondientes ponderaciones de .2, .3, .2,  y .3)",98.7,143.6,"Bimestral","Índice",0.68," Portal Web del Municipio página de transparencia","Se dispone de personal y recursos",{"v":1909015,"d":"$1,909,015.0"},{"v":1488500,"d":"$1,488,500.0"},{"v":63000,"d":"$63,000.0"},{"v":0,"d":"$0.0"},{"v":0,"d":"$0.0"},{"v":0,"d":"$0.0"},{"v":0,"d":"$0.0"},{"v":0,"d":"$0.0"},{"v":0,"d":"$0.0"},{"v":3460515,"d":"$3,460,515.0"}]
[null,null,"Actividad 15.1",null,"Coordinar la participación de los  trabajadores del Ayuntamiento en la seguridad social.","PORCENTAJE de participación de trabajadores en SS (P93-PTSS)","Mide la participación de los empleados de la administración municipal en los servicios de SS","Eficacia","Gestión","(Cantidad de emplados del ayuntamiento municipal (400) que hacen uso y participan de los servicios de seguridad social / Total de  emplados  (600) del ayuntamiento municipal que hacen uso y participan de los servicios de seguridad social)*100",400,600,"Mensual","Porcentaje",{"v":0.75,"d":"75%"}," Portal Web del Municipio página de transparencia","Se dispone de personal y recursos",{"v":763606,"d":"763,606.0"},{"v":595400,"d":"595,400.0"},{"v":25200,"d":"25,200.0"},{"v":0,"d":"0.0"},{"v":0,"d":"0.0"},{"v":0,"d":"0.0"},{"v":0,"d":"0.0"},{"v":0,"d":"0.0"},{"v":0,"d":"0.0"},{"v":1384206,"d":"$1,384,206.0"},{"v":40,"d":"$40.0"}]
[null,null,"Actividad 15.2",null,"Gestionar la creación de área de hemodiálisis,  cubículo de choque y programa de capacitación  a 5 médicos y 5 enfermeras ","PORCENTAJE de cumplimiento de las gestiones médicas (P94-CGM)","Mide los avances en las gestiones para mejorar la atención médica municipal","Eficacia","Gestión","(Cantidad de gestiones (3) necesarias para mejorar la infraestructura de atención y capacidades del personal que labora en ellos / Total de proyectos (3) que nececitan gestiones y financiamiento para mejorar los servicios de salud )*100",3,3,"Mensual","Porcentaje",{"v":1,"d":"100%"}," Portal Web del Municipio página de transparencia","Se dispone de personal y recursos",{"v":477253.75,"d":"477,253.8"},{"v":372125,"d":"372,125.0"},{"v":15750,"d":"15,750.0"},{"v":0,"d":"0.0"},{"v":0,"d":"0.0"},{"v":0,"d":"0.0"},{"v":0,"d":"0.0"},{"v":0,"d":"0.0"},{"v":0,"d":"0.0"},{"v":865128.75,"d":"$865,128.8"},{"v":25,"d":"$25.0"}]
[null,null,"Actividad 15.3",null,"Elaborar mecanismos que permitan medir la satisfacción de los beneficiarios y la proporción de la reducción de costos por el servicio","PORCENTAJE de desarrollo y medición de satisfacción de beneficiarios (P95-DMSB)","Mide la satisfaccion de los beneficiarios en los servicios de SS","Eficacia","Gestión","(Cantidad de ciudadanos encuestados (80) durante el mes y resueltos como satisfechos del servicio recibido / Total de  ciudadanos (100) que solicitaron los servicios de salud por mes )*100",80,100,"Mensual","Porcentaje",{"v":0.8,"d":"80%"}," Portal Web del Municipio página de transparencia","Se dispone de personal y recursos",{"v":286352.25,"d":"286,352.3"},{"v":223275,"d":"223,275.0"},{"v":9450,"d":"9,450.0"},{"v":0,"d":"0.0"},{"v":0,"d":"0.0"},{"v":0,"d":"0.0"},{"v":0,"d":"0.0"},{"v":0,"d":"0.0"},{"v":0,"d":"0.0"},{"v":519077.25,"d":"$519,077.3"},{"v":15,"d":"$15.0"}]
[null,null,"Actividad 15.4",null,"Ampliar el personal y la atención de paramédicos en los centros de salud","PORCENTAJE de ampliación de personal en centros de salud (P96-APCS)","Mide el incremento de personal para la atencion a la ciudadania en los Centros de Salud","Eficacia","Gestión","(Cantidad de personal (6) nuevo que se integra para fortalecer los servicios municipales de salud  / Total de  personal (9) que ya labora en los  servicios municipales de salud)*100",6,9,"Mensual","Porcentaje",{"v":0.6666,"d":"66.66%"}," Portal Web del Municipio página de transparencia","Se dispone de personal y recursos",{"v":381803,"d":"381,803.0"},{"v":297700,"d":"297,700.0"},{"v":12600,"d":"12,600.0"},{"v":0,"d":"0.0"},{"v":0,"d":"0.0"},{"v":0,"d":"0.0"},{"v":0,"d":"0.0"},{"v":0,"d":"0.0"},{"v":0,"d":"0.0"},{"v":692103,"d":"$692,103.0"},{"v":20,"d":"$20.0"}]
[null,"Agencias municipales","Componente 16",null,"Atención en Agencias Incrementada","TASA de atención en Agencias (T15-AA)","Mide el incremento en la atencion a la ciudadania en las agencias municipales","Eficacia","Gestión","(Tasa de ciudadanos atendidos y/o consultados respecto a los servicios en supervicion de los delegados municipales por  cada 100 habitantes    ",60,100,"Bimestral","Tasa","60:100"," Portal Web del Municipio página de transparencia","Se dispone de personal y recursos",{"v":2917484,"d":"$2,917,484.0"},{"v":43000,"d":"$43,000.0"},{"v":7702818,"d":"$7,702,818.0"},{"v":300000,"d":"$300,000.0"},{"v":0,"d":"$0.0"},{"v":0,"d":"$0.0"},{"v":0,"d":"$0.0"},{"v":0,"d":"$0.0"},{"v":0,"d":"$0.0"},{"v":10963302,"d":"$10,963,302.0"}]
[null,null,"Actividad 16.1",null,"Programa de atención a la normatividad local y actividades asignadas en agencias.","PORCENTAJE de cumplimiento del programa de agencias (P97-CPA)","Mide el cumplimiento de las atribuciones de los agentes para atender a la ciudadania","Eficacia","Gestión","(Cantidad de articulos (6) del reglamento de gobierno y la administracion pública municipal que deberan atender los delegados municipales  / Total de  articulos (14) que deberan atender en el capitulo VII del raglamento de gobierno y la administración pública municipal)*100",6,14,"Mensual","Porcentaje",{"v":0.43,"d":"43%"}," Portal Web del Municipio página de transparencia","Se dispone de personal y recursos",{"v":2917484,"d":"2,917,484.0"},{"v":43000,"d":"43,000.0"},{"v":7702818,"d":"7,702,818.0"},{"v":300000,"d":"300,000.0"},{"v":0,"d":"0.0"},{"v":0,"d":"0.0"},{"v":0,"d":"0.0"},{"v":0,"d":"0.0"},{"v":0,"d":"0.0"},{"v":10963302,"d":"$10,963,302.0"},{"v":100,"d":"$100.0"}]
[null,"Delegaciones municipales","Componente 17",null,"Atención en Delegaciones Incrementada","TASA de atención en Delegaciones (T16-AD)","Mide el incremento en la atencion a la ciudadania en las delegaciones municipales","Eficacia","Gestión","(Tasa de ciudadanos atendidos y/o consultados respecto a los servicios en supervicion de los delegados municipales por  cada 100 habitantes    ",60,100,"Bimestral","Tasa","60:100"," Portal Web del Municipio página de transparencia","Se dispone de personal y recursos",{"v":2023784,"d":"$2,023,784.0"},{"v":73000,"d":"$73,000.0"},{"v":7702827,"d":"$7,702,827.0"},{"v":200000,"d":"$200,000.0"},{"v":0,"d":"$0.0"},{"v":0,"d":"$0.0"},{"v":0,"d":"$0.0"},{"v":0,"d":"$0.0"},{"v":0,"d":"$0.0"},{"v":9999611,"d":"$9,999,611.0"}]
[null,null,"Actividad 17.1",null,"Programa de atención a la normatividad local y actividades asignadas en delegaciones.","PORCENTAJE de cumplimiento del programa de delegaciones (P98-CPD)","Mide el cumplimiento de las atribuciones de los delegados para atender a la ciudadania","Eficacia","Gestión","(Cantidad de articulos (8) del reglamento de gobierno y la administracion pública municipal que deberan atender los delegados municipales  / Total de  articulos (14) que deberan atender en el capitulo VII del raglamento de gobierno y la administración pública municipal)*100",8,14,"Mensual","Porcentaje",{"v":0.57,"d":"57%"}," Portal Web del Municipio página de transparencia","Se dispone de personal y recursos",{"v":2023784,"d":"2,023,784.0"},{"v":73000,"d":"73,000.0"},{"v":7702827,"d":"7,702,827.0"},{"v":200000,"d":"200,000.0"},{"v":0,"d":"0.0"},{"v":0,"d":"0.0"},{"v":0,"d":"0.0"},{"v":0,"d":"0.0"},{"v":0,"d":"0.0"},{"v":9999611,"d":"$9,999,611.0"},{"v":100,"d":"$100.0"}]
[null,"Comunicación social","Componente 18",null,"Cobertura en Comunicación Social Incrementada","TASA de cobertura en materia de comunicación social (T17-CMCS)","Mide la relacion de ciudadanos informados de los temas que el ayuntamiento quiere comunicar ","Eficacia","Gestión","(Tasa de ciudadanos informados de los diferentes eventos y acciones del gobierno municipal  como resultado del programa de estrategias de comunicación esteblecido por  cada 100 habitantes    ",225,250,"Bimestral","Tasa","90:100"," Portal Web del Municipio página de transparencia","Se dispone de personal y recursos",{"v":535459,"d":"$535,459.0"},{"v":210000,"d":"$210,000.0"},{"v":9000,"d":"$9,000.0"},{"v":0,"d":"$0.0"},{"v":0,"d":"$0.0"},{"v":0,"d":"$0.0"},{"v":0,"d":"$0.0"},{"v":0,"d":"$0.0"},{"v":0,"d":"$0.0"},{"v":754459,"d":"$754,459.0"}]
[null,null,"Actividad 17.1",null,"Generar un programa de estrategias de comunicación masiva en diferentes canales informativos.","PORCENTAJE de cumplimiento del programa de comunicación social (P99-CPCS)","Mide los avances en la implementacion del programa de estrategias de comunicación masiva a la ciudadania","Eficacia","Gestión","(Cantidad de eventos (200) publicitados en las 5 estrategias (5, Periodico (25), periodico mural(50), Sítio Web del Municipio(25), Facebook(50), páguina de transparencia (50)) establecidas en el programa de comunicacion social / Total de  eventos (200) publicitados a traves de los diferentes espacios y estratgias de comunicación social)*100",200,200,"Mensual","Porcentaje",{"v":1,"d":"100%"}," Portal Web del Municipio página de transparencia","Se dispone de personal y recursos",{"v":321275.4,"d":"321,275.4"},{"v":126000,"d":"126,000.0"},{"v":5400,"d":"5,400.0"},{"v":0,"d":"0.0"},{"v":0,"d":"0.0"},{"v":0,"d":"0.0"},{"v":0,"d":"0.0"},{"v":0,"d":"0.0"},{"v":0,"d":"0.0"},{"v":452675.4,"d":"$452,675.4"},{"v":60,"d":"$60.0"}]
[null,null,"Actividad 17.2",null,"Asistir y apoyar en cada uno de los eventos a realizar.","PORCENTAJE de cumplimiento del programa de eventos (P100-CPE)","Mide el nivel de participación de la direccion en los eventos realizados ","Eficacia","Gestión","(Cantidad de eventos (25) organizados con la participación de comunicacion social  / Total de  eventos (50) organizados por las diferentes direcciones de la administración municipal)*100",25,50,"Mensual","Porcentaje",{"v":0.5,"d":"50%"}," Portal Web del Municipio página de transparencia","Se dispone de personal y recursos",{"v":214183.59999999998,"d":"214,183.6"},{"v":83999.99999999999,"d":"84,000.0"},{"v":3599.9999999999995,"d":"3,600.0"},{"v":0,"d":"0.0"},{"v":0,"d":"0.0"},{"v":0,"d":"0.0"},{"v":0,"d":"0.0"},{"v":0,"d":"0.0"},{"v":0,"d":"0.0"},{"v":301783.6,"d":"$301,783.6"},{"v":39.99999999999999,"d":"$40.0"}]

{"sheet":"Listas","index":3,"n_rows":174,"n_cols":33,"rows_kept":174,"hidden":true}
[]
[null,"Municipio","Denominación del Programa","Categoría programática","Unidad responsable","Fin","Función","Sub-función","Alineación con objetivos superiores del PND","Alineación con objetivos secundarios del PND","Alineación con objetivos superiores del PED","Alineación con objetivos secundarios del PED","Alineación con objetivos superior del PMD","Alineación con objetivos secundario del PMD","Nivel MIR","Resumen del nivel MIR","Resumen Narrativo (objetivos)","Cantidad de Gasto","Nombre","Definición","Dimensión","Tipo","Variables","Método de Cálculo","Frecuencia de Medición","Unidad de Medida","Valores Programados","Metas","Medios de Verificación","Supuestos"]
[null,"Acatic",null,"Subsidios sujetos a reglas de operación",null,"Gobierno","Legislación","1.1.1 Legislación","México_en_Paz","1.1. Promover y fortalecer la gobernabilidad democrática","O1_Incrementar_la_sostenibilidad_del_medio_ambiente_y_la_vulnerabilidad_del_cambio_climático","O1E1 Detener y revertir la degradación del medio ambiente",null,null,"Fin","F",{"$nulls":4},"Eficacia","Estratégico",null,null,"Mensual",{"$nulls":7},"Primer semestre"]
[null,"Acatlán de Juárez",null,"Otros subsidios",null,"Desarrollo_Social","Justicia","1.1.2 Fiscalización","México_Incluyente","1.2. Garantizar la seguridad nacional","O2_Impulsar_el_desarrollo_sostenible_de_las_regiones_del_estado","O1E2 Efectuar una ordenación y manejo sostenible de los bosques",null,null,"Propósito","P",{"$nulls":4},"Eficiencia","Gestión",null,null,"Bimestral",{"$nulls":7},"Segundo semestre"]
[null,"Ahualulco de Mercado",null,"Prestación de servicios públicos",null,"Desarrollo_Económico","Coordinación_Política_de_Gobierno","1.2.1 Impartición de Justicia","México_con_Educación_de_Calidad","1.3. Mejorar las condiciones de seguridad pública","O3_Promover_un_desarrollo_urbano_sostenible_equitativo_y_ordenado","O1E3 Frenar la pérdida de diversidad biológica",null,null,"Componentes","C1",{"$nulls":4},"Economía",{"$nulls":3},"Trimestral"]
[null,"Amacueca",null,"Provisión de bienes públicos",null,"Otros","Relaciones_Exteriores","1.2.2 Procuración de Justicia","México_Próspero","1.4. Garantizar un sistema de Justicia Penal eficaz, expedito, imparcial y transparente","O4_Garantizar_el_suministro_del_agua_para_población_y_actividades_productivas","O1E4 Incrementar el manejo sustentable de los residuos",null,null,"Actividades","C2",{"$nulls":4},"Calidad",{"$nulls":3},"Semestral"]
[null,"Amatitán",null,"Planeación, Seguimiento y Evaluación de políticas Públicas",null,null,"Asuntos_Financieros_y_Hacendarios","1.2.3 Reclusión y Readaptación Social","México_Con_Responsabilidad_Global","1.5. Garantizar el respeto y protección de los derechos humanos y la erradicación de la discriminación","O5_Mejorar_la_calidad_seguridad_y_sostenibilidad_de_la_movilidad_urbana","O1E5 Incrementar la producción y uso de fuentes de energía limpias",{"$nulls":3},"C3",{"$nulls":8},"Anual"]
[null,"Ameca",null,"Promoción y fomento",null,null,"Asuntos_de_Orden_Público_y_Seguridad_Interior","1.2.4 Derechos Humanos",null,"1.6. Salvaguardar a la población, a sus bienes y a su entorno ante un desastre de origen natural o humano","O6_Disminuir_los_factores_de_riesgo_y_mejorar_la_atención_ante_desastres","O1E6 Mitigar las emisiones de gases de efecto invernadero",{"$nulls":3},"C1A1",{"$nulls":8},"Bianual"]
[null,"San Juanito de Escobedo",null,"Regulación y Supervisión",null,null,"Otros_Servicios_Generales","1.3.1 Presidencia / Gubernatura",null,"2.1. Garantizar el ejercicio efectivo de los derechos sociales para toda la población","O7_Incrementar_la_formalidad_del_empleo_la_seguridad_social_y_estabilidad_laboral","O1E7 Ordenar y proteger de manera sostenible los ecosistemas lacustres y costeros",{"$nulls":3},"C1A2",{"$nulls":8},"Bienal"]
[null,"Arandas",null,"Específicos",null,null,"Protección_Ambiental","1.3.2 Política Interior",null,"2.2. Transitar hacia una sociedad equitativa e incluyente","O8_Mejorar_la_competitividad_y_el_crecimiento_inclusivo_y_sostenible_de_los_sectores_económicos","O1E8 Reducir la contaminación de acuíferos y aguas superficiales",{"$nulls":3},"C1A3",{"$nulls":8},"Periodo"]
[null,"El Arenal",null,"Proyectos de Inversión",null,null,"Vivienda_y_Servicios_a_la_Comunidad","1.3.3 Preservación y Cuidado del Patrimonio Público",null,"2.3. Asegurar el acceso a los servicios de salud","O9_Incrementar_de_forma_sostenible_la_productividad_y_rentabilidad_de_las_actividades_del_sector_primario","O1E9 Reducir la vulnerabilidad y aumentar la resiliencia de la sociedad, las cuencas hidrológicas y los ecosistemas naturales, urbanos y agropecuarios frente a los efectos adversos del cambio climático",{"$nulls":3},"C1A4"]
[null,"Atemajac de Brizuela",null,"Apoyo al Proceso Presupuestario y para Mejorar la Eficiencia Institucional",null,null,"Salud","1.3.4 Función Pública",null,"2.4. Ampliar el acceso a la seguridad social","O10_Incrementar_la_afluencia_y_la_derrama_económica_proveniente_del_turismo","O1E10 Revertir el deterioro de la calidad del aire",{"$nulls":3},"C2A1"]
[null,"Atengo",null,"Apoyo a la Función Pública y al Mejoramiento de la Gestión",null,null,"Recreación_Cultura_y_Otras_Manifestaciones_Sociales","1.3.5 Asuntos Jurídicos",null,"2.5. Proveer un entorno adecuado para el desarrollo de una vida digna","O11_Mejorar_la_conectividad_de_Jalisco_sus_regiones_y_municipios","O2E1 Actualizar los ordenamientos ecológicos territoriales y su aplicación efectiva",{"$nulls":3},"C2A2"]
[null,"Atenguillo",null,"Operaciones Ajenas",null,null,"Educación","1.3.6 Organización de Procesos Electorales",null,"3.1. Desarrollar el potencial humano de los mexicanos con educación de calidad","O12_Reducir_la_pobreza_y_la_desigualdad","O2E2 Desarrollar el potencial humano de las regiones con acceso a una educación de calidad",{"$nulls":3},"C2A3"]
[null,"Atotonilco el Alto",null,"Obligaciones de Cumplimiento de Resolución Jurisdiccional",null,null,"Protección_Social","1.3.7 Población",null,"3.2. Garantizar la inclusión y la equidad en el Sistema Educativo","O13_Proteger_los_derechos_y_ampliar_las_oportunidades_de_desarrollo_de_los_grupos_prioritarios","O2E3 Generar oportunidades de empleos dignos aprovechando de forma sustentable las potencialidades regionales",{"$nulls":3},"C2A4"]
[null,"Atoyac",null,"Desastres Naturales",null,null,"Otros_Asuntos_Sociales","1.3.8 Territorio",null,"3.3. Ampliar el acceso a la cultura como un medio para la formación integral\n de los ciudadanos","O14_Mejorar_la_salud_de_la_población","O2E4 Incrementar y mejorar la infraestructura productiva  y social",{"$nulls":3},"C3A1"]
[null,"Autlán de Navarro",null,"Pensiones y Jubilaciones.",null,null,"Asuntos_Económicos_Comerciales_y_Laborales_Generales","1.3.9 Otros Asuntos de Orden Público y Seguridad Interior",null,"3.4. Promover el deporte de manera incluyente para fomentar una cultura\n de salud","O15_Aumentar_el_acceso_de_la_población_a_una_vivienda_digna","O2E5 Mejorar la capacidad de gestión de los funcionarios y autoridades municipales",{"$nulls":3},"C3A2"]
[null,"Ayotlán",null,"Aportaciones a la Seguiridad Social",null,null,"Agropecuaria_Silvicultura_Pesca_y_Caza","1.4.1 Relaciones Exteriores",null,"3.5.Hacer del desarrollo científico, tecnológico y la innovación pilares para el progreso económico y social sostenible","O16_Incrementar_el_acceso_la_equidad_y_la_calidad_de_la_educación","O2E6 Reducir la pobreza y la desigualdad",{"$nulls":3},"C3A3"]
[null,"Ayutla",{"$nulls":4},"Combustibles_y_Energía","1.5.1 Asuntos Financieros",null,"4.1. Mantener la estabilidad macroeconómica del país","O17_Incrementar_el_desarrollo_tecnológico_la_investigación_científica_y_la_innovación","O3E1 Conservar los suelos, incrementar las áreas verdes y las reservas territoriales",{"$nulls":3},"C4A4"]
[null,"La Barca",{"$nulls":4},"Minería_Manufacturas_y_Construcción","1.5.2 Asuntos Hacendarios",null,"4.2. Democratizar el acceso al financiamiento de proyectos con potencial de crecimiento","O18_Garantizar_el_acceso_de_toda_la_población_a_la_cultura_y_las_diferentes_expresiones_artísticas","O3E2 Impulsar un desarrollo urbano orientado al transporte sustentable"]
[null,"Bolaños",{"$nulls":4},"Transporte","1.7.1 Policía",null,"4.3. Promover el empleo de calidad","O19_Aumentar_la_práctica_del_deporte_y_actividades_físicas_de_la_población","O3E3 Incrementar y mejorar los servicios y espacios públicos"]
[null,"Cabo Corrientes",{"$nulls":4},"Comunicaciones","1.7.2 Protección Civil",null,"4.4. Impulsar y orientar un crecimiento verde incluyente y facilitador que preserve nuestro atrimonio natural al mismo tiempo que genere riqueza, competitividad y empleo","O20_Reducir_la_incidencia_delictiva_y_mejorar_la_percepción_de_seguridad","O3E4 Mejorar la conectividad y articulación de las principales ciudades con una perspectiva regional e interestatal"]
[null,"Casimiro Castillo",{"$nulls":4},"Turismo","1.7.3 Otros Asuntos de Orden Público y Seguridad",null,"4.5. Democratizar el acceso a servicios de telecomunicaciones","O21_Mejorar_la_impartición_de_justicia_con_un_sistema_eficaz_expedito_imparcial_y_transparente","O3E5 Ordenar el crecimiento de las áreas urbanas y asegurar el cumplimiento de la normatividad inherente"]
[null,"Cihuatlán",{"$nulls":4},"Ciencia_Tecnología_e_Innovación","1.7.4 Sistema Nacional de Seguridad Pública",null,"4.6. Abastecer de energía al país con precios competitivos, calidad y eficiencia a lo largo de la cadena productiva","O22_Reducir_la_impunidad_mejorando_la_imparcialidad_transparencia_y_eficiencia_en_la_procuración_de_justicia","O3E6 Promover un crecimiento urbano equitativo mediante la oferta de suelo accesible y de calidad a los sectores de menores ingresos"]
[null,"Zapotlán el Grande",{"$nulls":4},"Otras_Industrias_y_Otros_Asuntos_Económicos","1.8.1 Servicios Registrales, Administrativos y Patrimoniales",null,"4.7. Garantizar reglas claras que incentiven el desarrollo de un mercado interno competitivo","O23_Garantizar_el_respeto_y_la_protección_de_los_derechos_humanos_y_eliminar_la_discriminación","O3E7 Reducir la contaminación del agua y aire, así como la visual y auditiva"]
[null,"Cocula",{"$nulls":4},"Transacciones_de_la_Deuda_Financiera_y_Costo_Financiero_Deuda","1.8.2 Servicios Estadísticos",null,"4.8. Desarrollar los sectores estratégicos del país","O24_Mejorar_la_estabilidad_y_funcionalidad_del_sistema_democrático","O3E8 Reducir la fragmentación territorial y política en las áreas metropolitanas mediante la aplicación de un modelo de gobernanza metropolitana"]
[null,"Colotlán",{"$nulls":4},"Transferencias_Participaciones_y_Aportaciones","1.8.3 Servicios de Comunicación y Medios",null,"4.9. Contar con una infraestructura de transporte que se refleje en menores costos para realizar la actividad económica","O25_Mejorar_la_efectividad_de_las_instituciones_públicas_y_gubernamentales","O4E1 Fortalecer el desarrollo y la capacidad técnica y financiera de los organismos operadores del agua"]
[null,"Concepción de Buenos Aires",{"$nulls":4},"Saneamiento_del_Sistema_Financiero","1.8.4 Acceso a la Información Pública Gubernamental",null,"4.10. Construir un sector agropecuario y pesquero productivo que garantice la seguridad alimentaria del país","O26_Mejorar_la_igualdad_entre_los_géneros_y_empoderar_a_las_mujeres","O4E2 Incrementar los niveles de tratamiento de aguas residuales y su reutilización"]
[null,"Cuautitlán de García Barragán",{"$nulls":4},"Adeudos_Anteriores","1.8.5 Otros",null,"4.11. Aprovechar el potencial turístico de México para generar una mayor derrama económica en el país","O27_Incrementar_la_capacidad_innovadora_en_los_sectores_social_privado_y_público","O4E3 Incrementar y diversificar las fuentes de abastecimiento y captación de agua"]
[null,"Cuautla",{"$nulls":5},"2.1.1 Ordenación de Desechos",null,"5.1. Ampliar y fortalecer la presencia de México en el mundo",null,"O4E4 Mejorar la potabilización de las aguas para el consumo humano"]
[null,"Cuquío",{"$nulls":5},"2.1.2 Administración del Agua",null,"5.2. Promover el valor de México en el mundo mediante la difusión económica, turística y cultural",null,"O4E5 Modernizar y ampliar la infraestructura hidroagrícola"]
[null,"Chapala",{"$nulls":5},"2.1.3 Ordenación de Aguas Residuales, Drenaje y Alcantarillado",null,"5.3. Reafirmar el compromiso del país con el libre comercio, la movilidad de capitales y la integración productiva",null,"O4E6 Ordenar el uso y aprovechamiento del agua en cuencas y acuíferos"]
[null,"Chimaltitán",{"$nulls":5},"2.1.4 Reducción de la Contaminación",null,"5.4. Velar por los intereses de los mexicanos en el extranjero y proteger los derechos de los extranjeros en el territorio nacional",null,"O4E7 Proteger y recuperar los bosques, humedales y ríos"]
[null,"Chiquilistlán",{"$nulls":5},"2.1.5 Protección de la Diversidad Biológica y del Paisaje",{"$nulls":3},"O4E8 Reducir el desperdicio del agua y racionalizar su uso"]
[null,"Degollado",{"$nulls":5},"2.1.6 Otros de Protección Ambiental",{"$nulls":3},"O5E1 Ampliar y articular la red de transporte público masivo incentivando la multimodalidad"]
[null,"Ejutla",{"$nulls":5},"2.2.1 Urbanización",{"$nulls":3},"O5E2 Incrementar el uso de medios alternativos de traslado, desincentivando el uso del automóvil"]
[null,"Encarnación de Díaz",{"$nulls":5},"2.2.2 Desarrollo Comunitario",{"$nulls":3},"O5E3 Mejorar la infraestructura y equipamiento para la movilidad motorizada y no motorizada"]
[null,"Etzatlán",{"$nulls":5},"2.2.3 Abastecimiento de Agua",{"$nulls":3},"O5E4 Mejorar la seguridad y la cultura vial"]
[null,"El Grullo",{"$nulls":5},"2.2.4 Alumbrado Público",{"$nulls":3},"O5E5 Modernizar los sistemas de transporte público en las ciudades"]
[null,"Guachinango",{"$nulls":5},"2.2.5 Vivienda",{"$nulls":3},"O6E1 Incrementar la capacitación y profesionalización del personal de protección civil"]
[null,"Guadalajara",{"$nulls":5},"2.2.6 Servicios Comunales",{"$nulls":3},"O6E2 Incrementar la cultura de protección civil en la sociedad, el gobierno y la empresa"]
[null,"Hostotipaquillo",{"$nulls":5},"2.2.7 Desarrollo Regional",{"$nulls":3},"O6E3 Mejorar los procedimientos para disminuir los riesgos y la atención de emergencias"]
[null,"Huejúcar",{"$nulls":5},"2.3.1 Prestación de Servicios de Salud a la Comunidad",{"$nulls":3},"O6E4 Mejorar los sistemas de información de los riesgos a los que está expuesta la población y su entorno"]
[null,"Huejuquilla el Alto",{"$nulls":5},"2.3.2 Prestación de Servicios de Salud a la Persona",{"$nulls":3},"O6E5 Mejorar y establecer sistemas de alerta temprana multirriesgos"]
[null,"La Huerta",{"$nulls":5},"2.3.3 Generación de Recursos para la Salud",{"$nulls":3},"O7E1 Aumentar la disponibilidad de capital humano mejor calificado adecuado a la demanda del mercado laboral"]
[null,"Ixtlahuacán de los Membrillos",{"$nulls":5},"2.3.4 Rectoría del Sistema de Salud",{"$nulls":3},"O7E2 Erradicar el trabajo infantil"]
[null,"Ixtlahuacán del Río",{"$nulls":5},"2.3.5 Protección Social en Salud",{"$nulls":3},"O7E3 Incrementar la certificación de competencias laborales y profesionales"]
[null,"Jalostotitlán",{"$nulls":5},"2.4.1 Deporte y Recreación",{"$nulls":3},"O7E4 Incrementar la cultura empresarial de la responsabilidad social"]
[null,"Jamay",{"$nulls":5},"2.4.2 Cultura",{"$nulls":3},"O7E5 Incrementar la productividad con beneficios compartidos, la empleabilidad y la capacitación en el trabajo"]
[null,"Jesús María",{"$nulls":5},"2.4.3 Radio, Televisión y Editoriales",{"$nulls":3},"O7E6 Mejorar la protección de los derechos del trabajador"]
[null,"Jilotlán de los Dolores",{"$nulls":5},"2.4.4 Asuntos Religiosos y Otras Manifestaciones Sociales",{"$nulls":3},"O7E7 Mejorar la remuneración y las condiciones laborales de la población ocupada"]
[null,"Jocotepec",{"$nulls":5},"2.5.1 Educación Básica",{"$nulls":3},"O7E8 Propiciar el equilibrio entre empleadores y trabajadores para preservar la paz laboral"]
[null,"Juanacatlán",{"$nulls":5},"2.5.2 Educación Media Superior",{"$nulls":3},"O8E1 Aumentar las exportaciones de las unidades productivas"]
[null,"Juchitlán",{"$nulls":5},"2.5.3 Educación Superior",{"$nulls":3},"O8E2 Aumentar los niveles de innovación tecnológica, empresarial y social"]
[null,"Lagos de Moreno",{"$nulls":5},"2.5.4 Posgrado",{"$nulls":3},"O8E3 Estimular el espíritu empresarial y el desarrollo de emprendedores"]
[null,"El Limón",{"$nulls":5},"2.5.5 Educación para Adultos",{"$nulls":3},"O8E4 Facilitar el acceso al financiamiento y la asistencia técnica, especialmente a la micro y pequeña empresa"]
[null,"Magdalena",{"$nulls":5},"2.5.6 Otros Servicios Educativos y Actividades Inherentes",{"$nulls":3},"O8E5 Incrementar el desarrollo y la integración de las cadenas productivas, de proveeduría y los clústeres"]
[null,"Santa María del Oro",{"$nulls":5},"2.6.1 Enfermedad e Incapacidad",{"$nulls":3},"O8E6 Incrementar la inversión extranjera directa"]
[null,"La Manzanilla de la Paz",{"$nulls":5},"2.6.2 Edad Avanzada",{"$nulls":3},"O8E7 Mejorar e incrementar la infraestructura productiva"]
[null,"Mascota",{"$nulls":5},"2.6.3 Familia e Hijos",{"$nulls":3},"O8E8 Mejorar la calidad y la productividad de las unidades económicas"]
[null,"Mazamitla",{"$nulls":5},"2.6.4 Desempleo",{"$nulls":3},"O8E9 Simplificar los trámites y agilizar los procesos de apertura de empresas"]
[null,"Mexticacán",{"$nulls":5},"2.6.5 Alimentación y Nutrición",{"$nulls":3},"O9E1 Ampliar y modernizar la infraestructura rural productiva"]
[null,"Mezquitic",{"$nulls":5},"2.6.6 Apoyo Social para la Vivienda",{"$nulls":3},"O9E2 Aumentar la comercialización de los productos del sector primario dentro y fuera del país"]
[null,"Mixtlán",{"$nulls":5},"2.6.7 Indígenas",{"$nulls":3},"O9E3 Aumentar la industrialización y el valor agregado a la producción del sector primario"]
[null,"Ocotlán",{"$nulls":5},"2.6.8 Otros Grupos Vulnerables",{"$nulls":3},"O9E4 Incrementar el financiamiento, la capacitación y asistencia técnica a los productores rurales"]
[null,"Ojuelos de Jalisco",{"$nulls":5},"2.6.9 Otros de Seguridad Social y Asistencia Social",{"$nulls":3},"O9E5 Incrementar la producción sustentable y comercialización de la madera y sus derivados"]
[null,"Pihuamo",{"$nulls":5},"2.7.1 Otros Asuntos Sociales",{"$nulls":3},"O9E6 Mejorar la sanidad e inocuidad de los productos agropecuarios"]
[null,"Poncitlán",{"$nulls":5},"3.1.1 Asuntos Económicos y Comerciales en General",{"$nulls":3},"O10E1 Aumentar la atracción y captación de inversión en el sector"]
[null,"Puerto Vallarta",{"$nulls":5},"3.1.2 Asuntos Laborales Generales",{"$nulls":3},"O10E2 Incrementar la promoción integral de destinos y rutas turísticas"]
[null,"Villa Purificación",{"$nulls":5},"3.2.1 Agropecuaria",{"$nulls":3},"O10E3 Innovar y diversificar la oferta turística por región y destino de forma sostenible"]
[null,"Quitupan",{"$nulls":5},"3.2.2 Silvicultura",{"$nulls":3},"O10E4 Mejorar el entorno, la infraestructura y equipamiento en centros turísticos"]
[null,"El Salto",{"$nulls":5},"3.2.3 Acuacultura, Pesca y Caza",{"$nulls":3},"O10E5 Mejorar las capacidades turísticas locales y promover el emprendurismo en el sector"]
[null,"San Cristóbal de la Barranca",{"$nulls":5},"3.2.4 Agroindustrial",{"$nulls":3},"O11E1 Ampliar y modernizar la red de ferrocarriles"]
[null,"San Diego de Alejandría",{"$nulls":5},"3.2.5 Hidroagrícola",{"$nulls":3},"O11E2 Incrementar la accesibilidad a las telecomunicaciones"]
[null,"San Juan de los Lagos",{"$nulls":5},"3.2.6 Apoyo Financiero a la Banca y Seguro Agropecuario",{"$nulls":3},"O11E3 Incrementar y modernizar la red de carreteras"]
[null,"San Julián",{"$nulls":5},"3.3.1 Carbón y Otros Combustibles Minerales Sólidos",{"$nulls":3},"O11E4 Modernizar y ampliar la infraestructura aérea y la marítima"]
[null,"San Marcos",{"$nulls":5},"3.3.2 Petróleo y Gas Natural (Hidrocarburos)",{"$nulls":3},"O11E5 Propiciar la ampliación de servicios logísticos estratégicos para el desarrollo social y económico"]
[null,"San Martín de Bolaños",{"$nulls":5},"3.3.3 Combustibles Nucleares",{"$nulls":3},"O12E1 Ampliar las capacidades productivas de la población en condiciones de vulnerabilidad"]
[null,"San Martín Hidalgo",{"$nulls":5},"3.3.4 Otros Combustibles",{"$nulls":3},"O12E2 Incrementar la disponibilidad y el acceso a una adecuada alimentación de la población en condiciones de pobreza"]
[null,"San Miguel el Alto",{"$nulls":5},"3.3.5 Electricidad",{"$nulls":3},"O12E3 Mejorar el pago de impuestos y servicios públicos acorde con el nivel de vida e ingresos de la población"]
[null,"Gómez Farías",{"$nulls":5},"3.3.6 Energía no Eléctrica",{"$nulls":3},"O12E4 Mejorar la calidad y espacios en las viviendas de la población en situación de pobreza"]
[null,"San Sebastián del Oeste",{"$nulls":5},"3.4.1 Extracción de Recursos Minerales excepto los Combustibles Minerales",{"$nulls":3},"O12E5 Promover la cohesión social desde los espacios de deliberación pública, fortaleciendo las organizaciones sociales y la participación comunitaria"]
[null,"Santa María de los Ángeles",{"$nulls":5},"3.4.2 Manufacturas",{"$nulls":3},"O12E6 Reducir el rezago educativo"]
[null,"Sayula",{"$nulls":5},"3.4.3 Construcción",{"$nulls":3},"O13E1 Ampliar las capacidades productivas de los grupos prioritarios"]
[null,"Tala",{"$nulls":5},"3.5.1 Transporte por Carretera",{"$nulls":3},"O13E2 Brindar atención y acompañamiento a la población migrante"]
[null,"Talpa de Allende",{"$nulls":5},"3.5.2 Transporte por Agua y Puertos",{"$nulls":3},"O13E3 Garantizar la accesibilidad y la inclusión de las personas con discapacidad; y reducir el riego de adquirirla"]
[null,"Tamazula de Gordiano",{"$nulls":5},"3.5.3 Transporte por Ferrocarril",{"$nulls":3},"O13E4 Garantizar los derechos de los adultos mayores, incrementar su autonomía y promover el envejecimiento activo"]
[null,"Tapalpa",{"$nulls":5},"3.5.4 Transporte Aéreo",{"$nulls":3},"O13E5 Garantizar y restituir los derechos de las niñas, niños y adolescentes"]
[null,"Tecalitlán",{"$nulls":5},"3.5.5 Transporte por Oleoductos y Gasoductos y Otros Sistemas de Transporte",{"$nulls":3},"O13E6 Incrementar el ingreso, permanencia y conclusión de la formación educativa de estudiantes indígenas"]
[null,"Tecolotlán",{"$nulls":5},"3.5.6 Otros Relacionados con Transporte",{"$nulls":3},"O13E7 Mejorar la dotación de servicios públicos en las localidades con población indígena"]
[null,"Techaluta de Montenegro",{"$nulls":5},"3.6.1 Comunicaciones",{"$nulls":3},"O13E8 Reducir la violencia intrafamiliar y comunitaria"]
[null,"Tenamaxtlán",{"$nulls":5},"3.7.1 Turismo",{"$nulls":3},"O13E9 Reducir los principales riesgos sociales y de salud a los que está expuesta la población joven (alcoholismo y drogadicción, embarazos adolescente, abandono escolar)"]
[null,"Teocaltiche",{"$nulls":5},"3.7.2 Hoteles y Restaurantes",{"$nulls":3},"O14E1 Impulsar la integración y universalidad de los servicios de salud"]
[null,"Teocuitatlán de Corona",{"$nulls":5},"3.8.1 Investigación Científica",{"$nulls":3},"O14E2 Incrementar el acceso efectivo a los servicios de salud, en especial la población en condiciones de vulnerabilidad y pobreza"]
[null,"Tepatitlán de Morelos",{"$nulls":5},"3.8.2 Desarrollo Tecnológico",{"$nulls":3},"O14E3 Mejorar la calidad en la prestación de los servicios de salud"]
[null,"Tequila",{"$nulls":5},"3.8.3 Servicios Científicos y Tecnológicos",{"$nulls":3},"O14E4 Reducir el sobrepeso y la obesidad de la población"]
[null,"Teuchitlán",{"$nulls":5},"3.8.4 Innovación",{"$nulls":3},"O14E5 Reducir y controlar los factores de riesgo para la salud con enfoque preventivo a la comunidad"]
[null,"Tizapán el Alto",{"$nulls":5},"3.9.1 Comercio, Distribución, Almacenamiento y Depósito",{"$nulls":3},"O15E1 Facilitar el acceso al financiamiento para adquirir una vivienda propia a la población más vulnerable"]
[null,"Tlajomulco de Zúñiga",{"$nulls":5},"3.9.2 Otras Industrias",{"$nulls":3},"O15E2 Garantizar la aplicación de los instrumentos de planeación urbana en la construcción de fraccionamientos y para evitar asentamiento irregulares"]
[null,"Tlaquepaque",{"$nulls":5},"3.9.3 Otros Asuntos Económicos",{"$nulls":3},"O15E3 Garantizar reservas territoriales suficientes para la construcción de viviendas"]
[null,"Tolimán",{"$nulls":5},"4.1.1 Deuda Pública Interna",{"$nulls":3},"O15E4 Incrementar la efectividad de los programas sociales dirigidos a la adquisición, autoconstrucción y mejora de la vivienda"]
[null,"Tomatlán",{"$nulls":5},"4.1.2 Deuda Pública Externa",{"$nulls":3},"O15E5 Mejorar el entorno y servicios en las viviendas en zonas urbanas y rurales marginadas"]
[null,"Tonalá",{"$nulls":5},"4.2.1 Transferencias entre Diferentes Niveles y Ordenes de Gobierno",{"$nulls":3},"O15E6 Mejorar los procesos de certificación de la propiedad de la vivienda en asentamientos irregulares"]
[null,"Tonaya",{"$nulls":5},"4.2.2 Participaciones entre Diferentes Niveles y Ordenes de Gobierno",{"$nulls":3},"O16E1 Ampliar la oferta, la calidad y el acceso para realizar estudios de posgrado y de educación continua"]
[null,"Tonila",{"$nulls":5},"4.2.3 Aportaciones entre Diferentes Niveles y Ordenes de Gobierno",{"$nulls":3},"O16E2 Ampliar las oportunidades educativas, en especial la población en condiciones de vulnerabilidad y pobreza"]
[null,"Totatiche",{"$nulls":5},"4.3.1 Saneamiento del Sistema Financiero",{"$nulls":3},"O16E3 Ampliar y mejorar la enseñanza de la ciencia y la tecnología en la educación básica"]
[null,"Tototlán",{"$nulls":5},"4.3.2 Apoyos IPAB",{"$nulls":3},"O16E4 Diversificar la oferta de programas de educación superior y sus modalidades"]
[null,"Tuxcacuesco",{"$nulls":5},"4.3.3 Banca de Desarrollo",{"$nulls":3},"O16E5 Incrementar en la educación superior la movilidad de estudiantes y académicos a nivel estatal, nacional e internacional"]
[null,"Tuxcueca",{"$nulls":5},"4.3.4 Apoyo a los programas de reestructura en unidades de inversión (UDIS)",{"$nulls":3},"O16E6 Incrementar espacios educativos comunes que permitan la conjunción de esfuerzos de instituciones para mejorar la calidad y consolidar el clúster de la educación superior en el estado"]
[null,"Tuxpan",{"$nulls":5},"4.4.1 Adeudos de Ejercicios Fiscales Anteriores",{"$nulls":3},"O16E7 Incrementar la cobertura de la educación media superior y superior"]
[null,"Unión de San Antonio",{"$nulls":9},"O16E8 Mejorar el aprendizaje de un segundo idioma por parte de los estudiantes en todos los niveles educativos, particularmente el básico"]
[null,"Unión de Tula",{"$nulls":9},"O16E9 Mejorar la capacitación y actualización de docente y directivos del sistema educativo"]
[null,"Valle de Guadalupe",{"$nulls":9},"O16E10 Reducir el rezago educativo"]
[null,"Valle de Juárez",{"$nulls":9},"O16E11 Reducir la violencia en los planteles educativos"]
[null,"San Gabriel",{"$nulls":9},"O17E1 Ampliar y mejorar los instrumentos de transferencia y difusión tecnológica"]
[null,"Villa Corona",{"$nulls":9},"O17E2 Aumentar las fuentes de financiamiento para actividades de ciencia y tecnología"]
[null,"Villa Guerrero",{"$nulls":9},"O17E3 Aumentar las instituciones y empresas que realizan actividades de investigación y desarrollo tecnológico"]
[null,"Villa Hidalgo",{"$nulls":9},"O17E4 Incrementar el desarrollo de proyectos científicos tecnológicos entre los sectores académicos y las empresas"]
[null,"Cañadas de Obregón",{"$nulls":9},"O17E5 Incrementar la I+D en las empresas que exportan productos de alta tecnología"]
[null,"Yahualica de González Gallo",{"$nulls":9},"O17E6 Incrementar la investigación y el desarrollo tecnológico en las instituciones educativas"]
[null,"Zacoalco de Torres",{"$nulls":9},"O17E7 Mejorar y ampliar la formación de recursos humanos calificados en el campo de la investigación y desarrollo"]
[null,"Zapopan",{"$nulls":9},"O18E1 Diversificar y ampliar las alternativas de recreación cultural en regiones y municipios"]
[null,"Zapotiltic",{"$nulls":9},"O18E2 Garantizar la disponibilidad, seguridad y conservación de los espacios y sitios culturales"]
[null,"Zapotitlán de Vadillo",{"$nulls":9},"O18E3 Incrementar la disponibilidad de recursos humanos en el ámbito artístico"]
[null,"Zapotlán del Rey",{"$nulls":9},"O18E4 Incrementar las capacidades creativas y de producción artística de la población"]
[null,"Zapotlanejo",{"$nulls":9},"O18E5 Mejorar las condiciones materiales, humanas e institucionales vinculadas a la cultura"]
[null,"San Ignacio Cerro Gordo",{"$nulls":9},"O19E1 Acrecentar la capacitación y formación de instructores y entrenadores en actividades físicas y deportivas"]
[{"$nulls":11},"O19E2 Incrementar la práctica de actividades físicas y deportivas en todos los niveles educativos, y la población en general"]
[{"$nulls":11},"O19E3 Incrementar y mejorar los espacios para la práctica de actividades físicas y deportivas"]
[{"$nulls":11},"O19E4 Mejorar y ampliar el sistema estatal del deporte de alto rendimiento"]
[{"$nulls":11},"O19E5 Promover la práctica del deporte competitivo en el ámbito local, regional y estatal"]
[{"$nulls":11},"O20E1 Fortalecer las capacidades y equipamiento de los cuerpos de seguridad pública"]
[{"$nulls":11},"O20E2 Garantizar la honestidad, confianza y el profesionalismo del personal que labora en las instituciones de seguridad pública y privada a través de un sistema adecuado de evaluación"]
[{"$nulls":11},"O20E3 Incrementar el acceso de la población a las actividades culturales, deportivas y recreativas"]
[{"$nulls":11},"O20E4 Incrementar el nivel de denuncia ciudadana y su correcta atención"]
[{"$nulls":11},"O20E5 Incrementar la participación ciudadana en la prevención del delito"]
[{"$nulls":11},"O20E6 Intensificar y mejorar la comunicación en materia de prevención del delito y combate a la inseguridad"]
[{"$nulls":11},"O21E1 Concluir y consolidar el nuevo sistema penal acusatorio"]
[{"$nulls":11},"O21E2 Disminuir la incidencia de los actos de corrupción"]
[{"$nulls":11},"O21E3 Facilitar el acceso de la justicia a nivel local y regional"]
[{"$nulls":11},"O21E4 Incrementar el uso de métodos alternativos de solución de conflictos"]
[{"$nulls":11},"O21E5 Mejorar el sistema penal con el propósito de reducir la sobrepoblación penitenciaria"]
[{"$nulls":11},"O21E6 Mejorar la capacitación y formación de los recursos humanos del poder judicial"]
[{"$nulls":11},"O21E7 Proporcionar asistencia y representación eficaz a las víctimas con perspectiva de derechos humanos"]
[{"$nulls":11},"O22E1 Aumentar la probabilidad de captura y condena por delitos cometidos"]
[{"$nulls":11},"O22E2 Disminuir la incidencia de los actos de corrupción"]
[{"$nulls":11},"O22E3 Investigar y perseguir el delito con mayor eficacia"]
[{"$nulls":11},"O22E4 Mejorar la calidad de los servicios que prestan los ministerios públicos"]
[{"$nulls":11},"O22E5 Mejorar la capacitación y formación de los recursos humanos para la procuración de justicia"]
[{"$nulls":11},"O22E6 Mejorar la percepción ciudadana sobre el quehacer del sistema de procuración de justicia"]
[{"$nulls":11},"O23E1 Disminuir la incidencia de las violaciones a los Derechos Humanos"]
[{"$nulls":11},"O23E2 Mejorar la atención a las víctimas de violaciones a los derechos humanos"]
[{"$nulls":11},"O23E3 Reducir la violencia y discriminación, particularmente aquella ejercida en contra de grupos en situación de vulnerabilidad"]
[{"$nulls":11},"O24E1 Contribuir al desarrollo democrático social y político"]
[{"$nulls":11},"O24E2 Incrementar la participación ciudadana en asuntos públicos y en organizaciones civiles y comunitarias"]
[{"$nulls":11},"O24E3 Mejorar la coordinación de los tres órdenes y niveles de gobierno"]
[{"$nulls":11},"O24E4 Prevenir y gestionar conflictos sociales a través del diálogo constructivo"]
[{"$nulls":11},"O25E1 Disminuir la incidencia de los actos de corrupción"]
[{"$nulls":11},"O25E2 Impulsar un gobierno abierto, promotor de la transparencia, la rendición de cuentas, la participación ciudadana y del uso de las tecnologías de información y comunicación"]
[{"$nulls":11},"O25E3 Incrementar la disponibilidad de recursos financieros y mejorar su uso y asignación"]
[{"$nulls":11},"O25E4 Mejorar la calidad y disponibilidad de información para la toma de decisiones de la sociedad y el gobierno"]
[{"$nulls":11},"O25E5 Mejorar la calidad y la prestación de servicios públicos"]
[{"$nulls":11},"O25E6 Mejorar la capacitación y profesionalización de los funcionarios y servidores públicos"]
[{"$nulls":11},"O25E7 Mejorar la planeación, programación, el seguimiento y la evaluación para una gestión pública eficiente orientada a resultados"]
[{"$nulls":11},"O26E1 Asegurar el acceso igualitario a la justicia"]
[{"$nulls":11},"O26E2 Garantizar el acceso universal a la salud reproductiva y sexual"]
[{"$nulls":11},"O26E3 Incrementar el acceso a la educación de niñas y mujeres"]
[{"$nulls":11},"O26E4 Incrementar la participación de las mujeres en cargos públicos y en puestos de elección popular"]
[{"$nulls":11},"O26E5 Incrementar las oportunidades laborales dignas para las mujeres, en particular las mujeres jefas de familia"]
[{"$nulls":11},"O26E6 Reducir la violencia contra las mujeres"]
[{"$nulls":11},"O27E1 Crear espacios físicos y virtuales, y otros mecanismos de diálogo y reflexión para generar soluciones innovadoras a problemas públicos y sociales"]
[{"$nulls":11},"O27E2 Desarrollar alianzas y redes entre empresas, gobierno, grupos sociales y universidades para impulsar la innovación, el emprendurismo y la creatividad que genere la creación de valor público y económico"]
[{"$nulls":11},"O27E3 Incrementar las actividades de investigación y desarrollo, principalmente en el sector agropecuario, la industria alimentaria, la industria creativa y la biotecnológica"]
[{"$nulls":11},"O27E4 Promover la innovación en el sector gubernamental en todos los órdenes y niveles de gobierno"]

{"sheet":"Base","index":4,"n_rows":1,"n_cols":60,"rows_kept":1,"hidden":true}
["ID","Ente auditable","Denominación del Programa","Categoría programática","Unidad Responsable","Finalidad","Función","Sub-función","Alineación con objetivos superiores del PND","Alineación con objetivos secundarios del PND","Alineación con objetivos superiores del PED","Alineación con objetivos secundarios del PED","Alineación con objetivos superiores del PMD","Alineación con objetivos secundarios del PMD","Nivel MIR","Código del nivel MIR","Resumen Narrativo (objetivos)","Nombre del indicador","Definición del indicador","Dimensión del indicador","Tipo de indicador","Método de Cálculo del indicador","Valor programado 1 (Numerador)","Valor programado 2 (Denominador)","Frecuencia de Medición del indicador","Unidad de Medida del indicador","Metas del indicador","Medios de Verificación del indicador","Supuestos del indicador","Capítulo 1000","Capítulo 2000","Capítulo 3000","Capítulo 4000","Capítulo 5000","Capítulo 6000","Capítulo 7000","Capítulo 8000","Capítulo 9000","Avance 1er Semestre del Valor programado 1 (Numerador)","Avance 1er Semestre del Valor programado 2 (Denominador)","Avance Anual del Valor programado 1 (Numerador)","Avance Anual del Valor programado 2 (Denominador)","Avance 1er Semestre del Capítulo 1000","Avance 1er Semestre del Capítulo 2000","Avance 1er Semestre del Capítulo 3000","Avance 1er Semestre del Capítulo 4000","Avance 1er Semestre del Capítulo 5000","Avance 1er Semestre del Capítulo 6000","Avance 1er Semestre del Capítulo 7000","Avance 1er Semestre del Capítulo 8000","Avance 1er Semestre del Capítulo 9000","Avance Anual del Capítulo 1000","Avance Anual del Capítulo 2000","Avance Anual del Capítulo 3000","Avance Anual del Capítulo 4000","Avance Anual del Capítulo 5000","Avance Anual del Capítulo 6000","Avance Anual del Capítulo 7000","Avance Anual del Capítulo 8000","Avance Anual del Capítulo 9000"]

{"sheet":"SUSTENTO INDICADOR","index":5,"n_rows":769,"n_cols":20,"rows_kept":769,"merged":[[1,1,1,15],[3,5,3,15],[5,2,6,3],[5,5,6,15],[8,2,9,3],[8,5,9,15],[13,2,13,9],[13,11,13,15],[14,2,14,3],[14,11,17,15],[27,2,27,4],[27,5,27,6],[27,7,27,8],[27,9,27,11],[27,12,27,13],[27,15,27,16],[27,18,27,19],[28,1,32,1],[28,2,31,4],[28,5,31,6],[28,7,31,8],[28,9,31,11],[28,12,29,13],[28,14,29,14],[28,15,31,16],[28,17,29,17],[30,12,31,13],[30,14,31,14],[30,17,31,17],[33,1,36,1],[33,2,36,4],[33,5,36,6],[33,7,36,8],[33,9,36,11],[33,12,34,13],[33,14,34,14],[33,15,36,16],[33,17,34,17],[35,12,36,13],[35,14,36,14],[35,17,36,17],[37,1,38,1],[37,2,38,3],[37,4,38,17],[37,18,69,19],[39,1,40,1],[39,2,40,3],[41,1,42,1],[41,2,42,3],[43,1,44,1],[43,2,44,3],[45,1,46,1],[45,2,46,3],[47,1,48,1],[47,2,48,3],[49,1,50,1],[49,2,50,3],[51,1,52,1],[51,2,52,3],[53,1,54,1],[53,2,54,3],[55,1,56,1],[55,2,56,3],[57,1,58,1],[57,2,58,3],[59,1,60,1],[59,2,60,3],[59,4,60,17],[61,2,62,3],[61,4,62,17],[63,1,64,1],[63,2,64,3],[65,2,66,3],[65,4,66,17],[67,2,67,3],[68,1,69,1],[68,2,69,3],[70,1,73,1],[70,2,73,4],[70,5,73,6],[70,7,73,8],[70,9,73,11],[70,12,71,13],[70,14,71,14],[70,15,73,16],[70,17,71,17],[72,12,73,13],[72,14,73,14],[72,17,73,17],[74,1,75,1],[74,2,75,3],[74,18,113,19],[76,1,77,1],[76,2,77,3],[78,1,79,1],[78,2,79,3],[80,1,81,1],[80,2,81,3],[82,1,83,1],[82,2,83,3],[84,1,85,1],[84,2,85,3],[86,1,87,1],[86,2,87,3],[88,1,89,1],[88,2,89,3],[88,4,89,17],[90,1,91,1],[90,2,91,3],[92,1,93,1],[92,2,93,3],[94,2,95,3],[94,4,95,17],[96,1,97,1],[96,2,97,3],[98,2,99,3],[98,4,99,17],[100,1,101,1],[100,2,101,3],[102,2,103,3],[102,4,103,17],[104,1,105,1],[104,2,105,3],[106,2,107,3],[106,4,107,17],[108,1,109,1],[108,2,109,3],[110,2,111,3],[110,4,111,17],[112,1,113,1],[112,2,113,3],[114,1,117,1],[114,2,117,3],[114,5,117,6],[114,7,117,8],[114,9,117,11],[114,12,115,13],[114,14,115,14],[114,15,117,16],[114,17,115,17],[116,12,117,13],[116,14,117,14],[116,17,117,17],[118,1,119,1],[118,2,119,3],[118,18,185,19],[120,2,121,3],[120,4,121,17],[122,1,123,1],[122,2,123,3],[124,1,125,1],[124,2,125,3],[126,1,127,1],[126,2,127,3],[128,1,129,1],[128,2,129,3],[130,1,131,1],[130,2,131,3],[132,1,133,1],[132,2,133,3],[134,1,135,1],[134,2,135,3],[136,1,137,1],[136,2,137,3],[138,1,139,1],[138,2,139,3],[140,1,141,1],[140,2,141,3],[140,4,141,17],[142,1,143,1],[142,2,143,3],[144,1,145,1],[144,2,145,3],[146,1,147,1],[146,2,147,3],[146,4,147,17],[148,1,149,1],[148,2,149,3],[150,1,151,1],[150,2,151,3],[150,4,151,17],[152,1,153,1],[152,2,153,3],[154,1,155,1],[154,2,155,3],[154,4,155,17],[156,1,157,1],[156,2,157,3],[158,1,159,1],[158,2,159,3],[158,4,159,17],[160,1,161,1],[160,2,161,3],[162,1,163,1],[162,2,163,3],[162,4,163,17],[164,1,165,1],[164,2,165,3],[166,1,167,1],[166,2,167,3],[166,4,167,17],[168,1,169,1],[168,2,169,3],[170,1,171,1],[170,2,171,3],[170,4,171,17],[172,1,173,1],[172,2,173,3],[174,1,175,1],[174,2,175,3],[176,1,177,1],[176,2,177,3],[176,4,177,17],[178,1,179,1],[178,2,179,3],[180,1,181,1],[180,2,181,3],[180,4,181,17],[182,1,183,1],[182,2,183,3],[184,2,185,3],[184,4,185,17],[186,1,189,1],[186,2,189,4],[186,5,189,6],[186,7,189,8],[186,9,189,11],[186,12,187,13],[186,14,187,14],[186,15,189,16],[186,17,187,17],[188,12,189,13],[188,14,189,14],[188,17,189,17],[188,18,235,19],[190,1,191,1],[190,2,191,3],[192,1,193,1],[192,2,193,3],[194,1,195,1],[194,2,195,3],[196,1,197,1],[196,2,197,3],[198,1,199,1],[198,2,199,3],[200,1,201,1],[200,2,201,3],[202,1,203,1],[202,2,203,3],[204,1,205,1],[204,2,205,3],[206,1,207,1],[206,2,207,3],[208,1,209,1],[208,2,209,3],[210,2,211,3],[210,4,211,17],[212,1,213,1],[212,2,213,3],[214,1,215,1],[214,2,215,3],[216,1,217,1],[216,2,217,3],[218,1,219,1],[218,2,219,3],[220,1,221,1],[220,2,221,3],[222,1,223,1],[222,2,223,3],[224,1,225,1],[224,2,225,3],[224,4,225,17],[226,1,227,1],[226,2,227,3],[228,1,229,1],[228,2,229,3],[228,4,229,17],[230,1,231,1],[230,2,231,3],[232,1,233,1],[232,2,233,3],[232,4,233,17],[234,1,235,1],[234,2,235,3],[236,1,237,1],[236,2,237,3],[238,1,241,1],[238,2,241,4],[238,5,241,6],[238,7,241,8],[238,9,241,11],[238,12,239,13],[238,14,239,14],[238,15,241,16],[238,17,239,17],[240,12,241,13],[240,14,241,14],[240,17,241,17],[240,18,467,19],[242,1,243,1],[242,2,243,3],[244,1,245,1],[244,2,245,3],[246,1,247,1],[246,2,247,3],[248,1,249,1],[248,2,249,3],[250,1,251,1],[250,2,251,3],[252,1,253,1],[252,2,253,3],[254,1,255,1],[254,2,255,3],[256,1,257,1],[256,2,257,3],[258,1,259,1],[258,2,259,3],[260,1,261,1],[260,2,261,3],[262,2,263,3],[262,4,263,17],[264,1,265,1],[264,2,265,3],[266,1,267,1],[266,2,267,3],[268,1,269,1],[268,2,269,3],[270,1,271,1],[270,2,271,3],[272,1,273,1],[272,2,273,3],[274,1,275,1],[274,2,275,3],[276,1,277,1],[276,2,277,3],[278,1,279,1],[278,2,279,3],[280,1,281,1],[280,2,281,3],[282,1,283,1],[282,2,283,3],[284,1,285,1],[284,2,285,3],[286,1,287,1],[286,2,287,3],[288,1,289,1],[288,2,289,3],[290,1,291,1],[290,2,291,3],[292,1,293,1],[292,2,293,3],[294,1,295,1],[294,2,295,3],[296,1,297,1],[296,2,297,3],[298,1,299,1],[298,2,299,3],[300,1,301,1],[300,2,301,3],[302,1,303,1],[302,2,303,3],[304,1,305,1],[304,2,305,3],[306,1,307,1],[306,2,307,3],[308,1,309,1],[308,2,309,3],[310,1,311,1],[310,2,311,3],[312,1,313,1],[312,2,313,3],[314,1,315,1],[314,2,315,3],[316,1,317,1],[316,2,317,3],[318,1,319,1],[318,2,319,3],[320,1,321,1],[320,2,321,3],[322,1,323,1],[322,2,323,3],[324,1,325,1],[324,2,325,3],[326,1,327,1],[326,2,327,3],[328,1,329,1],[328,2,329,3],[330,1,331,1],[330,2,331,3],[332,1,333,1],[332,2,333,3],[334,1,335,1],[334,2,335,3],[336,1,337,1],[336,2,337,3],[338,1,339,1],[338,2,339,3],[340,1,341,1],[340,2,341,3],[342,1,343,1],[342,2,343,3],[344,1,345,1],[344,2,345,3],[346,1,347,1],[346,2,347,3],[348,1,349,1],[348,2,349,3],[350,1,351,1],[350,2,351,3],[352,1,353,1],[352,2,353,3],[354,1,355,1],[354,2,355,3],[356,1,357,1],[356,2,357,3],[358,1,359,1],[358,2,359,3],[360,1,361,1],[360,2,361,3],[362,1,363,1],[362,2,363,3],[364,1,365,1],[364,2,365,3],[366,1,367,1],[366,2,367,3],[368,1,369,1],[368,2,369,3],[370,1,371,1],[370,2,371,3],[372,1,373,1],[372,2,373,3],[374,1,375,1],[374,2,375,3],[376,1,377,1],[376,2,377,3],[378,1,379,1],[378,2,379,3],[380,1,381,1],[380,2,381,3],[382,1,383,1],[382,2,383,3],[384,1,385,1],[384,2,385,3],[386,1,387,1],[386,2,387,3],[388,1,389,1],[388,2,389,3],[390,1,391,1],[390,2,391,3],[392,1,393,1],[392,2,393,3],[394,1,395,1],[394,2,395,3],[396,1,397,1],[396,2,397,3],[398,2,398,3],[399,1,400,1],[399,2,400,3],[401,1,402,1],[401,2,402,3],[403,1,404,1],[403,2,404,3],[405,1,406,1],[405,2,406,3],[407,1,408,1],[407,2,408,3],[409,1,410,1],[409,2,410,3],[409,4,410,17],[411,1,412,1],[411,2,412,3],[413,1,414,1],[413,2,414,3],[413,4,414,17],[415,1,416,1],[415,2,416,3],[417,1,418,1],[417,2,418,3],[419,1,420,1],[419,2,420,3],[421,1,422,1],[421,2,422,3],[423,1,424,1],[423,2,424,3],[423,4,424,17],[425,1,426,1],[425,2,426,3],[427,2,428,3],[427,4,428,17],[429,1,430,1],[429,2,430,3],[431,1,432,1],[431,2,432,3],[431,4,432,17],[433,1,434,1],[433,2,434,3],[435,2,436,3],[435,4,436,17],[437,1,438,1],[437,2,438,3],[439,1,440,1],[439,2,440,3],[441,1,442,1],[441,2,442,3],[443,1,444,1],[443,2,444,3],[445,1,446,1],[445,2,446,3],[447,1,448,1],[447,2,448,3],[449,1,450,1],[449,2,450,3],[451,1,452,1],[451,2,452,3],[453,2,453,3],[454,1,455,1],[454,2,455,3],[456,1,457,1],[456,2,457,3],[458,1,459,1],[458,2,459,3],[460,1,461,1],[460,2,461,3],[462,1,463,1],[462,2,463,3],[464,1,465,1],[464,2,465,3],[464,4,465,17],[466,1,467,1],[466,2,467,3],[468,1,469,1],[468,2,469,3],[470,1,471,1],[470,2,471,3],[472,1,475,1],[472,2,475,4],[472,5,475,6],[472,7,475,8],[472,9,475,11],[472,12,473,13],[472,14,473,14],[472,15,475,16],[472,17,473,17],[474,12,475,13],[474,14,475,14],[474,17,475,17],[474,18,493,19],[476,1,477,1],[476,2,477,3],[478,1,479,1],[478,2,479,3],[480,1,481,1],[480,2,481,3],[482,1,483,1],[482,2,483,3],[484,1,485,1],[484,2,485,3],[486,1,487,1],[486,2,487,3],[488,1,489,1],[488,2,489,3],[490,1,491,1],[490,2,491,3],[492,1,493,1],[492,2,493,3],[492,4,493,17],[494,1,495,1],[494,2,495,3],[496,1,499,1],[496,2,499,4],[496,5,499,6],[496,7,499,8],[496,9,499,11],[496,12,497,13],[496,14,497,14],[496,15,499,16],[496,17,497,17],[498,12,499,13],[498,14,499,14],[498,17,499,17],[498,18,523,19],[500,1,501,1],[500,2,501,3],[502,1,503,1],[502,2,503,3],[504,1,505,1],[504,2,505,3],[506,1,507,1],[506,2,507,3],[508,1,509,1],[508,2,509,3],[510,1,511,1],[510,2,511,3],[512,1,513,1],[512,2,513,3],[514,1,515,1],[514,2,515,3],[516,1,517,1],[516,2,517,3],[518,1,519,1],[518,2,519,3],[520,1,521,1],[520,2,521,3],[522,1,523,1],[522,2,523,3],[522,4,523,17],[524,1,525,1],[524,2,525,3],[526,1,529,1],[526,2,529,4],[526,5,529,6],[526,7,529,8],[526,9,529,11],[526,12,527,13],[526,14,527,14],[526,15,529,16],[526,17,527,17],[528,12,529,13],[528,14,529,14],[528,17,529,17],[528,18,649,19],[530,1,531,1],[530,2,531,3],[532,1,533,1],[532,2,533,3],[534,1,535,1],[534,2,535,3],[536,1,537,1],[536,2,537,3],[538,1,539,1],[538,2,539,3],[540,1,541,1],[540,2,541,3],[542,1,543,1],[542,2,543,3],[544,1,545,1],[544,2,545,3],[546,2,547,3],[546,4,547,17],[548,1,549,1],[548,2,549,3],[550,1,551,1],[550,2,551,3],[552,1,553,1],[552,2,553,3],[554,1,555,1],[554,2,555,3],[556,1,557,1],[556,2,557,3],[558,1,559,1],[558,2,559,3],[560,1,561,1],[560,2,561,3],[562,1,563,1],[562,2,563,3],[564,1,565,1],[564,2,565,3],[566,1,567,1],[566,2,567,3],[568,1,569,1],[568,2,569,3],[570,1,571,1],[570,2,571,3],[572,1,573,1],[572,2,573,3],[574,1,575,1],[574,2,575,3],[576,1,577,1],[576,2,577,3],[578,1,579,1],[578,2,579,3],[580,1,581,1],[580,2,581,3],[582,1,583,1],[582,2,583,3],[584,1,585,1],[584,2,585,3],[586,1,587,1],[586,2,587,3],[588,1,589,1],[588,2,589,3],[590,1,591,1],[590,2,591,3],[592,1,593,1],[592,2,593,3],[594,1,595,1],[594,2,595,3],[596,1,597,1],[596,2,597,3],[598,1,599,1],[598,2,599,3],[600,1,601,1],[600,2,601,3],[602,1,603,1],[602,2,603,3],[604,1,605,1],[604,2,605,3],[606,1,607,1],[606,2,607,3],[608,1,609,1],[608,2,609,3],[610,1,611,1],[610,2,611,3],[612,1,613,1],[612,2,613,3],[614,1,615,1],[614,2,615,3],[616,1,617,1],[616,2,617,3],[618,1,619,1],[618,2,619,3],[620,2,621,3],[620,4,621,17],[622,1,623,1],[622,2,623,3],[624,1,625,1],[624,2,625,3],[626,1,627,1],[626,2,627,3],[628,1,629,1],[628,2,629,3],[630,1,631,1],[630,2,631,3],[632,1,633,1],[632,2,633,3],[634,1,635,1],[634,2,635,3],[636,1,637,1],[636,2,637,3],[638,1,639,1],[638,2,639,3],[638,4,639,17],[640,1,641,1],[640,2,641,3],[642,1,643,1],[642,2,643,3],[644,1,645,1],[644,2,645,3],[644,4,645,17],[646,1,647,1],[646,2,647,3],[648,1,649,1],[648,2,649,3],[648,4,649,17],[650,1,651,1],[650,2,651,3],[654,2,654,6],[655,4,655,6],[685,2,685,5],[685,6,686,15],[688,5,689,15],[693,2,693,10],[693,14,693,15],[695,14,711,15],[716,2,716,5],[716,6,717,15],[719,5,720,15],[724,2,724,10],[724,14,724,15],[726,14,730,15],[735,2,735,5],[735,6,736,15],[738,5,739,15],[743,2,743,10],[743,14,743,15],[745,14,749,15],[754,2,754,5],[754,6,755,15],[757,5,758,15],[762,2,762,10],[762,14,762,15],[764,14,768,15]]}
[]
[null,"Municipio de Ixtlahuacán de los Membrillos, Jal."]
[]
[null,null,"DIRECCION MUNICIPAL:",null,null,"SAMAPA"]
[]
[null,null,"NOMBRE DEL PROGRAMA PRESUPUESTARIO:",null,null,"Desarrollo Social Municipal"]
[]
[]
[null,null,"NOMBRE DEL INDICADOR ESTRATEGICO:",null,null,"Índice de avance en el combate a la marginación municipal (IMNM)"]
[]
[]
[{"$nulls":5},"AÑO: ",2018,2019,2020,2021]
[]
[null,null,"AVANCE ANUAL",{"$nulls":8},"Criterios para determinar avance de porcentaje de metas"]
[null,null,"Proyectos a desarrollar",null,"1ro.","2do.","3ro.","4to.","5to.","6to.",null,"En la MIR se establecen los proyectos que ha programado la dirección para cumplir con el indicador estrategico  durante la administración, con el cumplimiento al 100% de ellos y sus 16 variables dara cumplimiento a las meta individuales y de la dirección que constituyen el indicador estrategico o de evaluacion del exito ejercico el presupuesto asignado a la direccion y a cada proyecto y sus actividades, los informes bimensuales seran la suma de los valores relativos de cada bimestre que se va acumulando, hasta llegar al último bimestre de trabajo para su cumplimiento."]
[null,null,"Cobertura de Agua Potable y Alcantarillado Ampliada","Índice de cobertura agua potable y alcantarillado (Í1-CAPyA)",0.14,0.28,0.34,0.47,0.54,{"v":0.6,"d":"0.60"}]
[null,1.1,"Gestionar un estudio de aguas subterráneas","PORCENTAJE de avance del estudio de aguas subterráneas (P51-AEAS)",{"v":0,"d":"0%"},{"v":0.04,"d":"4%"},{"v":0.05,"d":"5%"},{"v":0.07,"d":"7%"},{"v":0.09,"d":"9%"},{"v":0.1,"d":"10%"}]
[null,1.2,"Instalación de macro medidores en pozos municipales","PORCENTAJE de pozos municipales con macro medidores (P52-PMMM)",{"v":0.11,"d":"11%"},{"v":0.14,"d":"14%"},{"v":0.17,"d":"17%"},{"v":0.22,"d":"22%"},{"v":0.26,"d":"26%"},{"v":0.29,"d":"29%"}]
[null,1.3,"Programa de cultura del agua","PORCENTAJE de cumplimiento del programa de cultura del agua (P53-CPCA)",{"v":0.15,"d":"15%"},{"v":0.3,"d":"30%"},{"v":0.44,"d":"44%"},{"v":0.59,"d":"59%"},{"v":0.77,"d":"77%"},{"v":0.79,"d":"79%"}]
[null,1.4,"Reemplazar el colector principal de la línea de drenaje ","PORCENTAJE colector principal remplazado (P54-CPR)",{"v":0.16,"d":"16%"},{"v":0.32,"d":"32%"},{"v":0.48,"d":"48%"},{"v":0.64,"d":"64%"},{"v":0.8,"d":"80%"},{"v":1,"d":"100%"}]
[null,1.5,"Construcción de 2 pozos profundos","PORCENTAJE de avance en perforación de pozos (P55-AP2P)",{"v":0.12,"d":"12%"},{"v":0.19,"d":"19%"},{"v":0.26,"d":"26%"},{"v":0.38,"d":"38%"},{"v":0.49,"d":"49%"},{"v":0.6,"d":"60%"}]
[null,1.6,"Desazolve de cárcamos","PORCENTAJE de cárcamos con desazolve (P56-CCD)",{"v":0.16,"d":"16%"},{"v":0.32,"d":"32%"},{"v":0.42,"d":"42%"},{"v":0.61,"d":"61%"},{"v":0.69,"d":"69%"},{"v":0.75,"d":"75%"}]
[null,1.7,"Construcción del humedal arroyo de los sabinos","PORCENTAJE de avance en la construcción del humedal (P57-ACH)",{"v":0.08,"d":"8%"},{"v":0.13,"d":"13%"},{"v":0.16,"d":"16%"},{"v":0.17,"d":"17%"},{"v":0.19,"d":"19%"},{"v":0.2,"d":"20%"}]
[null,1.8,"Rehabilitación de 4 plantas de tratamiento","PORCENTAJE de Plantas de tratamiento de aguas residuales en operación dentro de norma (P58-PPTARDN)",{"v":0.14,"d":"14%"},{"v":0.18,"d":"18%"},{"v":0.21,"d":"21%"},{"v":0.27,"d":"27%"},{"v":0.31,"d":"31%"},{"v":0.36,"d":"36%"}]
[null,null,"VALOR BIMESTRAL DEL INDICADOR",null,{"$f":"SUM(E17:E24)/8","v":{"v":0.115,"d":"11.50%"}},{"$f":"SUM(F17:F24)/8","v":{"v":0.20249999999999999,"d":"20.25%"}},{"v":0.27375,"d":"27.38%"},{"v":0.36874999999999997,"d":"36.88%"},{"v":0.45,"d":"45.00%"},{"v":0.5112500000000001,"d":"51.13%"}]
[]
[]
[null,null,"Proyectos a Desarrollar",null,null,"Nombre del indicador",null,"Definición",null,"Método de cálculo",null,null,"Valor programado 1 (Numerador)",null,"Valor programado 2 (Denominador)","Frecuencia de medición",null,"Meta","Caracteristicas del Indicador"]
[null,"Propósito","Cobertura de Agua Potable y Alcantarillado Ampliada",null,null,"Índice de cobertura agua potable y alcantarillado (T1-CAPyA)",null,"Mide la ampliacion en la cobertura de suministro de agua potable y alcantarillado ",null,"(valor resultante de sumar los valores individuales  de  los cosientes entre sus denominadores por su ponderacion asignada, que miden las  variables de: aguas subterraneas, macromedidores, cultura agua, colector principal, construccion pozos, desazolve carcamos, construccion humedal y rahabilitacion plantas con su correspondientes ponderaciones de .1, .2, .1, .1, .2, .1, .1, y .1)",null,null,{"$f":"0.1*(M34)+0.2*(M71)+0.1*(M115)+0.1*(M187)+0.2*(M239)+0.1*(M473)+0.1*(M497)+0.1*(M527)","v":4.7299999999999995},null,{"$f":"0.1*(O34)+0.2*(O71)+0.1*(O115)+0.1*(O187)+0.2*(O239)+0.1*(O473)+0.1*(O497)+0.1*(O527)","v":8.1},"ANUAL",null,{"$f":"M29/O29","v":{"v":0.5839506172839506,"d":"0.5840"}},"Eficacia","Dimensión"]
[{"$nulls":18},"Estratégico","Tipo"]
[{"$nulls":12},{"$f":"(M36+M73+M117+M189+M241+M475+M499+M529)/8","v":{"v":5.39375,"d":"5.39"}},null,{"$f":"(O36+O73+O117+O189+O241+O475+O499+O529)/8","v":{"v":8.6625,"d":"8.66"}},null,null,{"$f":"M31/O31","v":{"v":0.6226551226551227,"d":"62%"}},"Bimestral","Frecuencia de medición"]
[{"$nulls":18},"Índice","Unidad de medida"]
[null,null,"Calendario de ejecución",null,null,"OCTUBRE","NOVIEMBRE","DICIEMBRE","ENERO","FEBRERO","MARZO","ABRIL","MAYO ","JUNIO ","JULIO ","AGOSTO","SEPTIEMBRE"]
[null,"Componente 1","Gestionar un estudio de aguas subterráneas",null,null,"PORCENTAJE de avance del estudio de aguas subterráneas (P51-AEAS)",null,"Mide la ampliacion en la cobertura de suministro de agua potable y alcantarillado ",null,"(Cantidad de  actividades (1) desarrolladas para la gestion de un estudio de aguas subterráneas / Total de  actividades (10) a desarrollar para la gestion de un estudio de aguas subterráneas)*100",null,null,1,null,10,"Mensual",null,{"$f":"M34/O34","v":{"v":0.1,"d":"10.00%"}},"Eficacia","Dimensión"]
[{"$nulls":18},"Gestión","Tipo"]
[{"$nulls":12},{"$f":"R41+R43+R45+R47+R49+R51+R53+R55+R57+R59","v":{"v":0.1,"d":"0.10"}},null,{"$f":"R40+R42+R44+R46+R48+R50+R52+R54+R56+R58","v":10},null,null,{"$f":"M36/O36","v":{"v":0.01,"d":"1.00%"}},"Bimestral","Frecuencia de medición"]
[{"$nulls":18},"Porcentaje","Unidad de medida"]
[null,null,"XXV. Preveer las necesidades a futuro, tanto de la cabecera municipal como el resto de las localidades del municipio agotando las posibilidades de exploracion de nuevas fuentes de abastecimiento a distancias razonables, pudiendo contar con la acesoria y apoyo de la comision, previa solicitud del consejo de administracion del organismo operador o del ayuntamiento."]
[]
[null,"Actividad 1","Elaborar un anteproyecto y la cotización del Estudio de Hidrología superficial - subterranea integral de los recursos hidrícos disponibles en el municipio.",null,"P",100,0,0,0,0,0,0,0,0,0,0,0,{"$f":"SUM($F40:$Q40)/100","v":1}]
[{"$nulls":4},"E",10,0,0,0,0,0,0,0,0,0,0,0,0.1]
[null,"Actividad 2","Elaborar un estudio de hidrologia superficial-subterranea integral de los recursos hídricos disponibles en el municipio, con la siguiente tematica: Identificacion y delimitacion de cuenca y subcuenca correspondiente al municipio. ",null,"P",0,0,0,0,0,0,50,50,0,0,0,0,1]
[{"$nulls":4},"E",0,0,0,0,0,0,0,0,0,0,0,0,0]
[null,"Actividad 3"," Calculo de área de captacion de la microcuenca ",null,"P",0,0,0,0,0,0,50,50,0,0,0,0,1]
[{"$nulls":4},"E",0,0,0,0,0,0,0,0,0,0,0,0,0]
[null,"Actividad 4","Establecer el patrón de drenaje en el área de estudio. ",null,"P",0,0,0,0,0,0,50,50,0,0,0,0,1]
[{"$nulls":4},"E",0,0,0,0,0,0,0,0,0,0,0,0,0]
[null,"Actividad 5","Analisis de pluviometria estadística",null,"P",0,0,0,0,0,0,50,50,0,0,0,0,1]
[{"$nulls":4},"E",0,0,0,0,0,0,0,0,0,0,0,0,0]
[null,"Actividad 6","Balance Hidrologico del Sistema. ",null,"P",0,0,0,0,0,0,50,50,0,0,0,0,1]
[{"$nulls":4},"E",0,0,0,0,0,0,0,0,0,0,0,0,0]
[null,"Actividad 7","Observacion de 5 sondeos eléctricos verticales distribuidos en los sitios criticos definidos en el analisis hidrológico. ",null,"P",0,0,0,0,0,0,50,50,0,0,0,0,1]
[{"$nulls":4},"E",0,0,0,0,0,0,0,0,0,0,0,0,0]
[null,"Actividad 8","Caracterizacion del acuifero, Subcuenca Cajititlan, Zona de Ixtlahuacan de los Membrillos de la Cuenca Lerma Santiago.",null,"P",0,0,0,0,0,0,50,50,0,0,0,0,1]
[{"$nulls":4},"E",0,0,0,0,0,0,0,0,0,0,0,0,0]
[null,"Actividad 9","Elaboración del Informe con determinaciones del modelo hidrologico superficial-subterraneo. ",null,"P",0,0,0,0,0,0,50,50,0,0,0,0,1]
[{"$nulls":4},"E",0,0,0,0,0,0,0,0,0,0,0,0,0]
[null,"Actividad 10","Definicion de cálculo de disponibilidad de recursos hidráulicos superficiales y subterráneos ",null,"P",0,0,0,0,0,0,50,50,0,0,0,0,1]
[{"$nulls":4},"E",0,0,0,0,0,0,0,0,0,0,0,0,0]
[null,null,"XL. Expedir su reglamento organico y demas disposiciones necesarias para su funcionamiento y organización interna."]
[]
[null,null,"XXXIV. Proponer al Ayuntamiento, adecuaciones o modificaciones para reformar el presente reglamento."]
[]
[null,"Actividad 11","Analisis para su posible actualización o modificación del Reglamento para la Prestacion de los Servicios de Agua Potable, Alcantarillado y Saneamiento, así como el Manual de Organización, para tener un mejor funcionamiento y organización dentro del Organismo. (Se realizó ya el 100% de la modificación al Manual de Organización junto con el organigrama, aun no se presenta ante el Consejo de Administración para ser analizado y aprobado/ SE PRESENTO UNA SOLICITUD PARA ACTUALIZACION DE MODIFICACIÓN AL ARTICULO 131 DEL REGLAMENTO PARA LA PRESTACION DE LOS SERVICIOS, SE PRETENDE REALIZAR LA SESION LA SEMANA DEL 12 AL 16 DE JULIO DEL 2021,  PARA HACER LA MODIFICACION PERTINENTE A LA ESTRUCTURA TARIFARIA PARA PRESENTARSE A LA HACIENDA MUNICIPAL PARA EL EJERCICIO FISCAL 2022).",null,"P",0,0,0,0,0,0,0,0,50,50,null,0,{"$f":"SUM($F64:$Q64)/100","v":1}]
[{"$nulls":4},"E",0,40,0,0,0,0,0,0,60,0,0,0,1]
[null,null,"XLVII. Realizar todas las actividades y actos juridicos encaminados directa o indirectamente al cumplimeinto de sus objetivos."]
[]
[null,null,"XXXVI. Verificar e inspeccionar las tomas, mecanismo de regulacion o medicion, las redes o instalaciones domiciliarias o privadas en los predios o lotes, para administrar o controlar la dotacion de los servicios de agua potable, drenaje, alcantarillado o disposicion final de sus aguas residuales o autorizar las solicitudes de conexion, sujetando sus actuaciones a lo dispuesto a las normas que establecen las bases generales y regulan el procedimiento administrativo."]
[null,"Actividad 12","Para cumplir con el objetivo del Organismo se realizan las siguientes actividades; reparacion de fugas de agua, reconexiones de tomas,  reparaciones en cemento con piedra ahogada, destapar drenajes, incorporaciones de agua potable, incorporaciones a drenaje, mantenimiento preventivo a 34 pozos de todo el municipio, mantenimiento a las 4 Plantas de Tratamiento de las localidades de Sabinos 1 y Huerta Vieja, Atequiza e Ixtlahuacán, llevando a cabo tambien Requerimientos a cada predio de las localidades del municipio, tanto para nuestros usuarios y a personas morosas, y así mismo notificar multas por desperdicio o mal uso del agua, todo esto anualmente. (Hasta la fecha se llevan 821 reparaciones de fugas de agua, 893 reconexiones, 48 reparaciones en cemento con piedra ahogada, 835 servicios de destapar drenajes, 29 incorporaciones de agua potable, 15 incorporaciones de drenaje, 9 mantenimientos preventivo a 9 pozos, las siguientes localidades; buenavista, camino acedros, cañada,  pozo 3, pozo 2 de ixtlahuacan, fraccionamiento buenavista, santa ana, sacrificio, aguilillas, 2 mantenimiento a las 4 Plantas de Tratamiento de las localidades de Sabinos 1 y Huerta Vieja, y así mismo notificamos un promedio de 15 multas por desperdicio o mal uso del agua). actualmente en el año 2021, se han realizado 536 reparaciones, 150 reconecciones, 250 desasolve de drenajes, 205 pipas  de agua y 22 limpieza de fosas.",null,"P",10,10,10,10,10,10,10,10,5,5,5,5,1]
[{"$nulls":4},"E",10,10,10,10,10,10,10,10,5,5,0,0,0.9]
[null,"Componente 2","Instalación de macro medidores en pozos municipales",null,null,"PORCENTAJE de pozos municipales con macro medidores (P52-PMMM)",null,"Mide los avances en poner macromedidores en los pozos municipales",null,"(Cantidad de actividades (2) desarrolladas para colocar 5 macro medidores en las lineas de conducción del agua / Total de actividades (7) desarrolladas para colocar 5 macro medidores en las lineas de conducción del agua de los pozos municipales a la red de agua potable )*100",null,null,2,null,7,"Mensual",null,{"$f":"M71/O71","v":{"v":0.2857142857142857,"d":"29%"}},"Eficacia","Dimensión"]
[{"$nulls":18},"Gestión","Tipo"]
[{"$nulls":12},{"$f":"R76+R78+R80+R82+R84+R86+R88","v":7},null,{"$f":"R75+R77+R79+R81+R83+R85+R87","v":7},null,null,{"$f":"M73/O73","v":{"v":1,"d":"100%"}},"Bimestral","Frecuencia de medición"]
[{"$nulls":18},"Índice","Unidad de medida"]
[null,"Actividad 1","Iniciar con las 3 cotizaciones correspondientes ( no se realizaron  las cotizaciones ya que se realizo la compra por adjudicacion directa)",null,"P",100,0,0,0,0,0,0,0,0,0,0,0,{"$f":"SUM($F75:$Q75)/100","v":1}]
[{"$nulls":4},"E",100,0,0,0,0,0,0,0,0,0,0,0,{"$f":"SUM($F76:$Q76)/100","v":1}]
[null,"Actividad 2","Definir donde se colocarán los 5 Macromedidores (en el caso de nuestro municipio solo contamos con dos macromedidores uno en el pozo # 3 de ixtlahuacan y otro en real del lago)",null,"P",100,0,0,0,0,0,0,0,0,0,0,0,1]
[{"$nulls":4},"E",100,0,0,0,0,0,0,0,0,0,0,0,1]
[null,"Actividad 3","Definir que tipo de Macromedidores se colocarán ( se compraron macromedidor CIMEX de propela)",null,"P",100,0,0,0,0,0,0,0,0,0,0,0,1]
[{"$nulls":4},"E",100,0,0,0,0,0,0,0,0,0,0,0,1]
[null,"Actividad 4","Especificar que los Macromedidores cumplan con lo especificado por la norma NOM-012-SCFI-2002 ( si cumplen con la norma y tienen impresos los logotipos)",null,"P",100,0,0,0,0,0,0,0,0,0,0,0,1]
[{"$nulls":4},"E",100,0,0,0,0,0,0,0,0,0,0,0,1]
[null,"Actividad 5","Definir si los 5 Macromedidores se colocan a la salida de la fuente de abastecimiento (pozo), para cubrir la demanda de agua de uso industrial ( los dos macromedidores se colocaron a la salida del pozo)",null,"P",100,0,0,0,0,0,0,0,0,0,0,0,1]
[{"$nulls":4},"E",100,0,0,0,0,0,0,0,0,0,0,0,1]
[null,"Actividad 6","Definir si los 5 Macromedidores se colocarán a la salida del tanque de almacenamiento ( No, fue a la salida del pozo) ",null,"P",100,0,0,0,0,0,0,0,0,0,0,0,1]
[{"$nulls":4},"E",100,0,0,0,0,0,0,0,0,0,0,0,1]
[null,"Actividad 7","Analizar si es conveniente que los Macromedidores se coloquen a la entrada de fraccionamientos o condominios. (no lo vemos conveniente ya que distribuye el agua de forma tandeada)",null,"P",100,0,0,0,0,0,0,0,0,0,0,0,1]
[{"$nulls":4},"E",100,0,0,0,0,0,0,0,0,0,0,0,1]
[null,null,"XIII. Emitir cuando proceda, directamente tecnicos de factibilidad para la dotacion de los servicios."]
[]
[null,"Actividad 8","Se elabora el oficio a quien solicite el estudio de factibilidad, por el que se dara respuesta si es posible la prestacion de servicios de agua potable o drenaje( DE OCTUBRE A DICIEMBRE DEL 2020 SE LLEVARON A CABO 22 ESTUDIOS DE FACTIBILIDAD, Y EN LO QUE VA DEL 2021 LLEVAMOS UN TOTAL DE 21 SOLICITUDES DE FACTIBILIDAD.",null,"P",10,10,10,10,10,10,10,10,5,5,5,5,1]
[{"$nulls":4},"E",10,10,10,10,10,10,10,10,0,0,0,0,0.8]
[null,"Actividad 9","El responsable y encargado de las  fuentes de abastecimiento (pozo) verifica en el domicilio que se solicita el servicio e informa a SAMAPA si es factible el dictamén. La factibilidad para dar el servicio (positiva o negativa), se le informa al Área Técnica. (SE ESTA LLEVANDO ACABO ESTA SOLICITUD, CON AREA TECNICA Y LOS DICTAMENES)",null,"P",10,10,10,10,10,10,10,10,5,5,5,5,1]
[{"$nulls":4},"E",10,10,10,10,10,10,10,10,5,0,0,0,0.85]
[null,null,"XXXIII. Formular y mantener actualizado el padron de usuarios de los servicios a su cargo."]
[]
[null,"Actividad 10","Realizamos una supervisión constante de trabajo de campo de nuestro padron de 32017 cuentas existentes hasta el mes de Julio, realizando visitas en cada predio, en donde se verifican si existen tomas clandestinas, subdivisiones no registradas, cuentas duplicadas, derivaciones de tomas de agua, para verificar que la informacion que esta capturada en el sistema sea la correcta y para mantener actualizado nuestro padrón, e invitando también al usuario a que asista a nuestras oficinas a presentar su documentacion adecuada para realizar las modificacion requerida. Detectando así alrededor de un 30% de estas irregularidades.(SE TRABAJO EN LA COLONIA LAS AGUILILLAS, EL GUAYABITO, VALLE DEL LAGO EN LA COLONIA AGUILILLAS, SABINOS 1, SABINOS 2, SABINOS 3, SABINOS 4, GIRASOLES, OLVIOS 1, AVANZANDO UN 8 % EN EL TOTAL DE LAS COMUNIDADES) esto hasta lo que va del 2021 ya que se cuida mucho la situacion de la pandemia para proteccion del personal.",null,"P",5,5,5,5,10,10,10,10,10,10,10,10,1]
[{"$nulls":4},"E",8,5,5,5,10,10,10,10,10,0,0,0,0.73]
[null,null,"XXXIV. Instalar los instrumentos de medicion adecuados en cada fuente de abastecimiento a su cargo, en puntos donde tecnicamente la medicion sea representativa de la totalidad del suministro de agua a las localidades de que se trate."]
[]
[null,"Actividad 11","Instalacion de macromedidiores en las fuentes de abastecimiento que contienen mas caudal que son las siguientes Pozo #1 ixtlahuacan con 25 l/s horas trabajadas 18 hrs tren de descarga 6\" abasteciendo 40%  de la cabecera municipal con una dotacion de 591,300 m3 anuales. Pozo la cañada con 25 l/s horas trabajadas 18 hrs tren de descarga 6\" abastece las localidades de la cañada y Luis Garcia con una dotacion de 591,300 m3 anuales. Pozo Fracc. Olivos 2 con 30 l/s horas trabajadas 24 hrs tren de descarga 6\" abastece los Fracc. Olivos 2, Olivos 3 y Laureles con una dotacion de 946,080 m3 anuales. Pozo #4 Atequiza con 18 l/s horas trabajadas 18 hrs tren de descarga 4\" abastece el 50% de la localidad de atequiza y el 50% de lomas de Atequiza con una dotacion de 425,736 m3 anuales. Pozo #3 de ixtlahuacan con 40 l/s horas trabajadas 12, tren de descarga  de 6\", abastece el 60% de la cabecera municipal con una dotacion programada de 630,720 m3 anuales. (actualmente se esta gestionando recurso para la instalacion de medidores para las fuentes de abastecimiento)",null,"P",0,0,0,0,0,0,20,20,20,20,20,0,1]
[{"$nulls":4},"E",0,0,0,0,0,0,0,0,0,0,0,0,0]
[null,null,"XXXV. Instalar y operar los aparatos medidores para la cuantificacion de consumos de todos los usuarios, incluyendo los servicios a los bienes de dominio publico."]
[]
[null,"Actividad 12","Iniciar con la implementacion de 100 medidores en el fraccionamiento buenavista, ya que este fraccionamiento es de mayor consumo derivado por las caracteristicas de sus predios, con una cantidad de consumo aproximado de 252,288 m3  anualmente ( a la fecha van instalados 161 medidores, proyectando tener 200 instalados al final de la administracion, logrando un 161% de avance, INVITANDO A LAS DEMAS PERSONAS A QUE SE INCORPOREN AL SERVICIO MEDIDO PARA QUE GASTEN MENOS AGUA Y PODER TENER MAS AGUA POR MAS TIEMPO EN ESTAS LOCALIDADES )",null,"P",0,0,0,20,20,20,20,10,10,0,0,0,1]
[{"$nulls":4},"E",0,0,0,20,20,20,20,10,10,0,0,0,1]
[null,null,"XXXVII. Realizar el proceso de lectura, cuantificacion de volumen administrado, facturacion y cobro de los servicios proporcionados."]
[]
[null,"Actividad 13","Mensualmente se realizan visitas a 161 usuarios con consumo medido, para toma de lectura manual. (se lleva un registro en bitacora de los consumos en el fraccionamiento, registrando los volumenes de agua usados, cada 5 de cada mes se toma la lectura del fraccionamiento, detectando que algunos medidores estan registrando lecturas erroneas por problemas en el suministro, asi como medicion de aire)",null,"P",0,0,0,20,10,10,10,10,10,10,10,10,{"$f":"SUM(F109:Q109)/100","v":1}]
[{"$nulls":4},"E",0,0,0,20,10,10,10,10,10,0,0,0,{"$f":"SUM(F110:Q110)/100","v":0.7}]
[null,null,"XXXVIII. Requerir a los usuarios y recibir el pago encontra prestacion de los servicios que reciben, generan o demandan."]
[]
[null,"Actividad 14","En promedio anualmente se entregan 50,400 requerimientos en las 12 localidades  y 14 Fraccionamientos del municipio, aumentanto el pago 30%. (Se han realizado 15,000 Requerimientos distribuidas en las siguientes localidades;  AGUILILLAS EN ENERO DEL 2021, COLONIA GUAYABITOS FEBRERO 2021, Y FRACCIONAMIENTO VALLE DEL LAGO EN AGUILILLAS EN FEBRERO 2021, SABINOS 1 MARZO 2021, SABINOS 2 MARZO 2021, SABINOS 3 ABRIL 2021, SABINOS 4 MAYO 2021, GIRASOLES JUNIO 2021, OLIVOS 1 JUNIO 2021)",null,"P",5,5,5,5,10,10,10,10,10,10,10,10,{"$f":"SUM(F113:Q113)/100","v":1}]
[{"$nulls":4},"E",10,10,5,5,5,5,5,10,10,10,0,0,{"$f":"SUM(F114:Q114)/100","v":0.75}]
[null,"  Componente 3","Programa de cultura del agua",null,null,"PORCENTAJE de cumplimiento del programa de cultura del agua (P53-CPCA)",null,"Mide el avance en el cumplimiento del programa ",null,"(Cantidad de  actividades (3) desarrolladas dentro del programa de cultura del agua / Total de  actividades (6) a desarrollar dentro del programa de cultura del agua)*100",null,null,3,null,6,"Mensual",null,{"$f":"M115/O115","v":{"v":0.5,"d":"50%"}},"Eficacia","Dimensión"]
[{"$nulls":18},"Gestión","Tipo"]
[{"$nulls":12},{"$f":"R120+R124+R126+R128+R130+R132","v":0.7999999999999999},null,{"$f":"R119+R123+R125+R127+R129+R131","v":6},null,null,{"$f":"M117/O117","v":{"v":0.13333333333333333,"d":"13%"}},"Bimestral","Frecuencia de medición"]
[{"$nulls":18},"Porcentaje","Unidad de medida"]
[null,"Actividad 1","Promover Programas de Cultura del Agua , preparando presentaciones con los temas siguientes;  cuidado del agua, contaminación, sequias y medio ambiente, y realizando también juegos recreativos como: crucigramas, serpientes y escaleras, lotería y dibujos para colorear. Por lo cual se pretende visitar a 29 preescolares y 36 primarias de las 12 localidades y 14 fraccionamientos de este municipio siendo beneficiarios de estos programas; 2,610 alumnos de kínder y 6,480 alumnos de nivel primaria. Actualmente contamos con el 100% en material digital (en comodato por el CEA) para la proyección, siendo estos los siguientes; 1 proyector, par de bocinas, 1 Lap top, 1 extensión de uso rudo y 04 videos recreativos. Así mismo, contamos con un 10% de material recreativo como; 4,000 hojas blancas para impresión y con 20 cajas de crayolas, esto con una inversión de $1,192.00, mismo que se adquirió en el mes de Enero, destinado para la elaboración de este proyecto, pero por cuestión de pandemia COVID-19 no se ha podido llevar a cabo la ejecución.",null,"P",10,10,0,20,10,5,5,10,10,0,10,10,{"$f":"SUM($F119:$Q119)/100","v":1}]
[{"$nulls":4},"E",0,0,0,10,0,0,0,0,0,0,0,0,{"$f":"SUM($F120:$Q120)/100","v":0.1}]
[null,null,"XLIII. Promover y ejecutar programas de uso eficiente de agua y difundir una cultura del agua en el municipio, destinando un porcentaje anual de sus recursos para ello. "]
[]
[null,"Actividad 2","Realizar mecanismos de reconocimiento premieando a los niños que cuentan con una mayor participación mediante el programa impartido en su escuela, con un 10% de alumnos de kinder y 10% de alumnos a nivel primaria. Se pretende comprar 800 pelotas en total, y 20 kilos de dulces surtidos. Con una inversion total de $5,500.00 (por cuestion de pandemia COVID-19 no se ha podido llevar a cabo la ejecucion).",null,"P",5,5,0,10,10,5,5,10,10,0,20,20,{"$f":"SUM($F123:$Q123)/100","v":1}]
[{"$nulls":4},"E",0,0,0,0,0,0,0,0,0,0,0,0,{"$f":"SUM($F124:$Q124)/100","v":0}]
[null,"Actividad 3","Se definio mecanismos de difusión en las redes sociales tales como; Facebook que actualmente contamos con 4,286 amigos, Instagram con 57 seguidores, subiendo a nuestras redes sociales; publicados 10 videos de concientizacion del cuidado del agua, evidencia de fotografias de las escuelas visitadas y eventos realizados por nuestro Organismo (por cuestion de pandemia COVID-19 no se ha podido llevar a cabo la ejecucion este año) y se suben 10 notas informativas sobre los reportes o reparaciones atendidos a la semana. Adémas se realizaron 12 perifoneos (informando sobre los descuentos del 15% en Enero y Febrero, y el 5% Marzo y Abril), tambien se hizo publicidad con Lona sobre la informacion de horarios y servicios en la oficina móvil. ",null,"P",0,0,0,20,20,5,5,10,10,10,10,10,1]
[{"$nulls":4},"E",0,0,0,20,20,5,5,10,10,0,0,0,0.7]
[null,"Actividad 4","Definir 52 sesiones de platicas con proyecciones de cine con cortometrajes y videos en pantalla gigante,con el objetivo de concientizar a la población con temas del cuidado del agua y medio ambiente, con las visitas de 2 veces al año en los 14 Fraccionamientos y 12 localidades de todo el municipio, invitando a un promedio de 5,200 personas entre niños y adultos. Y mediante estas proyecciones repartir agua fresca a los presentes, lo cual se comprarian 2 garrafones por Sesión, por lo tanto se necesita un presupuesto de $15,600.00 contemplando que se realicen las 52 Sesiones. (Por cuestion de pandemia COVID-19 no se ha podido llevar a cabo la ejecucion este año)",null,"P",0,0,0,20,10,5,5,10,10,0,20,20,1]
[{"$nulls":4},"E",0,0,0,0,0,0,0,0,0,0,0,0,0]
[null,"Actividad 5","Invitar a preescolares y primarias de todo el municipio al evento masivo del día mundial del agua, que se llevará a cabo la fecha del 22 de marzo. impartiendo varios talleres con temas del agua y llevando a cabo también manualidades, juegos y concursos para que sea más dinámico, con la finalidad de que conozcan el proceso o etapas para potabilizar el agua, y lo importante que es cuidar de este vital líquido, planificando también talleres que se llevaran a cabo este día. (Se realizo un plan de trabajo para llevar a cabo esta actividad, tomando en cuenta las propuestas que nos dieron los consejeros al presentar el POA 2021 del area administrativa del departamento de cultura del agua en la 40 Sesion Ordinaria del Consejo Administrativo con fecha del 20 de Noviembre 2020, (por cuestion de pandemia COVID-19 no se pudo llevar a cabo la ejecucion este año 2021).",null,"P",0,0,0,0,0,100,0,0,0,0,0,0,{"$f":"SUM(F129:Q129)/100","v":1}]
[{"$nulls":4},"E",0,0,0,0,0,0,0,0,0,0,0,0,{"$f":"SUM(F130:Q130)/100","v":0}]
[null,"Actividad 6","Implementar un grupo de niños guardianes del agua y medio ambiente con el fin de desarrollar acciones para salvar el planeta y crear conciencia ambiental, trabajar en conjunto con la dirección de medio ambiente y cambio climático para realizar estas acciones y proyectos, con la siguiente temática; cuidemos el agua, salvemos el aire, cuidemos la energía, salvemos el bosque, operación reciclaje, arborización, realizar talleres de sensibilización en conciencia ambiental a padres de familia, niños y niñas de como aplicar en la vida cotidiana, realizar una campaña de arborización, realizar exposiciones, concurso de pintura o dibujo, poesía, teatro y cortometrajes. (Por cuestion de pandemia COVID-19 no se ha podido llevar a cabo la ejecucion)",null,"P",10,10,10,10,10,5,5,10,10,0,10,10,{"$f":"SUM(F131:Q131)/100","v":1}]
[{"$nulls":4},"E",0,0,0,0,0,0,0,0,0,0,0,0,0]
[null,"Actividad 3.5","Se realizó en el mes de Diciembre 2020 una capacitación de atención a usuarios al personal del puesto de Cajeras, para brindar un óptimo servicio a nuestros usuarios, y con el objetivo de priorizar y facilitar información a las personas de la tercera edad. \n",null,"P",0,0,100,0,0,0,0,0,0,0,0,0,1]
[{"$nulls":4},"E",0,0,100,0,0,0,0,0,0,0,0,0,1]
[null,"Actividad 3.6","Se habilitó una caja de cobro en cabecera municipal desde inicio del año, que es exclusivamente para adultos mayores con fin de brindar una rápida atención y evitar la exposición de contagio a la actual pandemia COVID-19.",null,"P",0,0,0,100,0,0,0,0,0,0,0,0,1]
[{"$nulls":4},"E",0,0,0,100,0,0,0,0,0,0,0,0,1]
[null,"Actividad 3.7","Capacitaciones ANEAS para desarrollar las capacidades y habilidades de los servidores publicos, se pretende la asistencia por parte de SAMAPA a los cursos para capacitar al personal indicado,  por cuestion de pandemia COVID-19 no se ha podido llevar a cabo la ejecución.",null,"P",20,0,0,0,0,0,0,0,20,20,20,20,1]
[{"$nulls":4},"E",0,0,0,0,0,0,0,0,0,0,0,0,0]
[null,"Actividad 3.8","Control y actualizacion de los formatos de patrimonio del SAMAPA (se lleva una actualización hasta el mes de Abril del 80% del inventario de bienes muebles distribuido por área, de vehiculos y de equipo de computo).",null,"P",0,0,0,10,10,10,10,10,15,15,10,10,1]
[{"$nulls":4},"E",0,0,0,0,0,10,10,10,20,0,0,0,0.5]
[null,null,"XV. Promover la participacion social de los usuarios de la sociedad organizada en general, en la realizacion de estudios de costos, inversiones, cuotas y tarifas."]
[]
[null,"Actividad 3.9","Se asignó a una persona para la atencion a usuarios, la cual se encarga de llevar a cabo el levantamiento de cualquier tipo de reporte y le da el seguimiento adecuado con la area que se requiere, además brinda la información necesaria, así como para realizar cuestionarios a los usuarios que nos visitan en las oficinas de cabecera municipal para conocer la persepción que tienen los usuarios sobre los costos,inversiones, cuotas y tarifas.",null,"P",0,0,0,100,0,0,0,0,0,0,0,0,1]
[{"$nulls":4},"E",0,0,0,0,0,100,0,0,0,0,0,0,1]
[null,"Actividad 3.10","Se realiza una Sesion de Consejo Administrativo donde participan 17 Representantes, y analizan y discuten la estructura tarifaria del año próximo, esta Sesión se lleva a cabo en los meses de Julio y Agosto 2021, y posteriormente se convova a otra Sesión ordinaria del Consejo de la Comision Tarifaria, esta última debe llevarse a cabo a mas tardar el mes de Noviembre 2021.",null,"P",0,100,0,0,0,0,0,0,0,0,100,0,2]
[{"$nulls":4},"E",0,100,0,0,0,0,0,0,0,0,0,0,1]
[null,"Actividad 3.8","XVI. Elaborar la propuesta para aplicar en la contribucion la formula establecida en el Art. 101 - bis de la ley del agua, misma que debera remitir al ayuntamiento a mas tardar el dia 31 del mes de julio de cada año, para que sea incorporada a la iniciativa de la ley de ingresos municipal, y aprobada por el congreso del estado."]
[]
[null,"Actividad 3.11","Se elabora una reunion de trabajo con las 4 areas internas del Organismo (Area Tecnica, Administrativa, Comercial y Direccion General) esto para realizar un analisis de la calidad del servicio de agua potable de las 12 localidades y 14 fraccionamientos del municipio, para esto se toma en cuenta los gastos de mantenimiento, reparaciones de pozos y maquinaria, CFE, Hipoclorito de Sodio, y el pago de nomina para cada operador de fuentes de abastecimiento, y de este modo es como se realiza el analisis de costos para las tarifas del año proximo, para despúes presentar a Tesoreria del H. Ayuntamiento esta propuesta ya aprobada por el Consejo Administrativo a mas tardar el día 31 de Julio de cada año, para que sea incorporada a la Ley de ingresos municipal. (Se presentó esta propuesta al Consejo de Administración en Sesión número 43 con fecha del 08 de julio del 2021, faltan firmas del Acta para presentarse a Tesorería). ",null,"P",0,0,0,0,0,0,0,0,0,100,0,0,1]
[{"$nulls":4},"E",0,0,0,0,0,0,0,0,0,100,0,0,1]
[null,"Actividad 3.9","XXII. Celebrar convenios con Instituciones bancarias o financieras corresponsables bancarios y empresas de traslado de valores, cadenas comerciales y equivalentes, que seran auxiliares en la recaudaciòn y concentracion de los ingresos del organismo y celebrar los actos juridicos y necesarios para tal fin. "]
[]
[null,"Actividad 3.12","Tenemos 9 cuentas productivas, las cuales nos auxilian en la recaudación por medio de transferencias, depósitos, cobros por terminales y recepcion de cheques. (Contemplando en nuestro presupuesto anual 2021 para el pago de servicios financieros y bancarios la cantidad de $91,428.00 aprobado bajo Sesión 42 del Consejo Administrativo con fecha 17 de Diciembre 2020, aun no se realiza este pago)",null,"P",0,100,0,0,0,0,0,0,0,0,0,0,1]
[{"$nulls":4},"E",100,0,0,0,0,0,0,0,0,0,0,0,1]
[null,"Actividad 3.10","XXIII. Abrir las cuentas productivas de cheques en la Instituciòn bancaria de su eleccion, a fin de ingresar lo recuperado por la prestacion de los servicios, asi como lo que corresponda a infraestructura, saneamiento o por cualquier otro concepto establecido en la normatividad aplicable. La cuenta bancaria serà exclusiva para el manejo de estos ingresos y rendimientos financieros que se produzcan. "]
[]
[null,"Actividad 3.13","Contamos con las siguientes cuentas tanto en banco SANTANDER y AZTECA; 1) 2 Ctas. del 73% de Consumo  2) 2 Ctas. del 20% de Saneamiento 3) 2 Ctas. del 3% de Infraestructura, 4) 2 Ctas. del 4% en Incorporaciones y 5) 1 Cta. destinada unicamente para recurso PRODDER, las cuales nos auxilian en la recaudación por medio de transferencias, depósitos, cobros por terminales y recepcion de cheques. A fin de ingresar lo recuperado para el pago de servicios financieros y bancarios. ",null,"P",0,0,100,20,20,10,10,10,10,10,5,5,2]
[{"$nulls":4},"E",0,0,100,20,15,10,10,10,5,0,0,0,1.7]
[null,"Actividad 3.11","XXVI. Realizar los estudios tecnicos y financieros, y las gestiones necesarias para la realizacion de las inversiones publicas productivas del organismo operador, cuando se necesite el financiamiento siguiendo los procedimientos establecidos en las leyes de la materia."]
[]
[null,"Actividad 3.14","1) Plantear un estudio tecnico y financieros en las zonas donde no cuentan con servicio de agua y drenaje. 2) Realizar propuesta en base al estudio financiero y presentarla al Comité de Adquisiciones esto para saber si es conveniente seguir surtiendo por bloque de pipa o realizar el trabajo de nuevas lineas de conduccion de agua potable o de drenaje segun sea el caso, e informando a este Consejo la venta de agua en bloque que se recauda al año siendo la cantidad de $9,126.00 con 14 servicios de pipa, y con la venta de desasolve de fosas y drenaje al año un aproximado de $28,100.00 de 24 servicios del vactor, con un total de recaudación anual de $37,226.00.",null,"P",10,10,10,10,10,10,10,10,5,5,5,5,1]
[{"$nulls":4},"E",5,5,5,5,5,5,10,10,5,0,0,0,0.55]
[null,"Actividad 3.12","XXVII. Rendir el informe de la cuenta mensual a la hacienda municipal. "]
[]
[null,"Actividad 3.15","Se ha realizado un 20% de capturas de ingresos y egresos, así como 20% de cuentas conciliadas, todo de este año 2021. ",null,"P",10,10,80,10,10,10,10,10,10,15,15,10,2]
[{"$nulls":4},"E",0,0,100,0,0,5,5,5,5,0,0,0,1.2]
[null,"Actividad 3.13","XXVIII. Rendir anualmente al Ayuntamiento y al Consejo de Administracion un informe de las labores realizadas durante el ejercicio anterior asi como del estado general del Organismo Operador."]
[]
[null,"Actividad 3.16","1) Se presenta un Informe de las labores o proyectos realizados del año 2021, ante el Consejo de Administración y al Ayuntamiento antes de finalizar el periodo anual, tomando en cuenta el presupuesto ya aprobado en Acta 42 de la Sesion ordinaria del Consejo Administrativo de fecha 17 de Diciembre 2020, con un total de $49,521,737.00 el cual se distribuira de la siguiente manera; con un 70% del presupuesto para llevar a cabo 116 actividades del Area Técnica, para el Area Administrativa un 15% para cumplir con 29 actividades y para Area Comercial un 15% para realizar 2 actividades.",null,"P",0,0,100,30,15,10,10,10,10,5,5,5,2]
[{"$nulls":4},"E",0,0,100,0,0,0,0,0,0,0,0,0,1]
[null,"Actividad 3.14","XXIX. Permitir y apoyar la fiscalizacion de los organismos de revision correspondientes, asi como la practica de auditorias al organismo operador al termino del ejercicio anual."]
[]
[null,"Actividad 3.17","Realizar la licitación para contratar los servicios externos de un auditor contable, esto para llevar a cabo la revision de 1 cuenta publica, correspondiente del Organismo Operador. (se ha realizado la revision y avance de la cuenta publica de manera interna, con el apoyo del encargado de hacienda municpal).",null,"P",0,0,0,50,50,0,0,0,0,0,0,0,1]
[{"$nulls":4},"E",0,0,0,0,10,10,10,20,20,30,0,0,1]
[null,"Actividad 3.18","Llevar a cabo los servicios de auditoria con las etapas correspondietes; I.Revision de documentación. II. Encuentro de hallazgos. III.Solventacion. 2) Programar contratación en el mes de septiembre del año actual.(se lleva acabo una auditaria en noviembre del 2020, donde nos auditan el año 2019 por parte del programa PRODDER, auditando 2 rubros, financiero y tecnico, donde se nos notifico de una sola observacion, que fue la falta de bitacora electornica, solventando dicha observacion con un oficio aclaratorio presentado a la auditoria en diciembre del mismo año. en el año 2021, nos auditan en el mes de junio, del programa PRODDER las obras llevadas a cabo en el 2020, teniendo como resultado el cumplimiento total sin ninguna observacion durante ese ejercicio fiscal.",null,"P",0,100,0,0,0,0,0,0,100,0,0,0,2]
[{"$nulls":4},"E",0,100,0,0,0,0,0,0,100,0,0,0,2]
[null,"Actividad 3.16","XXXI. Examinar y aprobar sus presuestos anuales de ingresos y egresos, los estados financieros, los balances y los informes generales y especiales que procedan. "]
[]
[null,"Actividad 3.19","Se realiza analisis comparativo de años anteriores y año actual, 1 de ingresos y 1 de egresos, ademas de revisar los proyectos planteados del año posterior de las 3 areas del organismo para así aprobar los presupuestos del proximo año, esto es presentado ante el Consejo de Administración llevada a cabo el mes de Diciembre. (Se presentará el comparativo de Ingresos y Egresos en el mes de Diciembre del 2021)",null,"P",0,0,100,10,10,10,10,10,10,10,10,20,2]
[{"$nulls":4},"E",0,0,100,0,0,0,0,0,0,0,0,0,1]
[null,"Actividad 3.18","XLI. Integrar su Unidad de Transparencia e informacion publica e implementar las acciones necesarias para garantizar la transparencia y el acceso a la informacion publica en los terminos de la ley de Informacion publica del Estado de Jalisco. "]
[]
[null,"Actividad 3.20","Rendir informes trimestrales al SIRES y Plataforma nacional PTN (Hasta Junio se han contestado 23 solicitudes de información de SIIRES (INFOMEX), y se han llenado 313 formatos de plataforma nacional todo actualizado del mes de Enero al mes de Junio 2021, y realizando la actualización de la pagina principal de SAMAPA).",null,"P",10,10,10,10,10,10,10,10,5,5,5,5,{"$f":"SUM($F183:$Q183)/100","v":1}]
[{"$nulls":4},"E",0,0,0,10,10,10,10,10,10,0,0,0,0.6]
[null,null,"XLIII. Promover y ejecutar programas de uso eficiente de agua y difundir una cultura del agua en el municipio, destinando un porcentaje anual de sus recursos para ello. "]
[]
[null,"Componente 4","Reemplazar el colector principal de la línea de drenaje ",null,null,"PORCENTAJE colector principal remplazado (P54-CPR)",null,"Mide los avances en el reemplazo del colector principal",null,"(Cantidad de actividades (10) desarrolladas para  reemplazar 100 ml del colector principal de la línea de drenaje  en cabecera municipal / Total de actividades (10) programadas para  reemplazar 100 ml del colector principal de la línea de drenaje de la cabecera municipal )*100",null,null,10,null,10,"Mensual",null,{"$f":"M187/O187","v":{"v":1,"d":"100%"}},"Bimestral","Frecuencia de medición"]
[{"$nulls":18},"Porcentaje","Unidad de medida"]
[{"$nulls":12},{"$f":"R192+R194+R196+R198+R200+R202+R204+R206+R208+R210","v":10},null,{"$f":"R191+R193+R195+R197+R199+R201+R203+R205+R207+R209","v":10},null,null,{"$f":"M189/O189","v":{"v":1,"d":"100.00%"}}]
[]
[null,"Actividad 4.1","Sacar lo obsoleto y meter tuberia de pvc (se realizo el cambio de tuberia a una de 24\" de material corrugado) Y TUBERIA SERIE 25 DE 10\"",null,"P",100,0,0,0,0,0,0,0,0,0,0,0,{"$f":"SUM($F191:$Q191)/100","v":1}]
[{"$nulls":4},"E",100,0,0,0,0,0,0,0,0,0,0,0,{"$f":"SUM($F192:$Q192)/100","v":1}]
[null,"Actividad 4.2","Elaborar Planos del proyecto (se elaboro plano , asi como los generadores y precios unitarios )",null,"P",100,0,0,0,0,0,0,0,0,0,0,0,1]
[{"$nulls":4},"E",100,0,0,0,0,0,0,0,0,0,0,0,1]
[null,"Actividad 4.3","Elaborar la memoria fotográfica se cuenta con memoria fotografica tanto fisica como digital)",null,"P",0,100,0,0,0,0,0,0,0,0,0,0,1]
[{"$nulls":4},"E",0,100,0,0,0,0,0,0,0,0,0,0,1]
[null,"Actividad 4.4","Realizar la matriz metodológica de Bojorquez para la cuantificación de impactos ambientales ( es este proyecto no hay impacto ambiental al tratarse de un proyecto en una vialidad ya construida y la desembocadura sera a el colector que lleva el drenaje a la planta de tratamiento el cual se encuentra entubada en su totalidad)",null,"P",100,0,0,0,0,0,0,0,0,0,0,0,1]
[{"$nulls":4},"E",100,0,0,0,0,0,0,0,0,0,0,0,1]
[null,"Actividad 4.5","Desarrollar la Matriz de Leopold para identificar los impactos ambientales ( es este proyecto no hay impacto ambiental al tratarse de un proyecto en una vialidad ya construida y la desembocadura sera a el colector que lleva el drenaje a la planta de tratamiento el cual se encuentra entubada en su totalidad)",null,"P",100,0,0,0,0,0,0,0,0,0,0,0,1]
[{"$nulls":4},"E",100,0,0,0,0,0,0,0,0,0,0,0,1]
[null,"Actividad 4.6","Levantar la cartografía del sitio del proyecto ( se realizo estudio cartografico de la obra que fue la sustitucion de red de agua, drenaje y colector pluvial)",null,"P",100,0,0,0,0,0,0,0,0,0,0,0,1]
[{"$nulls":4},"E",100,0,0,0,0,0,0,0,0,0,0,0,1]
[null,"Actividad 4.7","Elaborar el calendario de obra ( se encuentra los calendarios de programacion de obra el cual comenso el 20 de abril y termino el 17 de mayo del año 2019)",null,"P",100,0,0,0,0,0,0,0,0,0,0,0,1]
[{"$nulls":4},"E",100,0,0,0,0,0,0,0,0,0,0,0,1]
[null,"Actividad 4.8","Verificar la documentación legal del predio ( no se necesitaron ya que fue una obra publica y no fue necesario invadir ningun predio)",null,"P",100,0,0,0,0,0,0,0,0,0,0,0,1]
[{"$nulls":4},"E",100,0,0,0,0,0,0,0,0,0,0,0,1]
[null,"Actividad 4.9","Elaborar el listado de flora y fauna  ( es este proyecto no hay impacto ambiental al tratarse de un proyecto en una vialidad ya construida y la desembocadura sera a el colector que lleva el drenaje a la planta de tratamiento el cual se encuentra entubada en su totalidad)",null,"P",100,0,0,0,0,0,0,0,0,0,0,0,1]
[{"$nulls":4},"E",100,0,0,0,0,0,0,0,0,0,0,0,1]
[null,"Actividad 4.10","Elaborar el programa de vigilancia ambiental ( en todo momento se supervisa con el apoyo del departamento de ecologia que no exista impacto ambiental)",null,"P",100,0,0,0,0,0,0,0,0,0,0,0,1]
[{"$nulls":4},"E",100,0,0,0,0,0,0,0,0,0,0,0,1]
[null,null,"IV. Proponer y ejecutar servicios de agua potable, alcantarillado y tratamiento de aguas residuales, por si o a traves de terceros, con la cooperacion y participacion de los colonos y vecinos organizados de acuerdo con las disposiciones establecidas."]
[]
[null,"Actividad 4.11","Construcción de Planta de Tratamiento de Aguas Residuales con lineas de alejamiento de drenaje de las localidades de Cedros y Buenavista (propuesta de ubicación 20 23'59.91\" N 103 W  ( este proyecto se realizara en 2022 por falta de presupuesto)",null,"P",0,0,0,0,0,0,0,100,0,0,0,0,1]
[{"$nulls":4},"E",0,0,0,0,0,0,0,0,0,0,0,0,{"$f":"SUM(F214:Q214)/100","v":0}]
[null,"Actividad 4.12","Construcción de una Planta de Tratamiento de Aguas Residuales para tratar las aguas de La Capilla y el Fracc. Lomas de la Capilla",null,"P",0,0,0,0,0,30,30,40,0,0,0,0,1]
[{"$nulls":4},"E",0,0,0,0,0,25,25,0,15,0,0,0,0.65]
[null,"Actividad 4.13"," Propuesta y ejecucion de las siguientes obras para el servicio de agua potable, 1.- Sustitucion de Lineas de Agua Potable en las calles Morelos, Parroquia y Priv. Parroquia en la localidad de la Capilla con una tubería de 3\" en pvc con una longitud de 238 mts., se colocaron 14 tomas domiciliarias con una población beneficiada de 70 personas, además se libero el flujo de agua (porque la tubería anterior estaba completamente tapada) veneficiando a las siguientes zonas, Zona Centro y el Barrio de la Mora con una población aproximada de 1,000 habitantes.  2.- Contruccion de la linea de conduccion del fraccionamiento residencial la capilla, a la linea de conduccion del pozo #1 de la capilla con una longitud de 350 mts, tuberia de pvc de 3\" con una poblacion beneficiada de 2,500 habitantes. 3.- Construccion de red de distribucion de agua Potable en la calle Santa Elena, Santa Ana, Guadalupe, Santa rosa y Santa Patricia del fraccionamiento la Capilla con un diametro de 4\" con una longitud de 973 mts con 29 tomas domiciliarias con una poblacion beneficiada de 120 habitantes. 4.- Sustitucion de la red de agua potable en la calle Javier mina en lomas de atequiza de 2 \", 50 mts de longitud con una poblacion beneficiada de 44 habitantes y 11 tomas domiciliarias.  5.- Red de interconeccion del pozo #3 de ixtlahuacan a la red existente, tuberia de pvc de 6\" con una longitud de 350 mts beneficiando al 60% de la poblacion que equivale a 3,900 habitantes.actualmente todo esta terminado al 100 %, asi como las obras autorizadas para este 2021linea de alejamiento de drenaje en buenavista,perforacion de pozo en la capilla,perforacion de pozo buenavista, perforacion de pozo en el aguacate, linea de interconexion en pozo capilla, drenaje laureles real del lago, lines de drenaje casas bali planta real del lago ",null,"P",10,20,10,10,20,10,20,0,0,0,0,0,1]
[{"$nulls":4},"E",10,20,10,20,20,10,10,0,0,0,0,0,1]
[null,"Actividad 4.14","Propuesta y ejecucion de las siguientes obras para el servicio de drenaje, 1.- Construccion de 40 mts de drenaje de tubo corrugado de 18\" de la linea principal de aguilillas a el rancho de ochoa evitando el derrame a cielo abierto de 157,680 m3 de aguas residuales al año.  2.- Construccion de red de edrenaje de 10\" en la calle azucena entre justa sierra y camino a la estacion colonia magisterial en  la localidad de  atequiza con una longitus de 650 mts con 19 descargas sanitarias de 8\" y una poblacion benefiada de 80 habitantes.  3.- Sustitucion de la linea de drenaje en la calle Javier Mina en la cabecera   municipal con una longitud de 50 mts con 9 descargas sanitarias beneficiando a directamente 300 casas 1,200 habitantes. 4.- Construcción del conector de drenaje que inicia en el cruce de la calle Efraín González Luna y calle Cárcamo, continua por la calle Cárcamo hasta el entronque del colector existente en la calle López Mateos, con una longitud de 300 m. en 2021 linea de alejamiento en buenavista 980 mts y 8 pozos de visita, sustitucion de drenaje camino antiguo a atequiza , conexion de drenaje laureles real del lago,conexion de drenaje casas bali planta real del lago.",null,"P",10,20,10,20,20,10,10,0,0,0,0,0,1]
[{"$nulls":4},"E",10,20,10,20,20,10,10,0,0,0,0,0,1]
[null,null,"X. Establecer sistemas de drenajes separados para la captaciòn y conduccion de aguas pluviales. ",null,"P",0,0,0,0,0,0,0,0,25,25,25,25,1]
[{"$nulls":4},"E",0,0,0,0,0,0,0,0,0,0,0,0,0]
[null,"Actividad 4.15","Se elaborará proyecto para la separacion de aguas residuales de pluviales en el que se trabaja mutuamente con el departamento de obras publicas y desarrollo urbano del ayuntamiento de Ixtlahuacan. Se llevo a cabo en los fraccionamientos sabinos 1, 2, 3, 4, girasoles, olivos 1 y 2, ixtlahuacan de los membrillos, huerta vieja, puerta del sol, el desasolve de alcantarillas y bocas de tomernta asi como canales de desalojo.",null,"P",0,0,0,0,0,0,0,0,25,25,25,25,1]
[{"$nulls":4},"E",0,0,0,0,0,0,0,0,25,25,0,0,0.5]
[null,null,"XI. Verificar que las nuevas construcciones o edificaciones cuenten con sistema de recoleccion de agua pluvial con capacidad suficiente, asì como con redes para el desalojo de las mismas."]
[]
[null,"Actividad 4.16","Realizar un acuerdo con el departamento desarrollo Urbano donde se nos notifique de las nuevas contrucciones y edificaciones para realizar una verificación de sus sistemas de recoleccion de agua pluvial y que cuenten con redes de desalojo de las mismas (mediante oficio 770/2020 con fecha 21 de Dic. 2020 se solicitó al Director de Desarrollo Urbano que nos brinde la información).",null,"P",0,0,0,0,0,0,0,100,0,0,0,0,1]
[{"$nulls":4},"E",0,0,0,0,0,0,0,100,0,0,0,0,1]
[null,null,"XII. Coordinar sus acciones con la direccion de obras publicas del municipio, para reparar las rupturas de calles y banquetas, cuando se instalen o reparen tomas de agua o descarga de drenaje."]
[]
[null,"Actividad 4.17","SAMAPA realiza directamente las reparaciones de las rupturas de calles y banquetas, se realizan aproximadamente 144 reparaciones anuales. El costo promedio de este tipo de reparaciones es de $ 1,400 por obra, el gasto anual corresponde al 4.3% de la partida presupuestal. en 2021 se sigue con la misma forma de trabajo llevando a la fecha 105 reparaciones",null,"P",10,10,10,10,10,10,10,10,5,5,5,5,1]
[{"$nulls":4},"E",10,10,10,10,10,10,10,10,5,0,0,0,0.85]
[null,null,"IX. Fijar los límites máximos permisibles de descarga de aguas residuales al sistema de alcantarillado sanitario, y supervisar que las mismas se realicen conforme a la normatividad aplicable y vigente, en coordinación con las autoridades competentes."]
[]
[null,"Actividad 4.18","Elaborar un programa de supervisión a las empresas que vierten sus aguas residuales a la red de drenaje municipal. En el municipio se localizan las siguientes empresas que vierten sus descargas a la red municipal: Santorini, Azucarera, Rastro de pollos,tequilera, milagros de dalila. (a los cuales se les realizan pruebas de laboratorio par saber las descargas que realizan se encuentre dentro de las normas se realizan 2 pruebas al año, YA FUERON VISITADAS ESTAS EMPRESAS PARA QUE CUBRIERAN EL COSTO DE SANEAMIENTO, EN EL MES DE ENERO Y FEBRERO, PAGANDO CADA UNA DE ELLAS POR ESTE SERVICIO).",null,"P",0,0,0,0,0,0,0,40,40,20,0,0,1]
[{"$nulls":4},"E",0,0,0,0,0,0,0,25,25,0,0,0,0.5]
[null,"Actividad 4.19","Elaborar un manual para supervisar a las empresas que vierten sus aguas residuales a la red de drenaje municipal. Que contenga como mínimo la siguiente temática: Apego a las directrices de los Planes Nacional y Estatal de Desarrollo, Normas oficiales de Semarnat, Parametros de contaminantes (básicos, metales pesados y cianuros, y contaminantes patógenos), Frecuencias de muestreo y presentación de reportes elaborados por las empresas, responsabilidades de la empresas que vierten aguas residuales a la red de drenaje municipal, se hacen revisiones periodicas a los cuales se les realizan pruebas de laboratorio par saber las descargas que realizan se encuentre dentro de las normas se realizan 2 pruebas al año",null,"P",0,0,0,0,0,0,0,0,40,40,20,0,1,"Eficacia","Dimensión"]
[{"$nulls":4},"E",0,0,0,0,0,0,0,0,40,40,20,0,1,"Gestión","Tipo"]
[null,"Componente 5","Construcción de 2 pozos profundos",null,null,"PORCENTAJE de avance en perforación de pozos (P55-AP2P)",null,"Mide los avances en la perforación de dos nuevos pozos profundos",null,"(Cantidad de  actividades (10) desarrolladas para la construcción de 2 nuevos pozos profundos / Total de  actividades (10) a desarrollar para la construcción de 2 nuevos pozos profundos en el territorio municipal)*100",null,null,10,null,10,"Mensual",null,{"$f":"M239/O239","v":{"v":1,"d":"100%"}},"Bimestral","Frecuencia de medición"]
[{"$nulls":18},"Porcentaje","Unidad de medida"]
[{"$nulls":12},{"$f":"R244+R246+R248+R250+R252+R254+R256+R258+R260+R262","v":10},null,{"$f":"R243+R245+R247+R249+R251+R253+R255+R257+R259+R261","v":10},null,null,{"$f":"M241/O241","v":{"v":1,"d":"100%"}}]
[]
[null,"Actividad 1","Buscar un equipo especializado en este tipo de actividades ( se realizan estudios y se contrata empresas con equipo profesional)",null,"P",100,0,0,0,0,0,0,0,0,0,0,0,{"$f":"SUM($F243:$Q243)/100","v":1}]
[{"$nulls":4},"E",100,0,0,0,0,0,0,0,0,0,0,0,{"$f":"SUM($F244:$Q244)/100","v":1}]
[null,"Actividad 2","Gestiónar los recursos para su contratación (se da seguimiento para que sea autorizados y plasmados en plan de trabajo)",null,"P",100,0,0,0,0,0,0,0,0,0,0,0,1]
[{"$nulls":4},"E",100,0,0,0,0,0,0,0,0,0,0,0,1]
[null,"Actividad 3","Contratación de un equipo experto para la realización de dos perforaciones para dos pozos profundos. En este año 2021 se realizo la perforacion de 3 pozos el aguacate, capilla y buenavista)",null,"P",100,0,0,0,0,0,0,0,0,0,0,0,1]
[{"$nulls":4},"E",100,0,0,0,0,0,0,0,0,0,0,0,1]
[null,"Actividad 4","Especificaciones técnicas para la perforación de 1 pozo en cabecera municipal y otro ubicado en la localidad de Aguilillas.(se realizan los estudios correspondientes antes de la realizacion de una perforacion)",null,"P",100,0,0,0,0,0,0,0,0,0,0,0,1]
[{"$nulls":4},"E",100,0,0,0,0,0,0,0,0,0,0,0,1]
[null,"Actividad 5","Etapa exploratoria de 1 pozo en cabecera municipal y otro ubicado en la localidad de Aguilillas.( se realizan estudios previos tanto de fuentes y corrientes subterraneas asi como el lugar idoneo para la perforacion por sus caracteristicas)",null,"P",100,0,0,0,0,0,0,0,0,0,0,0,1]
[{"$nulls":4},"E",100,0,0,0,0,0,0,0,0,0,0,0,1]
[null,"Actividad 6","Diseño de 1 pozo en cabecera municipal y en la localidad de Aguilillas (en este 2021 se realiza para 3 pozos el aguacate, la capilla y buenavista)",null,"P",100,0,0,0,0,0,0,0,0,0,0,0,1]
[{"$nulls":4},"E",100,0,0,0,0,0,0,0,0,0,0,0,1]
[null,"Actividad 7","Terminación, desarrollo y desinfección de 1 pozo en cabecera municipal, y en la localidad de Aguilillas (en todas las fuentes de abastecimiento se cuenta con cuartos de cloracion en este 2021)",null,"P",100,0,0,0,0,0,0,0,0,0,0,0,1]
[{"$nulls":4},"E",100,0,0,0,0,0,0,0,0,0,0,0,1]
[null,"Actividad 8","Pruebas de aforo de 1 pozo en cabecera municipal, y en la localidad de Aguilillas (se realizan pruebas en los pozos de aforo asi como la revision de los niveles)",null,"P",100,0,0,0,0,0,0,0,0,0,0,0,1]
[{"$nulls":4},"E",100,0,0,0,0,0,0,0,0,0,0,0,1]
[null,"Actividad 9","Equipamiento e instrumentación (todos las fuentes de abastecimiento cuentan con sus equipos necesarios para su funcionamiento)",null,"P",100,0,0,0,0,0,0,0,0,0,0,0,1]
[{"$nulls":4},"E",100,0,0,0,0,0,0,0,0,0,0,0,{"$f":"SUM($F260:$Q260)/100","v":1}]
[null,"Actividad 10","Determinar la operación y mantenimiento de 1 pozo en cabecera municipal, y en la localidad de Aguilillas (se realizan mantenimientos preventivos y correctivos)",null,"P",100,0,0,0,0,0,0,0,0,0,0,0,1]
[{"$nulls":4},"E",100,0,0,0,0,0,0,0,0,0,0,0,1]
[null,null,"I. Planear, estudiar, proyectar, construir, aprobar, conservar, mantener, apliar, rehabilitar, administrar y operar las obras y sistemas de agua potable, alcantarillado, tratamiento y disposicion de aguas residuales, asi como su reutilizacion y circulacion, en los terminos de las leyes estatales y federales de la materia; "]
[]
[null,"Actividad 11","Construccion de la red de distribucion de agua poatable en la colonia el guayabito en la localidad de aguilillas ( se esta gestionando los recursos necesarios asi como los estudios de campo y los permisos necesarios para los cruces de tuberia en predios particulares con 50% de avance) ya se realizaron los trabajos en tres  calles",null,"P",{"$nulls":5},0,50,{"$nulls":3},50,null,{"$f":"SUM(F265:Q265)/100","v":1}]
[{"$nulls":4},"E",{"$nulls":3},10,null,null,40,{"$nulls":5},{"$f":"SUM(F266:Q266)/100","v":0.5}]
[null,"Actividad 12","Construcción de colector en el tramo de la Av. Aguilillas al Acueducto Chapala-Guadalajara con una longitud aprox. de 1,050 m en la Localidad de Aguilillas ( se esta trabajando en los estudios correspondientes 10% de avance) ",null,"P",{"$nulls":3},10,{"$nulls":3},100,{"$nulls":4},1.1]
[{"$nulls":4},"E",{"$nulls":7},10,{"$nulls":4},0.1]
[null,"Actividad 13","Construcción de cisterna en Los Camichines, Colonia al sur del pozo de Aguilillas ( se comenzara a realizar los studios para ver la factibilidad de costrucion) se esta gestionando el recurso y tramitando la donacion del terreno 10 %",null,"P",{"$nulls":11},100,1]
[{"$nulls":4},"E",{"$nulls":8},20,{"$nulls":3},0.2]
[null,"Actividad 14","Construccion de estructura para proteger la linea de conduccion de agua potable en su cruce con el arrollo en chiquilista (a nivel de arrastre del arrollo entre las localidades  de la cañada a luis Garcia) esperando recursos",null,"P",{"$nulls":10},50,50,1]
[{"$nulls":4},"E",{"$nulls":12},0]
[null,"Actividad 15","Construcción de drenaje de 10\" con 4 pozos de visita, del Mercado de Artesanías al colector principal de la Cabecera Municipal, con una longitud aproximada de 300 m ( se esta realizando los estudios correspondientes asi como, los presupuestos teniendo fecha tentativa de principios de abril para inicio de sub costrucion 10 % avance)",null,"P",{"$nulls":3},50,50,{"$nulls":7},1]
[{"$nulls":4},"E",{"$nulls":3},10,{"$nulls":8},0.1]
[null,"Actividad 16","Construcción de red de distribución de 2\" del cruce de J. Ortíz de Dominínguez y Priv. del mismo nombre al cruce de 24 de Noviembre e Hidalgo en Lomas de Atequiza (160 m).  ]( se esta gestionndo los recursos para esta realizacion de la obra 5% de avance.)",null,"P",{"$nulls":6},100,{"$nulls":5},1]
[{"$nulls":4},"E",{"$nulls":3},5,{"$nulls":8},0.05]
[null,"Actividad 17","Construcción de la primera etapa de la red de distribución de agua potable en el Callejón La Tinaja, Col. La Tinaja con una longitud de 950 m (se esta gestionando los recursos para la realizacion de la obra 5% de avance)",null,"P",{"$nulls":6},50,50,{"$nulls":4},1]
[{"$nulls":4},"E",{"$nulls":3},5,{"$nulls":8},0.05]
[null,"Actividad 18","Construcción red de agua pqtable de 4\" en la calle Benito Juárez entre Pino Suárez y Alvaro Obregón, con una longitud de 105 m en Lomas de Atequiza. ( se esta gestionando los recursos para la realizacion de la obra 5% de avance). ",null,"P",{"$nulls":7},100,{"$nulls":4},1]
[{"$nulls":4},"E",{"$nulls":3},5,{"$nulls":8},0.05]
[null,"Actividad 19","Construcción de línea de conducción del Pozo 2 La Tinaja a la Cisterna Grande, que sustituya la actual línea que pasa por predios particulares. ( se esta gestionndo los recursos para la realizacion de la obra 5% de avance)",null,"P",{"$nulls":7},100,{"$nulls":4},1]
[{"$nulls":4},"E",{"$nulls":3},5,{"$nulls":8},0.05]
[null,"Actividad 20","Construcción de red de drenaje en el Fraccionamiento Buenavista, localidad de Buenavista ( se esta trabajando en en la recostrucion de la linea de alejamiento del drenaje y posteriormente dar paso a la gestion y costrucion del sistema del drenaje del fracionamiento 5% avance) a la fecha ya se terminaron los trabajos de la linea de alejamiento.",null,"P",{"$nulls":8},100,{"$nulls":3},1]
[{"$nulls":4},"E",{"$nulls":3},5,{"$nulls":8},0.05]
[null,"Actividad 21","Gestion de un predio cercano a la Localidad de La Cañada para la construcción del humedal arroyo Los Sabinos ( se esta gestionando los recursos para la realizacion de la obra 5% de avance)",null,"P",{"$nulls":3},100,{"$nulls":8},1]
[{"$nulls":4},"E",{"$nulls":3},5,{"$nulls":8},0.05]
[null,"Actividad 22","Estudio de Impacto Ambiental para la construcción de Humedal arroyo Los Sabinos para el tratamiento de aguas residuales de la Localidad de La Cañada. (se esta gestionando los recurso para la realizacion de la obra 5% de avance) ",null,"P",{"$nulls":4},100,{"$nulls":7},1]
[{"$nulls":4},"E",{"$nulls":3},5,{"$nulls":8},0.05]
[null,"Actividad 23","Construcción de Humedal arroyo Los Sabinos para el tratamiento de aguas residuales de la Localidad de La Cañada. ( se esta gestionando los recursos para la realizacion de la obra 5% de avance) ",null,"P",{"$nulls":4},50,50,{"$nulls":6},1]
[{"$nulls":4},"E",{"$nulls":3},5,{"$nulls":8},0.05]
[null,"Actividad 24","Construcción de red de agua potable de 4\" en la calle Venustiano Carranza entre Morelos y Av. Hidalgo de la localidad de La Capilla, con una longitud aproximada de 250 m. ( se esta gestinando los recursos para la realizacion de la obra 5% de avance).",null,"P",{"$nulls":4},100,{"$nulls":7},1]
[{"$nulls":4},"E",{"$nulls":3},5,{"$nulls":8},0.05]
[null,"Actividad 25","Construcción de red de agua potable de 4\" en la calle Juárez entre Jesús García y Av. Hidalgo, de la localidad de La Capilla, con una longitud aproximada de 500 m. ( se esta gestionando los recursos para la realizacion  de la obra 5% de avance)",null,"P",{"$nulls":4},100,{"$nulls":7},1]
[{"$nulls":4},"E",{"$nulls":3},5,{"$nulls":8},0.05]
[null,"Actividad 26","Construcción de red de agua potable de 4\" en la calle Jesús García entre las calles Sánchez Zepeda y Júarez, de la localidad de La Capilla, con una longitud aproximada de 250 m. ( se esta gestionando los recursos para la realizacion de la obra 5% de avance) ",null,"P",{"$nulls":5},100,{"$nulls":6},1]
[{"$nulls":4},"E",{"$nulls":3},5,{"$nulls":8},0.05]
[null,"Actividad 27","Construcciòn de 2 líneas de red de drenaje de 14\" con pozos de visita, para interconectar la localidad de La Capilla con la Planta de tratamiento de aguas residuales \"La Capilla\", línea 1 con 700 mts y línea dos con 1,800 m ( se esta realizando los estudios correspondientes , asi como las cotizaciones correpondientes con una fecha tentativa de inico de principios de marzo 10% de avance) actualmente se esta trabajando en la terminacion de la planta de tratamiento y ya se encuentra el proyecto para conexion de las lineas a la planta",null,"P",100,{"$nulls":11},1]
[{"$nulls":4},"E",{"$nulls":3},10,{"$nulls":8},0.1]
[null,"Actividad 28","Construcción de registro para la válvula de la bomba que alimenta la red principal, localizado en la calle Loma Verde entre Loma de las Malvas y el Retorno 1, en lomas de la Capilla (  se tiene contemplado en el plan de trabajo la realizacion de este proyecto con feha a mediados de abril 10% de avance, ya se cuenta con autorizacion) ya se realizo el trabajo",null,"P",{"$nulls":7},100,{"$nulls":4},1]
[{"$nulls":4},"E",{"$nulls":3},10,{"$nulls":4},90,{"$nulls":3},1]
[null,"Actividad 29","Construcción de red de distribución de agua potable en la calle de los Maestros entre Jesús Barajas y Fco. Villa, en Luis Garcia, con una longitud de 220 m. ( se esta gestioando los recursos para la realizacion de obra 5% de avance)",null,"P",{"$nulls":8},100,{"$nulls":3},1]
[{"$nulls":4},"E",{"$nulls":3},5,{"$nulls":8},0.05]
[null,"Actividad 30","Construcción de red de distribución de agua potable en la calle Jesús Morales de Luis Garcia, con una longitud de 470 m  ( se esta gestionando los recuros para la realizacion de la obra 5% de avance)",null,"P",{"$nulls":8},100,{"$nulls":3},1]
[{"$nulls":4},"E",{"$nulls":3},5,{"$nulls":8},0.05]
[null,"Actividad 31","Construcción de red de distribución de agua potable en el canal de la calle Madero a la calle Independencia en la colonia Luis Garcia, con una longitud de 140 m. ( se esta gestionando los recursos para la realizacion de la obra 5% de avance).",null,"P",{"$nulls":8},100,{"$nulls":3},1]
[{"$nulls":4},"E",{"$nulls":3},5,{"$nulls":8},0.05]
[null,"Actividad 32","Construcción de red de distribución de agua potable en Luis Garcia, del punto con coordenadas 20 23 '20,78\" N, 103 14'03.54\" O al punto 20 23'25.59\" N, 103 14'03 00\" O, con una longitud de 280 mts. (  se esta gestionando los recursos para la realizacion de la obra 5% de avance) ",null,"P",{"$nulls":8},100,{"$nulls":3},1]
[{"$nulls":4},"E",{"$nulls":3},5,{"$nulls":8},0.05]
[null,"Actividad 33","Construcción de red de distribución de agua potable en Luis Garcia, del punto con coordenadas 20 23'03.41\" N, 103 14'15.47\" O al punto 20 23'22.97\" N, 103 14'12.57\" O, con una longitud de 600 m. ( se esta gestionando los recursos para la realizacion de la obra 5% de avance) ",null,"P",{"$nulls":8},100,{"$nulls":3},1]
[{"$nulls":4},"E",{"$nulls":3},5,{"$nulls":8},0.05]
[null,"Actividad 34","Estudio técnico para resolver la problemática del drenaje en la salida por el camino antiguo a Atequiza. ( ya esta realizado con el 100% ya se cuenta con los recursos y las cotizaciones para realizar esta obra) ya se realizo esta obra",null,"P",{"$nulls":4},100,{"$nulls":7},1]
[{"$nulls":4},"E",{"$nulls":3},100,{"$nulls":8},1]
[null,"Actividad 35","Construcción de línea de distribución de agua potable en la calle Juárez entre la calle Lázaro Cárenas y Miguel Hidalgo, en la localidad de Santa Rosa,  con una longitud de 85 m  (se esta gestionando los recursos para la realizacion de la obra 5% de avance)",null,"P",{"$nulls":8},100,{"$nulls":3},1]
[{"$nulls":4},"E",{"$nulls":3},5,{"$nulls":8},0.05]
[null,"Actividad 36","Construcción de línea de distribución de agua potable en la calle Donato Guerra entre las calles Miguel Hidalgo y el acceso del restaurant Los Milagros de Dalila, con una Ion itud de 115 m. ( se esta getionando los recursos para la relizacion de la obra 5% de avance)",null,"P",{"$nulls":8},100,{"$nulls":3},1]
[{"$nulls":4},"E",{"$nulls":3},5,{"$nulls":8},0.05]
[null,"Actividad 37","Construccion de estructura para proteger la linea de conducción de agua potable en su cruce con el arroyo en chiquilista a nivel de arrastre del arroyo, entre las localidades de La Cañada a Luis García  ( solo la espera para empezar la obra aproximadamente a principios de marzo 10% de avance) ",null,"P",null,null,100,{"$nulls":9},1]
[{"$nulls":4},"E",{"$nulls":3},10,{"$nulls":8},0.1]
[null,"Actividad 38","Se elaborará proyecto para la separacion de aguas residuales de pluviales en el que se trabaja mutuamente con el departamento de obras publicas y desarrollo urbano del ayuntamiento de Ixtlahuacan. ( se esta trabajando con las areas correspondientes para realizar los estudios correspondientes 5% de avance)ya se cuenta con varios trabajos en su gran mayoria en los fraccionamientos..)y en la  cabecera municipal",null,"P",{"$nulls":3},100,{"$nulls":8},1]
[{"$nulls":4},"E",{"$nulls":3},5,{"$nulls":8},0.05]
[null,"Actividad 39","Estudio para analizar las causas de las inundaciones en temporal de lluvias entre las calles Torrecillas, Allende y la carretera Santa Rosa-La Barca en la Col. Lomas Bajas de Atequiza. ( se esta gestionando los recursos necesarios para la realizacion de los estudios correspondientes 5 % de avance) ",null,"P",{"$nulls":7},100,{"$nulls":4},1]
[{"$nulls":4},"E",{"$nulls":3},5,{"$nulls":8},0.05]
[null,"Actividad 40","Mantenimiento a las redes de distribución de agua potable, a las redes de drenaje, a pozos profundos, cisternas de rebombeo, cárcamos de rebombeo, plantas de tratamiento de aguas residuales, sistemas de cloración, sistemas de electrificación y a parque vehicular. ( se trabaja periodicamente en mantenimiento a los carcamos, sistemas de cloracion y electrificacion y en lo referente a las redes de distribucion , rembombeo, pozos profundos y parque vehicular se iniciaran a partir de la primer semana de marzo segun calendario de mantenimientos 40% de avance) a la fecha se lleva un 50% de avance",null,"P",15,15,10,10,10,10,10,10,10,{"$nulls":3},1]
[{"$nulls":4},"E",{"$nulls":3},40,10,10,10,10,{"$nulls":4},0.8]
[null,"Actividad 41","Conexión de drenaje de 18\", del Fracc. Laureles al Fracc. Olivos I con una longitud de 160 m. ( miercoles 10 de febrero se incio la excavacion de dicha obra con un 15% de avance) este trabajo ya se realizo ",null,"P",{"$nulls":5},100,{"$nulls":6},1]
[{"$nulls":4},"E",{"$nulls":5},100,{"$nulls":6},1]
[null,"Actividad 42","Estudio técnico para resolver la problemática del drenaje en la salida por el camino antiguo a Atequiza, en el Rodeo ( se esta gestionando los recursos y buscando cotizaciones dicho estudio con el 10%) este proyecto se realizara en el 2022 por falta de presupuesto",null,"P",{"$nulls":4},100,{"$nulls":7},1]
[{"$nulls":4},"E",{"$nulls":3},10,{"$nulls":8},0.1]
[null,"Actividad 43","Instalación de Bomba de 20 Hp para rebombeo en la cisterna del Fracc. Sabinos l.  ( se esta trabajando en las cotizaciones para la compra y posterior instalacion de dicha bomba con un 15% de avance) ya se realizo la instalacion de la misma",null,"P",{"$nulls":5},100,{"$nulls":6},1]
[{"$nulls":4},"E",{"$nulls":3},15,{"$nulls":8},{"$f":"SUM(F330:Q330)/100","v":0.15}]
[null,"Actividad 44","Elaborar un Estudio de Hidrología Superficial y Subterranea (de los recursos hídricos disponibles en el municipio). ( se esta gestionando los recursos asi como solicitando las cotizaciones correspondientes con 10% de avance)",null,"P",{"$nulls":7},50,50,{"$nulls":3},1]
[{"$nulls":4},"E",{"$nulls":3},10,null,null,40,{"$nulls":5},0.5]
[null,"Actividad 45","Interconexión de la red de distribución de agua potable del nuevo pozo de Huerta Vieja al Fracc. Huerta Vieja, Real del Lago y la localidad de La Capilla ( esta obra se iniciara los trabajos en el mes de marzo con 15% de avance)",null,"P",{"$nulls":5},100,{"$nulls":6},1]
[{"$nulls":4},"E",{"$nulls":3},15,{"$nulls":8},0.15]
[null,"Actividad 46","Instalar Válvula de 4\" para el control de agua potable con caja de válvulas y tapa, localizada en el cruce de las calles Cuauhtémoc y Niños Héroes, en cabecera municipal. ( este trabajo se realizara en el mes de marzo según el calendario del plan de trabajo con 10% de avnce)",null,"P",{"$nulls":5},100,{"$nulls":6},1]
[{"$nulls":4},"E",{"$nulls":3},10,null,90,{"$nulls":6},1]
[null,"Actividad 47","Localización y construcción del registro de la válvula de paso entre los Fracc. Sabinos I y Sabinos III (entre las calles Río Tamesis Ote. y Río Senegal Ote. Sabinos III en dirección a la calle Río Mascota de Sabinos l).  ( este trabajo se realizara en el mes de marzo segun el calendario de trabajo con el 10% de avance) este trabajo ya se termino",null,"P",{"$nulls":5},100,{"$nulls":6},1]
[{"$nulls":4},"E",{"$nulls":3},10,{"$nulls":8},0.1]
[null,"Actividad 48","Enmallar el perímetro del tanque 1 de Ixtlahuacán de los Membrillos, con una extensión de 80 metros lineales ( esta obra se relizara en el mes de abril según plan de trabjo 2021 con avance 10% ) ",null,"P",{"$nulls":7},100,{"$nulls":4},1]
[{"$nulls":4},"E",{"$nulls":3},10,{"$nulls":8},0.1]
[null,"Actividad 49","Enmallar el perímetro del tanque 2 de Ixtlahuacán de los Membrillos, con una extensión de 80 metros lineales ( esta obra se relizara para el mes de mayo según el plan de trabajo del 2021 con 10% de avance) ",null,"P",{"$nulls":7},100,{"$nulls":4},1]
[{"$nulls":4},"E",{"$nulls":3},10,{"$nulls":8},0.1]
[null,"Actividad 50","Colocar cerca de malla en el perímetro del predio de la cisterna chica de Lomas de Atequiza (65 m). ( este trabajo se realizara la segunda quincena de febrero según el plan de trabjo con 10% de avance)",null,"P",{"$nulls":4},100,{"$nulls":7},1]
[{"$nulls":4},"E",{"$nulls":3},10,{"$nulls":8},0.1]
[null,"Actividad 51","Limpieza del canal de aguas pluviales al oriente del fraccionamiento Rinconada las Lomas. ( se esta gestionando recursos para la realizacion de esta obra por definir por fecha de inicio con 5% de avance) este trabajo ya se realizo",null,"P",{"$nulls":11},100,1]
[{"$nulls":4},"E",{"$nulls":3},5,{"$nulls":3},50,45,{"$nulls":3},1]
[null,"Actividad 52","Instalar tapadera de la alcantarilla ubicada entre las calles Loma Paricutín Pte. y Av. Las Lomas Pte., en Fracc. Rinconada las Lomas ( se esta cotizando con proveedores para la compra de dichas tapaderas, posible fecha de instalacion en inicios de marzo con el 5% de avance) este trabajo ya se realizo",null,"P",{"$nulls":11},100,1]
[{"$nulls":4},"E",{"$nulls":3},5,{"$nulls":3},95,{"$nulls":4},1]
[null,"Actividad 53","Instalar tapadera de la alcantarilla ubicada entre las calles Everest Pte. y Av. Las Lomas Pte., en Fracc. Rinconada las Lomas (  se esta cotizando con proveedores para la compra de dichas tapaderas, posible fecha de instalacion de inicos de marzo con el 5% de avance) este trabajo ya se realizo",null,"P",{"$nulls":11},100,1]
[{"$nulls":4},"E",{"$nulls":3},5,{"$nulls":3},95,{"$nulls":4},1]
[null,"Actividad 54","Colocar dos válvulas expulsadoras de aire en la red de distribución de agua potable, en el Fracc. Residencial la Capilla (Casas Bali). ( esta en proceso la cotizacion de las valvulas on fecha aproximada con inicios de abril con 5% de avance) ",null,"P",{"$nulls":11},100,1]
[{"$nulls":4},"E",{"$nulls":3},5,{"$nulls":8},0.05]
[null,"Actividad 55","Instalar tapadera de alcantarilla ubicada en el cruce de calle Capilla de San Pedro y Capilla San Francisco, en el Fracc. Residencial la Capilla (Casas Bali). (  se esta cotizando con proveedores para la compra de dichas tapaderas, posible fecha de instalacion de inicos de marzo con el 5% de avance) este trabajo ya se realizo",null,"P",{"$nulls":11},100,1]
[{"$nulls":4},"E",{"$nulls":3},5,{"$nulls":3},95,{"$nulls":4},1]
[null,"Actividad 56","Instalar tapadera de alcantarilla ubicada en el cruce de la Av. Capilla Sixtina y Capilla de Medugory, en el Fracc. Residencial la Capilla (Casas Bali).(  se esta cotizando con proveedores para la compra de dichas tapaderas, posible fecha de instalacion de inicos de marzo con el 5% de avance) este trabajo ya se realizo",null,"P",{"$nulls":11},100,1]
[{"$nulls":4},"E",{"$nulls":3},5,{"$nulls":3},95,{"$nulls":4},1]
[null,"Actividad 57","Instalar tapadera de alcantarilla ubicada en el cruce de las calles Capilla de Medugory y Capilla San Patricio, en el Fracc. Residencial la Capilla (Casas Bali).(  se esta cotizando con proveedores para la compra de dichas tapaderas, posible fecha de instalacion de inicos de marzo con el 5% de avance) este trabajo ya se realizo",null,"P",{"$nulls":11},100,1]
[{"$nulls":4},"E",{"$nulls":3},5,{"$nulls":3},95,{"$nulls":4},1]
[null,"Actividad 58","Instalar tapadera de alcantarilla ubicada en la calle Capilla de San Rafael, entre la Av. Capilla Sixtina y Capilla San Patricio, en el Fracc. Residencial la Capilla (Casas Bali).(  se esta cotizando con proveedores para la compra de dichas tapaderas, posible fecha de instalacion de inicos de marzo con el 5% de avance)este trabajo ya se realizo",null,"P",{"$nulls":11},100,1]
[{"$nulls":4},"E",{"$nulls":3},5,{"$nulls":3},95,{"$nulls":4},1]
[null,"Actividad 59","Instalar tapadera de alcantarilla ubicada en la calle Capilla de Guadalupe, entre la Av. Capilla Sixtina y Capilla San Patricio, en el Fracc. Residencial la Capilla (Casas Bali).(  se esta cotizando con proveedores para la compra de dichas tapaderas, posible fecha de instalacion de inicos de marzo con el 5% de avance) este trabajo ya se realizo",null,"P",{"$nulls":11},100,1]
[{"$nulls":4},"E",{"$nulls":3},5,{"$nulls":3},95,{"$nulls":4},1]
[null,"Actividad 60","Instalar tapadera de alcantarilla ubicada en la calle Capilla San Patricio, entre las calles Capilla del Fresno y Capilla de San Fernando, en el Fracc. Residencial la Capilla (Casas Bali).(  se esta cotizando con proveedores para la compra de dichas tapaderas, posible fecha de instalacion de inicos de marzo con el 5% de avance) este trabajo ya se realizo",null,"P",{"$nulls":11},100,1]
[{"$nulls":4},"E",{"$nulls":3},5,{"$nulls":3},95,{"$nulls":4},1]
[null,"Actividad 61","Instalación de tapa para registro de válvula de 2\", localizada en Loma de las Manzanas y Loma Real, en Fracc. Lomas de la Capilla. ( se esta trabajando con las cotizaciones de dichas tapas fecha posible de instalacion fianales del mes de marzo con 5% de avance)este trabajo ya se realizo",null,"P",{"$nulls":10},100,null,1]
[{"$nulls":4},"E",{"$nulls":3},5,{"$nulls":3},95,{"$nulls":4},1]
[null,"Actividad 62","Instalación de tapa para registro de válvula de 2\", localizada en Loma de las Belladonas y Loma Real, en Fracc. Lomas de la Capilla. ( se esta trabajando con las cotizaciones de dichas tapas fecha posible de instalacion fianales del mes de marzo con 5% de avance) este trabajo ya se realizo",null,"P",{"$nulls":10},100,null,1]
[{"$nulls":4},"E",{"$nulls":3},5,{"$nulls":4},95,{"$nulls":3},1]
[null,"Actividad 63","Instalación de tapa para registro de válvula de 2\", localizada en Loma de los Tulipanes y Loma Real, en Fracc. Lomas de la Capilla. ( se esta trabajando con las cotizaciones de dichas tapas fecha posible de instalacion fianales del mes de marzo con 5% de avance). este trabajo ya se realizo",null,"P",{"$nulls":10},100,null,1]
[{"$nulls":4},"E",{"$nulls":3},5,{"$nulls":4},95,{"$nulls":3},1]
[null,"Actividad 64","Instalación de tapa para registro de válvula de 2\", localizada en Loma de los Naranjos y Retorno Siete, en Fracc. Lomas de la Capilla. (  se esta trabajando con las cotizaciones de dichas tapas fecha posible de instalacion fianales del mes de marzo con 5% de avance).este trabajo ya se realizo",null,"P",{"$nulls":10},100,null,1]
[{"$nulls":4},"E",{"$nulls":3},5,{"$nulls":4},95,{"$nulls":3},1]
[null,"Actividad 65","Instalación de tapa para registro de válvula de 2\", localizada en Loma de las Ceibas y Retorno Seis, en Fracc. Lomas de la Capilla. (  se esta trabajando con las cotizaciones de dichas tapas fecha posible de instalacion fianales del mes de marzo con 5% de avance).este trabajo ya se fealizo",null,"P",{"$nulls":10},100,null,1]
[{"$nulls":4},"E",{"$nulls":3},5,{"$nulls":3},95,{"$nulls":4},1]
[null,"Actividad 66","Instalación de tapa para registro de válvula de 2\", localizada en Loma de las Violetas y Retorno Seis, en Fracc. Lomas de la Capilla. (  se esta trabajando con las cotizaciones de dichas tapas fecha posible de instalacion fianales del mes de marzo con 5% de avance).este trabajo ya se realizo",null,"P",{"$nulls":10},100,null,1]
[{"$nulls":4},"E",{"$nulls":3},5,{"$nulls":3},95,{"$nulls":4},1]
[null,"Actividad 67","Instalación de tapa para registro de válvula de 2\", localizada en Loma de las bugambilias y Retorno Cinco, en Fracc. Lomas de la Capilla. (  se esta trabajando con las cotizaciones de dichas tapas fecha posible de instalacion fianales del mes de marzo con 5% de avance).este trabajo ya se realizo",null,"P",{"$nulls":10},100,null,1]
[{"$nulls":4},"E",{"$nulls":3},5,{"$nulls":3},95,{"$nulls":4},1]
[null,"Actividad 68","Instalación de tapa para registro de válvula de 4\", localizada en Retorno Cuatro y Loma de las Rosas, en Fracc. Lomas de la Capilla. (  se esta trabajando con las cotizaciones de dichas tapas fecha posible de instalacion fianales del mes de marzo con 5% de avance) este trabajo ya se realizo",null,"P",{"$nulls":10},100,null,1]
[{"$nulls":4},"E",{"$nulls":3},5,{"$nulls":3},95,{"$nulls":4},1]
[null,"Actividad 69","Instalación de tapa para registro de válvula de 2\", localizada en Loma de las Palmas y Retorno Tres, en Fracc. Lomas de La Capilla. ( se esta trabajando con las cotizaciones de dichas tapas fecha posible de instalacion fianales del mes de marzo con 5% de avance).este trabajo ya se realizo",null,"P",{"$nulls":10},100,null,1]
[{"$nulls":4},"E",{"$nulls":3},5,{"$nulls":3},95,{"$nulls":4},1]
[null,"Actividad 70","Instalación de tapa para registro de válvula de 2\", localizada en Loma del Cielo y Retorno Dos, en Fracc. Lomas de la Capilla. ( se esta trabajando con las cotizaciones de dichas tapas fecha posible de instalacion fianales del mes de marzo con 5% de avance)este trabajo ya se realizo",null,"P",{"$nulls":10},100,null,1]
[{"$nulls":4},"E",{"$nulls":3},5,{"$nulls":3},95,{"$nulls":4},1]
[null,"Actividad 71","Instalación de tapa para registro de válvula de 3\", localizada en Loma Azul y Retorno Uno, en Fracc. Lomas de la Capilla. ( se esta trabajando con las cotizaciones de dichas tapas fecha posible de instalacion fianales del mes de marzo con 5% de avance).este trabajo ya se realizo",null,"P",{"$nulls":10},100,null,1]
[{"$nulls":4},"E",{"$nulls":3},5,{"$nulls":3},95,{"$nulls":4},1]
[null,"Actividad 72","Instalar un tapón en la línea de recirculación de 3\" de la cisterna del rebombeo del Fracc. Lomas de la Capilla (reducira gasto de energía eléctrica).  (  este trabajo ya se realizo en el mes de noviembre  con el 100% de avance)",null,"P",{"$nulls":3},100,{"$nulls":8},1]
[{"$nulls":4},"E",{"$nulls":3},100,{"$nulls":8},1]
[null,"Actividad 73","Instalación de la tapa del registro de agua potable localizado en el retorno 4 de la calle Loma de las Rosas, en el Fracc. De  Lomas de la Capilla. ( ( se esta trabajando con las cotizaciones de dichas tapas fecha posible de instalacion fianales del mes de marzo con 5% de avance)este trabajo ya se realizo",null,"P",{"$nulls":10},100,null,1]
[{"$nulls":4},"E",{"$nulls":3},100,{"$nulls":8},1]
[null,"Actividad 74","Instalación de válvula de control de agua potable con caja de valvulas en el cruce de las calles Manuel Dipp y Mr. Kent, en la localidad de Buenavista ( se realizara esta istalacion la segunda quincena de febrero ya se cuenta con el material necesario con un 10% de avance) pendiente de realizar trabajo ya se encuentra en etapa de realizacion",null,"P",{"$nulls":3},100,{"$nulls":8},1]
[{"$nulls":4},"E",{"$nulls":3},10,{"$nulls":3},90,{"$nulls":4},1]
[null,"Actividad 75","Elaboración del Programa de Trabajo 2021 que integre las 3 areas que conforman el SAMAPA (Área Técnica, Área Administrativa, Área Comercial), y el Presupuesto de Egresos 2021, esto es revisado y aprobado por el Consejo de Administración y las autoridades municipales. (Se elaboró el POA de cada área y posteriormente se presentó ante el consejo mediante una sesion ordinaria numero 40 el día 20 de Noviembre 2020 donde fue discutido y aprobado el Programa de trabajo, despues se realizó el presupuesto de egresos tomando en cuenta las acciones y la programación de las actividades del Programa de Trabajo 2021, este presupuesto fue discutido y aprobado mendiante sesion de consejo numero 42 con fecha del 17 de Diciembre 2020)",null,"P",0,50,50,0,0,0,0,0,0,0,0,0,1]
[{"$nulls":4},"E",0,50,50,0,0,0,0,0,0,0,0,0,1]
[null,"Actividad 76","Perforar el pozo profundo #3 en la localidad de ixtlahuacan, con las siguientes características:  ademe de 10\", columna de 120 mts de 6\", l/s 40 , bomba de extraccion de  40 litros por segundo , motor 75 hp a 440 volts, transformador 75 kva, profundidad 150, arrancador 75 hp marca siems.  ( esta obra se concluyo en el mes de noviembre del año pasado con 100% de avance)",null,"P",50,0,0,15,15,20,0,0,0,0,0,0,1]
[{"$nulls":4},"E",50,0,0,15,15,20,0,0,0,0,0,0,1]
[null,"Actividad 77","Mantenimiento preventivo de los siguientes pozos, #1 de la cabecera, #2 de aguilillas, #1 de Buenavista, #1 del Fracc. Buenavista, #1 Capilla, #1, #2 y #3 de Atequiza, #1 Sacrificio, #2  del rodeo, #1 Santa rosa, #1 Huerta Vieja, a los cuales se a realizado el ajuste de tornilleria de los arrancadores, verificacion de nieveles de amperaje y voltaje para detectar posibles fallas de falsos contactos o sobrecaliento de motor, limpieza de malesa al area verde de cada fuente de abastecimiento, revision  de existencia de capacitadores, y que se encuentren trabajando. ( estos mantenimientos se realizaran entre los meses de marzo y septiembre segun el calendario plan de trabajo 10% de avance)a la fecha ya se encuentran terminados dichos trabajos con mantenimientos correctivos ",null,"P",0,0,0,10,10,10,10,20,10,10,10,10,1]
[{"$nulls":4},"E",0,0,0,10,10,10,10,20,10,0,0,0,0.7]
[null,null,"III. Formular los estudios y proyectos de obra para la construcción, conservación, rehabilitación y ampliación de las fuentes de suministro, así como de redes de agua potable, alcantarillado y plantas de tratamiento;"]
[null,"Actividad 78","Adquisición de terreno para nuevo pozo profundo. (Se consiguio un terreno en comodato por 20 años)",null,"P",0,0,100,{"$nulls":9},{"$f":"SUM(F400:Q400)/100","v":1}]
[{"$nulls":4},"E",0,0,0,0,20,20,60,{"$nulls":5},{"$f":"SUM(F401:Q401)/100","v":1}]
[null,"Actividad 79","Perforación de un pozo profundo para abastecer la Localidad de Buenavista, Fracc. Buenavista y Campanillas, con su equipamiento y electrificación ( una vez adquirido el terreno se empezara la perforacion de dicho pozo con fecha tentativa segunda quincena de marzo) actualmene se encuentra en proceso de perforacion",null,"P",0,0,0,0,null,null,50,50,{"$nulls":4},1]
[{"$nulls":4},"E",0,0,0,0,null,null,30,{"$nulls":5},0.3]
[null,"Actividad 80","Perforación de un pozo profundo en las inmediaciones del Fracc. Huerta Vieja, con su equipamiento y electrificación ( esta perforacion se inicira en el mes de marzo según el plan de trabajo)se encuentra pendiente por falta de recurso",null,"P",0,0,0,0,0,50,50,{"$nulls":5},1]
[{"$nulls":4},"E",0,0,0,0,{"$nulls":8},0]
[null,"Actividad 81","Adquisición de terreno para un pozo profundo para abastecer La Capilla, Fracc. Residencial La Capilla y Fracc. Lomas de la Capilla. (Se cosiguio un terreno en comodato por 20  años)",null,"P",0,0,0,null,100,{"$nulls":7},1]
[{"$nulls":4},"E",0,0,0,40,60,{"$nulls":7},1]
[null,"Actividad 82","Perforación de un pozo profundo para abastecer La Capilla, Fracc. Residencial La Capilla y Fracc. Lomas de la Capilla, con su equipamiento y electrificación. ( espera de inicio de obra con fecha tentativa de abril 5% de avance)(actualmente se encuentra en etapa e perforacion con un avance del 50%)",null,"P",0,0,0,0,30,30,40,{"$nulls":5},1]
[{"$nulls":4},"E",0,0,0,5,30,30,10,10,{"$nulls":4},0.85]
[null,"Actividad 5.15","VI. Cumplir las normas tecnicas, criterios y lineamientos para la prestaciòn de los servicios a su cargo, establecidas por la comision, asi como las normas oficiales mexicanas, vigilando su observancia, ampliandolas con lo necesario para cubrir los casos especificos; en particular, sobre descargas de aguas residuales, para disposicion, tratamiento, reutilizacion de lodos."]
[]
[null,"Actividad 83","Solicitar analisis quimicos de aguas tratadas y agua potable al CEA, de nuestras plantas de tratamiento de Huerta Vieja, con una descarga de 18 litros por segundo, aportando 550,000 metros cúbicos al año a la presa la capilla, esta agua apoya para que en época de estiage se riegan 60 héctareas de trigo con una produccion de 5 toneladas por héctarea que suman 300 toneladas por temporal. Y la planta de tratamiento Sabinos 1, descarga 35 l/s aportando 1,050,000 metros cubicos al año y descarga al arroyo los sabinos un 50%, y el otro 50% es tomado por los ejidatarios para regar 25 hectareas de maíz que producen 9 toneladas por héctarea que suman 225 tonelas.  ( se encuentra en gestion la solicitud con cea y cotizacion de laboratorios particulares 10% de avance) el 7 de marzo  de este año se realizo una prueba de laboratorio de las aguas de la planta de tratamiento de sabinos 1  con base en la NOM-001 con un costo de $ 6,613.16 elaborado por el laboratorio APOYO TECNICO INDUSTRIAL, S.A DE C.V.",null,"P",null,0,0,0,0,40,40,20,0,0,0,0,1]
[{"$nulls":4},"E",null,0,0,10,0,40,40,0,0,0,0,0,0.9]
[null,"Actividad 84","VII. Llevar a cabo la cloraciòn adecuada del agua en los depositos, con la finalidad de mantener su calidad."]
[]
[null,"Actividad 85","Instalacion de docificadores de cloro en los siguientes pozos: Fracc. Aguilillas con 250 habitantes, El sacrificio con una poblacion de 100 habitantes y el pozo 3 de Ixtlahuacan que abastece aproximadamente una poblacion de 4,000 habitantes. ( estos dosificadores se encuentran instalados en el mes de noviembre 100% de avance) ",null,"P",30,30,40,0,0,0,0,0,0,0,0,0,1]
[{"$nulls":4},"E",30,30,40,0,0,0,0,0,0,0,0,0,1]
[null,"Actividad 86","Cambio de dosificadores de cloro dañados, en los pozos: Rinconada las lomas, Puerta del Sol, Cedros y Pozo de atequiza que beneficia a dos fraccionamientos y 2 localidades con una poblacion de 6,300 habitantes. ( actualmente solo falta cambiar el dosificadores en cedros 75% de avance) a la fecha ya senecuentran todos los dosificadores funcionando",null,"P",30,30,15,0,25,0,0,0,0,0,0,0,1]
[{"$nulls":4},"E",20,20,35,25,0,0,0,0,0,0,0,0,1]
[null,"Actividad 87","Monitorear el contenido de cloro en el agua, en tomas domiciliarias, con la siguiente metodología: a) seleccionar tres vivendas por localidad, una en las cercanias del pozo, otra a la mitad de la localidad y la tercera al final de la red de distribucion de agua potable. b) Medir la cantidad de cloro en el agua que debe de ser entre .5 y 3 puntos por millar de cloro disuelto en el agua (segun especificaciones de la comision estatal del agua). Y c) Registrar los datos espaciales de las viviendas muestreadas y elaborar un reporte donde se indique si hubo necesidad de modificar la cantidad de cloro inyectada en la red. Se realizan 36 muestras en 12 localidades y 42 muestras en 14 fraccionamientos de forma mensual, las cuales suman 936 muestras anuales.  se realizan monitoreos constantes a las cantidades de cloro validando que se encuentren en las medidas correctas ",null,"P",10,10,5,5,10,10,10,5,5,10,10,10,1]
[{"$nulls":4},"E",10,10,5,5,10,10,10,5,5,0,null,null,0.7]
[null,"Actividad 88","Contruccion de cuartos de clorado en los pozos profundos del Fracc. Aguilillas, El Sacrificio  y fracc. Buenavista, con instalacion eléctrica, tuberia para inyectar el cloro e instalacion de la base para el dosificador, asi como tambien los depositos con capacidad de 250 kilos de  hipoclorito al 13% ( esta costruccion ya estan realizados desde noviembre del año pasado 100% de avance) en este año se construyo el cuarto de clorado del pozo del aguacate el cual tambien se encuentra en funcionamiento..",null,"P",null,20,20,20,10,10,10,10,{"$nulls":4},1]
[{"$nulls":4},"E",null,20,20,20,10,10,10,10,{"$nulls":4},1]
[null,"Actividad 5.20","XIV.  Proporcionar los servicios de agua potable, alcantarillado, tratamiento y disposicion de aguas residuales, y en su caso, el manejo y control de aguas pluviales, a los usuarios de lotes, fincas o predios comprendidos en los centros de poblaciòn, areas, zona, asentamiento rural o turistico que integren la circunscripcion territorial del municipio."]
[]
[null,"Actividad 89","Dar mantenimiento a las 32 fuentes de abastecimiento, atender los reportes de fugas y taponamiento en las redes de agua potable, asi como abastecer por medio de la pipa las las zonas que no cuentan con la red de distribucion de agua potable que son las  siguientes:  Guayabitos, La Cañita, Acueducto y calle Vista del Pueblo, donde se benefician 44 familias con 176 habitantes,  para dar este servicio se realizan 528 servicios anuales. Ádemas se abastece de agua con las pipas  cuando hay reparaciones de fugas de agua, falta de energía eléctrica y cuando se da mantenimiento a los pozos de abastecimiento. (  se realizan mantenimientos cuando el pozo muestra señales de mal funcionamiento ya sea de voltaje alterado o dessabasto de agua como ejemplo (santa rosa, ixtlahuacan 2, fracc. real del lago en agulillas) y se sigue apoyando a las areas que no cuentan con servico por medio de pipas , el cual cuenta con un calendario semanal.) (en este año se realizo la instalacion de una parte de la red del guayabito y se sigue dando manteniemiento a nuestras fuentes de abastecimiento, ixtlahuacan 1 y  3, aguilillas, buenavista, fracc. buenavista, cedros, la cañada, santa rosa y atequiza ",null,"P",10,10,10,5,5,10,10,10,5,5,10,10,1]
[{"$nulls":4},"E",10,10,10,10,5,10,10,10,5,{"$nulls":3},0.8]
[null,null,"XVII.\tElaborar la propuesta para establecer o revisar las cuotas o tarifas para determinar los pagos en contraprestación a sus servicios, considerando las estructuras tarifarias propuestas por la Comisión, en los términos que establece la Ley, para su presentación oportuna a la Comisión Tarifaria, antes del 15 de octubre del año inmediato anterior a su vigencia;"]
[]
[null,"Actividad 90","Sesionar con el Consejo, antes del 15 de Octubre para analizar la propuesta de las tarifas 2021. (Se llevo a cabo la Sesión Ordinaria numero 38 con fecha del 29 de Julio del 2020, donde se analiza la propuesta de tarifas y se aprobó por el consejo de administración)",null,"P",100,0,0,0,0,0,0,0,0,0,0,0,{"$f":"SUM(F430:Q430)/100","v":1}]
[{"$nulls":4},"E",100,0,0,0,0,0,0,0,0,0,0,null,{"$f":"SUM(F431:Q431)/100","v":1}]
[null,"Actividad 5.21","XIX. Publicar las cuotas y tarifas aprobadas por la comision tarifaria, correspondientes a los servicios que opere y administre, en la gaceta municipal y en el periodico oficial \"Estado de Jalisco\" acosta del propio Organismo, antes del 15 de Diciembre del año inmediato anterior a su vigencia."]
[]
[null,"Actividad 91","Se presenta el resolutivo tarifario aprobado mediante el consejo de comision tarifaria, y su publicacion se realiza antes del 15 de diciembre del año en curso en la Gaceta Municipal y el Periodico Oficial del Estado de Jalisco y posteriormente en la pagina oficial de samapa, esto conlleva  a una inversion de $22,700.00 (Se público el resolutivo tarifario 2021 en el Periodico Oficial del Estado de Jalisco con fecha 20 de noviembre del 2020, tomo 6, impresion de 1 ejemplares de la Gaceta Municipal, con un total de inversión de $ 0) esto por que solo imprimimos las gacetas en papel normal, no en imprenta)  ",null,"P",0,100,0,0,0,0,0,0,0,0,0,0,{"$f":"SUM(F434:Q434)/100","v":1}]
[{"$nulls":4},"E",0,100,0,0,0,0,0,0,0,0,0,0,{"$f":"SUM(F435:Q435)/100","v":1}]
[null,null,"XX. Aplicar las cuotas y tarifas por la prestacion de los servicios que correspondan."]
[]
[null,"Actividad 92","Aplicar pagos conforme al servicio correspondiente; Habitacional, No Habitacional,Mixto, y de acuerdo a su nivel de tarifa; Seco y Lote Baldio, Intensivo, Generico y Alta. (en el mes de enero se hace la reclasificacion de tarifa, para casas con mayor demanda de agua en la localidad de las aguilillas y el  guayabito, fraccionamiento valle del lago, con una modificacion de 50 cuentas de habitacional generico a la tarifa habitacional alta)",null,"P",0,0,0,100,0,0,0,0,0,0,0,0,{"$f":"SUM(F438:Q438)/100","v":1}]
[{"$nulls":4},"E",0,0,0,100,0,0,0,0,0,0,0,0,{"$f":"SUM(F439:Q439)/100","v":1}]
[null,"Actividad 93","Identificar las tomas clandestinas con geófono, en las siguientes localidades; Fraccionamiento Buenavista, Buenavista, Cedros, Luis García, Santa Rosa y Ex Hacienda Santa Rosa, de nuestro municipio. (0% de avance, dado que aun no se compra el geofono y que no se cuenta con personal capacitado para dicho trabajo)",null,"P",0,0,0,0,0,0,0,0,0,0,0,100,1]
[{"$nulls":4},"E",0,0,0,0,0,0,0,0,0,0,0,0,0]
[null,"Actividad 94","Revisión por calle y registro en expedientes de cada uno de los inmuebles registrados con toma, con el objetivo de depurar el padrón de las cuentas duplicadas e inexistentes, así como la actualización en el padrón de la tarifa correspondiente  de cada uno de los inmuebles. Presentando un reporte para la eliminación de dichas cuentas en las siguientes localidades; Aguilillas, Guayabito, Valle del Lago,  Fraccionamiento Buenavista, Buenavista, Cedros, Luis García, La Cañada, Santa Rosa, La Capilla, El Rodeo, Santa Ana, El Sacrificio, Atequiza, Lomas de Atequiza e Ixtlahuacán de los Membrillos. (se llevo a cabo al principio de año en la localidad de aguilillas, guayabito, fraccionamiento valle del lago, la cañada, santa ana, el sacrificio, pero devido al aumento de contagios de covid-19, se suspendio. se espera nueva fecha para llevarse acabo)",null,"P",0,0,0,20,10,10,10,10,10,10,10,10,1]
[{"$nulls":4},"E",0,0,0,20,10,10,10,0,0,0,0,0,0.5]
[null,"Actividad 95","Instalación de micro medidores para contar con servicio medido en el Fraccionamiento Buenavista. Se implementará este servicio a predios registrados en el padrón. (Se instalaron 116 medidores en este fraccionamiento se espera que al termino de esta administracion sean 200 los usuarios que ya cuenten con medicion)",null,"P",0,0,0,20,20,20,10,10,10,10,0,0,1]
[{"$nulls":4},"E",0,0,0,20,20,40,10,10,0,0,0,0,1]
[null,"Actividad 96","Toma de lectura (los días 05 de cada mes) para que posteriormente se lleve a cabo su revisión y análisis, y así poder generar la factura, cotejando con la tarifa correspondiente debido a su lectura, enseguida capturar en el sistema y realizar las correcciones adecuadas si las hubiera, para realizar la entrega de la factura al usuario para su posterior pago.",null,"P",0,0,0,8.3,8.3,8.3,8.3,8.3,8.3,8.3,8.3,8.3,0.7469999999999999]
[{"$nulls":4},"E",0,0,0,8.3,8.3,8.3,8.3,8.3,8.3,8.3,0,0,0.581]
[null,"Actividad 97","Capacitación a personal para realizar la lectura de medidores, así como la manera de capturar los datos (se llevo a cabo una capacitacion el 12 de noviembre en la poblacion de magdalena jalisco, donde se hizo la capacitacion de toma de lectura, registro de la lectura en el sistema, tipos de errores en la toma de lectura, ruta, generacion de recibos, y entrega de recibos, y cobro de agua. asistieron, area tecnica, area comercial y lecturistas.",null,"P",0,0,100,0,0,0,0,0,0,0,0,0,1]
[{"$nulls":4},"E",0,0,100,0,0,0,0,0,0,0,0,0,1]
[null,"Actividad 98","Entrega de notificaciones en todas las localidades y fraccionamientos del municipio, para la recuperación de los usuarios morosos. ( cada dia 15 de cada mes se lleva acabo la notificacion de lectura para cada predio con medidor en el fraccionamiento buenavista)",null,"P",10,10,10,0,0,0,20,10,10,10,10,10,1]
[{"$nulls":4},"E",10,10,10,0,0,0,20,10,10,10,0,0,0.8]
[null,"Actividad 99"," Lo recaudado del mes de Enero al 08 de Julio 2021  es lo siguiente; De las cuentas 31,963 contamos con las siguientes: 1) Habitacional con 30,619 cuentas la cual se divide en 2; 1.1.Habitacional Generico con 30,201 inmuebles con un monto de recaudacion de $18,646,767.72 1.2. Habitacional Alto con una cantidad de inmuebles de 418 y un monto de $650,714.42 2) No Habitacional con 1,150 cuentas la cual se dividen en; 2.1. No habitacional seco con 459 inmuebles y con una recaudacion de $662,740.78, 2.2. No habitacional Alto con 124 inmuebles y un monto de recaudacion de $237,644.61, 2.3. No Habitacional Intensivo con 17 inmuebles y un monto de $82,216.14, 2.4. No habitacional Mixto con 193 inmuebles y una recaudacion de $56,256.11esto por concepto se incrementa el 25% de uso diferente habitacional basada en el art. 52 de la Ley de Ingresos del Municipio, 2.5. No habitacional Lotes baldios con 550inmuebles y recaudacion de $913.845.25 por concepto de incorporaciones tenemos un total de 51 aperturas de cuentas dando un total de $293,111.60, obteniendo un total de $21,191,928.92 ingresos al dia 8 de Julio del 2021.",null,"P",10,10,10,10,10,10,10,10,5,5,5,5,1]
[{"$nulls":4},"E",5,5,5,5,5,5,0,0,0,0,0,0,0.3]
[null,null,"XXI. Percibir y administrar los ingresos que se deriven de la prestacion de los servicios publicos a su cargo, quedando facultados para ejercer las funciones municipales que establezca el presente instrumento."]
[null,"Actividad 100","Se perciben los ingresos del pago del servicio de agua potable de los usuarios, venta de agua en bloque con pipas, desasolve de fosas. Con este ingreso se realiza mantenimiento y limpieza de bombas de lodos sumergibles, desansolve de fosas en carcamos y PTAR con camion vactor. (Se han realizado 9 mantenimientos de bombas de lodos sumergibles, 20 limpiezas de desansolve de fosas en carcamos y 8  en la PTAR con el Vactor). ",null,"P",5,5,5,10,10,10,10,10,10,10,10,5,1]
[{"$nulls":4},"E",5,5,5,10,10,10,10,10,10,10,0,0,0.85]
[null,"Actividad 5.23","XXXII. Adquirir los bienes muebles o inmuebles necesarios para el mejor desempeño de sus fines.",null,"P",0,0,0,0,0,0,0,0,0,0,0,0,0]
[{"$nulls":4},"E",0,0,0,0,0,0,0,0,0,0,0,0,0]
[null,"Actividad 101","Creación de la Instalación del Comité de Adquisiciones del Organismo. (Se creo este Comité con fecha del 6 de Febrero 2020)",null,"P",100,0,0,0,0,0,0,0,0,0,0,0,1]
[{"$nulls":4},"E",100,0,0,0,0,0,0,0,0,0,0,0,1]
[null,"Actividad 102","Llevar a cabo la licitacion correspondiente para la adquisicion de un terreno de 1,170 m2 para el resguardo del parque vehicular y construcción del almacén de materiales del Area Tecnica del SAMAPA. Con una inversion de $2,500,000.00 (esta compra se realizo en el 2020",null,"P",100,0,0,0,0,0,0,0,0,0,0,0,1]
[{"$nulls":4},"E",100,0,0,0,0,0,0,0,0,0,0,0,1]
[null,"Actividad 103","Llevar a cabo la licitacion correspondiente para la adquisicion de un terreno de 200 m2 parala construccion de un pozo profundo de agua potable, localizado entre las calles Priv. Juarez y Paseo Hondo de la Cabecera Municipal. Con una inversion de $310,000.00 (esta compra se realizo en el 2020",null,"P",100,0,0,0,0,0,0,0,0,0,0,0,1]
[{"$nulls":4},"E",100,0,0,0,0,0,0,0,0,0,0,0,1]
[null,"Actividad 5.26","XLII. Formular y mantener actualizado el registro e inventario de las fuentes de abastecimiento, bienes, recursos, reservas hidrologicas y demas infraestructura hidraulica en el municipio."]
[]
[null,"Actividad 104","Actualizar las bitacoras de cada una de las fuentes de abastecimiento incluyendo todas las  actividades que se realicen en los 32 pozos profundos. Donde se incluyen las siguientes 4 actividades: horarios de inicio de arranque, registro del flujo de agua a travez de la purga del cloro, purga del dosificador de cloro, visitas del tecnico (verificacion del amperaje del motor, voltaje y sistema de cloracion), reparaciones y mantenimiento en general). Los responsables de cada pozo entregan a el Área Técnica 2 bitacoras mensuales, por lo que se elaboran anualmente 768 bitacoras (actualmente si lleva a cabo el llenado de las bitacoras, asi como las revisiones del tecnico y los mantenimientos necesarios a los equipos de clorado) 20 % ( a la fecha se seguen realizando las bitacoras asi como la revision del tecnico )",null,"P",0,0,10,10,10,10,10,10,10,10,10,10,{"$f":"SUM($F467:$Q467)/100","v":1}]
[{"$nulls":4},"E",0,0,10,10,10,10,10,10,10,0,0,0,{"$f":"SUM($F468:$Q468)/100","v":0.7}]
[null,"Actividad 105","Actualizacion del expediente técnico de las 32 fuentes de abastecimiento, que contiene 17 datos: fecha de contrucción, Georeferencia, domicilio, profundidad del pozo, diametro del ademe, metros de la columna, diametro del pozo, características del tren de descarga, cacapacidad del motor y la bomba, arrancador,  transformador, nivel dinámico y nivel estatico, medidor de consumo electrico de la CFE, y archivo fotografico. ( actualmente se maneja esa informacion mediante al tecnica la cual se encuentra actualizada a un 80%) ( al mes de junio  del 2021 se tiene a un 95% de avance)",null,"P",0,0,50,0,0,0,0,0,50,0,0,0,{"$f":"SUM($F469:$Q469)/100","v":1}]
[{"$nulls":4},"E",0,0,80,0,0,0,0,0,20,0,0,0,1]
[null,"Actividad 106","Gestionar un estudio de aguas subterráneas para reducir la explotación del acuífero (actualmente se trabaja en este tema presentando al consejo los costos relacionado a la realizacion del estudio el dia 8 de julio se realizara la 43 sesion ordinaria para autorizar dicho presupuesto)",null,"P",0,0,0,0,0,0,0,0,0,0,0,0,0,"Eficacia","Dimensión"]
[{"$nulls":4},"E",0,0,0,0,0,0,0,0,0,0,0,0,0,"Gestión","Tipo"]
[null,"Componente 6","Desazolve de cárcamos",null,null,"PORCENTAJE de cárcamos con desazolve (P56-CCD)",null,"Mide el avance en el desasolve de carcamos",null,"(Cantidad de  actividades (8) desarrolladas para  el desazolve  de 2 cárcamos construidos en el territorio municipal / Total de actividades (8) programas a desarrollar para  el desazolve  de 2 cárcamos construidos en el territorio municipal )*100",null,null,8,null,8,"Mensual",null,{"$f":"M473/O473","v":{"v":1,"d":"100%"}},"Bimestral","Frecuencia de medición"]
[{"$nulls":18},"Porcentaje","Unidad de medida"]
[{"$nulls":12},{"$f":"R478+R480+R482+R484+R486+R488+R490+R492","v":8},null,{"$f":"R477+R479+R481+R483+R485+R487+R489+R491","v":8},null,null,{"$f":"M475/O475","v":{"v":1,"d":"100%"}}]
[]
[null,"Actividad 1","Limpieza y extracción (actualmente se cuenta con un plan de trabajo en donde se les da limpieza a bombas y retiro de material grueso por lo menos 3 veces a la semana, asi como tambien se llevaron a reparacion o mantenimiento todas las bombas )",null,"P",100,0,0,0,0,0,0,0,0,0,0,0,{"$f":"SUM($F477:$Q477)/100","v":1}]
[{"$nulls":4},"E",100,0,0,0,0,0,0,0,0,0,0,0,{"$f":"SUM($F478:$Q478)/100","v":1}]
[null,"Actividad 2","Definicion de equipos a utilizar en la limpieza y extracción ( se utiliza maquinaria con el apoyo del departamento de obras publicas, asi como el uso de camion tipo vactor y limpieza manual con canastillas para retirar la basura mas grande",null,"P",100,0,0,0,0,0,0,0,0,0,0,0,1]
[{"$nulls":4},"E",100,0,0,0,0,0,0,0,0,0,0,0,1]
[null,"Actividad 3","Verificar si se puede necesitar equipo hidroneumatico mixto para el dragado de lagunas ( no se realiza este tipo de trabajo)",null,"P",100,0,0,0,0,0,0,0,0,0,0,0,1]
[{"$nulls":4},"E",100,0,0,0,0,0,0,0,0,0,0,0,1]
[null,"Actividad 4","Verificar si se puede necesitar bomba sumergible para el dragado de lagunas (al momento no a sido necesario esta actividad)",null,"P",100,0,0,0,0,0,0,0,0,0,0,0,1]
[{"$nulls":4},"E",100,0,0,0,0,0,0,0,0,0,0,0,1]
[null,"Actividad 5","Considerar si se es suficiente con el malacate ( no se a requerido utilizar ningun tipo de equipo, pero un malacate seria suficiente)",null,"P",100,0,0,0,0,0,0,0,0,0,0,0,1]
[{"$nulls":4},"E",100,0,0,0,0,0,0,0,0,0,0,0,1]
[null,"Actividad 6","Programar el equipo necesario para el retiro de lo extraido y su deposito en el área de confinamiento (solo se realizan desasolve de canales y los vasos reguladores y se deposita el material en areas ya definidas)",null,"P",100,0,0,0,0,0,0,0,0,0,0,0,1]
[{"$nulls":4},"E",100,0,0,0,0,0,0,0,0,0,0,0,1]
[null,"Actividad 7","Establecer el área a intervenir (no se requiere por el momento)",null,"P",100,0,0,0,0,0,0,0,0,0,0,0,1]
[{"$nulls":4},"E",100,0,0,0,0,0,0,0,0,0,0,0,1]
[null,"Actividad 8","Contemplar el uso de equipo de video inspección ( este es un tema que si se tiene contemplado y se esta estudian la compa de este tipo de equipo, se esta a la espera de la autorizacion del presupuesto)",null,"P",100,0,0,0,0,0,0,0,0,0,0,0,1]
[{"$nulls":4},"E",100,0,0,0,0,0,0,0,0,0,0,0,1]
[null,null,"XXI. Percibir y administrar los ingresos que se deriven de la prestacion de los servicios publicos a su cargo, quedando facultados para ejercer las funciones municipales que establezca el presente instrumento."]
[]
[null,"Actividad 9","Se perciben los ingresos del pago del servicio de agua potable de los usuarios, venta de agua en bloque, desasolve de fosas. Con este ingreso se realiza mantenimiento y limpieza de bombas de lodos sumergibles, desensolve de la fosa del carcamo con camion tipo vactor, verificacion de los flotadores electricos asi como los contactores de cada bomba, en los carcamos en los fracc. Sabinos 2,3 (se realiza desansolve 1 ves al año antes del temporal de lluvias) y  en las plantas de tratamiento del fracc. Huerta y sabinos 1 ( se realiza de 2 a 3 veces por semana por que las condiciones de la PTA´R estan fabricadas para que el operador se baje y limpie las rejillas). Se extraen aprox. 2 metros cubicos mensuales de lodos y solidos grandes en cada uno de lo carcamos. ( en en 2021 se continua con los mismos rutina de trabajo)",null,"P",10,10,10,5,5,10,10,5,5,10,10,10,1,"Eficacia","Dimensión"]
[{"$nulls":4},"E",10,10,10,5,5,10,10,5,5,0,0,0,0.7,"Gestión","Tipo"]
[null,"Componente 7","Construcción del humedal arroyo de los sabinos",null,null,"PORCENTAJE de avance en la construcción del humedal (P57-ACH)",null,"Mide el avance en la costrucción del humedal",null,"(Cantidad de  actividades (1) desarrolladas para la Construcción del humedal arroyo de los sabinos / Total de  actividades (11) a desarrollar para la Construcción del humedal arroyo de los sabinos)*100",null,null,1,null,11,"Mensual",null,{"$f":"M497/O497","v":{"v":0.09090909090909091,"d":"9%"}},"Bimestral","Frecuencia de medición"]
[{"$nulls":18},"Porcentaje","Unidad de medida"]
[{"$nulls":12},{"$f":"R502+R504+R506+R508+R510+R512+R514+R516+R518+R520+R522","v":0.7999999999999999},null,{"$f":"R501+R503+R505+R507+R509+R511+R513+R515+R517+R519+R521","v":10.3},null,null,{"$f":"M499/O499","v":{"v":0.07766990291262135,"d":"8%"}}]
[]
[null,"Actividad 1","Establecer el nombre del proyecto ( actualmente se esta gestionando los terrenos para la construccion ) esta obra se realizara en 2022 por falta de presupuesto",null,"P",10,30,20,40,0,0,0,0,0,0,0,0,{"$f":"SUM($F501:$Q501)/100","v":1}]
[{"$nulls":4},"E",10,0,0,0,0,0,0,0,0,0,0,0,{"$f":"SUM($F502:$Q502)/100","v":0.1}]
[null,"Actividad 2","Gestion de un predio cercano a la Localidad de La Cañada para la construcción del humedal ( actualmente se esta gestionando los terrenos para la construccion )",null,"P",0,0,0,0,0,0,10,10,20,20,40,null,1]
[{"$nulls":4},"E",0,0,0,0,0,0,10,0,0,{"$nulls":3},0.1]
[null,"Actividad 3","Definir e informar del avance que guarda el proyecto al momento de elaborar el estudio de impacto ambiental.( se esta trabajando con el area de ecologia en el estudio)",null,"P",0,0,0,0,0,0,0,0,0,10,10,10,{"$f":"SUM($F505:$Q505)/100","v":0.3}]
[{"$nulls":4},"E",0,0,0,0,0,0,0,0,0,0,0,0,0]
[null,"Actividad 4","Generalizar sobre el tipo de la obra o actividad que se pretende llevar a cabo ( actualmente se esta gestionando los terrenos para la construccion )",null,"P",0,0,0,0,0,0,10,10,20,20,20,20,1]
[{"$nulls":4},"E",10,20,20,0,0,0,0,0,0,0,0,0,0.5]
[null,"Actividad 5","Establecer los tipos y cantidad de los materiales y sustancias que serán utilizados en las diferentes etapas del proyecto. ( actualmente se esta gestionando los terrenos para la construccion )",null,"P",0,0,0,0,0,0,20,20,20,20,20,0,1]
[{"$nulls":4},"E",0,0,0,0,0,0,0,0,0,0,0,0,0]
[null,"Actividad 6","Control para cumplir exigencias de descarga ( actualmente se esta gestionando los terrenos para la construccion )",null,"P",0,0,0,0,10,10,10,10,10,10,20,20,1]
[{"$nulls":4},"E",0,0,0,0,0,0,0,0,0,0,0,0,0]
[null,"Actividad 7","Control del rendimiento del sistema.  ( actualmente se esta gestionando los terrenos para la construccion )",null,"P",0,0,0,0,10,20,10,10,20,10,10,10,1]
[{"$nulls":4},"E",0,0,0,0,0,0,0,0,0,0,0,0,0]
[null,"Actividad 8","Control de la salud  del humedal  ( actualmente se esta gestionando los terrenos para la construccion )",null,"P",0,0,0,0,10,20,10,10,20,10,10,10,1]
[{"$nulls":4},"E",0,0,0,0,0,0,0,0,0,0,0,0,0]
[null,"Actividad 9","Establecer los tipos y cantidad de los residuos que se generarán en las diferentes etapas del proyecto y destino final de los mismos.  (actualmente se esta gestionando los terrenos para la construccion )",null,"P",0,0,0,0,10,20,10,10,20,10,10,10,1]
[{"$nulls":4},"E",0,0,0,0,0,0,0,0,0,0,0,0,0]
[null,"Actividad 10","Infraestructura para el manejo y la disposición adecuada de los residuos  (actualmente se esta gestionando los terrenos para la construccion )",null,"P",0,0,0,0,10,20,10,10,20,10,10,10,1]
[{"$nulls":4},"E",0,0,0,0,0,0,0,0,0,0,0,0,0]
[null,"Actividad 11","Instrumentos normativos que rigen el proyecto  ( actualmente se esta gestionando los terrenos para la construccion , asi como las normas necesarias para su operación y construccion)",null,"P",0,0,0,0,10,20,10,10,20,10,10,10,1]
[{"$nulls":4},"E",10,0,0,0,0,0,0,0,0,0,0,0,0.1]
[null,null,"XXIV. Utilizar todos los servicios exclusivamente en los servicios publicos destinandolos en forma prioritaria y su operación, mantenimiento, sustitucion de la infraestructura y administracion, pago de derechos y posteriormente a ampliar la infraestructura hidraulica en ningun caso podran ser destinados a otros fines. "]
[]
[null,"Actividad 12","Cabe señalar que la espectativa de ingresos para este año es de recaudar la cantidad de $49,521,737.00 de los cuales serán designados de forma prioritaria según el presupuesto de egresos aprobado por el consejo de administracion de este organismo, a las siguientes acciones; operacion, mantenimiento, sustitucion de la infraestructura y administracion, pago de derechos y posteriormente ampliar la infraestructura hidraulica. ",null,"P",0,0,0,20,15,10,10,10,10,10,10,5,1,"Eficacia","Dimensión"]
[{"$nulls":4},"E",0,0,0,15,15,10,5,5,5,0,0,0,0.55,"Gestión","Tipo"]
[null,"Componente 8","Rehabilitación de 4 plantas de tratamiento",null,null,"PORCENTAJE de Plantas de tratamiento de aguas residuales en operación dentro de norma (P58-PPTARDN)",null,"Mide el avance en la rehabilitación de plantas de tratamiento de aguas residuales y puestas en operación dentro de norma",null,"(Cantidad de plantas de tratamiento de aguas residuales (.3) a las que se les dio mantenimiento y rehabilitación  / Total plantas de tratamiento de aguas residuales (8) existentes en el municipio)*100",null,null,0.3,null,2,"Mensual",null,{"$f":"M527/O527","v":{"v":0.15,"d":"15%"}},"Bimestral","Frecuencia de medición"]
[{"$nulls":18},"Porcentaje","Unidad de medida"]
[{"$nulls":12},{"$f":"R532+R534+R536+R538+R540+R542+R544+R546","v":6.45},null,{"$f":"R531+R533+R535+R537+R539+R541+R543+R545","v":8},null,null,{"$f":"M529/O529","v":{"v":0.80625,"d":"81%"}}]
[]
[null,"Actividad 1","Establecer la información general del proyecto (ACTUALMENTE SE ESTA REHABILITANDO LA PLANTA DE TRATAMIENTO DE REAL DEL LAGO Y SE LLEVA UN 70% DE LA CONSTRUCCION DE LA PLANTA DE LA CAPILLA POR PARTE DEL CEA , 60% DICHA INFORMACION LA TIENE EL CEA)",null,"P",100,0,0,0,0,0,0,0,0,0,0,0,{"$f":"SUM($F531:$Q531)/100","v":1}]
[{"$nulls":4},"E",100,0,0,0,0,0,0,0,0,0,0,0,{"$f":"SUM($F532:$Q532)/100","v":1}]
[null,"Actividad 2","Definir las actividades y áreas principales del proyecto   (ACTUALMENTE SE ESTA REHABILITANDO LA PLANTA DE TRATAMIENTO DE REAL DEL LAGO Y SE LLEVA UN 70% DE LA CONSTRUCCION DE LA PLANTA DE LA CAPILLA POR PARTE DEL CEA , 60% DICHA INFORMACION LA TIENE EL CEA)",null,"P",100,0,0,0,0,0,0,0,0,0,0,0,1]
[{"$nulls":4},"E",100,0,0,0,0,0,0,0,0,0,0,0,1]
[null,"Actividad 3","Revisar la ubicación fisica y los planos de ubicación como constructivos y de funcionamiento (ACTUALMENTE SE ESTA REHABILITANDO LA PLANTA DE TRATAMIENTO DE REAL DEL LAGO Y SE LLEVA UN 70% DE LA CONSTRUCCION DE LA PLANTA DE LA CAPILLA POR PARTE DEL CEA , 60% DICHA INFORMACION LA TIENE EL CEA)",null,"P",100,0,0,0,0,0,0,0,0,0,0,0,1]
[{"$nulls":4},"E",100,0,0,0,0,0,0,0,0,0,0,0,1]
[null,"Actividad 4","Calcular la inversion reqerida y la capacidad de cada planta de tratamiento (ACTUALMENTE SE ESTA REHABILITANDO LA PLANTA DE TRATAMIENTO DE REAL DEL LAGO Y SE LLEVA UN 70% DE LA CONSTRUCCION DE LA PLANTA DE LA CAPILLA POR PARTE DEL CEA , 60% DICHA INFORMACION LA TIENE EL CEA)",null,"P",100,0,0,0,0,0,0,0,0,0,0,0,1]
[{"$nulls":4},"E",0,0,0,0,0,0,0,50,0,0,0,0,0.5]
[null,"Actividad 5","Revisar los usos actuales de suelo y los cuerpos de agua en el sitio de cada planta de tratamiento y sus colindancias (ACTUALMENTE SE ESTA REHABILITANDO LA PLANTA DE TRATAMIENTO DE REAL DEL LAGO Y SE LLEVA UN 70% DE LA CONSTRUCCION DE LA PLANTA DE LA CAPILLA POR PARTE DEL CEA , 60% DICHA INFORMACION LA TIENE EL CEA)",null,"P",0,0,0,0,10,10,10,10,20,20,10,10,1]
[{"$nulls":4},"E",40,0,0,0,10,10,10,10,0,0,0,0,0.8]
[null,"Actividad 6","Revisar la descripción general de cada proceso en cada planta",null,"P",0,10,10,10,10,10,10,10,10,10,10,0,1]
[{"$nulls":4},"E",50,0,0,0,0,10,10,10,10,0,0,0,0.9]
[null,"Actividad 7","Describir las obras y actividades provisionales  a desarrollar (ACTUALMENTE SE ESTA REHABILITANDO LA PLANTA DE TRATAMIENTO DE REAL DEL LAGO Y SE LLEVA UN 70% DE LA CONSTRUCCION DE LA PLANTA DE LA CAPILLA POR PARTE DEL CEA) 60",null,"P",10,10,0,10,10,10,10,10,0,10,10,10,1]
[{"$nulls":4},"E",0,0,0,25,10,10,10,10,10,0,0,0,0.75]
[null,"Actividad 8","Ampliación de  redes de llegada para aguas crudas a planta de tratamiento de agua residuales para disminuir la contaminación de aguas superficiales en el fraccionamiento REAL DEL LAGO del municipio.   ( ACTUALMENTE SE ESTA REHABILITANDO LA PLANTA DE TRATAMIENTO DE REAL DEL LAGO Y SE LLEVA UN 70% DE LA CONSTRUCCION DE LA PLANTA DE LA CAPILLA POR PARTE DEL CEA , 60% DICHA INFORMACION LA TIENE EL CEA)",null,"P",0,0,0,0,0,25,25,25,25,0,0,0,1]
[{"$nulls":4},"E",0,0,0,0,0,25,25,0,0,0,0,0,0.5]
[null,null,"II. Mejorar los sistemas de captaciòn, conducciòn, tratamiento de aguas residuales, reutilizaciòn y recirculacion de las aguas servidas, prevencion y control de contaminaciòn de las aguas que se localizan dentro del municipio; vigilar todas las partes del sistema de distribucion, abastecimiento, y descargas patra detectar cualquier irregularidad, la cual debera ser corregida; si sus medidas son insuficientes por ello, para solicitar el apoyo de la comision, la cual debera hacerlo tenerlo siempre en cuenta su suficiencia presupuestaria."]
[]
[null,"Actividad 9","Renovación de tuberia de 4\" para agua potable con renovación de empedrado, en la calle Colón entre las calles Zaragoza y Abasolo,en cabecera municipal, con una longitud de 280 m (se estan gestionando los recursos y solicitando las cotizaciones correspodientes 5%)",null,"P",{"$nulls":4},100,{"$nulls":7},{"$f":"SUM(F549:Q549)/100","v":1}]
[{"$nulls":4},"E",{"$nulls":3},5,95,{"$nulls":7},{"$f":"SUM(F550:Q550)/100","v":1}]
[null,"Actividad 10","Renovación de tuberia de 4\" para agua potable con renovación de empedrado, en la Priv. Zaragoza entre la calle Zaragoza y Prol. Abasolo, en cabecera municipal, con una longitud de 220 m.(se estan gestionando los recursos y solicitando las cotizaciones correspodientes 5%)",null,"P",{"$nulls":4},100,{"$nulls":7},1]
[{"$nulls":4},"E",{"$nulls":3},5,95,{"$nulls":7},1]
[null,"Actividad 11","Renovación de la red de drenaje en la calle Zapote de la Cabecera Municipal, con una longitud de 140 m (sobre roca)  (se estan gestionando los recursos y solicitando las cotizaciones correspodientes 5%)",null,"P",{"$nulls":6},100,{"$nulls":5},1]
[{"$nulls":4},"E",{"$nulls":3},5,{"$nulls":8},0.05]
[null,"Actividad 12","Renovación de la red de drenaje de 10\" con 4 pozos de visita en la calle Camino Antiguo a Atequiza, Col. Camino Real de la Cabecera Municipal, con una longitud de 230 m (actualmente se cuenta ya con material para realizar el trabajo, solo falta los permisos en unos predios que cruzan las tuberias 10%) esta obra ya se encuentra concluida",null,"P",{"$nulls":6},100,{"$nulls":5},1]
[{"$nulls":4},"E",{"$nulls":3},10,null,null,90,{"$nulls":5},1]
[null,"Actividad 13","Modificar tramo de línea de conducción de 6\" y 50 m, para cancelar su paso por el interior de las casas habitación (frente a la cisterna chica de Lomas de Atequiza) (esta obra ya se encuentra autorizada y se cuenta con los presupuestos requeridos  se ejecutara en el mes de marzo segun plan de trabajo )",null,"P",{"$nulls":5},100,{"$nulls":6},1]
[{"$nulls":4},"E",{"$nulls":3},10,{"$nulls":8},0.1]
[null,"Actividad 14","Sustitución de la red de conducción de agua potable de la cisterna grande (tanque 2) de Lomas de Atequiza a la calle Ignacio Allende con una longitud de 490 m (es de asbesto y pasa por los terrenos) (se encuentra gestionando los recursos según plan de trabajo 2021 se tiene contemplado para julio de este año)",null,"P",{"$nulls":9},100,null,null,1]
[{"$nulls":4},"E",{"$nulls":12},0]
[null,"Actividad 15","Reconstrucción de línea de alejamiento de drenaje de 16\" con 8 pozos de visita en la Localidad de Buenavista con una longitud aproximada de 987 m. (actualmente ya se encuentra autorizada esta obra se ejecutara en marzo de este año según plan de trabajo 2021 10%) esta obra ya se encuentra concluida con fecha de 19 de mayo del 2021",null,"P",{"$nulls":5},100,{"$nulls":6},1]
[{"$nulls":4},"E",{"$nulls":3},10,null,90,{"$nulls":6},1]
[null,"Actividad 16","Sustitución de 260 m de red de agua potable en la calle 8 de Julio de la localidad de Buenavista, entre las calles Juárez y Manuel Capetillo (se encuentra en gestion de recursos según plan de trabajo 2021) 5%",null,"P",{"$nulls":5},100,{"$nulls":6},1]
[{"$nulls":4},"E",{"$nulls":3},5,{"$nulls":8},0.05]
[null,"Actividad 17","Sustitución de drenaje de 12\" con 6 pozos de visita y reposición de empedrado en la calle Manuel Capetillo de la escuela al límite del Fracc. Buenavista en su parte externa con una Ion itud de 340 m. (actualmente ya se encuentra autorizada y con recursos para  su ejecucion en el mes de marzo segun plan de trabajo 2021) 10%",null,"P",{"$nulls":5},100,{"$nulls":6},1]
[{"$nulls":4},"E",{"$nulls":3},10,{"$nulls":8},0.1]
[null,"Actividad 18","Sustitución de la red de agua potable en la calle Bella Vista del Fraccionamiento Buenavista, con una longitud de 425 m (actualmente se encuentra en proceso de gestion de recursos)esta obras se realizaran con el plan de trabajo del 2022 se realizo una modificacion de la obra en paseo de las garzas poniente en el fraccionamiento buena vista por ser prioritario ya que los tubos pasaban por dentro de las fincas, (fueron 740 metros con 40 tomas y 9 cajas de valvulas con una inversion de $ 1,241.500.04 beneficiando a 1,000 personas.)",null,"P",{"$nulls":8},100,{"$nulls":3},1]
[{"$nulls":4},"E",{"$nulls":12},0]
[null,"Actividad 19","Sustitución de la red de agua potable en la calle Vista Alegre del Fraccionamiento Buenavista, con una longitud de 425 m (actualmente se encuentra en proceso de gestion de recursos) esta obras se realizaran con el plan de trabajo del 2022",null,"P",{"$nulls":8},100,{"$nulls":3},1]
[{"$nulls":4},"E",{"$nulls":12},0]
[null,"Actividad 20","Sustitución de la red de agua potable en la calle Vista Bonita del Fraccionamiento Buenavista, con una longitud de 425 m (actualmente se encuentra en proceso de gestion de recursos) esta obras se realizaran con el plan de trabajo del 2022",null,"P",{"$nulls":8},100,{"$nulls":3},1]
[{"$nulls":4},"E",{"$nulls":12},0]
[null,"Actividad 21","Sustitución de la red de agua potable en la calle Linda\nVista del Fraccionamiento Buenavista, con una longitud de\n340 m (actualmente se encuentra en proceso de gestion de recursos) esta obras se realizaran con el plan de trabajo del 2022",null,"P",{"$nulls":8},100,{"$nulls":3},1]
[{"$nulls":4},"E",{"$nulls":12},0]
[null,"Actividad 22","Sustitución de la red de agua potable en la calle Buenavista del Fraccionamiento Buenavista, con una longitud de 190 m (actualmente se encuentra en proceso de gestion de recursos) esta obras se realizaran con el plan de trabajo del 2022",null,"P",{"$nulls":8},100,{"$nulls":3},1]
[{"$nulls":4},"E",{"$nulls":12},0]
[null,"Actividad 23","Sustitución de la red de agua potable en la calle Paseo de los Cisnes del Fraccionamiento Buenavista, con una longitud de 500 mts (actualmente se encuentra en proceso de gestion de recursos) esta obras se realizaran con el plan de trabajo del 2022",null,"P",{"$nulls":8},100,{"$nulls":3},1]
[{"$nulls":4},"E",{"$nulls":12},0]
[null,"Actividad 24","Sustitución de la red de agua potable en la calle Paseo de los Cisnes Sur del Fraccionamiento Buenavista, con una longitud de 160 m ( actualmente se encuentra en proceso de gestion de recursos)esta obras se realizaran con el plan de trabajo del 2022",null,"P",{"$nulls":8},100,{"$nulls":3},1]
[{"$nulls":4},"E",{"$nulls":12},0]
[null,"Actividad 25","Sustitución de la red de agua potable en la calle paseo de las Cigüeñas del Fraccionamiento Buenavista, con una longitud de 225 mts (el costo no incluye empedrado ni limpieza). ( actualmente se encuentra en proceso de gestion de recursos)esta obras se realizaran con el plan de trabajo del 2022",null,"P",{"$nulls":8},100,{"$nulls":3},1]
[{"$nulls":4},"E",{"$nulls":12},0]
[null,"Actividad 26","Sustitución de válvula de paso de 2\" con caja de válvulas localizada en la calle López Cotilla frente al No. 8-A y calle Independencia, en la localidad de Cedros. ( ya se encuentra autorizada esta obra para realizarse en el mes de abril según plan de trabajao 2021) este trabajo ya se encuentra terminado",null,"P",null,null,100,{"$nulls":9},1]
[{"$nulls":4},"E",{"$nulls":5},100,{"$nulls":6},1]
[null,"Actividad 27","Sustitución de válvula de paso de 2\" con caja de válvulas localizada en la calle López Cotilla casi esquina calle Morelos, en la localidad de Cedros ( ya se encuentra autorizada esta obra para realizarse en el mes de abril según plan de trabajao 2021)este trabajo ya se encuentra terminado",null,"P",null,null,100,{"$nulls":9},1]
[{"$nulls":4},"E",{"$nulls":5},100,{"$nulls":6},1]
[null,"Actividad 28","Subir el nivel de la caja de válvulas localizada al ingreso del Fracc. Laureles y la carretera a La Capilla. ( ya se encuentra autorizada esta obra para realizarse en el mes de abril según plan de trabajao 2021)este trabajo se realizara en agosto de 2021",null,"P",{"$nulls":3},100,{"$nulls":8},1]
[{"$nulls":4},"E",{"$nulls":7},100,{"$nulls":4},1]
[null,"Actividad 29","Renovación de la red de distribución de agua potable en el Fracc. Los Laureles (longitud aproximada de 2,650 m). ( se encuentra en proceso de gestion de recursos)este trabajo se realizara en 2022 según plan de trabajo",null,"P",{"$nulls":3},100,{"$nulls":8},1]
[{"$nulls":4},"E",{"$nulls":12},0]
[null,"Actividad 30","Renovación de red de agua potable de 4\" en la calle Jesús García entre las calles Priv. Jesús García y Morelos, en la localidad de La Capilla, con una longitud aproximada de 300 m. ( se encuentra en proceso de gestion de recursos)este trabajo se realizara en agosto de 2021",null,"P",{"$nulls":3},100,{"$nulls":8},1]
[{"$nulls":4},"E",{"$nulls":7},100,{"$nulls":4},1]
[null,"Actividad 31","Renovación de red de agua potable de 4\" en la calle Morelos entre las calles Jesús García y Venustiano Carranza, con una longitud aproximada de 100 m. ( se encuentra en proceso de gestion de recursos)este trabajo se realizara en agosto de 2021",null,"P",{"$nulls":4},100,{"$nulls":7},1]
[{"$nulls":4},"E",{"$nulls":12},0]
[null,"Actividad 32","Renovación de red de agua potable de 4\" en la calle Allende entre las calles Morelos y Av. Hidalgo, con una longitud aproximada de 200 m. ( se encuentra en proceso de gestion de recursos)este trabajo se realizara en agosto de 2021",null,"P",{"$nulls":4},100,{"$nulls":7},1]
[{"$nulls":4},"E",{"$nulls":12},0]
[null,"Actividad 33","Rehabilitación de la cisterna en la Localidad de la Capilla( se encuentra en proceso de gestion de recursos) se esta trabajando en la perforacion de un nuevo pozo para la localidad de la capilla mismo que se proyecta que quede terminado a mas tardar en septiembre de este año",null,"P",{"$nulls":5},100,{"$nulls":6},1]
[{"$nulls":4},"E",{"$nulls":12},0]
[null,"Actividad 34","Reparación del registro y cambio de válvula de la línea principal de agua potable localizado en la calle Loma de los Sabinos y Retorno Seis, en Fracc. Lomas de La Capilla. ( ya se encuentra autorizada y se realizaran trabajos según plan de trabajo 2021)este trabajo ya se encuentra realizado",null,"P",{"$nulls":11},100,1]
[{"$nulls":4},"E",{"$nulls":7},100,{"$nulls":4},1]
[null,"Actividad 35","Reparación del registro de la linea principal de agua potable localizado en la calle Loma Azul y Loma de las Malvas, en Fracc. de Lomas de La Capilla. ( ya se encuentra autorizada y se realizaran trabajos según plan de trabajo 2021)este trabajo ya se encuentra realizado",null,"P",{"$nulls":7},100,{"$nulls":4},1]
[{"$nulls":4},"E",{"$nulls":7},100,{"$nulls":4},1]
[null,"Actividad 36","Cambiar de lugar la válvula localizada en la calle Loma de los Sabinos y el Retorno Siete, al cruce de las calles Loma de los Sabinos y Loma de las Malvas, del Fracc. De Lomas de la Capilla. ( ya se encuentra autorizada y se realizaran trabajos según plan de trabajo 2021)este trabajo ya se encuentra realizado",null,"P",{"$nulls":7},100,{"$nulls":4},1]
[{"$nulls":4},"E",{"$nulls":7},100,{"$nulls":4},1]
[null,"Actividad 37","Modificación de la conexión de la linea principal a la linea de la calle Loma de las Rosas (cambiar codo que se conecto en la parte superior y colocarlo en la parte inferior), en el registro localizado en el Retorno Cuatro de la calle Loma de las Rosas. ( ya se encuentra autorizada y se realizaran trabajos según plan de trabajo 2021)este trabajo ya se encuentra realizado",null,"P",{"$nulls":7},100,{"$nulls":4},1]
[{"$nulls":4},"E",{"$nulls":7},100,{"$nulls":4},1]
[null,"Actividad 38","Reconstrucción del registro de drenaje ubicado en la calle Lomas Maipo Ote y el canal de aguas pluviales.( ya se encuentra autorizada y se realizaran trabajos según plan de trabajo 2021)",null,"P",{"$nulls":7},100,{"$nulls":4},1]
[{"$nulls":4},"E",{"$nulls":7},100,{"$nulls":4},1]
[null,"Actividad 39","Limpieza del cárcamo de la PTAR-Rinconada las Lomas y construcción de rejilla para proteger la zona de ingreso de las aguas residuales. ( ya se encuentra autorizada y se realizaran trabajos según plan de trabajo 2021)",null,"P",{"$nulls":5},100,{"$nulls":6},1]
[{"$nulls":4},"E",{"$nulls":5},100,{"$nulls":6},1]
[null,"Actividad 40","Sustitución de línea de distribución de agua potable (la actual es manguera de 1\"), en las calles Lázaro Cárdenas y Zaragoza, en la Localidad de Santa Rosa, con una longitud de 120 m ( se encuentra en gestion de recursos )",null,"P",{"$nulls":8},100,{"$nulls":3},1]
[{"$nulls":4},"E",{"$nulls":12},0]
[null,"Actividad 41","Sustitución de línea de distribución de agua potable (la actual es de asbesto de 3\"), en la calle Aldama entre la calle Lázaro Cárenas y el campo de fútbol, en la localidad de Santa Rosa, con una longitud de 65 m. ( se encuentra en gestion de recursos )",null,"P",{"$nulls":8},100,{"$nulls":3},1]
[{"$nulls":4},"E",{"$nulls":12},{"$f":"SUM(F614:Q614)/100","v":0}]
[null,"Actividad 42","Rehabilitación de red de drenaje de 14' con 6 registros que interconecta el Fracc. Residencial la Capilla (Bali) a la PTAR Real del Lago con una longitud de 310 m. ( ya se encuentra autorizada y se realizaran trabajos según plan de trabajo 2021)este trabajo ya se encuentra realizado",null,"P",{"$nulls":5},100,{"$nulls":6},1]
[{"$nulls":4},"E",{"$nulls":8},100,{"$nulls":3},1]
[null,"Actividad 43","Rehabilitación de red de drenaje de 14' con 4 registros de los fraccionamientos Puerta del Sol y Los Laureles al colector del Fracc. Real del Lago con una longitud de 265 m.  ( ya se encuentra autorizada y se realizaran trabajos según plan de trabajo 2021)este trabajo ya se encuentra realizado",null,"P",{"$nulls":4},100,{"$nulls":7},1]
[{"$nulls":4},"E",{"$nulls":6},100,{"$nulls":5},1]
[null,"Actividad 44","Cambio de válvula de 6\" (dañada) al ingreso de la cisterna chica, Priv. Josefa Ortíz de Domínguez, Lomas de Atequiza  ( ya se encuentra autorizada y se realizaran trabajos según plan de trabajo 2021)",null,"P",{"$nulls":4},100,{"$nulls":7},1]
[{"$nulls":4},"E",{"$nulls":5},100,{"$nulls":6},1]
[null,null,"XLV. Inspeccionar las actividades de prestacion de los servicios, cuando estos sean administrados por terceros. "]
[]
[null,"Actividad 45","Supervicion a dos plantas de tratamiento que estan bajo la responsabilidad de la Comision Estatal del Agua CEA.  La Planta de Tratamiento de Atequiza con tipo de proceso Lagunar, caudal 19.23 l/s, Capacidad de tratamiento 32 l/s, Ubicacion Georeferencial 20°25´51.02 N\n103°13´37.26´´O, Estatus Operando y la Planta de tratamiento de Ixtlahuacan con un Tipo de proceso lodos activados, caudal 14 l/s, capacidad de tratamiento  16 l/s, Ubicacion Georeferencial 20°21´18.07´´N\n103°10´44.43´´O, Estatus operando. a la fecha sigue la operacion de las mismas de forma correcta",null,"P",{"$nulls":5},50,{"$nulls":4},50,null,{"$f":"SUM(F623:Q623)/100","v":1}]
[{"$nulls":4},"E",0,0,0,0,0,50,0,0,25,0,0,0,{"$f":"SUM(F624:Q624)/100","v":0.75}]
[null,"Actividad 46","Rehabilitar los carcamos de rebombeo de aguas negras hacia  los fracc. Sabinos 2 y 3 que descargan en la planta de tratamiento de sabinos 1.  Asi como la planta de tratamiento de Huerta Vieja que descarga aguas tratadas hacia la presa de la capilla la cual  sirve para riego agricola. ( se compraron 2 bombas de 5 hp y se repararon tres bombas mas) en el año 2021 se repararon 5 bombas y se compro una de 10 hp para la planta de sabinos 1 y una de 5  para la planta de huerta vieja",null,"P",10,10,10,5,5,5,5,10,10,10,10,10,1]
[{"$nulls":4},"E",10,10,10,5,5,5,5,10,10,0,0,0,0.7]
[null,null,"V. Cumplir las normas tecnicas, criterios y lineamientos para la prestaciòn de los servicios a su cargo, establecidas por la comision, asi como las normas oficiales mexicanas, vigilando su observancia, ampliandolas con lo necesario para cubrir los casos especificos; en particular, sobre descargas de aguas residuales, para disposicion, tratamiento, reutilizacion de lodos.",null,"P",0,0,0,0,0,0,0,20,20,20,20,20,1]
[{"$nulls":4},"E",0,0,0,0,10,10,10,10,10,0,0,0,0.5]
[null,"Actividad 47","Elaborar el presupuesto para reactivar las siguientes 7 plantas de tratamiento localizadas en los fraccionamientos Puerta del Sol, Olivos 1, Olivos 2, Residencial la Capilla, Rinconada las Lomas, Lomas de la Capilla y Girasoles. Se beneficiarían aprox. 12,250 habitantes ( actualmente no se cuenta con recursos para este proyecto. se trabaja en la gestion de los mismos)",null,"P",5,10,10,10,5,10,5,10,10,10,10,5,1]
[{"$nulls":4},"E",0,0,0,0,0,0,0,0,0,0,0,0,0]
[null,"Actividad 48","Poner en funcionamiento las plantas de tratamiento de aguas residuales que se encuentran obsoletas en los fraccionamientos puerta del sol, Olivos 1, Olivos 2, Residencial la capilla, Rinconada las lomas, Lomas de la capilla y Girasoles. se beneficiarían aprox. 12,250 habitantes ( actualmente no se cuenta con recursos para este proyecto. se trabaja en la gestion de los mismos)",null,"P",5,10,10,10,5,10,5,10,10,10,10,5,1]
[{"$nulls":4},"E",0,0,0,0,0,0,0,0,0,0,0,0,0]
[null,"Actividad 49","Elaborar el presupuesto para poner en funcionamiento al 100% las plantas de tratamiento de aguas residuales de los Fraccionamientos Huerta Vieja y Sabinos 1. ( actualmente no se cuenta con recursos para este proyecto. se trabaja en la gestion de los mismos)",null,"P",5,10,10,10,5,10,5,10,10,10,10,5,1]
[{"$nulls":4},"E",0,0,0,0,0,0,0,0,0,0,0,0,0]
[null,"Actividad 50","Poner en funcionamiento al 100% la planta de tratamiento de aguas residuales del fraccionamiento Huerta Vieja, con una poblacion beneficiada de 1,500 habitantes,  para lo que se requiere la compra de la computadora-cerebro del sistema (TLC-AUTOMATICO), La instalacion de tubos y charolas que bajan el agua de la criba (PAILERIA), y una bomba de lodos de 5 HP para el cárcamo principal. se realizo la compra de la bomba de 5 hp",null,"P",5,10,10,10,5,10,5,10,10,10,10,5,1]
[{"$nulls":4},"E",0,0,0,0,0,0,0,0,0,0,0,0,0]
[null,"Actividad 51","Poner en funcionamiento al 100% la planta de tratamiento de aguas residuales en el fraccionamiento de sabinos 1 con una poblacion de 1,000 habitantes, para lo que se requiere reparar el motoreductor del clarificador del agua, reparar la bomba de lodos de 20 HP para el cárcamo principal, compra de quimicos (GEL) para la desinfeccion de lodos que permitan su colocacion en el lecho de secado y poder utilizarlos como abono agricola  ( actualmente no se cuenta con recursos para este proyecto. se trabaja en la gestion de los mismos) se reparo el motor del clarificador y se reparado la bomba de 20 hp del carcamo principal",null,"P",5,10,10,10,5,10,5,10,10,10,10,5,1]
[{"$nulls":4},"E",0,0,0,0,0,0,0,0,0,0,0,0,0]
[null,null,"VIII.Prevenir y controlar la contaminaciòn de las aguas que tengan asignadas para la prestacion de los servicios."]
[]
[null,"Actividad 52","Limpieza de 6  fosas sépticas que que se localizán en el municipio, la siguientes fosas se les da limpieza cada mes; Panteón de Ixtlahuacan, Buenavista y Sacrificio. La fosa del panteón de Atequiza se limpia 3 veces al año, la fosa de la Capilla se limpia  2 veces al año, la fosa de la escuela San Mateo en el fraccionamiento Olivos 2, se limpia 8 veces al año, en total se dan 49 servicios de limpieza al año con el Vactor. ( se limpian peridocamenente con base a un canlendario mensual )",null,"P",5,10,10,10,5,10,5,10,10,10,10,5,1]
[{"$nulls":4},"E",5,10,10,10,5,10,5,10,10,0,0,0,0.75]
[null,"Actividad 53","Supervisar descargas de aguas residuales que cumplan con la norma oficial 001 de Salud Ambiental. (Se realizan pruebas de laboratorio )",null,"P",5,10,10,10,5,10,5,10,10,10,10,5,1]
[{"$nulls":4},"E",5,10,10,10,5,10,5,10,10,0,0,0,0.75]
[null,null,"XXX. Brindar al personal acreditado de la comision estatal del agua de Jalisco, todas las facilidades para desempeñar las actividades que tenga conferidas en la ley y su reglamento o le sean encomendadas por la autoridad competente."]
[]
[null,"Actividad 54","Se les brinda toda la información que soliciten para el desempeño de sus trabajos (expediente de cada pozo que se visite y la información de las plantas de tratamiento). ( se encuentran todos los archivos y expedientes necesarios)",null,"P",5,10,10,10,5,10,5,10,10,10,10,5,1]
[{"$nulls":4},"E",5,10,10,10,5,10,5,10,10,0,0,0,0.75]
[null,"Actividad 55","XLVI. Informar a la Comision respecto a los Programas de inversion y desarrollo de los servicios de agua y saneamiento, de conformidad con lo establecido en el articulo 87 de la ley del agua."]
[]
[null,"Actividad 55","En base al articulo 87 de la ley del agua se informa a la Comision Estatal del Agua sobre los programas de inversion y desarrollo de los servicios municipales de agua y saneamiento, contiene información sobre la cobertura de servicios de agua potable, alcantarillado sanitario y tratameinto de aguas residuales, pozos de abastecimiento, condiciones de distribución y  volumen y calidad del agua extraida. ( se envia informacion todos los años conforme se nos solicita)trabajando en el programa prodder este año 2021 con una inersion de  $ 1,146,787 por la linea de alejamiento de buenavista",null,"P",5,10,10,10,5,10,5,10,10,10,10,5,1]
[{"$nulls":4},"E",5,10,10,10,5,10,5,10,10,0,0,0,0.75]
[]
[null,null,"P : Programado  /  E: Ejecutado"]
[null,null,"SEMAFORO DE CUMPLIMIENTO DE LOS PROYECTOS  y DE LA DIRECCION"]
[null,null,"Avance en tiempo","Avance  relativo","Avances limitado"]
{"$rows_empty":29}
[null,null,"NOMBRE DEL PROGRAMA PRESUPUESTARIO:",{"$nulls":3},"SISTEMA DE EVALUACION Y DESEMPEÑO E INFORME"]
[]
[]
[null,null,"NOMBRE DEL INDICADOR:",null,null,"INDICE DE IMPLEMENTACIÓN DEL SISTEMA DE EVALUACIÓN DEL DESEMPEÑO E INFORME"]
[]
[]
[{"$nulls":5},"AÑO: ",2019]
[]
[null,1,"AVANCE TRIMESTRAL",{"$nulls":11},"Criterios para determinar avance de porcentaje de metas"]
[null,2,"VARIABLES",null,null,"1ro.","2do.",null,null,"3ro.","4to."]
[null,3,"número de reportes programados",null,null,9,{"$nulls":8},"Las metas de este indicador son muy especificas, hacer reportes, documentos y avances, en funcion de que estos han sido terminados y entregados o subidos a la pagina de la CEPLAP, se dan por terminadas las metas y por lo tanto cumplidos los valores de las variables                                                                                                                                                                                                                                                                      \n15 (3/9)    +   10  (59/59)   +   15 (3/4)     +  10 (0/1)   +  15 (0/1)   +   10(2/5 )+ 15(1/1)+ 10(2/3)= 0.516\n"]
[null,4,"número de reportes generados",null,null,3]
[null,5,"número de documentos programados para el desarrollo del psge",null,null,59]
[null,6,"número de documentos realizados para el desarrollo del psge",null,null,59]
[null,7,"número de documentos programados para la implementación del sed y seguimiento al diagnóstico de shcp",null,null,4]
[null,8,"número de documentos generados para la implementación del sed y seguimiento al diagnóstico de shcp",null,null,3]
[null,9,"número de reportes  programados para el seguimiento de la coespo/número de reportes realizados para el seguimiento de la coespo",null,null,1]
[null,10,"número de reportes realizados para el seguimiento de la coespo",null,null,0]
[null,11,"número de actividades programadas para el cumplimiento del psge",null,null,1]
[null,12,"número de actividades realizadas para el cumplimiento del psge",null,null,0]
[null,13,"número de acciones programadas para la presentación de actividades ",null,null,5]
[null,14,"número de acciones realizadas para la presentación de actividades",null,null,2]
[null,15,"actividades realizadas para la implementación del sed",null,null,1]
[null,16,"actividades programadas  para la implementación del sed",null,null,1]
[null,null,"número de acciones realizadas parala evaluación externa de resultados de impacto de los fondos federales",null,null,3]
[null,null,"número de acciones programadas parala evaluación externa de resultados de impacto de los fondos federales",null,null,2]
[null,null,"VALOR DEL INDICADOR",null,null,0.516,0,null,null,0,0]
[]
[]
[]
[]
[null,null,"NOMBRE DEL PROGRAMA PRESUPUESTARIO:"]
[]
[]
[null,null,"NOMBRE DEL INDICADOR:"]
[]
[]
[{"$nulls":5},"AÑO: ",2016]
[]
[null,null,"AVANCE TRIMESTRAL",{"$nulls":11},"Criterios para determinar avance de porcentaje de metas"]
[null,null,"VARIABLES",null,null,"1ro.","2do.",null,null,"3ro.","4to."]
[null,null,"Número de Apoyos entregados"]
[null,null,"Total de solicitudes de apoyo recibidas"]
[null,null,"NOMBRE DE LA VARIABLE N"]
[null,null,"ETC.."]
[null,null,"VALOR DEL INDICADOR",null,null,0,0,null,null,0,0]
[]
[]
[]
[]
[null,null,"NOMBRE DEL PROGRAMA PRESUPUESTARIO:"]
[]
[]
[null,null,"NOMBRE DEL INDICADOR:"]
[]
[]
[{"$nulls":5},"AÑO: ",2016]
[]
[null,null,"AVANCE TRIMESTRAL",{"$nulls":11},"Criterios para determinar avance de porcentaje de metas"]
[null,null,"VARIABLES",null,null,"1ro.","2do.",null,null,"3ro.","4to."]
[null,null,"Número de Apoyos entregados",null,null,0,35,null,null,0,0]
[null,null,"Total de solicitudes de apoyo recibidas",null,null,0,51,null,null,0,0]
[null,null,"NOMBRE DE LA VARIABLE N"]
[null,null,"ETC.."]
[null,null,"VALOR DEL INDICADOR",null,null,0,0,null,null,0,0]
[]
[]
[]
[]
[null,null,"NOMBRE DEL PROGRAMA PRESUPUESTARIO:"]
[]
[]
[null,null,"NOMBRE DEL INDICADOR:"]
[]
[]
[{"$nulls":5},"AÑO: ",2016]
[]
[null,null,"AVANCE TRIMESTRAL",{"$nulls":11},"Criterios para determinar avance de porcentaje de metas"]
[null,null,"VARIABLES",null,null,"1ro.","2do.",null,null,"3ro.","4to."]
[null,null,"Número de Apoyos entregados",null,null,0,35,null,null,0,0]
[null,null,"Total de solicitudes de apoyo recibidas",null,null,0,51,null,null,0,0]
[null,null,"NOMBRE DE LA VARIABLE N"]
[null,null,"ETC.."]
[null,null,"VALOR DEL INDICADOR",null,null,0,0,null,null,0,0]

{"sheet":"Hoja5","index":6,"n_rows":0,"n_cols":0,"rows_kept":0}